Workbook

Sheet RESUMO MODULO TOTAL
B1: EXECUÇÃO DE SERVIÇOS DE PAVIMENTAÇÃO COM TRATAMENTO SUPERFICIAL DUPLO EM VIAS DE MUNICÍPIOS DIVERSOS INSERIDOS NA ÁREA DE ATUAÇÃO DA CODEVASF, NO ESTADO DO AMAPÁ (REGIÃO PORTO GRANDE)
M2: SICRO: | N2: ='SINTÉTICO SICRO'!B2 -> Amapá - Abril/2024
M3: SINAPI: | N3: =RIGHT('INSUMOS SINAPI'!A3,7) -> 07/2024
M4: Data base do orçamento: | N4: 2024-09-01
B5: =B1 -> EXECUÇÃO DE SERVIÇOS DE PAVIMENTAÇÃO COM TRATAMENTO SUPERFICIAL DUPLO EM VIAS DE MUNICÍPIOS DIVERSOS INSERIDOS NA ÁREA DE ATUAÇÃO DA CODEVASF, NO ESTADO DO AMAPÁ (REGIÃO PORTO GRANDE)
B6: ITEM | C6: ORIGEM COMPOSIÇÃO | D6: CÓDIGO COMPOSIÇÃO | E6: DISCRIMINAÇÃO DOS SERVIÇOS | I6: BDI % = | J6: =BDI!C17 -> 0.2339 | K6: BDI DIFERENCIADO % = | L6: =BDI!C68 -> 0.15 | M6: R$/m² | N6: =N59/J23 -> 97.06
I7: Total de m² | J7: Encargos Sociais: | K7: Horista % | L7: Mensalista % | M7: PREÇO UNITÁRIO COM BDI | N7: PREÇO TOTAL COM BDI
I8: ='Memória de Cálculo'!C1*'Memória de Cálculo'!C2*'Memória de Cálculo'!G1 -> 280000 | K8: ='ENC. SOCIAIS'!E47 -> 114.44 | L8: ='ENC. SOCIAIS'!F47 -> 70.71
I9: UND | J9: QTDE. | K9: BDI | L9: PREÇO UNITÁRIO | AG9: TOTAL
E10: MOBILIZAÇÃO/DESMOBILIZAÇÃO
B11: 1 | C11: Codevasf | D11: Mob | E11: Mobilização | I11: kmxfrente | J11: =Mob!B65*Mob!H6 -> 2240 | K11: =(M11/L11-1) -> 0.2339 | L11: =Mob!B62 -> 275.58116 | M11: =Mob!B64 -> 340.0395933 | N11: =ROUND(ROUND(J11,2)*ROUND(M11,6),2) -> 761688.69 | O11: =N11/$N$59 -> 0.02802716619 | P11: INCC | R11: N1 | S11: TERRAPLENAGEM | T11: =(SUMIF(P:P,"TERRAPLENAGEM",N:N)/$N$59) -> 0.04280384593 | U11: =(SUMIF(P:P,"TERRAPLENAGEM",N:N)) -> 1163271.56 | AG11: 57163.47
B12: 2 | C12: Codevasf | D12: Mob | E12: Desmobilização | I12: kmxfrente | J12: =Mob!B65*Mob!H6 -> 2240 | K12: =(M12/L12-1) -> 0.2339 | L12: =Mob!B62 -> 275.58116 | M12: =Mob!B64 -> 340.0395933 | N12: =ROUND(ROUND(J12,2)*ROUND(M12,6),2) -> 761688.69 | O12: =N12/$N$59 -> 0.02802716619 | P12: INCC | R12: N2 | S12: PAVIMENTAÇÃO | T12: =SUMIF(P:P,"PAVIMENTAÇÃO",N:N)/$N$59 -> 0.6429027895 | U12: =(SUMIF(P:P,"PAVIMENTAÇÃO",N:N)) -> 17472040.53 | AG12: 57163.47
E13: INSTALAÇÃO DE CANTEIRO | R13: N3 | S13: CONSULTORIA | T13: =SUMIF(P:P,"CONSULTORIA",N:N)/$N$59 -> 0 | U13: =(SUMIF(P:P,"CONSULTORIA",N:N)) -> 0
B14: 3 | C14: Codevasf | D14: Canteiro | E14: Canteiro de Obras e Almoxarifado | I14: frente | J14: ='Memória de Cálculo'!G1 -> 20 | K14: =(M14/L14-1) -> 0.2339 | L14: =' Canteiro'!F11 -> 19147.44 | M14: =' Canteiro'!F13 -> 23626.02622 | N14: =ROUND(ROUND(J14,2)*ROUND(M14,6),2) -> 472520.52 | P14: INCC | R14: N4 | S14: DRENAGEM | T14: =SUMIF(P:P,"DRENAGEM",N:N)/$N$59 -> 0.1341740485 | U14: =(SUMIF(P:P,"DRENAGEM",N:N)) -> 3646421.28 | AG14: 190291.53
B15: 4 | C15: SICRO | D15: 903808 | E15: =VLOOKUP(D15,'SINTÉTICO SICRO'!A:D,2,FALSE) -> Instalação da usina misturadora de solos com capacidade de 300 t/h | I15: frente | J15: 3 | K15: 0.2339 | L15: =VLOOKUP(D15,'SINTÉTICO SICRO'!A:D,4,FALSE) -> 123573.36 | M15: =L15*(1+K15) -> 152477.1689 | N15: =ROUND(ROUND(J15,2)*ROUND(M15,6),2) -> 457431.51
B16: 5 | C16: SINAPI | D16: 103689 | E16: Fornecimento e instalação de placa de obra com chapa galvanizada e estrutura de madeira. af_03/2022_ps | I16: m² | J16: ='Memória de Cálculo'!H25 -> 320 | K16: =(M16/L16-1) -> 0.2339 | L16: =VLOOKUP(D16,'COMP Sint. Sinapi'!G7:K1048576,5,0) -> 311.73 | M16: =L16*(1+$J$6) -> 384.643647 | N16: =ROUND(ROUND(J16,2)*ROUND(M16,6),2) -> 123085.97 | P16: INCC | R16: N5 | S16: ADMINISTRAÇÃO LOCAL | T16: =SUMIF(P:P,"ADMINISTRAÇÃO LOCAL",N:N)/$N$59 -> 0 | U16: =(SUMIF(P:P,"ADMINISTRAÇÃO LOCAL",N:N)) -> 0
E17: ADMINISTRAÇÃO LOCAL DA OBRA | R17: N6 | S17: SINALIZAÇÃO VERTICAL | T17: =SUMIF(P:P,"SINALIZAÇÃO VERTICAL",N:N)/$N$59 -> 0 | U17: =(SUMIF(P:P,"SINALIZAÇÃO VERTICAL",N:N)) -> 0
B18: 6 | C18: Codevasf | D18: Adm Local | E18: Administração Local da Obra | I18: und | J18: 1 | K18: =(M18/L18-1) -> 0.2339 | L18: ='Adm Local'!J249 -> 930016.7976 | M18: ='Adm Local'!I251 -> 1147547.727 | N18: =ROUND(ROUND(J18,2)*ROUND(M18,6),2) -> 1147547.73 | O18: =N18/N59 -> 0.04222527045 | P18: INCC | R18: N7 | S18: SINALIZAÇÃO HORIZONTAL | T18: =SUMIF(P:P,"SINALIZAÇÃO HORIZONTAL",N:N)/$N$59 -> 0 | U18: =(SUMIF(P:P,"SINALIZAÇÃO HORIZONTAL",N:N)) -> 0
E19: TERRAPLANAGEM | R19: N8 | S19: CAP | T19: =(SUMIF(P:P,"CAP",N:N))/$N$59 -> 0 | U19: =(SUMIF(P:P,"CAP",N:N)) -> 0
B20: 7 | C20: SICRO | D20: 5502114 | E20: =VLOOKUP(D20,'SINTÉTICO SICRO'!$A$4:$D$1048576,2,0) -> Escavação, carga e transporte de material de 1ª categoria - DMT de 1.000 a 1.200 m - caminho de serviço em leito natural - com escavadeira e caminhão basculante de 14 m³ | I20: m³ | J20: ='Memória de Cálculo'!H37 -> 91000 | K20: =M20/L20-1 -> 0.2339 | L20: =ROUND(IF(C20="CODEVASF",VLOOKUP(D20,'CPU CODEVASF'!E:I,5,FALSE),VLOOKUP(D20,'SINTÉTICO SICRO'!A:D,4,FALSE)),6) -> 8.28 | M20: =ROUND(IF(C20="CODEVASF",VLOOKUP(D20,'CPU CODEVASF'!E:H,4,FALSE),VLOOKUP(D20,'SINTÉTICO SICRO'!A:D,4,FALSE)*(1+$J$6)),6) -> 10.216692 | N20: =ROUND(ROUND(J20,2)*ROUND(M20,6),2) -> 929718.97 | P20: TERRAPLENAGEM | R20: N9 | S20: IMPRIMAÇÃO | T20: =(SUMIF(P:P,"IMPRIMAÇÃO",N:N))/$N$59 -> 0 | U20: =(SUMIF(P:P,"IMPRIMAÇÃO",N:N)) -> 0 | AG20: 366912
B21: 8 | C21: SICRO | D21: 4413942 | E21: =VLOOKUP(D21,'SINTÉTICO SICRO'!$A$4:$D$1048576,2,0) -> Espalhamento de material em bota-fora | I21: m³ | J21: ='Memória de Cálculo'!H44 -> 91000 | K21: 0.2339 | L21: =ROUND(IF(C21="CODEVASF",VLOOKUP(D21,'CPU CODEVASF'!E:I,5,FALSE),VLOOKUP(D21,'SINTÉTICO SICRO'!A:D,4,FALSE)),6) -> 2.08 | M21: =ROUND(IF(C21="CODEVASF",VLOOKUP(D21,'CPU CODEVASF'!E:H,4,FALSE),VLOOKUP(D21,'SINTÉTICO SICRO'!A:D,4,FALSE)*(1+$J$6)),6) -> 2.566512 | N21: 233552.59 | P21: TERRAPLENAGEM | R21: N10 | S21: EMULSÃO ASFÁLTICA | T21: =(SUMIF(P:P,"EMULSÃO ASFÁLTICA",N:N))/$N$59 -> 0 | U21: =(SUMIF(P:P,"EMULSÃO ASFÁLTICA",N:N)) -> 0 | AG21: 84084 | AL21: 1
E22: PAVIMENTAÇÃO | R22: N11 | S22: OBRAS COMPLEMENTARES | T22: =(SUMIF(P:P,"OBRAS COMPLEMENTARES",N:N))/$N$59 -> 0 | U22: =(SUMIF(P:P,"OBRAS COMPLEMENTARES",N:N)) -> 0
B23: 9 | C23: SICRO | D23: 4915637 | E23: =VLOOKUP(D23,'SINTÉTICO SICRO'!$A$4:$D$1048576,2,0) -> Capa selante - areia comercial | I23: m² | J23: ='Memória de Cálculo'!H51 -> 280000 | K23: =M23/L23-1 -> 0.2339 | L23: =ROUND(IF(C23="CODEVASF",VLOOKUP(D23,'CPU CODEVASF'!E:I,5,FALSE),VLOOKUP(D23,'SINTÉTICO SICRO'!A:D,4,FALSE)),6) -> 1.05 | M23: =ROUND(IF(C23="CODEVASF",VLOOKUP(D23,'CPU CODEVASF'!E:H,4,FALSE),VLOOKUP(D23,'SINTÉTICO SICRO'!A:D,4,FALSE)*(1+$J$6)),6) -> 1.295595 | N23: =ROUND(ROUND(J23,2)*ROUND(M23,6),2) -> 362766.6 | P23: PAVIMENTAÇÃO | R23: N12 | S23: MOBILIZAÇÃO | T23: =(SUMIF(P:P,"MOBILIZAÇÃO",N:N))/$N$59 -> 0 | U23: =(SUMIF(P:P,"MOBILIZAÇÃO",N:N)) -> 0 | AG23: 13037300.31
B24: 10 | C24: SICRO | D24: 4011370 | E24: =VLOOKUP(D24,'SINTÉTICO SICRO'!$A$4:$D$1048576,2,0) -> Tratamento superficial duplo com emulsão - brita comercial | I24: m² | J24: ='Memória de Cálculo'!H57 -> 280000 | K24: 0.2339 | L24: =ROUND(IF(C24="CODEVASF",VLOOKUP(D24,'CPU CODEVASF'!E:I,5,FALSE),VLOOKUP(D24,'SINTÉTICO SICRO'!A:D,4,FALSE)),6) -> 6.89 | M24: =ROUND(IF(C24="CODEVASF",VLOOKUP(D24,'CPU CODEVASF'!E:H,4,FALSE),VLOOKUP(D24,'SINTÉTICO SICRO'!A:D,4,FALSE)*(1+$J$6)),6) -> 8.501571 | N24: 2380439.88 | P24: PAVIMENTAÇÃO | R24: N13 | S24: INCC | T24: =(SUMIF(P:P,"INCC",N:N))/$N$59 -> 0.1632876281 | U24: =(SUMIF(P:P,"INCC",N:N)) -> 4437635.21 | AG24: 223860
B25: 11 | C25: SICRO | D25: 4011352 | E25: =VLOOKUP(D25,'SINTÉTICO SICRO'!$A$4:$D$1048576,2,0) -> Imprimação com emulsão asfáltica | I25: m² | J25: ='Memória de Cálculo'!H57 -> 280000 | K25: 0.2339 | L25: =ROUND(IF(C25="CODEVASF",VLOOKUP(D25,'CPU CODEVASF'!E:I,5,FALSE),VLOOKUP(D25,'SINTÉTICO SICRO'!A:D,4,FALSE)),6) -> 0.41 | M25: =ROUND(IF(C25="CODEVASF",VLOOKUP(D25,'CPU CODEVASF'!E:H,4,FALSE),VLOOKUP(D25,'SINTÉTICO SICRO'!A:D,4,FALSE)*(1+$J$6)),6) -> 0.505899 | N25: 141651.72 | P25: PAVIMENTAÇÃO | AG25: 223860
B26: 12 | C26: CODEVASF | D26: CPU-20 | E26: Base estabilizada granulometricamente com mistura solo areia (70% - 30%) na pista com material de jazida e areia comercial | I26: m³ | J26: ='Memória de Cálculo'!H68 -> 42000 | K26: 0.2339 | L26: ='CPU CODEVASF2'!I36 -> 76,77 | M26: =L26+(L26*J6) -> 94.726503 | N26: 3978513.13 | P26: PAVIMENTAÇÃO | AG26: 15919722
B27: 13 | C27: SICRO | D27: 4011227 | E27: =VLOOKUP(D27,'SINTÉTICO SICRO'!$A$4:$D$1048576,2,0) -> Sub-base de solo estabilizado granulometricamente sem mistura com material de jazida | I27: m³ | J27: ='Memória de Cálculo'!H74 -> 42000 | K27: 0.2339 | L27: =ROUND(IF(C27="CODEVASF",VLOOKUP(D27,'CPU CODEVASF'!E:I,5,FALSE),VLOOKUP(D27,'SINTÉTICO SICRO'!A:D,4,FALSE)),6) -> 12.02 | M27: =ROUND(IF(C27="CODEVASF",VLOOKUP(D27,'CPU CODEVASF'!E:H,4,FALSE),VLOOKUP(D27,'SINTÉTICO SICRO'!A:D,4,FALSE)*(1+$J$6)),6) -> 14.831478 | N27: 622922.08 | P27: PAVIMENTAÇÃO | AG27: 2045862
B28: 14 | C28: SICRO | D28: 4011209 | E28: =VLOOKUP(D28,'SINTÉTICO SICRO'!$A$4:$D$1048576,2,0) -> Regularização do subleito | I28: m² | J28: ='Memória de Cálculo'!H80 -> 280000 | K28: 0.2339 | L28: =ROUND(IF(C28="CODEVASF",VLOOKUP(D28,'CPU CODEVASF'!E:I,5,FALSE),VLOOKUP(D28,'SINTÉTICO SICRO'!A:D,4,FALSE)),6) -> 1.22 | M28: =ROUND(IF(C28="CODEVASF",VLOOKUP(D28,'CPU CODEVASF'!E:H,4,FALSE),VLOOKUP(D28,'SINTÉTICO SICRO'!A:D,4,FALSE)*(1+$J$6)),6) -> 1.505358 | N28: 421500.24 | P28: PAVIMENTAÇÃO | AG28: 540540
E29: AQUISIÇÃO E TRANSPORTE DO MATERIAL BETUMINOSO
B30: 15 | C30: CODEVASF | D30: CPU-14 | E30: AQUISIÇÃO DE EAI | I30: t | J30: =' CONSUMO DE MAT. B TOTAL'!P9 -> 364 | K30: =M30/L30-1 -> 0.1500000001 | L30: =ROUND(IF(C30="CODEVASF",VLOOKUP(D30,'CPU CODEVASF'!E:I,5,FALSE),VLOOKUP(D30,'SINTÉTICO SICRO'!A:D,4,FALSE)),6) -> 2748.453519 | M30: =ROUND(IF(C30="CODEVASF",VLOOKUP(D30,'CPU CODEVASF'!E:H,4,FALSE),VLOOKUP(D30,'SINTÉTICO SICRO'!A:D,4,FALSE)*(1+$J$6)),6) -> 3160.721547 | N30: =ROUND(ROUND(J30,2)*ROUND(M30,6),2) -> 1150502.64 | P30: PAVIMENTAÇÃO | AG30: 3101079.07
B31: 16 | C31: CODEVASF | D31: CPU-18 | E31: TRANSPORTE DE EAI | I31: t | J31: =' CONSUMO DE MAT. B TOTAL'!P9 -> 364 | K31: 0.1499999999 | L31: =ROUND(IF(C31="CODEVASF",VLOOKUP(D31,'CPU CODEVASF'!E:I,5,FALSE),VLOOKUP(D31,'SINTÉTICO SICRO'!A:D,4,FALSE)),6) -> 1961.015714 | M31: =ROUND(IF(C31="CODEVASF",VLOOKUP(D31,'CPU CODEVASF'!E:H,4,FALSE),VLOOKUP(D31,'SINTÉTICO SICRO'!A:D,4,FALSE)*(1+$J$6)),6) -> 2255.168071 | N31: 820881.18 | P31: PAVIMENTAÇÃO | AG31: 1243849.15
B32: 17 | C32: CODEVASF | D32: CPU-15 | E32: AQUISIÇÃO DE EMULSÃO ASFÁLTICA RR-2C | I32: t | J32: =' CONSUMO DE MAT. B TOTAL'!P11+' CONSUMO DE MAT. B TOTAL'!P13+' CONSUMO DE MAT. B TOTAL'!P15 -> 840 | K32: 0.15 | L32: =ROUND(IF(C32="CODEVASF",VLOOKUP(D32,'CPU CODEVASF'!E:I,5,FALSE),VLOOKUP(D32,'SINTÉTICO SICRO'!A:D,4,FALSE)),6) -> 4050.814628 | M32: =ROUND(IF(C32="CODEVASF",VLOOKUP(D32,'CPU CODEVASF'!E:H,4,FALSE),VLOOKUP(D32,'SINTÉTICO SICRO'!A:D,4,FALSE)*(1+$J$6)),6) -> 4658.436822 | N32: 3913086.93 | P32: PAVIMENTAÇÃO | AG32: 775269.77
B33: 18 | C33: CODEVASF | D33: CPU-19 | E33: TRANSPORTE RR-2C | I33: t | J33: =J32 -> 840 | K33: 0.15 | L33: =ROUND(IF(C33="CODEVASF",VLOOKUP(D33,'CPU CODEVASF'!E:I,5,FALSE),VLOOKUP(D33,'SINTÉTICO SICRO'!A:D,4,FALSE)),6) -> 1193.91 | M33: =ROUND(IF(C33="CODEVASF",VLOOKUP(D33,'CPU CODEVASF'!E:H,4,FALSE),VLOOKUP(D33,'SINTÉTICO SICRO'!A:D,4,FALSE)*(1+$J$6)),6) -> 1372.9965 | N33: 1153317.06 | P33: PAVIMENTAÇÃO | AG33: 310962.288
E34: SINALIZAÇÃO
B35: 19 | C35: SICRO | D35: 5213440 | E35: =VLOOKUP(D35,'SINTÉTICO SICRO'!$A$4:$D$1048576,2,0) -> Placa de regulamentação em aço D = 0,60 m - película retrorrefletiva tipo I + SI - fornecimento e implantação | I35: und | J35: ='Memória de Cálculo'!H87 -> 120 | K35: =M35/L35-1 -> 0.2339 | L35: =ROUND(IF(C35="CODEVASF",VLOOKUP(D35,'CPU CODEVASF'!E:I,5,FALSE),VLOOKUP(D35,'SINTÉTICO SICRO'!A:D,4,FALSE)),6) -> 259.78 | M35: =ROUND(IF(C35="CODEVASF",VLOOKUP(D35,'CPU CODEVASF'!E:H,4,FALSE),VLOOKUP(D35,'SINTÉTICO SICRO'!A:D,4,FALSE)*(1+$J$6)),6) -> 320.542542 | N35: =ROUND(ROUND(J35,2)*ROUND(M35,6),2) -> 38465.11 | P35: INCC | AG35: 9985.95
B36: 20 | C36: SICRO | D36: 5213464 | E36: =VLOOKUP(D36,'SINTÉTICO SICRO'!$A$4:$D$1048576,2,0) -> Placa de advertência em aço, lado de 0,60 m - película retrorrefletiva tipo I + SI - fornecimento e implantação | I36: und | J36: ='Memória de Cálculo'!H92 -> 120 | K36: 0.2339 | L36: =ROUND(IF(C36="CODEVASF",VLOOKUP(D36,'CPU CODEVASF'!E:I,5,FALSE),VLOOKUP(D36,'SINTÉTICO SICRO'!A:D,4,FALSE)),6) -> 259.82 | M36: =ROUND(IF(C36="CODEVASF",VLOOKUP(D36,'CPU CODEVASF'!E:H,4,FALSE),VLOOKUP(D36,'SINTÉTICO SICRO'!A:D,4,FALSE)*(1+$J$6)),6) -> 320.591898 | N36: 38471.03 | P36: INCC
B37: 21 | C37: SICRO | D37: 5213863 | E37: =VLOOKUP(D37,'SINTÉTICO SICRO'!$A$4:$D$1048576,2,0) -> Suporte metálico galvanizado para placa de advertência ou regulamentação - lado ou diâmetro de 0,60 m - fornecimento e implantação | I37: und | J37: ='Memória de Cálculo'!H98 -> 240 | K37: 0.2339 | L37: =ROUND(IF(C37="CODEVASF",VLOOKUP(D37,'CPU CODEVASF'!E:I,5,FALSE),VLOOKUP(D37,'SINTÉTICO SICRO'!A:D,4,FALSE)),6) -> 456.06 | M37: =ROUND(IF(C37="CODEVASF",VLOOKUP(D37,'CPU CODEVASF'!E:H,4,FALSE),VLOOKUP(D37,'SINTÉTICO SICRO'!A:D,4,FALSE)*(1+$J$6)),6) -> 562.732434 | N37: 135055.78 | P37: INCC | AG37: 13086.06
B38: 22 | C38: SICRO | D38: 5213400 | E38: =VLOOKUP(D38,'SINTÉTICO SICRO'!$A$4:$D$1048576,2,0) -> Pintura de faixa com tinta acrílica - espessura de 0,4 mm | I38: m² | J38: ='Memória de Cálculo'!H103+'Memória de Cálculo'!H108 -> 9600 | K38: 0.2339 | L38: =ROUND(IF(C38="CODEVASF",VLOOKUP(D38,'CPU CODEVASF'!E:I,5,FALSE),VLOOKUP(D38,'SINTÉTICO SICRO'!A:D,4,FALSE)),6) -> 25.03 | M38: =ROUND(IF(C38="CODEVASF",VLOOKUP(D38,'CPU CODEVASF'!E:H,4,FALSE),VLOOKUP(D38,'SINTÉTICO SICRO'!A:D,4,FALSE)*(1+$J$6)),6) -> 30.884517 | N38: 296491.36 | P38: INCC
E39: DRENAGEM
B40: 23 | C40: SICRO | D40: 2003943 | E40: =VLOOKUP(D40,'SINTÉTICO SICRO'!$A$4:$D$1048576,2,0) -> Meio-fio de concreto - MFC 03 moldado no local com extrusora e concreto usinado - areia e brita comerciais | I40: m | J40: ='Memória de Cálculo'!H132 -> 80000 | K40: =M40/L40-1 -> 0.2339 | L40: =ROUND(IF(C40="CODEVASF",VLOOKUP(D40,'CPU CODEVASF'!E:I,5,FALSE),VLOOKUP(D40,'SINTÉTICO SICRO'!A:D,4,FALSE)),6) -> 36.94 | M40: =ROUND(IF(C40="CODEVASF",VLOOKUP(D40,'CPU CODEVASF'!E:H,4,FALSE),VLOOKUP(D40,'SINTÉTICO SICRO'!A:D,4,FALSE)*(1+$J$6)),6) -> 45.580266 | N40: =ROUND(ROUND(J40,2)*ROUND(M40,6),2) -> 3646421.28 | P40: DRENAGEM | AG40: 4514640
B41: 24 | C41: SICRO | D41: 4915724 | E41: =VLOOKUP(D41,'SINTÉTICO SICRO'!$A$4:$D$1048576,2,0) -> Caiação mecanizada com fixador de cal | I41: m² | J41: ='Memória de Cálculo'!H137 -> 9600 | K41: =(M41/L41-1) -> 0.2339 | L41: =ROUND(IF(C41="CODEVASF",VLOOKUP(D41,'CPU CODEVASF'!E:I,5,FALSE),VLOOKUP(D41,'SINTÉTICO SICRO'!A:D,4,FALSE)),6) -> 2.14 | M41: =ROUND(IF(C41="CODEVASF",VLOOKUP(D41,'CPU CODEVASF'!E:H,4,FALSE),VLOOKUP(D41,'SINTÉTICO SICRO'!A:D,4,FALSE)*(1+$J$6)),6) -> 2.640546 | N41: =ROUND(ROUND(J41,2)*ROUND(M41,6),2) -> 25349.24 | P41: INCC | AE41: 4514640
E42: SERVIÇOS COMPLEMENTARES
B43: 25 | C43: Codevasf | D43: CPU-12 | E43: Conserto de quebra no ramal na rua sem pavimento com fornecimento de material hidráulico | I43: m | J43: ='Memória de Cálculo'!H144 -> 4000 | K43: =M43/L43-1 -> 0.233899984 | L43: =ROUND(IF(C43="CODEVASF",VLOOKUP(D43,'CPU CODEVASF'!E:I,5,FALSE),VLOOKUP(D43,'SINTÉTICO SICRO'!A:D,4,FALSE)),6) -> 15.23396 | M43: =ROUND(IF(C43="CODEVASF",VLOOKUP(D43,'CPU CODEVASF'!E:H,4,FALSE),VLOOKUP(D43,'SINTÉTICO SICRO'!A:D,4,FALSE)*(1+$J$6)),6) -> 18.797183 | N43: =ROUND(ROUND(J43,2)*ROUND(M43,6),2) -> 75188.73 | P43: INCC | AG43: 139854
E44: PROJETO EXECUTIVO
B45: 26 | C45: Codevasf | D45: Composição Própria | E45: Projeto Executivo | I45: m² | J45: ='Memória de Cálculo'!H151 -> 280000 | K45: =M45/L45-1 -> 0.2339002446 | L45: =ROUND(M45/(1+$J$6),6) -> 1.626904 | M45: ='Projeto Executivo'!G29 -> 2.007437244 | N45: =ROUND(ROUND(J45,2)*ROUND(M45,6),2) -> 562082.36 | P45: INCC | AG45: 763671.38
E46: MOMENTO DE TRANSPORTE
B47: 27 | C47: SICRO | D47: 5914359 | E47: =VLOOKUP(D47,'SINTÉTICO SICRO'!$A$4:$D$1048576,2,0) -> Transporte com caminhão basculante de 10 m³ - rodovia em leito natural | I47: tkm | J47: =ROUND(SUMIF('MOMENTO DE TRANSPORTE - PRINC'!A:A,'RESUMO MODULO TOTAL'!D47,'MOMENTO DE TRANSPORTE - PRINC'!K:K)+SUMIF('MOMENTO DE TRANSPORTE - AUX'!A:A,'RESUMO MODULO TOTAL'!D47,'MOMENTO DE TRANSPORTE - AUX'!K:K),2) -> 227514.56 | K47: =M47/L47-1 -> 0.2339 | L47: =ROUND(IF(C47="CODEVASF",VLOOKUP(D47,'CPU CODEVASF'!E:I,5,FALSE),VLOOKUP(D47,'SINTÉTICO SICRO'!A:D,4,FALSE)),6) -> 1.3 | M47: =ROUND(IF(C47="CODEVASF",VLOOKUP(D47,'CPU CODEVASF'!E:H,4,FALSE),VLOOKUP(D47,'SINTÉTICO SICRO'!A:D,4,FALSE)*(1+$J$6)),6) -> 1.60407 | N47: =ROUND(ROUND(J47,2)*ROUND(M47,6),2) -> 364949.28 | P47: PAVIMENTAÇÃO
B48: 28 | C48: SICRO | D48: 5914374 | E48: =VLOOKUP(D48,'SINTÉTICO SICRO'!$A$4:$D$1048576,2,0) -> Transporte com caminhão basculante de 10 m³ - rodovia em revestimento primário | I48: tkm | J48: =ROUND(SUMIF('MOMENTO DE TRANSPORTE - PRINC'!A:A,'RESUMO MODULO TOTAL'!D48,'MOMENTO DE TRANSPORTE - PRINC'!K:K)+SUMIF('MOMENTO DE TRANSPORTE - AUX'!A:A,'RESUMO MODULO TOTAL'!D48,'MOMENTO DE TRANSPORTE - AUX'!K:K),2) -> 0 | K48: 0.2339 | L48: =ROUND(IF(C48="CODEVASF",VLOOKUP(D48,'CPU CODEVASF'!E:I,5,FALSE),VLOOKUP(D48,'SINTÉTICO SICRO'!A:D,4,FALSE)),6) -> 1.04 | M48: =ROUND(IF(C48="CODEVASF",VLOOKUP(D48,'CPU CODEVASF'!E:H,4,FALSE),VLOOKUP(D48,'SINTÉTICO SICRO'!A:D,4,FALSE)*(1+$J$6)),6) -> 1.283256 | N48: =ROUND(ROUND(J48,2)*ROUND(M48,6),2) -> 0 | P48: PAVIMENTAÇÃO
B49: 29 | C49: SICRO | D49: 5914389 | E49: =VLOOKUP(D49,'SINTÉTICO SICRO'!$A$4:$D$1048576,2,0) -> Transporte com caminhão basculante de 10 m³ - rodovia pavimentada | I49: tkm | J49: =ROUND(SUMIF('MOMENTO DE TRANSPORTE - PRINC'!A:A,'RESUMO MODULO TOTAL'!D49,'MOMENTO DE TRANSPORTE - PRINC'!K:K)+SUMIF('MOMENTO DE TRANSPORTE - AUX'!A:A,'RESUMO MODULO TOTAL'!D49,'MOMENTO DE TRANSPORTE - AUX'!K:K),2) -> 2047631.04 | K49: 0.2339 | L49: =ROUND(IF(C49="CODEVASF",VLOOKUP(D49,'CPU CODEVASF'!E:I,5,FALSE),VLOOKUP(D49,'SINTÉTICO SICRO'!A:D,4,FALSE)),6) -> 0.81 | M49: =ROUND(IF(C49="CODEVASF",VLOOKUP(D49,'CPU CODEVASF'!E:H,4,FALSE),VLOOKUP(D49,'SINTÉTICO SICRO'!A:D,4,FALSE)*(1+$J$6)),6) -> 0.999459 | N49: =ROUND(ROUND(J49,2)*ROUND(M49,6),2) -> 2046523.27 | P49: PAVIMENTAÇÃO
B50: 30 | C50: SICRO | D50: 5914314 | E50: =VLOOKUP(D50,'SINTÉTICO SICRO'!$A$4:$D$1048576,2,0) -> Transporte com caminhão basculante de 6 m³ - rodovia em leito natural | I50: tkm | J50: =ROUND(SUMIF('MOMENTO DE TRANSPORTE - PRINC'!A:A,'RESUMO MODULO TOTAL'!D50,'MOMENTO DE TRANSPORTE - PRINC'!K:K)+SUMIF('MOMENTO DE TRANSPORTE - AUX'!A:A,'RESUMO MODULO TOTAL'!D50,'MOMENTO DE TRANSPORTE - AUX'!K:K),2) -> 549.32 | K50: 0.2339 | L50: =ROUND(IF(C50="CODEVASF",VLOOKUP(D50,'CPU CODEVASF'!E:I,5,FALSE),VLOOKUP(D50,'SINTÉTICO SICRO'!A:D,4,FALSE)),6) -> 1.32 | M50: =ROUND(IF(C50="CODEVASF",VLOOKUP(D50,'CPU CODEVASF'!E:H,4,FALSE),VLOOKUP(D50,'SINTÉTICO SICRO'!A:D,4,FALSE)*(1+$J$6)),6) -> 1.628748 | N50: 894.7 | P50: PAVIMENTAÇÃO
B51: 31 | C51: SICRO | D51: 5914329 | E51: =VLOOKUP(D51,'SINTÉTICO SICRO'!$A$4:$D$1048576,2,0) -> Transporte com caminhão basculante de 6 m³ - rodovia em revestimento primário | I51: tkm | J51: =ROUND(SUMIF('MOMENTO DE TRANSPORTE - PRINC'!A:A,'RESUMO MODULO TOTAL'!D51,'MOMENTO DE TRANSPORTE - PRINC'!K:K)+SUMIF('MOMENTO DE TRANSPORTE - AUX'!A:A,'RESUMO MODULO TOTAL'!D51,'MOMENTO DE TRANSPORTE - AUX'!K:K),2) -> 0 | K51: 0.2339 | L51: =ROUND(IF(C51="CODEVASF",VLOOKUP(D51,'CPU CODEVASF'!E:I,5,FALSE),VLOOKUP(D51,'SINTÉTICO SICRO'!A:D,4,FALSE)),6) -> 1.06 | M51: =ROUND(IF(C51="CODEVASF",VLOOKUP(D51,'CPU CODEVASF'!E:H,4,FALSE),VLOOKUP(D51,'SINTÉTICO SICRO'!A:D,4,FALSE)*(1+$J$6)),6) -> 1.307934 | N51: 0 | P51: PAVIMENTAÇÃO
B52: 32 | C52: SICRO | D52: 5914344 | E52: =VLOOKUP(D52,'SINTÉTICO SICRO'!$A$4:$D$1048576,2,0) -> Transporte com caminhão basculante de 6 m³ - rodovia pavimentada | I52: tkm | J52: =ROUND(SUMIF('MOMENTO DE TRANSPORTE - PRINC'!A:A,'RESUMO MODULO TOTAL'!D52,'MOMENTO DE TRANSPORTE - PRINC'!K:K)+SUMIF('MOMENTO DE TRANSPORTE - AUX'!A:A,'RESUMO MODULO TOTAL'!D52,'MOMENTO DE TRANSPORTE - AUX'!K:K),2) -> 9865.8 | K52: 0.2339 | L52: =ROUND(IF(C52="CODEVASF",VLOOKUP(D52,'CPU CODEVASF'!E:I,5,FALSE),VLOOKUP(D52,'SINTÉTICO SICRO'!A:D,4,FALSE)),6) -> 0.83 | M52: =ROUND(IF(C52="CODEVASF",VLOOKUP(D52,'CPU CODEVASF'!E:H,4,FALSE),VLOOKUP(D52,'SINTÉTICO SICRO'!A:D,4,FALSE)*(1+$J$6)),6) -> 1.024137 | N52: 10103.93 | P52: PAVIMENTAÇÃO
B53: 33 | C53: SICRO | D53: 5914449 | E53: =VLOOKUP(D53,'SINTÉTICO SICRO'!$A$4:$D$1048576,2,0) -> Transporte com caminhão carroceria de 15 t - rodovia em leito natural | I53: tkm | J53: =ROUND(SUMIF('MOMENTO DE TRANSPORTE - PRINC'!A:A,'RESUMO MODULO TOTAL'!D53,'MOMENTO DE TRANSPORTE - PRINC'!K:K)+SUMIF('MOMENTO DE TRANSPORTE - AUX'!A:A,'RESUMO MODULO TOTAL'!D53,'MOMENTO DE TRANSPORTE - AUX'!K:K),2) -> 0 | K53: 0.2339 | L53: =ROUND(IF(C53="CODEVASF",VLOOKUP(D53,'CPU CODEVASF'!E:I,5,FALSE),VLOOKUP(D53,'SINTÉTICO SICRO'!A:D,4,FALSE)),6) -> 1.15 | M53: =ROUND(IF(C53="CODEVASF",VLOOKUP(D53,'CPU CODEVASF'!E:H,4,FALSE),VLOOKUP(D53,'SINTÉTICO SICRO'!A:D,4,FALSE)*(1+$J$6)),6) -> 1.418985 | N53: 0 | P53: PAVIMENTAÇÃO
B54: 34 | C54: SICRO | D54: 5914464 | E54: =VLOOKUP(D54,'SINTÉTICO SICRO'!$A$4:$D$1048576,2,0) -> Transporte com caminhão carroceria de 15 t - rodovia em revestimento primário | I54: tkm | J54: =ROUND(SUMIF('MOMENTO DE TRANSPORTE - PRINC'!A:A,'RESUMO MODULO TOTAL'!D54,'MOMENTO DE TRANSPORTE - PRINC'!K:K)+SUMIF('MOMENTO DE TRANSPORTE - AUX'!A:A,'RESUMO MODULO TOTAL'!D54,'MOMENTO DE TRANSPORTE - AUX'!K:K),2) -> 0 | K54: 0.2339 | L54: =ROUND(IF(C54="CODEVASF",VLOOKUP(D54,'CPU CODEVASF'!E:I,5,FALSE),VLOOKUP(D54,'SINTÉTICO SICRO'!A:D,4,FALSE)),6) -> 0.92 | M54: =ROUND(IF(C54="CODEVASF",VLOOKUP(D54,'CPU CODEVASF'!E:H,4,FALSE),VLOOKUP(D54,'SINTÉTICO SICRO'!A:D,4,FALSE)*(1+$J$6)),6) -> 1.135188 | N54: 0 | P54: PAVIMENTAÇÃO
B55: 35 | C55: SICRO | D55: 5914479 | E55: =VLOOKUP(D55,'SINTÉTICO SICRO'!$A$4:$D$1048576,2,0) -> Transporte com caminhão carroceria de 15 t - rodovia pavimentada | I55: tkm | J55: =ROUND(SUMIF('MOMENTO DE TRANSPORTE - PRINC'!A:A,'RESUMO MODULO TOTAL'!D55,'MOMENTO DE TRANSPORTE - PRINC'!K:K)+SUMIF('MOMENTO DE TRANSPORTE - AUX'!A:A,'RESUMO MODULO TOTAL'!D55,'MOMENTO DE TRANSPORTE - AUX'!K:K),2) -> 1297.7 | K55: 0.2339 | L55: =ROUND(IF(C55="CODEVASF",VLOOKUP(D55,'CPU CODEVASF'!E:I,5,FALSE),VLOOKUP(D55,'SINTÉTICO SICRO'!A:D,4,FALSE)),6) -> 0.72 | M55: =ROUND(IF(C55="CODEVASF",VLOOKUP(D55,'CPU CODEVASF'!E:H,4,FALSE),VLOOKUP(D55,'SINTÉTICO SICRO'!A:D,4,FALSE)*(1+$J$6)),6) -> 0.888408 | N55: 1152.89 | P55: PAVIMENTAÇÃO
B56: 36 | C56: SICRO | D56: 5914539 | E56: =VLOOKUP(D56,'SINTÉTICO SICRO'!$A$4:$D$1048576,2,0) -> Transporte com caminhão betoneira - rodovia em leito natural | I56: tkm | J56: =ROUND(SUMIF('MOMENTO DE TRANSPORTE - PRINC'!A:A,'RESUMO MODULO TOTAL'!D56,'MOMENTO DE TRANSPORTE - PRINC'!K:K)+SUMIF('MOMENTO DE TRANSPORTE - AUX'!A:A,'RESUMO MODULO TOTAL'!D56,'MOMENTO DE TRANSPORTE - AUX'!K:K),2) -> 12096 | K56: =M56/L56-1 -> 0.2339 | L56: =ROUND(IF(C56="CODEVASF",VLOOKUP(D56,'CPU CODEVASF'!E:I,5,FALSE),VLOOKUP(D56,'SINTÉTICO SICRO'!A:D,4,FALSE)),6) -> 1.04 | M56: =ROUND(IF(C56="CODEVASF",VLOOKUP(D56,'CPU CODEVASF'!E:H,4,FALSE),VLOOKUP(D56,'SINTÉTICO SICRO'!A:D,4,FALSE)*(1+$J$6)),6) -> 1.283256 | N56: =ROUND(ROUND(J56,2)*ROUND(M56,6),2) -> 15522.26 | P56: PAVIMENTAÇÃO
B57: 37 | C57: SICRO | D57: 5914554 | E57: =VLOOKUP(D57,'SINTÉTICO SICRO'!$A$4:$D$1048576,2,0) -> Transporte com caminhão betoneira - rodovia em revestimento primário | I57: tkm | J57: =ROUND(SUMIF('MOMENTO DE TRANSPORTE - PRINC'!A:A,'RESUMO MODULO TOTAL'!D57,'MOMENTO DE TRANSPORTE - PRINC'!K:K)+SUMIF('MOMENTO DE TRANSPORTE - AUX'!A:A,'RESUMO MODULO TOTAL'!D57,'MOMENTO DE TRANSPORTE - AUX'!K:K),2) -> 0 | K57: 0.2339 | L57: =ROUND(IF(C57="CODEVASF",VLOOKUP(D57,'CPU CODEVASF'!E:I,5,FALSE),VLOOKUP(D57,'SINTÉTICO SICRO'!A:D,4,FALSE)),6) -> 0.83 | M57: =ROUND(IF(C57="CODEVASF",VLOOKUP(D57,'CPU CODEVASF'!E:H,4,FALSE),VLOOKUP(D57,'SINTÉTICO SICRO'!A:D,4,FALSE)*(1+$J$6)),6) -> 1.024137 | N57: 0 | P57: PAVIMENTAÇÃO
B58: 38 | C58: SICRO | D58: 5914569 | E58: =VLOOKUP(D58,'SINTÉTICO SICRO'!$A$4:$D$1048576,2,0) -> Transporte com caminhão betoneira - rodovia pavimentada | I58: tkm | J58: =ROUND(SUMIF('MOMENTO DE TRANSPORTE - PRINC'!A:A,'RESUMO MODULO TOTAL'!D58,'MOMENTO DE TRANSPORTE - PRINC'!K:K)+SUMIF('MOMENTO DE TRANSPORTE - AUX'!A:A,'RESUMO MODULO TOTAL'!D58,'MOMENTO DE TRANSPORTE - AUX'!K:K),2) -> 108864 | K58: 0.2339 | L58: =ROUND(IF(C58="CODEVASF",VLOOKUP(D58,'CPU CODEVASF'!E:I,5,FALSE),VLOOKUP(D58,'SINTÉTICO SICRO'!A:D,4,FALSE)),6) -> 0.65 | M58: =ROUND(IF(C58="CODEVASF",VLOOKUP(D58,'CPU CODEVASF'!E:H,4,FALSE),VLOOKUP(D58,'SINTÉTICO SICRO'!A:D,4,FALSE)*(1+$J$6)),6) -> 0.802035 | N58: 87312.74 | P58: PAVIMENTAÇÃO
B59: VALOR TOTAL DO SRP | N59: =INT(SUM(N10:N58)) -> 27176800 | AG59: =SUM(AG19:AG45) -> 43314537.98
B60: Obs.: Os valores estão apresentados com apenas 2 casas decimais, mas os valores da presente planilha foram calculados utilizando a precisão de 6 casa decimais.
N61: =97.06*I8 -> 27176800

Sheet CRONOGRAMA TOTAL
A2: ='RESUMO MODULO TOTAL'!B1 -> EXECUÇÃO DE SERVIÇOS DE PAVIMENTAÇÃO COM TRATAMENTO SUPERFICIAL DUPLO EM VIAS DE MUNICÍPIOS DIVERSOS INSERIDOS NA ÁREA DE ATUAÇÃO DA CODEVASF, NO ESTADO DO AMAPÁ (REGIÃO PORTO GRANDE)
A3: Cronograma Físico e Financeiro
A4: Item | B4: Descrição | C4: Total Por Etapa | D4: 30 DIAS | E4: 60 DIAS | F4: 90 DIAS | G4: 120 DIAS | H4: 150 DIAS | I4: 180 DIAS | J4: 210 DIAS | K4: 240 DIAS | L4: 270 DIAS | M4: 300 DIAS | N4: 330 DIAS | O4: 360 DIAS
B5: ='RESUMO MODULO TOTAL'!E10 -> MOBILIZAÇÃO/DESMOBILIZAÇÃO | C5: =SUM(D5:O5) -> 1 | D5: 0.5 | O5: 0.5
C6: =SUM('RESUMO MODULO TOTAL'!N11:N12) -> 1523377.38 | D6: =$C$6*D5 -> 761688.69 | O6: =$C$6*O5 -> 761688.69 | P6: =SUM(D6:O6) -> 1523377.38 | Q6: =IF(P6=C6,"OK","") -> OK
B7: ='RESUMO MODULO TOTAL'!E13 -> INSTALAÇÃO DE CANTEIRO | C7: =SUM(D7:O7) -> 1 | D7: 0.1 | E7: 0.5 | F7: 0.4
C8: =SUM('RESUMO MODULO TOTAL'!N14:N16) -> 1053038 | D8: =$C$8*D7 -> 105303.8 | E8: =$C$8*E7 -> 526519 | F8: 421215.2 | G8: 0 | H8: 0 | I8: 0 | J8: 0 | K8: 0 | L8: 0 | M8: 0 | N8: 0 | O8: 0 | P8: =SUM(D8:O8) -> 1053038 | Q8: =IF(P8=C8,"OK","") -> OK
B9: ='RESUMO MODULO TOTAL'!E17 -> ADMINISTRAÇÃO LOCAL DA OBRA | C9: =SUM(D9:O9) -> 1.000000003 | D9: =(D6+D8+D12+D14+D16+D18+D20+D22+D24+D26)/($O$33-$C$10) -> 0.05490264704 | E9: 0.02022797253 | F9: 0.0370613411 | G9: 0.02087896307 | H9: 0.02232327521 | I9: 0.1228737317 | J9: 0.1054035714 | K9: 0.1054035714 | L9: 0.1054035714 | M9: 0.1054035714 | N9: 0.1759351887 | O9: =(O6+O8+O12+O14+O16+O18+O20+O22+O24+O26)/($O$33-$C$10) -> 0.1241825985
C10: =SUM('RESUMO MODULO TOTAL'!N18) -> 1147547.73 | D10: =$C$10*D9 -> 63003.40798 | E10: =$C$10*E9 -> 23212.56396 | F10: =$C$10*F9 -> 42529.65785 | G10: 23959.60668 | H10: 25617.0238 | I10: 141003.4718 | J10: 120955.6291 | K10: 120955.6291 | L10: 120955.6291 | M10: 120955.6291 | N10: 201894.0264 | O10: 142505.459 | P10: =SUM(D10:O10) -> 1147547.734 | Q10: =IF(P10=C10,"OK","") -> 
B11: ='RESUMO MODULO TOTAL'!E19 -> TERRAPLANAGEM | C11: =SUM(D11:O11) -> 1 | F11: =1/4 -> 0.25 | G11: =1/4 -> 0.25 | H11: =1/4 -> 0.25 | I11: =1/4 -> 0.25
C12: =SUM('RESUMO MODULO TOTAL'!N20:N21) -> 1163271.56 | D12: =$C$14*D11 -> 0 | E12: =$C$12*E11 -> 0 | F12: 290817.89 | G12: 290817.89 | H12: 290817.89 | I12: 290817.89 | J12: 0 | K12: 0 | L12: 0 | M12: 0 | N12: 0 | O12: 0 | P12: =SUM(D12:O12) -> 1163271.56 | Q12: =IF(P12=C12,"OK","") -> OK
B13: ='RESUMO MODULO TOTAL'!E22 -> PAVIMENTAÇÃO | C13: =SUM(D13:O13) -> 1 | I13: =1/6 -> 0.1666666667 | J13: =1/6 -> 0.1666666667 | K13: 0.1666666667 | L13: 0.1666666667 | M13: 0.1666666667 | N13: 0.1666666667
C14: =SUM('RESUMO MODULO TOTAL'!N23:N28) -> 7907793.65 | D14: =$C$14*D13 -> 0 | E14: =$C$14*E13 -> 0 | F14: 0 | G14: 0 | H14: 0 | I14: 1317965.608 | J14: 1317965.608 | K14: 1317965.608 | L14: 1317965.608 | M14: 1317965.608 | N14: 1317965.608 | O14: 0 | P14: =SUM(D14:O14) -> 7907793.65 | Q14: =IF(P14=C14,"OK","") -> OK
B15: ='RESUMO MODULO TOTAL'!E29 -> AQUISIÇÃO E TRANSPORTE DO MATERIAL BETUMINOSO | C15: =SUM(D15:O15) -> 1 | I15: =1/6 -> 0.1666666667 | J15: 0.1666666667 | K15: 0.1666666667 | L15: 0.1666666667 | M15: 0.1666666667 | N15: 0.1666666667
C16: =SUM('RESUMO MODULO TOTAL'!N30:N33) -> 7037787.81 | D16: =$C$16*D15 -> 0 | E16: =$C$16*E15 -> 0 | F16: 0 | G16: 0 | H16: 0 | I16: 1172964.635 | J16: 1172964.635 | K16: 1172964.635 | L16: 1172964.635 | M16: 1172964.635 | N16: 1172964.635 | O16: 0 | P16: =SUM(D16:O16) -> 7037787.81 | Q16: =IF(P16=C16,"OK","") -> OK
B17: ='RESUMO MODULO TOTAL'!E34 -> SINALIZAÇÃO | C17: =SUM(D17:O17) -> 1 | O17: 1
C18: =SUM('RESUMO MODULO TOTAL'!N35:N38) -> 508483.28 | D18: =$C$18*D17 -> 0 | E18: =$C$18*E17 -> 0 | F18: 0 | G18: 0 | H18: 0 | I18: 0 | J18: 0 | K18: 0 | L18: 0 | M18: 0 | N18: 0 | O18: 508483.28 | P18: =SUM(D18:O18) -> 508483.28 | Q18: =IF(P18=C18,"OK","") -> OK
B19: ='RESUMO MODULO TOTAL'!E39 -> DRENAGEM | C19: =SUM(D19:O19) -> 1 | N19: 0.5 | O19: 0.5
C20: =SUM('RESUMO MODULO TOTAL'!N40:N41) -> 3671770.52 | D20: =$C$20*D19 -> 0 | E20: =$C$20*E19 -> 0 | F20: 0 | G20: 0 | H20: 0 | I20: 0 | J20: 0 | K20: 0 | L20: 0 | M20: 0 | N20: 1835885.26 | O20: 1835885.26 | P20: =SUM(D20:O20) -> 3671770.52 | Q20: =IF(P20=C20,"OK","") -> OK
B21: ='RESUMO MODULO TOTAL'!E42 -> SERVIÇOS COMPLEMENTARES | C21: =SUM(D21:O21) -> 1 | H21: 0.5 | I21: 0.5
C22: =SUM('RESUMO MODULO TOTAL'!N43) -> 75188.73 | D22: =$C$22*D21 -> 0 | E22: =$C$22*E21 -> 0 | F22: 0 | G22: 0 | H22: 37594.365 | I22: 37594.365 | J22: 0 | K22: 0 | L22: 0 | M22: 0 | N22: 0 | O22: 0 | P22: =SUM(D22:O22) -> 75188.73 | Q22: =IF(P22=C22,"OK","") -> OK
B23: ='RESUMO MODULO TOTAL'!E44 -> PROJETO EXECUTIVO | C23: =SUM(D23:O23) -> 1 | D23: 1
C24: ='RESUMO MODULO TOTAL'!N45 -> 562082.36 | D24: =$C$24*D23 -> 562082.36 | E24: =$C$24*E23 -> 0 | F24: 0 | G24: 0 | H24: 0 | I24: 0 | J24: 0 | K24: 0 | L24: 0 | M24: 0 | N24: 0 | O24: 0 | P24: =SUM(D24:O24) -> 562082.36 | Q24: =IF(P24=C24,"OK","") -> OK
B25: ='RESUMO MODULO TOTAL'!E46 -> MOMENTO DE TRANSPORTE | C25: =SUM(D25:O25) -> 1 | F25: 0.1 | G25: 0.1 | H25: 0.1 | I25: 0.15 | J25: 0.1 | K25: 0.1 | L25: 0.1 | M25: 0.1 | N25: 0.1 | O25: 0.05
C26: =SUM('RESUMO MODULO TOTAL'!N47:N58) -> 2526459.07 | D26: =$C$26*D25 -> 0 | E26: =$C$26*E25 -> 0 | F26: 252645.907 | G26: 252645.907 | H26: 252645.907 | I26: 378968.8605 | J26: 252645.907 | K26: 252645.907 | L26: 252645.907 | M26: 252645.907 | N26: 252645.907 | O26: 126322.9535 | P26: =SUM(D26:O26) -> 2526459.07 | Q26: =IF(P26=C26,"OK","") -> OK
A28: Porcentagem | D28: =SUM(D6+D8+D10+D12+D14+D16+D18+D20+D22+D24+D26)/$O$33 -> 0.05490264704 | E28: =SUM(E6+E8+E10+E12+E14+E16+E18+E20+E22+E24+E26)/$O$33 -> 0.02022797253 | F28: 0.0370613411 | G28: 0.02087896307 | H28: 0.02232327521 | I28: 0.1228737317 | J28: 0.1054035714 | K28: 0.1054035714 | L28: 0.1054035714 | M28: 0.1054035714 | N28: 0.1759351887 | O28: =SUM(O6+O8+O10+O12+O14+O16+O18+O20+O22+O24+O26)/$O$33 -> 0.1241825985
A29: Custo | D29: =$O$33*D28 -> 1492078.258 | E29: =$O$33*E28 -> 549731.564 | F29: =$O$33*F28 -> 1007208.655 | G29: 567423.4037 | H29: 606675.1858 | I29: 3339314.831 | J29: 2864531.779 | K29: 2864531.779 | L29: 2864531.779 | M29: 2864531.779 | N29: 4781355.437 | O29: 3374885.642
A30: Porcentagem Acumulado | D30: =D28 -> 0.05490264704 | E30: =D30+E28 -> 0.07513061957 | F30: =E30+F28 -> 0.1121919607 | G30: 0.1330709237 | H30: 0.155394199 | I30: 0.2782679306 | J30: 0.383671502 | K30: 0.4890750734 | L30: 0.5944786448 | M30: 0.6998822163 | N30: 0.875817405 | O30: =N30+O28 -> 1.000000003
A31: Custo Acumulado | D31: =D29 -> 1492078.258 | E31: =D31+E29 -> 2041809.822 | F31: 3049018.477 | G31: 3616441.88 | H31: 4223117.066 | I31: 7562431.897 | J31: 10426963.68 | K31: 13291495.46 | L31: 16156027.24 | M31: 19020559.01 | N31: 23801914.45 | O31: =INT(N31+O29) -> 27176800
D33: Total Geral | N33: R$ | O33: =INT(C6+C8+C10+C12+C14+C16+C18+C20+C22+C24+C26) -> 27176800
O36: =O31-O33 -> 0

Sheet CPU CODEVASF2
A4: ='RESUMO MODULO TOTAL'!B1 -> EXECUÇÃO DE SERVIÇOS DE PAVIMENTAÇÃO COM TRATAMENTO SUPERFICIAL DUPLO EM VIAS DE MUNICÍPIOS DIVERSOS INSERIDOS NA ÁREA DE ATUAÇÃO DA CODEVASF, NO ESTADO DO AMAPÁ (REGIÃO PORTO GRANDE)
A5: Código | C5: CPU-20
A6: Descrição | C6: BASE ESTABILIZADA GRANULOMETRICAMENTE COM MISTURA SOLO AREIA (70% - 30%) NA PISTA COM MATERIAL DE JAZIDA E AREIA COMERCIAL
A7: Data | C7: 05/2024
A8: Estado | C8: Amapá
A9: Unidade | C9: M³
A10: Produção de Equipe | C10: 150,88 M³
A11: A | B11: Equipamentos | D11: Quant. | E11: Utilização | G11: Custo Operacional | I11: Custo Horário
E12: Operativa | F12: Improdutiva | G12: Operativa | H12: Improdutiva
A13: E9571 | B13: Caminhão tanque com capacidade de 10.000 l - 188 kW | D13: 1,00000 | E13: 0,83 | F13: 0,17 | G13: 342,0178 | H13: 85,6579 | I13: 298,4366
A14: E9518 | B14: Grade de 24 discos rebocável de D = 60 cm (24") | D14: 1,00000 | E14: 0,62 | F14: 0,38 | G14: 4,6834 | H14: 3,2614 | I14: 4,1430
A15: E9524 | B15: Motoniveladora - 93 kW | D15: 1,00000 | E15: 1,00 | F15: 0,00 | G15: 292,7617 | H15: 125,4479 | I15: 292,7617
A16: E9762 | B16: Rolo compactador de pneus autopropelido de 27 t - 85 kW | D16: 1,00000 | E16: 0,86 | F16: 0,14 | G16: 259,8311 | H16: 124,7040 | I16: 240,9133
A17: E9685 | B17: Rolo compactador pé de carneiro vibratório autopropelido por pneus de 11,6 t - 82 kW | D17: 1,00000 | E17: 0,90 | F17: 0,10 | G17: 220,2421 | H17: 95,9465 | I17: 207,8125
A18: E9577 | B18: Trator agrícola sobre pneus - 77 kW | D18: 1,00000 | E18: 0,62 | F18: 0,38 | G18: 148,5860 | H18: 52,1939 | I18: 111,9570
A19: Custo Horário de Equipamentos | I19: 1.156,0242
A20: B | B20: Mão de Obra | D20: Quant. | E20: Unidade | F20: Custo Horário | I20: Custo Horário
A21: P9824 | B21: Servente | D21: 1,00000 | E21: h | F21: 20,9484 | I21: 20,9484
A22: Custo horário total de mão de obra | I22: 20,9484
A23: Custo horário total de execução | I23: 1.176,9726
A24: Custo Unitário de Execução | I24: 7,8007
A25: Fator de Influencia da Chuva - FIC | I25: 0,5008
A26: C | B26: Material | D26: Quant. | E26: Unidade | F26: Preço Unitário | I26: Custo Horário
A27: M0028 | B27: Areia média | D27: 0,41260 | E27: m³ | F27: 154,1420 | I27: 63,5990
A28: Custo unitário total de material | I28: 0,0000
A29: D | B29: Atividades Auxiliares | D29: Quant. | E29: Unidade | F29: Preço Unitário | I29: Custo Horário
A30: 4016096 | B30: Escavação e carga de material de jazida com escavadeira hidráulica de 1,56 m³ | D30: 0,77019 | E30: m³ | F30: 1,4500 | I30: 1,12
A31: Custo Total das Atividades | I31: 0,0000
A32: E | B32: Tempos Fixos | D32: Quant. | E32: Unidade | F32: Preço Unitário | I32: Custo Horário
A33: 4016096 - 5914354 | B33: Escavação e carga de material de jazida com escavadeira hidráulica de 1,56 m³ - Carga, manobra e descarga de agregados ou solos em caminhão basculante de 10 m³ - carga com escavadeira de 1,56 m³ (exclusa) e descarga livre | D33: 1,44411 | E33: t | F33: 1,8500 | I33: 2,67
A34: M0028 - 5914647 | B34: Areia média - Carga, manobra e descarga de agregados ou solos em caminhão basculante de 10 m³ - carga com carregadeira de 3,40 m³ (exclusa) e descarga livre | D34: 0,61890 | E34: t | F34: 1,7800 | I34: 1,10
A35: Custo Total dos Tempos Fixos | I35: 0,0000
A36: Custo Unitário Direto Total | I36: 76,77

Sheet Mob
A4: ='RESUMO MODULO TOTAL'!B1 -> EXECUÇÃO DE SERVIÇOS DE PAVIMENTAÇÃO COM TRATAMENTO SUPERFICIAL DUPLO EM VIAS DE MUNICÍPIOS DIVERSOS INSERIDOS NA ÁREA DE ATUAÇÃO DA CODEVASF, NO ESTADO DO AMAPÁ (REGIÃO PORTO GRANDE)
A5: MOBILIZAÇÃO/DESMOBILIZAÇÃO (MOB) | F5: Frentes de serviços | H5: ='Memória de Cálculo'!G1 -> 20
F6: Distância da Capital ao Canteiro: | H6: 112 | I6: Fica a cargo de cada SR colocar a distancia adequada de acordo com o historico de mobilização
F8: Velocidade média de transporte (pavim.): | H8: 60
A10: Transporte dos equipamentos
A11: CODIGO | B11: EQUIPAMENTO | C11: VEÍCULO TRANSPORTADOR | D11: QTDE | E11: K | F11: FU | G11: CUSTO DO TRANSPORTE
G12: (R$/h) | H12: (R$)/km
A13: E9524 | B13: =VLOOKUP(A13,Equipamentos!$A:$K,2,FALSE) -> Motoniveladora - 93 kW | C13: =IFERROR(INDEX('Tabelas 2 e 3 mob'!A:K,MATCH(A13,'Tabelas 2 e 3 mob'!A:A,0),9),"ERRO") -> E9665 | D13: 1 | E13: 2 | F13: 1 | G13: =IF(C13="Veículo(s) da própria frota.",0,INDEX(Equipamentos!B:K,MATCH(C13,Equipamentos!A:A,0),9)) -> 394.6665 | H13: =((D13*E13*F13)/$H$8)*G13 -> 13.15555
A14: E9526 | B14: =VLOOKUP(A14,Equipamentos!$A:$K,2,FALSE) -> Retroescavadeira de pneus - capacidade da caçamba da pá-carregadeira de 0,76 m³ e da retroescavadeira de 0,29 m³ - 58 kW | C14: =IFERROR(INDEX('Tabelas 2 e 3 mob'!A:K,MATCH(A14,'Tabelas 2 e 3 mob'!A:A,0),9),"ERRO") -> E9665 | D14: 1 | E14: 2 | F14: 1 | G14: =IF(C14="Veículo(s) da própria frota.",0,INDEX(Equipamentos!B:K,MATCH(C14,Equipamentos!A:A,0),9)) -> 394.6665 | H14: =((D14*E14*F14)/$H$8)*G14 -> 13.15555
A15: E9577 | B15: =VLOOKUP(A15,Equipamentos!$A:$K,2,FALSE) -> Trator agrícola sobre pneus - 77 kW | C15: =IFERROR(INDEX('Tabelas 2 e 3 mob'!A:K,MATCH(A15,'Tabelas 2 e 3 mob'!A:A,0),9),"ERRO") -> E9665 | D15: 1 | E15: 2 | F15: 0.5 | G15: =IF(C15="Veículo(s) da própria frota.",0,INDEX(Equipamentos!B:K,MATCH(C15,Equipamentos!A:A,0),9)) -> 394.6665 | H15: 6.577775
A16: E9518 | B16: =VLOOKUP(A16,Equipamentos!$A:$K,2,FALSE) -> Grade de 24 discos rebocável de D = 60 cm (24") | C16: =IFERROR(INDEX('Tabelas 2 e 3 mob'!A:K,MATCH(A16,'Tabelas 2 e 3 mob'!A:A,0),9),"ERRO") -> Veículo(s) da própria frota. | D16: 1 | E16: 2 | F16: 0 | G16: =IF(C16="Veículo(s) da própria frota.",0,INDEX(Equipamentos!B:K,MATCH(C16,Equipamentos!A:A,0),9)) -> 0 | H16: 0
A17: E9615 | B17: =VLOOKUP(A17,Equipamentos!$A:$K,2,FALSE) -> Usina misturadora de solos com capacidade de 300 t/h - 44 kW | C17: =IFERROR(INDEX('Tabelas 2 e 3 mob'!A:K,MATCH(A17,'Tabelas 2 e 3 mob'!A:A,0),9),"ERRO") -> E9018 | D17: 1 | E17: 2 | F17: 2 | G17: =IF(C17="Veículo(s) da própria frota.",0,INDEX(Equipamentos!B:K,MATCH(C17,Equipamentos!A:A,0),9)) -> 530.8761 | H17: 35.39174
A18: E9530 | B18: =VLOOKUP(A18,Equipamentos!$A:$K,2,FALSE) -> Rolo compactador liso vibratório autopropelido por pneus de 11 t - 97 kW | C18: =IFERROR(INDEX('Tabelas 2 e 3 mob'!A:K,MATCH(A18,'Tabelas 2 e 3 mob'!A:A,0),9),"ERRO") -> E9666 | D18: 1 | E18: 2 | F18: 0.5 | G18: =IF(C18="Veículo(s) da própria frota.",0,INDEX(Equipamentos!B:K,MATCH(C18,Equipamentos!A:A,0),9)) -> 421.7378 | H18: 7.028963333
A19: E9558 | B19: =VLOOKUP(A19,Equipamentos!$A:$K,2,FALSE) -> Tanque de estocagem de asfalto com capacidade de 30.000 l | C19: =IFERROR(INDEX('Tabelas 2 e 3 mob'!A:K,MATCH(A19,'Tabelas 2 e 3 mob'!A:A,0),9),"ERRO") -> E9665 | D19: 1 | E19: 2 | F19: 1 | G19: =IF(C19="Veículo(s) da própria frota.",0,INDEX(Equipamentos!B:K,MATCH(C19,Equipamentos!A:A,0),9)) -> 394.6665 | H19: 13.15555
A20: E9758 | B20: =VLOOKUP(A20,Equipamentos!$A:$K,2,FALSE) -> Vibroacabadora de asfalto sobre pneus - 82 kW | C20: =IFERROR(INDEX('Tabelas 2 e 3 mob'!A:K,MATCH(A20,'Tabelas 2 e 3 mob'!A:A,0),9),"ERRO") -> E9018 | D20: 1 | E20: 2 | F20: 0.5 | G20: =IF(C20="Veículo(s) da própria frota.",0,INDEX(Equipamentos!B:K,MATCH(C20,Equipamentos!A:A,0),9)) -> 530.8761 | H20: 8.847935
A21: E9685 | B21: =VLOOKUP(A21,Equipamentos!$A:$K,2,FALSE) -> Rolo compactador pé de carneiro vibratório autopropelido por pneus de 11,6 t - 82 kW | C21: =IFERROR(INDEX('Tabelas 2 e 3 mob'!A:K,MATCH(A21,'Tabelas 2 e 3 mob'!A:A,0),9),"ERRO") -> E9666 | D21: 1 | E21: 2 | F21: 0.5 | G21: =IF(C21="Veículo(s) da própria frota.",0,INDEX(Equipamentos!B:K,MATCH(C21,Equipamentos!A:A,0),9)) -> 421.7378 | H21: 7.028963333
A22: E9605 | B22: =VLOOKUP(A22,Equipamentos!$A:$K,2,FALSE) -> Caminhão tanque com capacidade de 6.000 l - 136 kW | C22: =IFERROR(INDEX('Tabelas 2 e 3 mob'!A:K,MATCH(A22,'Tabelas 2 e 3 mob'!A:A,0),9),"ERRO") -> E9605 | D22: 1 | E22: 1 | F22: 1 | G22: =IF(C22="Veículo(s) da própria frota.",0,INDEX(Equipamentos!B:K,MATCH(C22,Equipamentos!A:A,0),9)) -> 252.1003 | H22: 4.201671667
A23: E9579 | B23: =VLOOKUP(A23,Equipamentos!$A:$K,2,FALSE) -> Caminhão basculante com capacidade de 10 m³ - 210 kW | C23: =IFERROR(INDEX('Tabelas 2 e 3 mob'!A:K,MATCH(A23,'Tabelas 2 e 3 mob'!A:A,0),9),"ERRO") -> E9579 | D23: 5 | E23: 1 | F23: 1 | G23: =IF(C23="Veículo(s) da própria frota.",0,INDEX(Equipamentos!B:K,MATCH(C23,Equipamentos!A:A,0),9)) -> 303.2303 | H23: 25.26919167
A24: E9509 | B24: =VLOOKUP(A24,Equipamentos!$A:$K,2,FALSE) -> Caminhão tanque distribuidor de asfalto com capacidade de 6.000 l - 7 kW/136 kW | C24: =IFERROR(INDEX('Tabelas 2 e 3 mob'!A:K,MATCH(A24,'Tabelas 2 e 3 mob'!A:A,0),9),"ERRO") -> E9509 | D24: 1 | E24: 1 | F24: 1 | G24: =IF(C24="Veículo(s) da própria frota.",0,INDEX(Equipamentos!B:K,MATCH(C24,Equipamentos!A:A,0),9)) -> 263.5835 | H24: 4.393058333
A25: E9762 | B25: =VLOOKUP(A25,Equipamentos!$A:$K,2,FALSE) -> Rolo compactador de pneus autopropelido de 27 t - 85 kW | C25: =IFERROR(INDEX('Tabelas 2 e 3 mob'!A:K,MATCH(A25,'Tabelas 2 e 3 mob'!A:A,0),9),"ERRO") -> E9666 | D25: 1 | E25: 2 | F25: 0.5 | G25: =IF(C25="Veículo(s) da própria frota.",0,INDEX(Equipamentos!B:K,MATCH(C25,Equipamentos!A:A,0),9)) -> 421.7378 | H25: 7.028963333
A26: E9681 | B26: =VLOOKUP(A26,Equipamentos!$A:$K,2,FALSE) -> Rolo compactador liso tandem vibratório autopropelido de 10,4 t - 82 kW | C26: =IFERROR(INDEX('Tabelas 2 e 3 mob'!A:K,MATCH(A26,'Tabelas 2 e 3 mob'!A:A,0),9),"ERRO") -> E9666 | D26: 1 | E26: 2 | F26: 0.5 | G26: =IF(C26="Veículo(s) da própria frota.",0,INDEX(Equipamentos!B:K,MATCH(C26,Equipamentos!A:A,0),9)) -> 421.7378 | H26: 7.028963333
A27: E9545 | B27: =VLOOKUP(A27,Equipamentos!$A:$K,2,FALSE) -> Vibroacabadora de asfalto sobre esteiras - 82 kW | C27: =IFERROR(INDEX('Tabelas 2 e 3 mob'!A:K,MATCH(A27,'Tabelas 2 e 3 mob'!A:A,0),9),"ERRO") -> E9018 | D27: 1 | E27: 2 | F27: 0.5 | G27: =IF(C27="Veículo(s) da própria frota.",0,INDEX(Equipamentos!B:K,MATCH(C27,Equipamentos!A:A,0),9)) -> 530.8761 | H27: 8.847935
A28: E9571 | B28: =VLOOKUP(A28,Equipamentos!$A:$K,2,FALSE) -> Caminhão tanque com capacidade de 10.000 l - 188 kW | C28: =IFERROR(INDEX('Tabelas 2 e 3 mob'!A:K,MATCH(A28,'Tabelas 2 e 3 mob'!A:A,0),9),"ERRO") -> E9571 | D28: 1 | E28: 1 | F28: 1 | G28: =IF(C28="Veículo(s) da própria frota.",0,INDEX(Equipamentos!B:K,MATCH(C28,Equipamentos!A:A,0),9)) -> 330.9726 | H28: 5.51621
A29: E9514 | B29: =VLOOKUP(A29,Equipamentos!$A:$K,2,FALSE) -> Distribuidor de agregados sobre pneus autopropelido - 130 kW | C29: =IFERROR(INDEX('Tabelas 2 e 3 mob'!A:K,MATCH(A29,'Tabelas 2 e 3 mob'!A:A,0),9),"ERRO") -> E9665 | D29: 1 | E29: 2 | F29: 0.5 | G29: =IF(C29="Veículo(s) da própria frota.",0,INDEX(Equipamentos!B:K,MATCH(C29,Equipamentos!A:A,0),9)) -> 394.6665 | H29: 6.577775
A30: E9511 | B30: =VLOOKUP(A30,Equipamentos!$A:$K,2,FALSE) -> Carregadeira de pneus com capacidade de 3,40 m³ - 195 kW | C30: =IFERROR(INDEX('Tabelas 2 e 3 mob'!A:K,MATCH(A30,'Tabelas 2 e 3 mob'!A:A,0),9),"ERRO") -> E9665 | D30: 1 | E30: 2 | F30: 1 | G30: =IF(C30="Veículo(s) da própria frota.",0,INDEX(Equipamentos!B:K,MATCH(C30,Equipamentos!A:A,0),9)) -> 394.6665 | H30: 13.15555
A31: E9779 | B31: =VLOOKUP(A31,Equipamentos!$A:$K,2,FALSE) -> Grupo gerador - 113 kVA | C31: =IFERROR(INDEX('Tabelas 2 e 3 mob'!A:K,MATCH(A31,'Tabelas 2 e 3 mob'!A:A,0),9),"ERRO") -> Veículo(s) da própria frota. | D31: 1 | E31: 2 | F31: 0 | G31: =IF(C31="Veículo(s) da própria frota.",0,INDEX(Equipamentos!B:K,MATCH(C31,Equipamentos!A:A,0),9)) -> 0 | H31: 0
A32: E9559 | B32: =VLOOKUP(A32,Equipamentos!$A:$K,2,FALSE) -> Aquecedor de fluido térmico - 12 kW | C32: =IFERROR(INDEX('Tabelas 2 e 3 mob'!A:K,MATCH(A32,'Tabelas 2 e 3 mob'!A:A,0),9),"ERRO") -> Veículo(s) da própria frota. | D32: 1 | E32: 2 | F32: 0 | G32: =IF(C32="Veículo(s) da própria frota.",0,INDEX(Equipamentos!B:K,MATCH(C32,Equipamentos!A:A,0),9)) -> 0 | H32: 0
A33: E9584 | B33: =VLOOKUP(A33,Equipamentos!$A:$K,2,FALSE) -> Carregadeira de pneus com capacidade de 1,72 m³ - 113 kW | C33: =IFERROR(INDEX('Tabelas 2 e 3 mob'!A:K,MATCH(A33,'Tabelas 2 e 3 mob'!A:A,0),9),"ERRO") -> E9665 | D33: 1 | E33: 2 | F33: 1 | G33: =IF(C33="Veículo(s) da própria frota.",0,INDEX(Equipamentos!B:K,MATCH(C33,Equipamentos!A:A,0),9)) -> 394.6665 | H33: 13.15555
A34: E9021 | B34: =VLOOKUP(A34,Equipamentos!$A:$K,2,FALSE) -> Grupo gerador - 456 kVA | C34: =IFERROR(INDEX('Tabelas 2 e 3 mob'!A:K,MATCH(A34,'Tabelas 2 e 3 mob'!A:A,0),9),"ERRO") -> E9508 | D34: 1 | E34: 2 | F34: 1 | G34: =IF(C34="Veículo(s) da própria frota.",0,INDEX(Equipamentos!B:K,MATCH(C34,Equipamentos!A:A,0),9)) -> 185.1405 | H34: 6.17135
A35: E9687 | B35: =VLOOKUP(A35,Equipamentos!$A:$K,2,FALSE) -> Caminhão carroceria com capacidade de 5 t - 115 kW | C35: =IFERROR(INDEX('Tabelas 2 e 3 mob'!A:K,MATCH(A35,'Tabelas 2 e 3 mob'!A:A,0),9),"ERRO") -> E9687 | D35: 1 | E35: 1 | F35: 1 | G35: =IF(C35="Veículo(s) da própria frota.",0,INDEX(Equipamentos!B:K,MATCH(C35,Equipamentos!A:A,0),9)) -> 151.9075 | H35: 2.531791667
A36: E9667 | B36: =VLOOKUP(A36,Equipamentos!$A:$K,2,FALSE) -> Caminhão basculante com capacidade de 14 m³ - 210 kW | C36: =IFERROR(INDEX('Tabelas 2 e 3 mob'!A:K,MATCH(A36,'Tabelas 2 e 3 mob'!A:A,0),9),"ERRO") -> E9667 | D36: 1 | E36: 1 | F36: 1 | G36: =IF(C36="Veículo(s) da própria frota.",0,INDEX(Equipamentos!B:K,MATCH(C36,Equipamentos!A:A,0),9)) -> 304.3057 | H36: 5.071761667
A37: E9644 | B37: =VLOOKUP(A37,Equipamentos!$A:$K,2,FALSE) -> Caminhão demarcador de faixas com sistema de pintura a frio - 28 kW/115 kW | C37: =IFERROR(INDEX('Tabelas 2 e 3 mob'!A:K,MATCH(A37,'Tabelas 2 e 3 mob'!A:A,0),9),"ERRO") -> E9644 | D37: 1 | E37: 1 | F37: 1 | G37: =IF(C37="Veículo(s) da própria frota.",0,INDEX(Equipamentos!B:K,MATCH(C37,Equipamentos!A:A,0),9)) -> 380.3797 | H37: 6.339661667
A38: E9592 | B38: =VLOOKUP(A38,Equipamentos!$A:$K,2,FALSE) -> Caminhão carroceria com capacidade de 15 t - 188 kW | C38: =IFERROR(INDEX('Tabelas 2 e 3 mob'!A:K,MATCH(A38,'Tabelas 2 e 3 mob'!A:A,0),9),"ERRO") -> E9592 | D38: 1 | E38: 1 | F38: 1 | G38: =IF(C38="Veículo(s) da própria frota.",0,INDEX(Equipamentos!B:K,MATCH(C38,Equipamentos!A:A,0),9)) -> 269.7472 | H38: 4.495786667
A39: E9540 | B39: =VLOOKUP(A39,Equipamentos!$A:$K,2,FALSE) -> Trator sobre esteiras com lâmina - 127 kW | C39: =IFERROR(INDEX('Tabelas 2 e 3 mob'!A:K,MATCH(A39,'Tabelas 2 e 3 mob'!A:A,0),9),"ERRO") -> E9018 | D39: 1 | E39: 2 | F39: 0.5 | G39: =IF(C39="Veículo(s) da própria frota.",0,INDEX(Equipamentos!B:K,MATCH(C39,Equipamentos!A:A,0),9)) -> 530.8761 | H39: 8.847935
A40: E9515 | B40: =VLOOKUP(A40,Equipamentos!$A:$K,2,FALSE) -> Escavadeira hidráulica sobre esteiras com caçamba com capacidade de 1,56 m³ - 118 kW | C40: =IFERROR(INDEX('Tabelas 2 e 3 mob'!A:K,MATCH(A40,'Tabelas 2 e 3 mob'!A:A,0),9),"ERRO") -> E9666 | D40: 1 | E40: 2 | F40: 1 | G40: =IF(C40="Veículo(s) da própria frota.",0,INDEX(Equipamentos!B:K,MATCH(C40,Equipamentos!A:A,0),9)) -> 421.7378 | H40: 14.05792667
A41: E9506 | B41: =VLOOKUP(A41,Equipamentos!$A:$K,2,FALSE) -> Caminhão basculante com capacidade de 6 m³ - 136 kW | C41: =IFERROR(INDEX('Tabelas 2 e 3 mob'!A:K,MATCH(A41,'Tabelas 2 e 3 mob'!A:A,0),9),"ERRO") -> E9506 | D41: 1 | E41: 1 | F41: 1 | G41: =IF(C41="Veículo(s) da própria frota.",0,INDEX(Equipamentos!B:K,MATCH(C41,Equipamentos!A:A,0),9)) -> 185.7182 | H41: 3.095303333
A42: E9256 | B42: =VLOOKUP(A42,Equipamentos!$A:$K,2,FALSE) -> Equipamento para pintura com cal rebocável com dois bicos aplicadores e capacidade de 2.200 l | C42: =IFERROR(INDEX('Tabelas 2 e 3 mob'!A:K,MATCH(A42,'Tabelas 2 e 3 mob'!A:A,0),9),"ERRO") -> Veículo(s) da própria frota. | D42: 1 | E42: 2 | F42: 0 | G42: =IF(C42="Veículo(s) da própria frota.",0,INDEX(Equipamentos!B:K,MATCH(C42,Equipamentos!A:A,0),9)) -> 0 | H42: 0
A43: E9156 | B43: =VLOOKUP(A43,Equipamentos!$A:$K,2,FALSE) -> Soprador de ar costal - 2,6 kW | C43: =IFERROR(INDEX('Tabelas 2 e 3 mob'!A:K,MATCH(A43,'Tabelas 2 e 3 mob'!A:A,0),9),"ERRO") -> Veículo(s) da própria frota. | D43: 1 | E43: 2 | F43: 0 | G43: =IF(C43="Veículo(s) da própria frota.",0,INDEX(Equipamentos!B:K,MATCH(C43,Equipamentos!A:A,0),9)) -> 0 | H43: 0
A44: E9146 | B44: =VLOOKUP(A44,Equipamentos!$A:$K,2,FALSE) -> Caminhão silo com capacidade de 30 m³ - 265 kW | C44: =IFERROR(INDEX('Tabelas 2 e 3 mob'!A:K,MATCH(A44,'Tabelas 2 e 3 mob'!A:A,0),9),"ERRO") -> E9146 | D44: 1 | E44: 1 | F44: 1 | G44: =IF(C44="Veículo(s) da própria frota.",0,INDEX(Equipamentos!B:K,MATCH(C44,Equipamentos!A:A,0),9)) -> 465.4127 | H44: 7.756878333
A45: E9599 | B45: =VLOOKUP(A45,Equipamentos!$A:$K,2,FALSE) -> Central de concreto com capacidade de 30 m³/h - dosadora RS | C45: =IFERROR(INDEX('Tabelas 2 e 3 mob'!A:K,MATCH(A45,'Tabelas 2 e 3 mob'!A:A,0),9),"ERRO") -> E9018 | D45: 1 | E45: 2 | F45: 1 | G45: =IF(C45="Veículo(s) da própria frota.",0,INDEX(Equipamentos!B:K,MATCH(C45,Equipamentos!A:A,0),9)) -> 530.8761 | H45: 17.69587
A46: E9103 | B46: =VLOOKUP(A46,Equipamentos!$A:$K,2,FALSE) -> Extrusora para meio-fio de concreto - 10,44 kW | C46: =IFERROR(INDEX('Tabelas 2 e 3 mob'!A:K,MATCH(A46,'Tabelas 2 e 3 mob'!A:A,0),9),"ERRO") -> Veículo(s) da própria frota. | D46: 1 | E46: 2 | F46: 0 | G46: =IF(C46="Veículo(s) da própria frota.",0,INDEX(Equipamentos!B:K,MATCH(C46,Equipamentos!A:A,0),9)) -> 0 | H46: 0
A47: E9071 | B47: =VLOOKUP(A47,Equipamentos!$A:$K,2,FALSE) -> Transportador manual carrinho de mão com capacidade de 80 l | C47: =IFERROR(INDEX('Tabelas 2 e 3 mob'!A:K,MATCH(A47,'Tabelas 2 e 3 mob'!A:A,0),9),"ERRO") -> Veículo(s) da própria frota. | D47: 0 | E47: 2 | F47: 0 | G47: =IF(C47="Veículo(s) da própria frota.",0,INDEX(Equipamentos!B:K,MATCH(C47,Equipamentos!A:A,0),9)) -> 0 | H47: 0
A48: E9064 | B48: =VLOOKUP(A48,Equipamentos!$A:$K,2,FALSE) -> Transportador manual gerica com capacidade de 180 l | C48: =IFERROR(INDEX('Tabelas 2 e 3 mob'!A:K,MATCH(A48,'Tabelas 2 e 3 mob'!A:A,0),9),"ERRO") -> Veículo(s) da própria frota. | D48: 0 | E48: 2 | F48: 0 | G48: =IF(C48="Veículo(s) da própria frota.",0,INDEX(Equipamentos!B:K,MATCH(C48,Equipamentos!A:A,0),9)) -> 0 | H48: 0
A49: E9066 | B49: =VLOOKUP(A49,Equipamentos!$A:$K,2,FALSE) -> Grupo gerador - 14 kVA | C49: =IFERROR(INDEX('Tabelas 2 e 3 mob'!A:K,MATCH(A49,'Tabelas 2 e 3 mob'!A:A,0),9),"ERRO") -> Veículo(s) da própria frota. | D49: 0 | E49: 2 | F49: 0 | G49: =IF(C49="Veículo(s) da própria frota.",0,INDEX(Equipamentos!B:K,MATCH(C49,Equipamentos!A:A,0),9)) -> 0 | H49: 0
A50: E9535 | B50: =VLOOKUP(A50,Equipamentos!$A:$K,2,FALSE) -> Serra circular com bancada - D = 30 cm - 4 kW | C50: =IFERROR(INDEX('Tabelas 2 e 3 mob'!A:K,MATCH(A50,'Tabelas 2 e 3 mob'!A:A,0),9),"ERRO") -> Veículo(s) da própria frota. | D50: 0 | E50: 2 | F50: 0 | G50: =IF(C50="Veículo(s) da própria frota.",0,INDEX(Equipamentos!B:K,MATCH(C50,Equipamentos!A:A,0),9)) -> 0 | H50: 0
A51: E9507 | B51: =VLOOKUP(A51,Equipamentos!$A:$K,2,FALSE) -> Plotadora de recorte com computador e programa computacional | C51: =IFERROR(INDEX('Tabelas 2 e 3 mob'!A:K,MATCH(A51,'Tabelas 2 e 3 mob'!A:A,0),9),"ERRO") -> Veículo(s) da própria frota. | D51: 0 | E51: 2 | F51: 0 | G51: =IF(C51="Veículo(s) da própria frota.",0,INDEX(Equipamentos!B:K,MATCH(C51,Equipamentos!A:A,0),9)) -> 0 | H51: 0
A52: E9568 | B52: =VLOOKUP(A52,Equipamentos!$A:$K,2,FALSE) -> Furadeira de impacto de 12,5 mm - 0,80 kW | C52: =IFERROR(INDEX('Tabelas 2 e 3 mob'!A:K,MATCH(A52,'Tabelas 2 e 3 mob'!A:A,0),9),"ERRO") -> Veículo(s) da própria frota. | D52: 0 | E52: 2 | F52: 0 | G52: =IF(C52="Veículo(s) da própria frota.",0,INDEX(Equipamentos!B:K,MATCH(C52,Equipamentos!A:A,0),9)) -> 0 | H52: 0
A53: E9753 | B53: =VLOOKUP(A53,Equipamentos!$A:$K,2,FALSE) -> Grupo gerador - 23 kVA | C53: =IFERROR(INDEX('Tabelas 2 e 3 mob'!A:K,MATCH(A53,'Tabelas 2 e 3 mob'!A:A,0),9),"ERRO") -> Veículo(s) da própria frota. | D53: 0 | E53: 2 | F53: 0 | G53: =IF(C53="Veículo(s) da própria frota.",0,INDEX(Equipamentos!B:K,MATCH(C53,Equipamentos!A:A,0),9)) -> 0 | H53: 0
A54: E9623 | B54: =VLOOKUP(A54,Equipamentos!$A:$K,2,FALSE) -> Máquina de bancada guilhotina - 4,00 kW | C54: =IFERROR(INDEX('Tabelas 2 e 3 mob'!A:K,MATCH(A54,'Tabelas 2 e 3 mob'!A:A,0),9),"ERRO") -> Veículo(s) da própria frota. | D54: 0 | E54: 2 | F54: 0 | G54: =IF(C54="Veículo(s) da própria frota.",0,INDEX(Equipamentos!B:K,MATCH(C54,Equipamentos!A:A,0),9)) -> 0 | H54: 0
A55: E9622 | B55: =VLOOKUP(A55,Equipamentos!$A:$K,2,FALSE) -> Máquina de bancada universal para corte de chapa - 1,50 kW | C55: =IFERROR(INDEX('Tabelas 2 e 3 mob'!A:K,MATCH(A55,'Tabelas 2 e 3 mob'!A:A,0),9),"ERRO") -> Veículo(s) da própria frota. | D55: 0 | E55: 2 | F55: 0 | G55: =IF(C55="Veículo(s) da própria frota.",0,INDEX(Equipamentos!B:K,MATCH(C55,Equipamentos!A:A,0),9)) -> 0 | H55: 0
A56: E9678 | B56: =VLOOKUP(A56,Equipamentos!$A:$K,2,FALSE) -> Fresadora a frio - 455 kW | C56: =IFERROR(INDEX('Tabelas 2 e 3 mob'!A:K,MATCH(A56,'Tabelas 2 e 3 mob'!A:A,0),9),"ERRO") -> E9666 | D56: 0 | E56: 2 | F56: 1 | G56: =IF(C56="Veículo(s) da própria frota.",0,INDEX(Equipamentos!B:K,MATCH(C56,Equipamentos!A:A,0),9)) -> 421.7378 | H56: 0
G57: TOTAL | H57: =SUM(H13:H56) -> 275.58116
A60: CUSTO TOTAL MOBILIZAÇÃO E DESMOBILIZAÇÃO
A61: DESCRIÇÃO | B61: VALOR
A62: Custo Mobilização (km) | B62: =H57 -> 275.58116
A63: BDI (%) | B63: =BDI!C17 -> 0.2339
A64: Custo Mobilização (R$/km) com BDI | B64: =B62+(B62*B63) -> 340.0395933
A65: Total de Frentes | B65: ='Memória de Cálculo'!G1 -> 20
A66: Custo Mobilização (frentes x distancia) | B66: =B64*H6*B65 -> 761688.689

Sheet Canteiro
A4: CANTEIRO DE OBRAS PARA CONSTRUÇAO RODOVIÁRIA
A5: Descrição dos serviços | B5: Tipo de container | C5: Unidade | D5: Quantidade | E5: Preço unitário (R$) | F5: Total (R$)
A6: Escritório e seção técnica
A7: =VLOOKUP(B7,'INSUMOS SINAPI'!A:E,2,0) -> LOCACAO DE CONTAINER 2,30 X 6,00 M, ALT. 2,50 M, PARA ESCRITORIO, SEM DIVISORIAS INTERNAS E SEM SANITARIO (NAO INCLUI MOBILIZACAO/DESMOBILIZACAO) | B7: 10776 | C7: und | D7: 1 | E7: =VLOOKUP(B7,'INSUMOS SINAPI'!A:E,5,0) -> 650.39 | F7: =TRUNC(D7*E7,2) -> 650.39
A8: Banheiro e vestiário
A9: =VLOOKUP(B9,'INSUMOS SINAPI'!A:E,2,0) -> LOCACAO DE CONTAINER 2,30 X 4,30 M, ALT. 2,50 M, PARA SANITARIO, COM 3 BACIAS, 4 CHUVEIROS, 1 LAVATORIO E 1 MICTORIO (NAO INCLUI MOBILIZACAO/DESMOBILIZACAO) | B9: 10777 | C9: und | D9: 1 | E9: =VLOOKUP(B9,'INSUMOS SINAPI'!A:E,5,0) -> 945.23 | F9: =TRUNC(D9*E9,2) -> 945.23
D10: TOTAL DO CANTEIRO | F10: =SUM(F7:F9) -> 1595.62
D11: DURAÇÃO (MESES) | E11: 12 | F11: =F10*E11 -> 19147.44
D12: BDI | F12: =BDI!C17 -> 0.2339
D13: TOTAL DO CANTEIRO (com BDI) | F13: =F11+(F11*F12) -> 23626.02622

Sheet Adm Local
A4: parcela fixa da administração local (mão de obra)
A5: Código | B5: Discriminação | C5: Unidade | D5: Quantidade | F5: Custo Unitário (R$) | H5: Custo Total (R$)
B6: Mão de Obra
B7: Gerência Técnica
B8: Geral
A9: P9955 | B9: Engenheiro chefe | C9: mês | D9: 0.5 | F9: =VLOOKUP(A9,'Pessoal Sicro'!$A$6:$G$118,6,0) -> 28742.6778 | H9: =F9*D9 -> 14371.3389
A10: P9840 | B10: Encarregado geral | C10: mês | D10: 0.5 | F10: =VLOOKUP(A10,'Pessoal Sicro'!$A$6:$G$118,6,0) -> 10416.0147 | H10: =F10*D10 -> 5208.00735
A11: P9897 | B11: Técnico de meio ambiente | C11: mês | D11: 0 | F11: =VLOOKUP(A11,'Pessoal Sicro'!$A$6:$G$118,6,0) -> 7726.4929 | H11: =F11*D11 -> 0
A12: P9948 | B12: Motorista | C12: mês | D12: 0 | F12: =VLOOKUP(A12,'Pessoal Sicro'!$A$6:$G$118,6,0) -> 4946.3317 | H12: =F12*D12 -> 0
A13: P9878 | B13: Secretária | C13: mês | D13: 0 | F13: =VLOOKUP(A13,'Pessoal Sicro'!$A$6:$G$118,6,0) -> 6302.0703 | H13: =F13*D13 -> 0
F14: Subtotal do Item 1.1 | H14: =SUM(H9:I13) -> 19579.34625
B15: Auxiliar
A16: P9946 | B16: Engenheiro auxiliar | C16: mês | D16: 1 | F16: =VLOOKUP(A16,'Pessoal Sicro'!$A$6:$G$118,6,0) -> 22131.892 | H16: =D16*F16 -> 22131.892
A17: P9903 | B17: Auxiliar técnico | C17: mês | D17: 0 | F17: =VLOOKUP(A17,'Pessoal Sicro'!$A$6:$G$118,6,0) -> 4801.2272 | H17: =D17*F17 -> 0
F18: Subtotal do Item 1.2 | H18: =SUM(H16:I17) -> 22131.892
B19: Gerência Administrativa
B20: Geral
A21: P9883 | B21: Chefe do setor administrativo | C21: mês | D21: 1 | F21: =VLOOKUP(A21,'Pessoal Sicro'!$A$6:$G$118,6,0) -> 8008.6977 | H21: =F21*D21 -> 8008.6977
A22: P9809 | B22: Encarregado administrativo | C22: mês | D22: 0 | F22: =VLOOKUP(A22,'Pessoal Sicro'!$A$6:$G$118,6,0) -> 8008.6642 | H22: =F22*D22 -> 0
A23: P9896 | B23: Porteiro | C23: mês | D23: 0 | F23: =VLOOKUP(A23,'Pessoal Sicro'!$A$6:$G$118,6,0) -> 4473.4789 | H23: =F23*D23 -> 0
A24: P9827 | B24: Vigia | C24: mês | D24: 0 | F24: =VLOOKUP(A24,'Pessoal Sicro'!$A$6:$G$118,6,0) -> 4809.3191 | H24: =F24*D24 -> 0
A25: P9948 | B25: Motorista | C25: mês | D25: 0 | F25: =VLOOKUP(A25,'Pessoal Sicro'!$A$6:$G$118,6,0) -> 4946.3317 | H25: =F25*D25 -> 0
F26: Subtotal do Item 1.3 | H26: =SUM(H21:I25) -> 8008.6977
B27: Auxiliar
A28: P9806 | B28: Auxiliar administrativo | C28: mês | D28: 1 | F28: =VLOOKUP(A28,'Pessoal Sicro'!$A$6:$G$118,6,0) -> 4965.0169 | H28: =F28*D28 -> 4965.0169
A29: P9842 | B29: Faxineiro | C29: mês | D29: 0 | F29: =VLOOKUP(A29,'Pessoal Sicro'!$A$6:$G$118,6,0) -> 4111.6911 | H29: =F29*D29 -> 0
F30: Subtotal do Item 1.4 | H30: =SUM(H28:I29) -> 4965.0169
H31: Total da Mão de Obra da Parcela Fixa | I31: =H30+H26+H18+H14 -> 54684.95285
A33: parcela fixa da administração local (veículos)
A34: Código | B34: Discriminação | C34: Unidade | D34: Quantidade | E34: Utilização Produtiva | F34: Utilização Improdutiva | G34: Custo Horário Produtivo (R$) | H34: Custo Horário Improdutivo (R$) | I34: Custo Total (R$)
A35: 2 | B35: Veículos
B36: Gerência Técnica
A37: 2.1 | B37: Geral
A38: E9093 | B38: Veículo Leve 53 kw | C38: mês | D38: 1 | E38: 44 | F38: 176 | G38: =VLOOKUP(A38,Equipamentos!$A$4:$K$541,10,0) -> 34.9382 | H38: =VLOOKUP(A38,Equipamentos!$A$4:$K$541,11,0) -> 6.1504 | I38: =((E38*G38)+(F38*H38))*D38 -> 2619.7512
A39: E9560 | B39: Ônibus coletivo - 175 kw | C39: mês | D39: 0 | E39: 44 | F39: 176 | G39: =VLOOKUP(A39,Equipamentos!$A$4:$K$541,10,0) -> 357.2021 | H39: =VLOOKUP(A39,Equipamentos!$A$4:$K$541,11,0) -> 103.8866 | I39: =((E39*G39)+(F39*H39))*D39 -> 0
H40: Subtotal do Item 2 | I40: =SUM(I38:I39) -> 2619.7512
A41: 2.2 | B41: Auxiliar
A42: E9093 | B42: Veículo Leve 53 kw | C42: mês | D42: 0 | E42: 44 | F42: 176 | G42: =G38 -> 34.9382 | H42: =H38 -> 6.1504 | I42: =((E42*G42)+(F42*H42))*D42 -> 0
H43: Subtotal do Item 2 | I43: =SUM(I42) -> 0
A44: 2.3 | B44: Gerência Administrativa
A45: E9093 | B45: Veículo Leve 53 kw | C45: mês | D45: 0 | E45: 44 | F45: 176 | G45: =G38 -> 34.9382 | H45: =H38 -> 6.1504 | I45: =((E45*G45)+(F45*H45))*D45 -> 0
H46: Subtotal do Item 2 | I46: =I45 -> 0
H47: Total dos Veículos da Parcela Fixa | I47: =I46+I43+I40 -> 2619.7512
A49: Composição de custo da equipe de produção de terraplenagem
A50: Código | B50: Discriminação | C50: Unidade | D50: Quantidade | F50: Custo Unitário (R$) | H50: Custo Total (R$)
B51: Equipe de Produção de Terraplenagem
A52: 3.1 | B52: Mão de Obra
A53: ='Pessoal Sicro'!A65 -> P9892 | B53: Encarregado de produção | C53: mês | D53: 1 | F53: =VLOOKUP(A53,'Pessoal Sicro'!$A$6:$G$118,6,0) -> 34.4007 | H53: =F53*D53 -> 34.4007
F54: Subtotal do Item 3.1 | H54: =SUM(H53:H53) -> 34.4007
A55: Código | B55: Discriminação | C55: Unidade | D55: Quantidade | E55: Utilização Produtiva | F55: Utilização Improdutiva | G55: Custo Horário Produtivo (R$) | H55: Custo Horário Improdutivo (R$) | I55: Custo Total (R$)
A56: 3.2 | B56: Veículos
B57: Veículo Leve 53 kw | C57: mês | D57: 1 | E57: 44 | F57: 176 | G57: =G38 -> 34.9382 | H57: =H38 -> 6.1504 | I57: =((E57*G57)+(F57*H57))*D57 -> 2619.7512
H58: Subtotal do Item 3.2 | I58: =SUM(I57:I57) -> 2619.7512
H59: Total da Equipe de Produção de Terraplenagem | I59: =I58+H54 -> 2654.1519
A61: Composição de custo da equipe de produção de pavimentação
A62: Código | B62: Discriminação | C62: Unidade | D62: Quantidade | F62: Custo Unitário (R$) | H62: Custo Total (R$)
B63: Equipe de Produção de Pavimentação
A64: 3.1 | B64: Mão de Obra
A65: ='Pessoal Sicro'!$A$70 -> P9901 | B65: Encarregado de produção | C65: mês | D65: 1 | F65: =VLOOKUP(A65,'Pessoal Sicro'!$A$6:$G$118,6,0) -> 7200.018 | H65: =F65*D65 -> 7200.018
F66: Subtotal do Item 3.1 | H66: =SUM(H65:H65) -> 7200.018
A67: Código | B67: Discriminação | C67: Unidade | D67: Quantidade | E67: Utilização Produtiva | F67: Utilização Improdutiva | G67: Custo Horário Produtivo (R$) | H67: Custo Horário Improdutivo (R$) | I67: Custo Total (R$)
A68: 3.2 | B68: Veículos
B69: Veículo Leve 53 kw | C69: mês | D69: 1 | E69: 44 | F69: 176 | G69: =$G$38 -> 34.9382 | H69: =$H$38 -> 6.1504 | I69: =((E69*G69)+(F69*H69))*D69 -> 2619.7512
H70: Subtotal do Item 3.2 | I70: =SUM(I69:I69) -> 2619.7512
H71: Total da Equipe de Produção de Pavimentação | I71: =I70+H66 -> 9819.7692
A73: Composição de custo da equipe de produção de drenagem
A74: Código | B74: Discriminação | C74: Unidade | D74: Quantidade | F74: Custo Unitário (R$) | H74: Custo Total (R$)
B75: Equipe de Produção de Pavimentação
A76: 3.1 | B76: Mão de Obra
A77: ='Pessoal Sicro'!$A$70 -> P9901 | B77: Encarregado de produção | C77: mês | D77: 1 | F77: =VLOOKUP(A77,'Pessoal Sicro'!$A$6:$G$118,6,0) -> 7200.018 | H77: =F77*D77 -> 7200.018
F78: Subtotal do Item 3.1 | H78: =SUM(H77:H77) -> 7200.018
A79: Código | B79: Discriminação | C79: Unidade | D79: Quantidade | E79: Utilização Produtiva | F79: Utilização Improdutiva | G79: Custo Horário Produtivo (R$) | H79: Custo Horário Improdutivo (R$) | I79: Custo Total (R$)
A80: 3.2 | B80: Veículos
B81: Veículo Leve 53 kw | C81: mês | D81: 1 | E81: 44 | F81: 176 | G81: =$G$38 -> 34.9382 | H81: =$H$38 -> 6.1504 | I81: =((E81*G81)+(F81*H81))*D81 -> 2619.7512
H82: Subtotal do Item 3.2 | I82: =SUM(I81:I81) -> 2619.7512
H83: Total da Equipe de Produção de Pavimentação | I83: =I82+H78 -> 9819.7692
A85: Composição de custo da equipe de produção de sinalização
A86: Código | B86: Discriminação | C86: Unidade | D86: Quantidade | F86: Custo Unitário (R$) | H86: Custo Total (R$)
B87: Equipe de Produção de Pavimentação
A88: 3.1 | B88: Mão de Obra
A89: ='Pessoal Sicro'!$A$70 -> P9901 | B89: Encarregado de produção | C89: mês | D89: 1 | F89: =VLOOKUP(A89,'Pessoal Sicro'!$A$6:$G$118,6,0) -> 7200.018 | H89: =F89*D89 -> 7200.018
F90: Subtotal do Item 3.1 | H90: =SUM(H89:H89) -> 7200.018
A91: Código | B91: Discriminação | C91: Unidade | D91: Quantidade | E91: Utilização Produtiva | F91: Utilização Improdutiva | G91: Custo Horário Produtivo (R$) | H91: Custo Horário Improdutivo (R$) | I91: Custo Total (R$)
A92: 3.2 | B92: Veículos
B93: Veículo Leve 53 kw | C93: mês | D93: 1 | E93: 44 | F93: 176 | G93: =$G$38 -> 34.9382 | H93: =$H$38 -> 6.1504 | I93: =((E93*G93)+(F93*H93))*D93 -> 2619.7512
H94: Subtotal do Item 3.2 | I94: =SUM(I93:I93) -> 2619.7512
H95: Total da Equipe de Produção de Pavimentação | I95: =I94+H90 -> 9819.7692
A97: Composição de custo da equipe topografia
A98: Código | B98: Discriminação | C98: Unidade | D98: Quantidade | F98: Custo Unitário (R$) | H98: Custo Total (R$)
B99: Equipe de Topografia
A100: 3.1 | B100: Mão de Obra
A101: P9949 | B101: Topográfo | C101: mês | D101: 1 | F101: =VLOOKUP(A101,'Pessoal Sicro'!$A$6:$G$118,6,0) -> 7926.4674 | H101: =F101*D101 -> 7926.4674
A102: P9950 | B102: Auxiliar de topografia | C102: mês | D102: 1 | F102: =VLOOKUP(A102,'Pessoal Sicro'!$A$6:$G$118,6,0) -> 4519.6557 | H102: =F102*D102 -> 4519.6557
F103: Subtotal do Item 3.1 | H103: =SUM(H101:I102) -> 12446.1231
A104: Código | B104: Discriminação | C104: Unidade | D104: Quantidade | E104: Utilização Produtiva | F104: Utilização Improdutiva | G104: Custo Horário Produtivo (R$) | H104: Custo Horário Improdutivo (R$) | I104: Custo Total (R$)
A105: 3.2 | B105: Veículos
B106: Veículo Leve 53 kw | C106: mês | D106: 1 | E106: 44 | F106: 176 | G106: =G38 -> 34.9382 | H106: =H38 -> 6.1504 | I106: =((E106*G106)+(F106*H106))*D106 -> 2619.7512
H107: Subtotal do Item 3.2 | I107: =SUM(I106:I106) -> 2619.7512
H108: Total da Equipe de Produção de Topografia | I108: =I107+H103 -> 15065.8743
A110: Composição de custo do setor de medicina e segurança do trabalho
A111: Código | B111: Discriminação | C111: Unidade | D111: Quantidade | F111: Custo Unitário (R$) | H111: Custo Total (R$)
A112: 4 | B112: Setor de Medicina e Segurança do Trabalho
A113: P9876 | B113: Técnico de segurança do trabalho | C113: mês | D113: 1 | F113: =VLOOKUP(A113,'Pessoal Sicro'!$A$6:$G$118,6,0) -> 7858.4849 | H113: =F113*D113 -> 7858.4849
A114: P9864 | B114: Engenheiro de segurança do trabalho | C114: mês | D114: 0 | F114: =VLOOKUP(A114,'Pessoal Sicro'!$A$6:$G$118,6,0) -> 22611.822 | H114: =F114*D114 -> 0
A115: P9851 | B115: Médico do trabalho | C115: mês | D115: 0 | F115: =VLOOKUP(A115,'Pessoal Sicro'!$A$6:$G$118,6,0) -> 18030.894 | H115: =F115*D115 -> 0
A116: P9951 | B116: Médico de câmara hiperbárica | C116: mês | D116: 0 | F116: =VLOOKUP(A116,'Pessoal Sicro'!$A$6:$G$118,6,0) -> 19979.6114 | H116: =F116*D116 -> 0
F117: Subtotal do Item 4 | H117: =SUM(H113:I116) -> 7858.4849
A119: Parcela Variável - Composição de custo da equipe de frente de serviço
A120: Código | B120: Discriminação | C120: Unidade | D120: Quantidade | F120: Custo Unitário (R$) | H120: Custo Total (R$)
A121: 5 | B121: Equipe de Frente de Serviço | C121: equipexmês
A122: P9875 | B122: Encarregado de Turma | C122: mês | D122: 1 | F122: =VLOOKUP(A122,'Pessoal Sicro'!$A$6:$G$118,6,0) -> 5346.6369 | H122: =F122*D122 -> 5346.6369
A123: P9804 | B123: Apontador | C123: mês | D123: 0.5 | F123: =VLOOKUP(A123,'Pessoal Sicro'!$A$6:$G$118,6,0) -> 5003.4385 | H123: =F123*D123 -> 2501.71925
F124: Subtotal do Item 5 | H124: =SUM(H122:I123) -> 7848.35615
A126: Parcela Variável - Composição de custo da equipe de frente de serviço (Terraplenagem) - Somente Compactação
A127: Código | B127: Discriminação | C127: Unidade | D127: Quantidade | F127: Produção Horária (und/h) | H127: Efs
A128: 5.1 | B128: Equipe de Frente de Serviço | C128: equipexmês
C129: mês | H129: =(D129)/(F129*182.49) -> 
C130: mês | H130: =(D130)/(F130*182.49) -> 
C131: mês | H131: =(D131)/(F131*182.49) -> 
F132: Total de Equipes para Terraplenagem | H132: =SUM(H131:I131) -> 
A134: Parcela Variável - Composição de custo da acompanhamento das frentes de serviço de pavimentação
A135: Código | B135: Discriminação | C135: Unidade | D135: Quantidade | F135: Produção Horária (und/h) | H135: Efs
A136: 5.2 | B136: Equipe de Frente de Serviço | C136: equipe x mês
A137: 4915637 | B137: =VLOOKUP(A137,'SINTÉTICO SICRO'!$A$4:$D$6373,2,0) -> Capa selante - areia comercial | C137: m² | D137: ='RESUMO MODULO TOTAL'!J23 -> 280000 | F137: 1350 | H137: =(D137)/(F137*182.49) -> 1.136541221
A138: 4011370 | B138: =VLOOKUP(A138,'SINTÉTICO SICRO'!$A$4:$D$6373,2,0) -> Tratamento superficial duplo com emulsão - brita comercial | C138: m² | D138: ='RESUMO MODULO TOTAL'!J24 -> 280000 | F138: 1125 | H138: 1.363849465
A139: 4011351 | B139: =VLOOKUP(A139,'SINTÉTICO SICRO'!$A$4:$D$6373,2,0) -> Imprimação com asfalto diluído | C139: m² | D139: ='RESUMO MODULO TOTAL'!J25 -> 280000 | F139: 1500 | H139: 1.022887099
A140: 4011268 | B140: =VLOOKUP(A140,'SINTÉTICO SICRO'!$A$4:$D$6373,2,0) -> Base estabilizada granulometricamente com mistura solo brita (70% - 30%) em usina com material de jazida e brita comercial | C140: m³ | D140: ='RESUMO MODULO TOTAL'!J26 -> 42000 | F140: 120.7 | H140: 1.906790367
A141: 4011235 | B141: =VLOOKUP(A141,'SINTÉTICO SICRO'!$A$4:$D$6373,2,0) -> Sub-base estabilizada granulometricamente com mistura solo brita (70% - 30%) em usina com material de jazida e brita comercial | C141: m³ | D141: ='RESUMO MODULO TOTAL'!J27 -> 42000 | F141: 120.7 | H141: 1.906790367
A142: 4011209 | B142: =VLOOKUP(A142,'SINTÉTICO SICRO'!$A$4:$D$6373,2,0) -> Regularização do subleito | C142: m² | D142: ='RESUMO MODULO TOTAL'!J28 -> 280000 | F142: 1121.33 | H142: 1.368313207
F143: Total de Equipes para Pavimentação | H143: =SUM(H137:I142) -> 8.705171725
A145: Parcela Variável - Composição de custo da acompanhamento das frentes de serviço de drenagem
A146: Código | B146: Discriminação | C146: Unidade | D146: Quantidade | F146: Efsdu | H146: Efs
A147: 5.3 | B147: Frentes de Serviço para Drenagem | C147: equipe x mês
A148: ='RESUMO MODULO TOTAL'!D40 -> 2003943 | B148: =VLOOKUP(A148,'SINTÉTICO SICRO'!$A$4:$D$6373,2,0) -> Meio-fio de concreto - MFC 03 moldado no local com extrusora e concreto usinado - areia e brita comerciais | C148: m | D148: ='RESUMO MODULO TOTAL'!J40 -> 80000 | F148: 0.00021 | H148: =D148*F148 -> 16.8
F149: Total de Equipes para Drenagem | H149: =H148 -> 16.8
A151: Parcela Variável - Composição de custo da acompanhamento das frentes de serviço de sinalização
A152: Código | B152: Discriminação | C152: Unidade | D152: Quantidade | F152: Produção Horária (und/h) | H152: Efs
A153: 5.4 | B153: Frentes de Serviço para Sinalização | C153: equipe x mês
A154: 5213440 | B154: =VLOOKUP(A154,'SINTÉTICO SICRO'!$A$4:$D$6373,2,0) -> Placa de regulamentação em aço D = 0,60 m - película retrorrefletiva tipo I + SI - fornecimento e implantação | C154: ='RESUMO MODULO TOTAL'!I35 -> und | D154: ='RESUMO MODULO TOTAL'!J35 -> 120 | F154: 3 | H154: =0.2*((D154)/(F154*182.49)) -> 0.04383801852
A155: 5213464 | B155: =VLOOKUP(A155,'SINTÉTICO SICRO'!$A$4:$D$6373,2,0) -> Placa de advertência em aço, lado de 0,60 m - película retrorrefletiva tipo I + SI - fornecimento e implantação | C155: ='RESUMO MODULO TOTAL'!I36 -> und | D155: ='RESUMO MODULO TOTAL'!J36 -> 120 | F155: 4.1 | H155: =0.2*((D155)/(F155*182.49)) -> 0.03207659892
A156: 5213863 | B156: =VLOOKUP(A156,'SINTÉTICO SICRO'!$A$4:$D$6373,2,0) -> Suporte metálico galvanizado para placa de advertência ou regulamentação - lado ou diâmetro de 0,60 m - fornecimento e implantação | C156: ='RESUMO MODULO TOTAL'!I37 -> und | D156: ='RESUMO MODULO TOTAL'!J37 -> 240 | F156: 4.1 | H156: =0.2*((D156)/(F156*182.49)) -> 0.06415319784
A157: 5213400 | B157: =VLOOKUP(A157,'SINTÉTICO SICRO'!$A$4:$D$6373,2,0) -> Pintura de faixa com tinta acrílica - espessura de 0,4 mm | C157: ='RESUMO MODULO TOTAL'!I38 -> m² | D157: ='RESUMO MODULO TOTAL'!J38 -> 9600 | F157: 177.07 | H157: 0.05941788245
F158: Total de Equipes para Sinalização | H158: =SUM(H154:I157) -> 0.1994856977 | J158: =H158+H149 -> 16.9994857
A160: 3. PARCELA VARIÁVEL - EQUIPE DE CONTROLE TECNOLÓGICO
A161: LABORATÓRIO DE SOLOS
A162: Item | B162: Discriminação | F162: Unidade | G162: Quantidade | H162: Custo Unitário (R$) | I162: Custo Total (R$)
B163: Laboratório de Solos (equipe x mês)
B164: Mão de Obra
A165: P9858 | B165: Laboratorista | F165: func./mês | G165: 1 | H165: =VLOOKUP(A165,'Pessoal Sicro'!$A$6:$G$118,6,0) -> 6685.437 | I165: =TRUNC(G165*H165,2) -> 6685.43
A166: P9833 | B166: Auxiliar de laboratório | F166: func./mês | G166: 1 | H166: =VLOOKUP(A166,'Pessoal Sicro'!$A$6:$G$118,6,0) -> 4544.6137 | I166: =TRUNC(G166*H166,2) -> 4544.61
H167: Subtotal do Item | I167: =SUM(I165:I166) -> 11230.04
A168: Item | B168: Discriminação | C168: Und | D168: Quant | E168: Utilização Produtiva | F168: Utilização Improdutiva | G168: Horário Produtivo (R$) | H168: Horário Improdutivo (R$) | I168: Total (R$)
B169: Equipe de Controle Tecnológico
B170: Veículos
A171: E9125 | B171: Van furgão a diesel - 93 kW | C171: veic./mês | D171: 0.5 | E171: 44 | F171: 176 | G171: =VLOOKUP(A171,Equipamentos!$A$4:$K$533,10,0) -> 81.7029 | H171: =VLOOKUP(A171,Equipamentos!$A$4:$K$533,11,0) -> 44.4435 | I171: =D171*((E171*G171)+(F171*H171)) -> 5708.4918
H172: Subtotal do Item | I172: =SUM(I171:I171) -> 5708.4918
H173: Total da Equipe do Laboratório de Solos | I173: =I167+I172 -> 16938.5318
A175: 3. PARCELA VARIÁVEL - EQUIPE DE CONTROLE TECNOLÓGICO
A176: LABORATÓRIO DE ASFALTOS
A177: Item | B177: Discriminação | F177: Unidade | G177: Quantidade | H177: Custo Unitário (R$) | I177: Custo Total (R$)
B178: Laboratório de Solos (equipe x mês)
B179: Mão de Obra
A180: P9858 | B180: Laboratorista | F180: func./mês | G180: 1 | H180: =VLOOKUP(A180,'Pessoal Sicro'!$A$6:$G$118,6,0) -> 6685.437 | I180: =TRUNC(G180*H180,2) -> 6685.43
A181: P9833 | B181: Auxiliar de laboratório | F181: func./mês | G181: 1 | H181: =VLOOKUP(A181,'Pessoal Sicro'!$A$6:$G$118,6,0) -> 4544.6137 | I181: =TRUNC(G181*H181,2) -> 4544.61
H182: Subtotal do Item | I182: =SUM(I180:I181) -> 11230.04
A183: Item | B183: Discriminação | C183: Und | D183: Quant | E183: Utilização Produtiva | F183: Utilização Improdutiva | G183: Horário Produtivo (R$) | H183: Horário Improdutivo (R$) | I183: Total (R$)
B184: Equipe de Controle Tecnológico
B185: Veículos
A186: E9125 | B186: Van furgão a diesel - 93 kW | C186: veic./mês | D186: 0.5 | E186: 44 | F186: 176 | G186: =VLOOKUP(A186,Equipamentos!$A$4:$K$533,10,0) -> 81.7029 | H186: =VLOOKUP(A186,Equipamentos!$A$4:$K$533,11,0) -> 44.4435 | I186: =D186*((E186*G186)+(F186*H186)) -> 5708.4918
H187: Subtotal do Item | I187: =SUM(I186:I186) -> 5708.4918
H188: Total da Equipe do Laboratório de Asfaltos | I188: =I182+I187 -> 16938.5318
A190: Equipes de laboratório de solos para pavimentação
A191: Item | B191: Discriminação | F191: Und | G191: Quant | H191: QE | I191: Els
A192: 4011268 | B192: =VLOOKUP(A192,'SINTÉTICO SICRO'!A:D,2,0) -> Base estabilizada granulometricamente com mistura solo brita (70% - 30%) em usina com material de jazida e brita comercial | F192: =VLOOKUP(A192,'SINTÉTICO SICRO'!A:D,3,0) -> m³ | G192: ='RESUMO MODULO TOTAL'!J26 -> 42000 | H192: 21900 | I192: =G192/H192 -> 1.917808219
A193: 4011235 | B193: =VLOOKUP(A193,'SINTÉTICO SICRO'!A:D,2,0) -> Sub-base estabilizada granulometricamente com mistura solo brita (70% - 30%) em usina com material de jazida e brita comercial | F193: =VLOOKUP(A193,'SINTÉTICO SICRO'!A:D,3,0) -> m³ | G193: ='RESUMO MODULO TOTAL'!J27 -> 42000 | H193: 21900 | I193: =G193/H193 -> 1.917808219
H194: Total de equipes de Laboratório de Solos para Pavimentação | I194: =SUM(I192:I193) -> 3.835616438
A196: Equipes de laboratório de Asfalto
A197: Item | B197: Discriminação | F197: Und | G197: Quant | H197: QE | I197: Ela
A198: ='RESUMO MODULO TOTAL'!D24 -> 4011370 | B198: =VLOOKUP(A198,'SINTÉTICO SICRO'!A:D,2,0) -> Tratamento superficial duplo com emulsão - brita comercial | F198: =VLOOKUP(A198,'SINTÉTICO SICRO'!A:D,3,0) -> m² | G198: ='RESUMO MODULO TOTAL'!J24 -> 280000 | H198: 1610000 | I198: =G198/H198 -> 0.1739130435
A199: ='RESUMO MODULO TOTAL'!D25 -> 4011352 | B199: =VLOOKUP(A199,'SINTÉTICO SICRO'!A:D,2,0) -> Imprimação com emulsão asfáltica | F199: =VLOOKUP(A199,'SINTÉTICO SICRO'!A:D,3,0) -> m² | G199: ='RESUMO MODULO TOTAL'!J25 -> 280000 | H199: 3610000 | I199: =G199/H199 -> 0.07756232687
H200: Total de equipes de Laboratório de Asfaltos | I200: =SUM(I198:I199) -> 0.2514753703
A202: manutenção do canteiro de obras e acampamentos
A203: Código | B203: Discriminação | C203: Unidade | D203: Quantidade | F203: Custo Unitário (R$) | H203: Custo Total (R$)
B204: Manutenção do Canteiro de Obras e Acampamentos
A205: 6.1 | B205: Mão de Obra
A206: P9952 | B206: Pedreiro | C206: mês | D206: 0 | F206: =VLOOKUP(A206,'Pessoal Sicro'!$A$6:$G$118,6,0) -> 4995.5403 | H206: =F206*D206 -> 0
A207: P9954 | B207: Servente | C207: mês | D207: 0 | F207: =VLOOKUP(A207,'Pessoal Sicro'!$A$6:$G$118,6,0) -> 3913.9219 | H207: =F207*D207 -> 0
A208: P9953 | B208: Eletricista | C208: mês | D208: 0 | F208: =VLOOKUP(A208,'Pessoal Sicro'!$A$6:$G$118,6,0) -> 5598.4153 | H208: =F208*D208 -> 0
F209: Subtotal do Item 6.1 | H209: =SUM(H206:I208) -> 0
A211: Código | B211: Discriminação | C211: Unidade | D211: Quantidade | F211: Custo Produtivo (R$) | H211: Custo Total (R$)
A212: 6.2 | B212: Equipamentos
B213: Caminhão guindauto de 6 toneladas | C213: h/mês | D213: 0 | H213: =F213*D213 -> 0
B214: Caminhão tanque de 8.000 litros | C214: h/mês | D214: 0 | H214: =F214*D214 -> 0
A215: E9524 | B215: Motoniveladora | C215: h/mês | D215: 0 | F215: =Equipamentos!J168 -> 288.5033 | H215: =F215*D215 -> 0
F216: Subtotal do Item 6.2 | H216: =SUM(H213:I215) -> 0
G217: Total da Manutenção do Canteiro de Obras e Acampamentos | H217: =H216+H209 -> 0
A221: Resumo das parcelas de administração local
A222: Código | B222: Discriminação | C222: Unidade | D222: Quantidade | F222: Custo Unitário (R$) | H222: Custo Total (R$)
B223: Parcela Fixa
B224: Mão de Obra | C224: mês | D224: 5 | F224: =H14+H18+H26+H30 -> 54684.95285 | H224: =F224*D224 -> 273424.7643
... 27 more rows

Sheet Projeto Executivo
A4: COMPOSIÇAO PREÇO PROJETO EXECUTIVO
A6: DISCRIMINAÇAO | F6: Pr. Unit. | G6: Pr. Total
A8: A· EOUIPE TECNICA | G8: =G9+G12 -> 14372.93169
B9: A. 1 - Pessoal de Nível Superior | C9: Unidade | D9: Quantitativo | E9: SICRO e Rel.Custos Gerais | G9: =G10+G11 -> 11407.36113
B10: Engenheiro | C10: mês | D10: 0.4 | E10: P9812 | F10: =VLOOKUP(E10,'Pessoal Sicro'!A:G,6,0) -> 23564.3607 | G10: =F10*D10 -> 9425.74428
B11: Topógrafo | C11: mês | D11: 0.25 | E11: P9949 | F11: =VLOOKUP(E11,'Pessoal Sicro'!A:G,6,0) -> 7926.4674 | G11: =F11*D11 -> 1981.61685
B12: A.2 - Pessoal de Nível Técnico e Aux. | G12: =G13+G14 -> 2965.570563
B13: Auxiliar de topógrafo | C13: mês | D13: 0.125 | E13: P9950 | F13: =VLOOKUP(E13,'Pessoal Sicro'!A:G,6,0) -> 4519.6557 | G13: =F13*D13 -> 564.9569625
B14: Auxiliar Técnico/Assistente de Engenharia | C14: mês | D14: 0.5 | E14: P9903 | F14: =VLOOKUP(E14,'Pessoal Sicro'!A:G,6,0) -> 4801.2272 | G14: =F14*D14 -> 2400.6136
A15: B - ENCARGOS SOCIAIS | G15: =G16 -> 0
B16: =CONCATENATE("Taxas ",'ENC. SOCIAIS'!E51,"%") -> Taxas % | C16: JÁ INCLUSAS EM "A"
A17: C - DESPESAS GERAIS | G17: =G18+G20+G19 -> 5004.45161
B18: C.1 - MATERIAIS DE CONSUMO | C18: Estimativa % como referência de equipe técnica com encargos sociais | D18: 0.03 | F18: =G8+G16 -> 14372.93169 | G18: =F18*D18 -> 431.1879508
B19: C.2 - VEÍCULOS (Veículo leve picape 4 x 4 com capacidade de 1,10 t - 147 kW) | C19: h | D19: 40 | E19: E9684 | F19: =VLOOKUP(E19,Equipamentos!A:K,10,0) -> 106.9319 | G19: =F19*D19 -> 4277.276
B20: C.3 - Estação total eletrônica com alcance máximo de 3.000 m | C20: h | D20: 58.33648526 | E20: E9553 | F20: =VLOOKUP(E20,Equipamentos!A:K,10,0) -> 5.0738 | G20: =F20*D20 -> 295.9876589
A21: D - ENSAIOS | G21: =SUM(G22:G25) -> 3399.277212
B22: Laboratorista | C22: mês | D22: =1/4 -> 0.25 | E22: P9858 | F22: =VLOOKUP(E22,'Pessoal Sicro'!A:G,6,0) -> 6685.437 | G22: =F22*D22 -> 1671.35925
B23: Auxiliar de Laboratório | C23: mês | D23: =1/8 -> 0.125 | E23: P9833 | F23: =VLOOKUP(E23,'Pessoal Sicro'!A:G,6,0) -> 4544.6137 | G23: =F23*D23 -> 568.0767125
B24: Laboratório de solos | C24: mês | D24: =1/8 -> 0.125 | E24: B8957 | F24: =VLOOKUP(E24,'Tabelas 1 e 2'!C14:G23,5,0) -> 4073.25 | G24: =F24*D24 -> 509.15625
B25: Laboratório de asfalto | C25: mês | D25: 0.125 | E25: B8955 | F25: =VLOOKUP(E25,'Tabelas 1 e 2'!C15:G24,5,0) -> 5205.48 | G25: =F25*D25 -> 650.685
A26: I - SOMA (A+B+C+D) | G26: =G8+G15+G17+G21 -> 22776.66051
A27: II - CUSTOS ADMINISTRATIVOS | D27: =BDI!C17 -> 0.2339 | G27: =D27*G26 -> 5327.460894
A28: TOTAL | G28: =G26+G27 -> 28104.12141
F29: Por m²: | G29: =G28/('Memória de Cálculo'!C1*'Memória de Cálculo'!C2) -> 2.007437244

Sheet CPU CODEVASF
A4: ='RESUMO MODULO TOTAL'!B1 -> EXECUÇÃO DE SERVIÇOS DE PAVIMENTAÇÃO COM TRATAMENTO SUPERFICIAL DUPLO EM VIAS DE MUNICÍPIOS DIVERSOS INSERIDOS NA ÁREA DE ATUAÇÃO DA CODEVASF, NO ESTADO DO AMAPÁ (REGIÃO PORTO GRANDE)
F5: BDI %: | G5: =BDI!$C$17 -> 0.2339
E6: Encargos Sociais: | G6: Horista | H6: Mensalista
G7: ='ENC. SOCIAIS'!E51/100 -> 0 | H7: ='ENC. SOCIAIS'!F51/100 -> 0
A8: COMPOSIÇÕES DE CUSTO UNITARIO
A9: CPU-12 | B9: CODEVASF | D9: Correção de vazamentos no ramal na rua sem pavimento com fornecimento do material hidráulico | E9: m | F9: COEF. | G9: PRECO UNITÁRIO (R$) | H9: TOTAL (R$)
A11: SICRO | B11: SICRO | C11: P9824 | D11: =VLOOKUP(C11,'Pessoal Sicro'!$A$5:$G$1048576,2,0) -> Servente | E11: H | F11: 0.2 | G11: =VLOOKUP(C11,'Pessoal Sicro'!$A$5:$G$1048576,6,0) -> 21.1436 | H11: =F11*G11 -> 4.22872
A12: SICRO | B12: SICRO | C12: P9807 | D12: =VLOOKUP(C12,'Pessoal Sicro'!$A$5:$G$1048576,2,0) -> Bombeiro hidráulico | E12: H | F12: 0.1 | G12: =VLOOKUP(C12,'Pessoal Sicro'!$A$5:$G$1048576,6,0) -> 35.1524 | H12: 3.51524
A13: INS. SINAPI | B13: SINAPI | C13: 9867 | D13: TUBO PVC, SOLDAVEL, DN 20 MM, AGUA FRIA (NBR-5648) | E13: m | F13: 1 | G13: =IFERROR(VLOOKUP(C13,'INSUMOS SINAPI'!A:E,5,FALSE),VLOOKUP(C13,'COMP Sint. Sinapi'!G:K,5,FALSE)) -> 3.03 | H13: 3.03
A14: INSUMO | B14: ORSE | C14: 10585 | D14: Arco de serra | E14: un | F14: 0.1 | G14: 22.8 | H14: 2.28
A15: INS. SINAPI | B15: SINAPI | C15: 3859 | D15: LUVA SOLDAVEL COM ROSCA, PVC, 20 MM X 1/2", PARA AGUA FRIA PREDIAL | E15: un | F15: 2 | G15: =IFERROR(VLOOKUP(C15,'INSUMOS SINAPI'!A:E,5,FALSE),VLOOKUP(C15,'COMP Sint. Sinapi'!G:K,5,FALSE)) -> 1.09 | H15: 2.18
E16: Sub total: | H16: =SUM(H11:H15) -> 15.23396
F17: BDI | G17: =BDI!$C$17 -> 0.2339 | H17: =H16*G17 -> 3.563223244
G18: Total Serviços: | H18: =H16+H17 -> 18.79718324
E19: =A9 -> CPU-12 | F19: PREÇO UNITÁRIO TOTAL: | H19: =H18 -> 18.79718324 | I19: =H16 -> 15.23396
A21: CPU-14 | B21: CODEVASF | D21: AQUISIÇÃO DE EAI | E21: t | F21: COEF. | G21: PRECO UNITÁRIO (R$) | H21: TOTAL (R$)
D23: EAI | E23: t | F23: 1 | G23: =RESUMO_Transp!$V$17 -> 2748.453519 | H23: =F23*G23 -> 2748.453519
E24: Sub total: | H24: =SUM(H23) -> 2748.453519
F25: BDI | G25: 0.15 | H25: =H24*G25 -> 412.2680279
G26: Total Serviços: | H26: =H24+H25 -> 3160.721547
E27: =A21 -> CPU-14 | F27: PREÇO UNITÁRIO TOTAL: | H27: =H26 -> 3160.721547 | I27: =H24 -> 2748.453519
A29: CPU-15 | B29: CODEVASF | D29: AQUISIÇÃO DE EMULSÃO ASFÁLTICA RR-2C | E29: t | F29: COEF. | G29: PRECO UNITÁRIO (R$) | H29: TOTAL (R$)
D31: EMULSÃO ASFÁLTICA RR-2C | E31: t | F31: 1 | G31: =RESUMO_Transp!$V$24 -> 4050.814628 | H31: =F31*G31 -> 4050.814628
E32: Sub total: | H32: =SUM(H31) -> 4050.814628
F33: BDI | G33: 0.15 | H33: =H32*G33 -> 607.6221942
G34: Total Serviços: | H34: =H32+H33 -> 4658.436822
E35: =A29 -> CPU-15 | F35: PREÇO UNITÁRIO TOTAL: | H35: =H34 -> 4658.436822 | I35: =H32 -> 4050.814628
A37: CPU-18 | B37: CODEVASF | D37: TRANSPORTE DE EAI | E37: t | F37: COEF. | G37: PRECO UNITÁRIO (R$) | H37: TOTAL (R$)
D39: TRANSPORTE DE EAI | E39: t | F39: 1 | G39: =RESUMO_Transp!$U$17 -> 1961.015714 | H39: =F39*G39 -> 1961.015714
E40: Sub total: | H40: =SUM(H39) -> 1961.015714
F41: BDI | G41: 0.15 | H41: =H40*G41 -> 294.1523571
G42: Total Serviços: | H42: =H40+H41 -> 2255.168071
E43: =A37 -> CPU-18 | F43: PREÇO UNITÁRIO TOTAL: | H43: =H42 -> 2255.168071 | I43: =H40 -> 1961.015714
A45: CPU-19 | B45: CODEVASF | D45: TRANSPORTE DE EMULSÃO ASFÁLTICA RR-2C | E45: t | F45: COEF. | G45: PRECO UNITÁRIO (R$) | H45: TOTAL (R$)
D47: TRANSPORTE DE EMULSÃO ASFÁLTICA RR-2C | E47: t | F47: 1 | G47: =RESUMO_Transp!$U$24 -> 1193.91 | H47: =F47*G47 -> 1193.91
E48: Sub total: | H48: =SUM(H47) -> 1193.91
F49: BDI | G49: 0.15 | H49: =H48*G49 -> 179.0865
G50: Total Serviços: | H50: =H48+H49 -> 1372.9965
E51: =A45 -> CPU-19 | F51: PREÇO UNITÁRIO TOTAL: | H51: =H50 -> 1372.9965 | I51: =H48 -> 1193.91
A53: CPU-20 | B53: CODEVASF | D53: CONTROLE TECNOLÓGICO - PROJETO | E53: m² | F53: COEF. | G53: PRECO UNITÁRIO (R$) | H53: TOTAL (R$)
A55: Insumo | B55: SICRO | C55: P9858 | D55: Laboratorista | E55: mês | F55: =0.15/14000 -> 1.071428571e-05 | G55: 5576.2888 | H55: =F55*G55 -> 0.05974595143
A56: Composição | B56: SICRO | C56: P9833 | D56: Auxiliar de Laboratório | E56: mês | F56: =0.15/14000 -> 1.071428571e-05 | G56: 4221.2468 | H56: 0.04522764429
A57: Composição | B57: SICRO | C57: *B8957 | D57: Laboratório de Solos | E57: mês | F57: 1.071428571e-05 | G57: 4235.59 | H57: =F57*G57 -> 0.04538132143
A58: Composição | B58: SICRO | C58: *B8955 | D58: Laboratório de Asfalto | E58: mês | F58: 1.071428571e-05 | G58: 5144.99 | H58: 0.05512489286
B59: *Relatório de Custos Gerais do DNIT, página 1 | E59: Sub total: | H59: =SUM(H55:H58) -> 0.20547981
F60: BDI | G60: =BDI!$C$17 -> 0.2339 | H60: =H59*G60 -> 0.04806172756
E61: CPU-20 | F61: PREÇO UNITÁRIO TOTAL: | H61: =H59+H60 -> 0.2535415376 | I61: =H59 -> 0.20547981

Sheet BDI
A2: OBRA:
A3: LOCAL:
A4: DATA BASE:
A5: DETALHAMENTO DO BDI - SEM DESONERAÇÃO
A6: ='RESUMO MODULO TOTAL'!B1 -> EXECUÇÃO DE SERVIÇOS DE PAVIMENTAÇÃO COM TRATAMENTO SUPERFICIAL DUPLO EM VIAS DE MUNICÍPIOS DIVERSOS INSERIDOS NA ÁREA DE ATUAÇÃO DA CODEVASF, NO ESTADO DO AMAPÁ (REGIÃO PORTO GRANDE)
A7: Descrição dos serviços | B7: Preço de Venda (%) | C7: Custo Direto (%)
A8: ADMINISTRAÇÃO CENTRAL | C8: 0.06
A9: CUSTOS FINANCEIROS | B9: 0.0102
A10: RISCOS | B10: 0.0025
A11: SEGUROS E GARANTIAS CONTRATUAIS | B11: 0.005
A12: LUCRO OPERACIONAL | C12: 0.07
A13: PIS | B13: 0.0065
A14: COFINS | B14: 0.03
A15: ISSQN | B15: 0.03
A16: Contribuição Previdenciaria | B16: 0
B17: BDI | C17: =ROUND((1+(C8+C12))/(1-(B9+B10+B11+B13+B14+B15+B16))-1,4) -> 0.2339
A18: Observação: O percentual de ISSQN aqui utilizado consiste apenas em um referencial médio.
B19: O valor real do ISSQN a ser adotado deve ser aquele proveniente das alíquotas dos municípios situados na área de
B20: influência das obras.
A55: DETALHAMENTO DO BDI DIFERENCIADO - SEM DESONERAÇÃO
A56: ='RESUMO MODULO TOTAL'!B1 -> EXECUÇÃO DE SERVIÇOS DE PAVIMENTAÇÃO COM TRATAMENTO SUPERFICIAL DUPLO EM VIAS DE MUNICÍPIOS DIVERSOS INSERIDOS NA ÁREA DE ATUAÇÃO DA CODEVASF, NO ESTADO DO AMAPÁ (REGIÃO PORTO GRANDE)
A58: DESCRIÇÃO DOS SERVIÇOS | B58: PREÇO DE VENDA (%) | C58: CUSTO DIRETO (%)
A59: ADMINISTRAÇÃO CENTRAL | C59: 0.0377
A60: DESPESA FINANCEIRAS | B60: 0.0102
A61: SEGUROS E GARANTIAS CONTRATUAIS | B61: 0.0025
A62: RISCOS | B62: 0.005
A63: LUCRO OPERACIONAL | C63: 0.05
A64: PIS | B64: 0.0065
A65: COFINS | B65: 0.03
A66: ISSQN | B66: 0
A67: Contribuição Previdenciaria | B67: 0
B68: BDI | C68: =ROUND((1+(C59+C63))/(1-(B60+B61+B62+B64+B65+B66+B67))-1,4) -> 0.15
A69: Fonte da composição, valores de referência e fórmula do BDI: Instrução Normativa N° 62/DNIT SEDE

Sheet ENC. SOCIAIS
A5: ='[215]RESUMO MODULO TOTAL'!B1 -> EXECUÇÃO DE CAPA ASFÁLTICA EM CONCRETO BETUMINOSO USINADO A QUENTE (CBUQ), EM VIAS DE MUNICÍPIOS DIVERSOS INSERIDOS NA ÁREA DE ATUAÇÃO DA CODEVASF, NO ESTADO DO AMAPÁ (REGIÃO SANTANA)
A7: DETALHAMENTO DOS ENCARGOS SOCIAIS (%)
A8: VIGÊNCIA A PARTIR DE 12/2022 | C8: COM DESONERAÇÃO | E8: SEM DESONERAÇÃO
C10: HORISTA | D10: MENSALISTA | E10: HORISTA | F10: MENSALISTA
A12: GRUPO A
A13: A1 | B13: INSS | C13: 0 | D13: 0 | E13: 20 | F13: 20
A14: A2 | B14: SESI | C14: 1.5 | D14: 1.5 | E14: 1.5 | F14: 1.5
A15: A3 | B15: SENAI | C15: 1 | D15: 1 | E15: 1 | F15: 1
A16: A4 | B16: INCRA | C16: 0.2 | D16: 0.2 | E16: 0.2 | F16: 0.2
A17: A5 | B17: SEBRAE | C17: 0.6 | D17: 0.6 | E17: 0.6 | F17: 0.6
A18: A6 | B18: Salário Educação | C18: 2.5 | D18: 2.5 | E18: 2.5 | F18: 2.5
A19: A7 | B19: Seguro Contra Acidentes de Trabalho | C19: 3 | D19: 3 | E19: 3 | F19: 3
A20: A8 | B20: FGTS | C20: 8 | D20: 8 | E20: 8 | F20: 8
A21: A9 | B21: SECONCI | C21: 1 | D21: 1 | E21: 1 | F21: 1
A22: A | B22: Total | C22: =SUM(C13:C21) -> 17.8 | D22: =SUM(D13:D21) -> 17.8 | E22: =SUM(E13:E21) -> 37.8 | F22: =SUM(F13:F21) -> 37.8
A23: GRUPO B
A24: B1 | B24: Repouso Semanal Remunerado | C24: 17.88 | D24: - | E24: 17.96 | F24: -
A25: B2 | B25: Feriados | C25: 3.94 | D25: - | E25: 4.01 | F25: -
A26: B3 | B26: Auxílio-enfermidade | C26: 0.91 | D26: 0.69 | E26: 0.85 | F26: 0.64
A27: B4 | B27: 13° salário | C27: 10.98 | D27: 8.33 | E27: 11.05 | F27: 8.33
A28: B5 | B28: Licença-paternidade | C28: 0.07 | D28: 0.06 | E28: 0.06 | F28: 0.04
A29: B6 | B29: Faltas Justificadas | C29: 0.73 | D29: 0.56 | E29: 0.74 | F29: 0.56
A30: B7 | B30: Dias de chuva | C30: 1.45 | D30: - | E30: 1.97 | F30: -
A31: B8 | B31: Auxílio Acidente de Trabalho | C31: 0.11 | D31: 0.09 | E31: 0.1 | F31: 0.08
A32: B9 | B32: Férias Gozadas | C32: 11.35 | D32: 8.62 | E32: 11.74 | F32: 8.85
A33: B10 | B33: Salário Maternidade | C33: 0.03 | D33: 0.03 | E33: 0.04 | F33: 0.03 | L33: =(#REF!)/(1+#REF!) ->  | M33: =(#REF!) -> 
A34: B | B34: Total | C34: =SUM(C24:C33) -> 47.45 | D34: =SUM(D24:D33) -> 18.38 | E34: =SUM(E24:E33) -> 48.52 | F34: =SUM(F24:F33) -> 18.53
A35: GRUPO C
A36: C1 | B36: Aviso Prévio Indenizado | C36: 6.76 | D36: 5.14 | E36: 4.41 | F36: 3.33
A37: C2 | B37: Aviso Prévio Trabalhado | C37: 0.16 | D37: 0.12 | E37: 0.1 | F37: 0.08
A38: C3 | B38: Férias Indenizadas | C38: 2.28 | D38: 1.73 | E38: 2.09 | F38: 1.57
A39: C4 | B39: Depósito Rescisão Sem Justa Causa | C39: 3.81 | D39: 2.89 | E39: 2.42 | F39: 1.82
A40: C5 | B40: Indenização Adicional | C40: 0.57 | D40: 0.43 | E40: 0.37 | F40: 0.28
A41: C | B41: Total | C41: =SUM(C36:C40) -> 13.58 | D41: =SUM(D36:D40) -> 10.31 | E41: =SUM(E36:E40) -> 9.39 | F41: =SUM(F36:F40) -> 7.08
A42: GRUPO D
A43: D1 | B43: Reincidência de A sobre B | C43: 8.45 | D43: 3.27 | E43: 18.34 | F43: 7
A44: D2 | B44: Reincidência de Grupo A sobre Aviso Prévio Trabalhado e Reincidência do FGTS sobre Aviso Prévio Indenizado | C44: 0.57 | D44: 0.43 | E44: 0.39 | F44: 0.3
A45: D | B45: Total | C45: =SUM(C43:C44) -> 9.02 | D45: =SUM(D43:D44) -> 3.7 | E45: =SUM(E43:E44) -> 18.73 | F45: =SUM(F43:F44) -> 7.3
A47: T O T A L (%) | C47: =C22+C34+C41+C45 -> 87.85 | D47: =D22+D34+D41+D45 -> 50.19 | E47: =E22+E34+E41+E45 -> 114.44 | F47: =F22+F34+F41+F45 -> 70.71
H51: Fonte: Sinapi Cálculos e Parâmetros 5ª Edição - Atualizada em Agosto 2023

Sheet CONSUMO DE MAT. B TOTAL
B3: CONSUMO DO MATERIAL BETUMINOSO TOTAL
B5: TRECHO | D5: QUANTIDADES | M5: MAT. BETUMINOSO
B6: Inicio (km) | C6: Fim (km) | D6: Extensão (m) | E6: Largura (m) | F6: Espess. (m) | G6: Área (m2) | H6: Volume (m3) | I6: Densidade (t/m3) | J6: Massa (t) | K6: Unid | L6: Quant. | M6: Tipo | N6: Consumo Taxa de Aplicação | O6: Unid. | P6: Quant.
B7: IMPRIMAÇÃO
F9: 1 | G9: ='Memória de Cálculo'!H63 -> 280000 | H9: =G9*F9 -> 280000 | M9: EAI | N9: 1,3 l/m2 | O9: t | P9: =ROUND((G9*1.3)/1000,2) -> 364
B10: CAPA SELANTE
F11: 1 | G11: ='Memória de Cálculo'!H51 -> 280000 | H11: =G11*F11 -> 280000 | M11: RR-2C | N11: 0,5 l/m2 | O11: t | P11: =ROUND((G11*0.5)/1000,2) -> 140
B12: TRATAMENTO SUPERFICIAL DUPLO - 1ª CAMADA
F13: 1 | G13: ='Memória de Cálculo'!H57 -> 280000 | H13: =G13*F13 -> 280000 | M13: RR-2C | N13: 1,5 l/m² | O13: t | P13: =ROUND((G13*1.5)/1000,2) -> 420
B14: TRATAMENTO SUPERFICIAL DUPLO - 2ª CAMADA
F15: 1 | G15: ='Memória de Cálculo'!H57 -> 280000 | H15: =G15*F15 -> 280000 | M15: RR-2C | N15: 1,0 l/m² | O15: t | P15: =ROUND((G15*1)/1000,2) -> 280
H17: =G17*F17 -> 0

Sheet Transporte EAI
C2: MEMÓRIA DE CÁLCULO
C7: REAJUSTE | F7: TIPOLOGIA DO MATERIAL | I7: EMULSÃO ASFÁLTICA PARA SERVIÇO DE IMPRIMAÇÃO | M7: IMPOSTOS | N7: COFINS | O7: 0.0065 | P7: 0.0065
G8: ÍNDICE DE PAVIMENTAÇÃO DNIT | H8: 2014-07-01 | I8: ÍNDICE INICIAL | J8: 270.237 | N8: PIS | O8: 0.03 | P8: 0.03 | T8: LEGENDA | AC8: As empresas tributadas pelo Lucro Presumido pagam 0,65% de PIS e 3% de COFINS
H9: 2024-07-01 | I9: ÍNDICE FINAL | J9: 574.257 | N9: ICMS | O9: 0.18 | P9: 0.18 | Q9: =1-(O9/1) -> 0.82 | R9: =1-(P9/1) -> 0.82 | S9: =1-(Q9/1) -> 0.18 | T9: ENTRADA DE DADOS | AC9: As empresas tributadas pelo Lucro Real pagam 1,65% de PIS e 7,60% de COFINS
G10: Data ANP | H10: 2024-07-01
C11: DATA-BASE | D11: PRODUTOS | E11: LOCALIDADES | J11: CUSTO ANP (R$/Kg) | L11: CUSTO ANP | M11: IMPOSTOS DO PRODUTO | N11: CUSTO DO PRODUTO COM IMPOSTOS | O11: DMT's | P11: DMT'S FLUVIAL | Q11: CUSTO DO TRANSPORTE RODOVIA PAVIMENTADA | R11: CUSTO DO TRANSPORTE FLUVIAL | S11: CUSTO DO TRANSPORTE TOTAL | T11: ICMS | U11: ATUALIZAÇÃO DO CUSTO DE TRANSPORTE | V11: CUSTO DO TRANSPORTE RODOVIA PAVIMENTADA COM IMPOSTOS E ATUALIZAÇÃO MONETÁRIA | W11: PEDÁGIO | Y11: TOTAL TRANSPORTE | Z11: AQUISIÇÃO DO PRODUTO | AA11: TOTAL GERAL ( TRANSP + AQUISIÇÃO) | AC11: 1 | AD11: 2 | AE11: 3
C12: =H9 -> 2024-07-01 | E12: REFINARIAS | F12: ENDEREÇO | G12: ESTADO | H12: CIDADE | I12: DESTINO | J12: ESTADO | K12: REGIÃO | L12: R$/t | M12: R$/t | N12: R$/t | O12: KM | P12: KM | Q12: R$/t | R12: R$/t | S12: R$/t | T12: R$/t | U12: R$/t | V12: R$/t | W12: CUSTO | X12: R$/t | Y12: R$/t | Z12: R$/t | AA12: R$/t | AC12: TOTAL GERAL ( TRANSP + AQUISIÇÃO) | AD12: TOTAL TRANSPORTE | AE12: AQUISIÇÃO DO PRODUTO
B13: =AA13 -> 5210.946265 | C13: 1 | D13: =I7 -> EMULSÃO ASFÁLTICA PARA SERVIÇO DE IMPRIMAÇÃO | E13: 'CENTRO OESTE ASFALTOS LTDA. | F13: SETOR DE INFLAMÁVEIS, S/N TRECHO 02 - LOTE 1.100 - GUARÁ - CEP:71225-000 | G13: Distrito Federal | H13: BRASÍLIA - DF | I13: Porto Grande -AP | J13: =VLOOKUP(G13,OFFSET('ANP ESTADO'!$A$1,MATCH($I$7,'ANP ESTADO'!B:B,0)+MATCH($H$10,OFFSET('ANP ESTADO'!$A$1,MATCH($I$7,'ANP ESTADO'!B:B,0),0,100000,1),0),2,100000,2),2,FALSE) -> - | K13: =VLOOKUP($H$10,OFFSET('ANP REGIÃO'!$A$9,MATCH('Transporte EAI'!$I$7,'ANP REGIÃO'!A:A,0),1,10000,10000),MATCH('Transporte EAI'!AH13,'ANP REGIÃO'!$B$8:$G$8,0),FALSE) -> 2.730876265 | L13: =IF(AND(J13="-",K13="-"),"",IF(AND(J13<>0,K13="-"),J13*1000,IF(AND(J13="-",K13<>0),K13*1000,IF(AND(J13<>0,K13<>0),J13*1000,"")))) -> 2730.876265 | M13: =ROUND(((L13/(1-$O$7-$O$8-$O$9))-L13),2) -> 754.61 | N13: =L13+M13 -> 3485.486265 | O13: 2051 | P13: 547 | Q13: =ROUND((26.939+0.253*O13),2) -> 545.84 | R13: =ROUND((20.7256+0.1603*P13),2) -> 108.41 | S13: =Q13+R13 -> 654.25 | T13: =TRUNC(S13*($O$9/(1-$O$9)),2) -> 143.61 | U13: =TRUNC(IF($J$8="","",(($J$9-$J$8)/$J$8)*(S13+T13)),2) -> 897.6 | V13: =S13+T13+U13 -> 1695.46 | W13: 420 | X13: =EVEN(' CONSUMO DE MAT. B TOTAL'!$P$9*2/28)*W13/' CONSUMO DE MAT. B TOTAL'!$P$9 -> 30 | Y13: =IF(AND(Q13="",T13=""),"",V13+X13) -> 1725.46 | Z13: =IF(OR(L13="",M13=""),"",L13+M13) -> 3485.486265 | AA13: =IF(OR(Y13="",Z13=""),"",Y13+Z13) -> 5210.946265 | AC13: =AA13 -> 5210.946265 | AD13: =Y13 -> 1725.46 | AE13: =Z13 -> 3485.486265 | AH13: =IF(OR(G13=$D$59,G13=$D$60,G13=$D$62,G13=$D$68,G13=$D$52,G13=$D$48,G13=$D$44,G13=$D$57,G13=$D$47),"NORDESTE",IF(OR(G13=$D$43,G13=$D$45,G13=$D$46,G13=$D$56,G13=$D$64,G13=$D$65,G13=$D$69),"NORTE",IF(OR(G13=$D$49,G13=$D$51,G13=$D$53,G13=$D$54),"CENTRO-OESTE",IF(OR(G13=$D$67,G13=$D$61,G13=$D$55,G13=$D$50),"SUDESTE",IF(OR(G13=$D$66,G13=$D$58,G13=$D$63),"SUL",""))))) -> CENTRO-OESTE
B14: =AA14 -> 5650.674463 | C14: 2 | E14: ISAC SAABA | F14: Rua Rio Quixito, 1, Vila Buriti - Distrito Industrial - Manaus - AM CEP: 69072-070 | G14: Amazonas | H14: MANAUS - AM | I14: Porto Grande -AP | J14: =VLOOKUP(G14,OFFSET('ANP ESTADO'!$A$1,MATCH($I$7,'ANP ESTADO'!B:B,0)+MATCH($H$10,OFFSET('ANP ESTADO'!$A$1,MATCH($I$7,'ANP ESTADO'!B:B,0),0,100000,1),0),2,100000,2),2,FALSE) -> - | K14: =VLOOKUP($H$10,OFFSET('ANP REGIÃO'!$A$9,MATCH('Transporte EAI'!$I$7,'ANP REGIÃO'!A:A,0),1,10000,10000),MATCH('Transporte EAI'!AH14,'ANP REGIÃO'!$B$8:$G$8,0),FALSE) -> 2.846784463 | L14: =IF(AND(J14="-",K14="-"),"",IF(AND(J14<>0,K14="-"),J14*1000,IF(AND(J14="-",K14<>0),K14*1000,IF(AND(J14<>0,K14<>0),J14*1000,"")))) -> 2846.784463 | M14: =ROUND(((L14/(1-$O$7-$O$8-$O$9))-L14),2) -> 786.64 | N14: =L14+M14 -> 3633.424463 | O14: 2882 | P14: 10 | Q14: =ROUND((26.939+0.253*O14),2) -> 756.09 | R14: =ROUND((20.7256+0.1603*P14),2) -> 22.33 | S14: =Q14+R14 -> 778.42 | T14: =TRUNC(S14*($O$9/(1-$O$9)),2) -> 170.87 | U14: =TRUNC(IF($J$8="","",(($J$9-$J$8)/$J$8)*(S14+T14)),2) -> 1067.96 | V14: =S14+T14+U14 -> 2017.25 | W14: 0 | X14: =EVEN(' CONSUMO DE MAT. B TOTAL'!$P$9*2/28)*W14/' CONSUMO DE MAT. B TOTAL'!$P$9 -> 0 | Y14: 2017.25 | Z14: 3633.424463 | AA14: =IF(OR(Y14="",Z14=""),"",Y14+Z14) -> 5650.674463 | AC14: =AA14 -> 5650.674463 | AD14: =Y14 -> 2017.25 | AE14: 3633.424463 | AH14: =IF(OR(G14=$D$59,G14=$D$60,G14=$D$62,G14=$D$68,G14=$D$52,G14=$D$48,G14=$D$44,G14=$D$57,G14=$D$47),"NORDESTE",IF(OR(G14=$D$43,G14=$D$45,G14=$D$46,G14=$D$56,G14=$D$64,G14=$D$65,G14=$D$69),"NORTE",IF(OR(G14=$D$49,G14=$D$51,G14=$D$53,G14=$D$54),"CENTRO-OESTE",IF(OR(G14=$D$67,G14=$D$61,G14=$D$55,G14=$D$50),"SUDESTE",IF(OR(G14=$D$66,G14=$D$58,G14=$D$63),"SUL",""))))) -> NORTE
B15: 4784.94463 | C15: 2 | E15: STRATURA ASFALTOS S/A | F15: AVENIDA PRESIDENTE WILSON, 08 - JUNDIAÍ - CEP:75115-100 | G15: Goiás | H15: ANÁPOLIS - GO | I15: Porto Grande -AP | J15: =VLOOKUP(G15,OFFSET('ANP ESTADO'!$A$1,MATCH($I$7,'ANP ESTADO'!B:B,0)+MATCH($H$10,OFFSET('ANP ESTADO'!$A$1,MATCH($I$7,'ANP ESTADO'!B:B,0),0,100000,1),0),2,100000,2),2,FALSE) -> 2.412151773 | K15: =VLOOKUP($H$10,OFFSET('ANP REGIÃO'!$A$9,MATCH('Transporte EAI'!$I$7,'ANP REGIÃO'!A:A,0),1,10000,10000),MATCH('Transporte EAI'!AH15,'ANP REGIÃO'!$B$8:$G$8,0),FALSE) -> 2.730876265 | L15: 2412.151773 | M15: 666.54 | N15: 3078.691773 | O15: 2012 | P15: 547 | Q15: 535.98 | R15: 108.41 | S15: 644.39 | T15: 141.45 | U15: 884.07 | V15: 1669.91 | W15: 508.8 | X15: =EVEN(' CONSUMO DE MAT. B TOTAL'!$P$9*2/28)*W15/' CONSUMO DE MAT. B TOTAL'!$P$9 -> 36.34285714 | Y15: 1706.252857 | Z15: 3078.691773 | AA15: 4784.94463 | AC15: 4784.94463 | AD15: 1706.252857 | AE15: 3078.691773 | AH15: CENTRO-OESTE
B16: 4818.37463 | C16: 3 | E16: DISTRIBUIDORA BRASILEIRA DE ASFALTO SA - DISBRAL | F16: VIA PRIMARIA 8, S/N QD-18, MODS. 24/47 - DAIAG - CEP:74980-970 | G16: Goiás | H16: APARECIDA DE GOIANIA - GO | I16: Porto Grande -AP | J16: =VLOOKUP(G16,OFFSET('ANP ESTADO'!$A$1,MATCH($I$7,'ANP ESTADO'!B:B,0)+MATCH($H$10,OFFSET('ANP ESTADO'!$A$1,MATCH($I$7,'ANP ESTADO'!B:B,0),0,100000,1),0),2,100000,2),2,FALSE) -> 2.412151773 | K16: =VLOOKUP($H$10,OFFSET('ANP REGIÃO'!$A$9,MATCH('Transporte EAI'!$I$7,'ANP REGIÃO'!A:A,0),1,10000,10000),MATCH('Transporte EAI'!AH16,'ANP REGIÃO'!$B$8:$G$8,0),FALSE) -> 2.730876265 | L16: 2412.151773 | M16: 666.54 | N16: 3078.691773 | O16: 2063 | P16: 547 | Q16: 548.88 | R16: 108.41 | S16: 657.29 | T16: 144.28 | U16: 901.77 | V16: 1703.34 | W16: 508.8 | X16: =EVEN(' CONSUMO DE MAT. B TOTAL'!$P$9*2/28)*W16/' CONSUMO DE MAT. B TOTAL'!$P$9 -> 36.34285714 | Y16: 1739.682857 | Z16: 3078.691773 | AA16: 4818.37463 | AC16: 4818.37463 | AD16: 1739.682857 | AE16: 3078.691773 | AH16: CENTRO-OESTE
A17: 2403 | B17: 4799.35463 | C17: 4 | E17: INDÚSTRIA NACIONAL DE ASFALTOS LTDA. | F17: VIA PRIMEIRA E SEGUNDA 3, S/N.º LOTES 01 A 10 - DISTRITO AGROINDUSTRIAL - CEP:75370-000 | G17: Goiás | H17: GOIANIRA - GO | I17: Porto Grande -AP | J17: =VLOOKUP(G17,OFFSET('ANP ESTADO'!$A$1,MATCH($I$7,'ANP ESTADO'!B:B,0)+MATCH($H$10,OFFSET('ANP ESTADO'!$A$1,MATCH($I$7,'ANP ESTADO'!B:B,0),0,100000,1),0),2,100000,2),2,FALSE) -> 2.412151773 | K17: =VLOOKUP($H$10,OFFSET('ANP REGIÃO'!$A$9,MATCH('Transporte EAI'!$I$7,'ANP REGIÃO'!A:A,0),1,10000,10000),MATCH('Transporte EAI'!AH17,'ANP REGIÃO'!$B$8:$G$8,0),FALSE) -> 2.730876265 | L17: 2412.151773 | M17: 666.54 | N17: 3078.691773 | O17: 2034 | P17: 547 | Q17: 541.54 | R17: 108.41 | S17: 649.95 | T17: 142.67 | U17: 891.7 | V17: 1684.32 | W17: 508.8 | X17: =EVEN(' CONSUMO DE MAT. B TOTAL'!$P$9*2/28)*W17/' CONSUMO DE MAT. B TOTAL'!$P$9 -> 36.34285714 | Y17: 1720.662857 | Z17: 3078.691773 | AA17: 4799.35463 | AC17: 4799.35463 | AD17: 1720.662857 | AE17: 3078.691773 | AH17: CENTRO-OESTE
B18: 4710.109234 | C18: 5 | E18: STRATURA ASFALTOS S/A | F18: RUA VICTOR RODRIGUES RESENDE, 333 - DISTRITO IND. DE UBERLÂNDIA - CEP:38405-440 | G18: Minas Gerais | H18: UBERLANDIA - MG | I18: Porto Grande -AP | J18: =VLOOKUP(G18,OFFSET('ANP ESTADO'!$A$1,MATCH($I$7,'ANP ESTADO'!B:B,0)+MATCH($H$10,OFFSET('ANP ESTADO'!$A$1,MATCH($I$7,'ANP ESTADO'!B:B,0),0,100000,1),0),2,100000,2),2,FALSE) -> 2.153413519 | K18: =VLOOKUP($H$10,OFFSET('ANP REGIÃO'!$A$9,MATCH('Transporte EAI'!$I$7,'ANP REGIÃO'!A:A,0),1,10000,10000),MATCH('Transporte EAI'!AH18,'ANP REGIÃO'!$B$8:$G$8,0),FALSE) -> 2.248773515 | L18: 2153.413519 | M18: 595.04 | N18: 2748.453519 | O18: 2380 | P18: 547 | Q18: 629.08 | R18: 108.41 | S18: 737.49 | T18: 161.88 | U18: 1011.8 | V18: 1911.17 | W18: 706.8 | X18: =EVEN(' CONSUMO DE MAT. B TOTAL'!$P$9*2/28)*W18/' CONSUMO DE MAT. B TOTAL'!$P$9 -> 50.48571429 | Y18: 1961.655714 | Z18: 2748.453519 | AA18: 4710.109234 | AC18: 4710.109234 | AD18: 1961.655714 | AE18: 2748.453519 | AH18: SUDESTE
B19: 4709.469234 | C19: 6 | E19: BETUNEL INDÚSTRIA E COMÉRCIO LTDA. | F19: RUA VICTOR RODRIGUES DE REZENDE, 185 - DISTRITO INDUSTRIAL - CEP:38402-334 | G19: Minas Gerais | H19: UBERLANDIA - MG | I19: Porto Grande -AP | J19: =VLOOKUP(G19,OFFSET('ANP ESTADO'!$A$1,MATCH($I$7,'ANP ESTADO'!B:B,0)+MATCH($H$10,OFFSET('ANP ESTADO'!$A$1,MATCH($I$7,'ANP ESTADO'!B:B,0),0,100000,1),0),2,100000,2),2,FALSE) -> 2.153413519 | K19: =VLOOKUP($H$10,OFFSET('ANP REGIÃO'!$A$9,MATCH('Transporte EAI'!$I$7,'ANP REGIÃO'!A:A,0),1,10000,10000),MATCH('Transporte EAI'!AH19,'ANP REGIÃO'!$B$8:$G$8,0),FALSE) -> 2.248773515 | L19: 2153.413519 | M19: 595.04 | N19: 2748.453519 | O19: 2379 | P19: 547 | Q19: 628.83 | R19: 108.41 | S19: 737.24 | T19: 161.83 | U19: 1011.46 | V19: 1910.53 | W19: 706.8 | X19: =EVEN(' CONSUMO DE MAT. B TOTAL'!$P$9*2/28)*W19/' CONSUMO DE MAT. B TOTAL'!$P$9 -> 50.48571429 | Y19: 1961.015714 | Z19: 2748.453519 | AA19: 4709.469234 | AC19: 4709.469234 | AD19: 1961.015714 | AE19: 2748.453519 | AH19: SUDESTE
B20: 5410.226776 | C20: 7 | E20: ARAPETRO DISTRIBUIDORA DE PETRÓLEO LTDA. | F20: RUA 04, S/N° LOTES 17 A 20. - DISTRITO INDUSTRIAL 1/8 - CEP:78600-000 | G20: Mato grosso | H20: BARRA DO GARCAS - MT | I20: Porto Grande -AP | J20: =VLOOKUP(G20,OFFSET('ANP ESTADO'!$A$1,MATCH($I$7,'ANP ESTADO'!B:B,0)+MATCH($H$10,OFFSET('ANP ESTADO'!$A$1,MATCH($I$7,'ANP ESTADO'!B:B,0),0,100000,1),0),2,100000,2),2,FALSE) -> 2.813416776 | K20: =VLOOKUP($H$10,OFFSET('ANP REGIÃO'!$A$9,MATCH('Transporte EAI'!$I$7,'ANP REGIÃO'!A:A,0),1,10000,10000),MATCH('Transporte EAI'!AH20,'ANP REGIÃO'!$B$8:$G$8,0),FALSE) -> 2.730876265 | L20: =IF(AND(J20="-",K20="-"),"",IF(AND(J20<>0,K20="-"),J20*1000,IF(AND(J20="-",K20<>0),K20*1000,IF(AND(J20<>0,K20<>0),J20*1000,"")))) -> 2813.416776 | M20: =ROUND(((L20/(1-$O$7-$O$8-$O$9))-L20),2) -> 777.42 | N20: 3590.836776 | O20: 2240 | P20: 547 | Q20: 593.66 | R20: 108.41 | S20: 702.07 | T20: 154.11 | U20: 963.21 | V20: 1819.39 | W20: 0 | X20: =EVEN(' CONSUMO DE MAT. B TOTAL'!$P$9*2/28)*W20/' CONSUMO DE MAT. B TOTAL'!$P$9 -> 0 | Y20: 1819.39 | Z20: 3590.836776 | AA20: 5410.226776 | AH20: CENTRO-OESTE
B21: 5011.503519 | C21: 8 | E21: DISTRIBUIDORA BRASILEIRA DE ASFALTO SA - DISBRAL | F21: SÃO JUDAS TADEU, 288 - DISTRITO INDUSTRIAL - CEP:32450-000 | G21: Minas Gerais | H21: SARZEDO - MG | I21: Porto Grande -AP | J21: =VLOOKUP(G21,OFFSET('ANP ESTADO'!$A$1,MATCH($I$7,'ANP ESTADO'!B:B,0)+MATCH($H$10,OFFSET('ANP ESTADO'!$A$1,MATCH($I$7,'ANP ESTADO'!B:B,0),0,100000,1),0),2,100000,2),2,FALSE) -> 2.153413519 | K21: =VLOOKUP($H$10,OFFSET('ANP REGIÃO'!$A$9,MATCH('Transporte EAI'!$I$7,'ANP REGIÃO'!A:A,0),1,10000,10000),MATCH('Transporte EAI'!AH21,'ANP REGIÃO'!$B$8:$G$8,0),FALSE) -> 2.248773515 | L21: 2153.413519 | M21: 595.04 | N21: 2748.453519 | O21: 2838 | P21: 547 | Q21: 744.95 | R21: 108.41 | S21: 853.36 | T21: 187.32 | U21: 1170.77 | V21: 2211.45 | W21: 722.4 | X21: =EVEN(' CONSUMO DE MAT. B TOTAL'!$P$9*2/28)*W21/' CONSUMO DE MAT. B TOTAL'!$P$9 -> 51.6 | Y21: 2263.05 | Z21: 2748.453519 | AA21: 5011.503519 | AH21: SUDESTE
B22: 4827.334463 | C22: 9 | E22: 'INDÚSTRIA NACIONAL DE ASFALTOS LTDA. | F22: INDÚSTRIA NACIONAL DE ASFALTOS LTDA - CEP:77053-080 | G22: Tocantins | H22: PALMAS - TO | I22: Porto Grande -AP | J22: =VLOOKUP(G22,OFFSET('ANP ESTADO'!$A$1,MATCH($I$7,'ANP ESTADO'!B:B,0)+MATCH($H$10,OFFSET('ANP ESTADO'!$A$1,MATCH($I$7,'ANP ESTADO'!B:B,0),0,100000,1),0),2,100000,2),2,FALSE) -> - | K22: =VLOOKUP($H$10,OFFSET('ANP REGIÃO'!$A$9,MATCH('Transporte EAI'!$I$7,'ANP REGIÃO'!A:A,0),1,10000,10000),MATCH('Transporte EAI'!AH22,'ANP REGIÃO'!$B$8:$G$8,0),FALSE) -> 2.846784463 | L22: 2846.784463 | M22: 786.64 | N22: 3633.424463 | O22: 1286 | P22: 547 | Q22: 352.3 | R22: 108.41 | S22: 460.71 | T22: 101.13 | U22: 632.07 | V22: 1193.91 | W22: 0 | X22: =EVEN(' CONSUMO DE MAT. B TOTAL'!$P$9*2/28)*W22/' CONSUMO DE MAT. B TOTAL'!$P$9 -> 0 | Y22: 1193.91 | Z22: 3633.424463 | AA22: 4827.334463 | AH22: NORTE
B23: 5412.256189 | C23: 10 | E23: 'NTA - NOVAS TÉCNICAS DE ASFALTOS S/A | F23: RUA SOFIA ATAURI FADIN, 150 SALA A - B. SANTA TEREZINHA - CEP:13140-000 | G23: São Paulo | H23: PAULINIA - SP | I23: Porto Grande -AP | J23: =VLOOKUP(G23,OFFSET('ANP ESTADO'!$A$1,MATCH($I$7,'ANP ESTADO'!B:B,0)+MATCH($H$10,OFFSET('ANP ESTADO'!$A$1,MATCH($I$7,'ANP ESTADO'!B:B,0),0,100000,1),0),2,100000,2),2,FALSE) -> 2.437887617 | K23: =VLOOKUP($H$10,OFFSET('ANP REGIÃO'!$A$9,MATCH('Transporte EAI'!$I$7,'ANP REGIÃO'!A:A,0),1,10000,10000),MATCH('Transporte EAI'!AH23,'ANP REGIÃO'!$B$8:$G$8,0),FALSE) -> 2.248773515 | L23: 2437.887617 | M23: =ROUND(((L23/(1-$O$7-$O$8-$O$9))-L23),2) -> 673.65 | N23: 3111.537617 | O23: 2834 | P23: 547 | Q23: 743.94 | R23: 108.41 | S23: 852.35 | T23: 187.1 | U23: 1169.39 | V23: 2208.84 | W23: 1286.3 | X23: =EVEN(' CONSUMO DE MAT. B TOTAL'!$P$9*2/28)*W23/' CONSUMO DE MAT. B TOTAL'!$P$9 -> 91.87857143 | Y23: 2300.718571 | Z23: 3111.537617 | AA23: 5412.256189 | AC23: 5412.256189 | AD23: 2300.718571 | AE23: 3111.537617 | AH23: SUDESTE
B24: 5488.859046 | C24: 11 | E24: COMPANHIA BRASILEIRA DE ASFALTOS DA AMAZÔNIA - IMPORTAÇÃO E EXPORTAÇÃO | F24: Avenida Doutor Olindo Dártora 2451, Galpão 02, Morro Grande - CEP:07726-555 | G24: São Paulo | H24: CAIEIRAS - SP | I24: Porto Grande -AP | J24: =VLOOKUP(G24,OFFSET('ANP ESTADO'!$A$1,MATCH($I$7,'ANP ESTADO'!B:B,0)+MATCH($H$10,OFFSET('ANP ESTADO'!$A$1,MATCH($I$7,'ANP ESTADO'!B:B,0),0,100000,1),0),2,100000,2),2,FALSE) -> 2.437887617 | K24: =VLOOKUP($H$10,OFFSET('ANP REGIÃO'!$A$9,MATCH('Transporte EAI'!$I$7,'ANP REGIÃO'!A:A,0),1,10000,10000),MATCH('Transporte EAI'!AH24,'ANP REGIÃO'!$B$8:$G$8,0),FALSE) -> 2.248773515 | L24: 2437.887617 | M24: =ROUND(((L24/(1-$O$7-$O$8-$O$9))-L24),2) -> 673.65 | N24: 3111.537617 | O24: 2932 | P24: 547 | Q24: 768.74 | R24: 108.41 | S24: 877.15 | T24: 192.54 | U24: 1203.41 | V24: 2273.1 | W24: 1459.1 | X24: =EVEN(' CONSUMO DE MAT. B TOTAL'!$P$9*2/28)*W24/' CONSUMO DE MAT. B TOTAL'!$P$9 -> 104.2214286 | Y24: 2377.321429 | Z24: 3111.537617 | AA24: 5488.859046 | AH24: SUDESTE
B25: 5722.209197 | C25: 12 | E25: BETUNEL INDÚSTRIA E COMÉRCIO LTDA. | F25: R 16 , 82, Vila Nova Campo Grande - CEP:79.103-834 | G25: Mato Grosso do Sul | H25: CAMPO GRANDE - MS | I25: Porto Grande -AP | J25: =VLOOKUP(G25,OFFSET('ANP ESTADO'!$A$1,MATCH($I$7,'ANP ESTADO'!B:B,0)+MATCH($H$10,OFFSET('ANP ESTADO'!$A$1,MATCH($I$7,'ANP ESTADO'!B:B,0),0,100000,1),0),2,100000,2),2,FALSE) -> 2.642237768 | K25: =VLOOKUP($H$10,OFFSET('ANP REGIÃO'!$A$9,MATCH('Transporte EAI'!$I$7,'ANP REGIÃO'!A:A,0),1,10000,10000),MATCH('Transporte EAI'!AH25,'ANP REGIÃO'!$B$8:$G$8,0),FALSE) -> 2.730876265 | L25: 2642.237768 | M25: =ROUND(((L25/(1-$O$7-$O$8-$O$9))-L25),2) -> 730.11 | N25: 3372.347768 | O25: 2939 | P25: 547 | Q25: 770.51 | R25: 108.41 | S25: 878.92 | T25: 192.93 | U25: 1205.84 | V25: 2277.69 | W25: 1010.4 | X25: =EVEN(' CONSUMO DE MAT. B TOTAL'!$P$9*2/28)*W25/' CONSUMO DE MAT. B TOTAL'!$P$9 -> 72.17142857 | Y25: 2349.861429 | Z25: 3372.347768 | AA25: 5722.209197 | AH25: CENTRO-OESTE
B26: 5616.27249 | C26: 13 | E26: CENTRO OESTE ASFALTOS LTDA. | F26: RUA N, S/N.º LOTES 39/43 E LOTES 129/133 - DISTRITO INDUSTRIAL - CEP:78098-400 | G26: Mato Grosso | H26: CUIABA - MT | I26: Porto Grande -AP | J26: =VLOOKUP(G26,OFFSET('ANP ESTADO'!$A$1,MATCH($I$7,'ANP ESTADO'!B:B,0)+MATCH($H$10,OFFSET('ANP ESTADO'!$A$1,MATCH($I$7,'ANP ESTADO'!B:B,0),0,100000,1),0),2,100000,2),2,FALSE) -> 2.813416776 | K26: =VLOOKUP($H$10,OFFSET('ANP REGIÃO'!$A$9,MATCH('Transporte EAI'!$I$7,'ANP REGIÃO'!A:A,0),1,10000,10000),MATCH('Transporte EAI'!AH26,'ANP REGIÃO'!$B$8:$G$8,0),FALSE) -> 2.730876265 | L26: 2813.416776 | M26: 777.42 | N26: 3590.836776 | O26: 2480 | P26: 547 | Q26: 654.38 | R26: 108.41 | S26: 762.79 | T26: 167.44 | U26: 1046.52 | V26: 1976.75 | W26: 681.6 | X26: =EVEN(' CONSUMO DE MAT. B TOTAL'!$P$9*2/28)*W26/' CONSUMO DE MAT. B TOTAL'!$P$9 -> 48.68571429 | Y26: 2025.435714 | Z26: 3590.836776 | AA26: 5616.27249 | AH26: CENTRO-OESTE
B27: 5612.31249 | C27: 14 | E27: BETUNEL INDÚSTRIA E COMÉRCIO LTDA. | F27: RUA N ESQUINA COM RUA X, S/N QD. IND. 7 L 01/08 - DIST. IND. - CEP:78015-285 | G27: Mato Grosso | H27: CUIABA - MT | I27: Porto Grande -AP | J27: =VLOOKUP(G27,OFFSET('ANP ESTADO'!$A$1,MATCH($I$7,'ANP ESTADO'!B:B,0)+MATCH($H$10,OFFSET('ANP ESTADO'!$A$1,MATCH($I$7,'ANP ESTADO'!B:B,0),0,100000,1),0),2,100000,2),2,FALSE) -> 2.813416776 | K27: =VLOOKUP($H$10,OFFSET('ANP REGIÃO'!$A$9,MATCH('Transporte EAI'!$I$7,'ANP REGIÃO'!A:A,0),1,10000,10000),MATCH('Transporte EAI'!AH27,'ANP REGIÃO'!$B$8:$G$8,0),FALSE) -> 2.730876265 | L27: 2813.416776 | M27: 777.42 | N27: 3590.836776 | O27: 2474 | P27: 547 | Q27: 652.86 | R27: 108.41 | S27: 761.27 | T27: 167.1 | U27: 1044.42 | V27: 1972.79 | W27: 681.6 | X27: =EVEN(' CONSUMO DE MAT. B TOTAL'!$P$9*2/28)*W27/' CONSUMO DE MAT. B TOTAL'!$P$9 -> 48.68571429 | Y27: 2021.475714 | Z27: 3590.836776 | AA27: 5612.31249 | AH27: CENTRO-OESTE
B28: 5616.90249 | C28: 15 | E28: EMAM - EMULSÕES E TRANSPORTES LTDA. | F28: RODOVIA DOS IMIGRANTES, S/Nº KM 8,6 - - CEP:60035-351 | G28: Mato Grosso | H28: VARZEA GRANDE - MT | I28: Porto Grande -AP | J28: =VLOOKUP(G28,OFFSET('ANP ESTADO'!$A$1,MATCH($I$7,'ANP ESTADO'!B:B,0)+MATCH($H$10,OFFSET('ANP ESTADO'!$A$1,MATCH($I$7,'ANP ESTADO'!B:B,0),0,100000,1),0),2,100000,2),2,FALSE) -> 2.813416776 | K28: =VLOOKUP($H$10,OFFSET('ANP REGIÃO'!$A$9,MATCH('Transporte EAI'!$I$7,'ANP REGIÃO'!A:A,0),1,10000,10000),MATCH('Transporte EAI'!AH28,'ANP REGIÃO'!$B$8:$G$8,0),FALSE) -> 2.730876265 | L28: 2813.416776 | M28: 777.42 | N28: 3590.836776 | O28: 2481 | P28: 547 | Q28: 654.63 | R28: 108.41 | S28: 763.04 | T28: 167.49 | U28: 1046.85 | V28: 1977.38 | W28: 681.6 | X28: =EVEN(' CONSUMO DE MAT. B TOTAL'!$P$9*2/28)*W28/' CONSUMO DE MAT. B TOTAL'!$P$9 -> 48.68571429 | Y28: 2026.065714 | Z28: 3590.836776 | AA28: 5616.90249 | AC28: 5616.90249 | AD28: 2026.065714 | AE28: 3590.836776 | AH28: CENTRO-OESTE
B29: 5554.209046 | C29: 16 | E29: VIAPOL LTDA. | F29: VITO ARDITO, 6401 KM 118,5 - JARDIM CAMPO GRANDE - CEP:12282-535 | G29: São Paulo | H29: CACAPAVA - SP | I29: Porto Grande -AP | J29: =VLOOKUP(G29,OFFSET('ANP ESTADO'!$A$1,MATCH($I$7,'ANP ESTADO'!B:B,0)+MATCH($H$10,OFFSET('ANP ESTADO'!$A$1,MATCH($I$7,'ANP ESTADO'!B:B,0),0,100000,1),0),2,100000,2),2,FALSE) -> 2.437887617 | K29: =VLOOKUP($H$10,OFFSET('ANP REGIÃO'!$A$9,MATCH('Transporte EAI'!$I$7,'ANP REGIÃO'!A:A,0),1,10000,10000),MATCH('Transporte EAI'!AH29,'ANP REGIÃO'!$B$8:$G$8,0),FALSE) -> 2.248773515 | L29: 2437.887617 | M29: 673.65 | N29: 3111.537617 | O29: 3023 | P29: 547 | Q29: 791.76 | R29: 108.41 | S29: 900.17 | T29: 197.59 | U29: 1234.99 | V29: 2332.75 | W29: 1538.9 | X29: =EVEN(' CONSUMO DE MAT. B TOTAL'!$P$9*2/28)*W29/' CONSUMO DE MAT. B TOTAL'!$P$9 -> 109.9214286 | Y29: 2442.671429 | Z29: 3111.537617 | AA29: 5554.209046 | AC29: 5554.209046 | AD29: 2442.671429 | AE29: 3111.537617 | AH29: SUDESTE
B30: 5422.886372 | C30: 17 | E30: STRATURA ASFALTOS S/A | F30: RUA LUIS DE CAMÕES, 26 - CAMPOS ELÍSEOS - CEP:25225-030 | G30: Rio de Janeiro | H30: DUQUE DE CAXIAS - RJ | I30: Porto Grande -AP | J30: =VLOOKUP(G30,OFFSET('ANP ESTADO'!$A$1,MATCH($I$7,'ANP ESTADO'!B:B,0)+MATCH($H$10,OFFSET('ANP ESTADO'!$A$1,MATCH($I$7,'ANP ESTADO'!B:B,0),0,100000,1),0),2,100000,2),2,FALSE) -> - | K30: =VLOOKUP($H$10,OFFSET('ANP REGIÃO'!$A$9,MATCH('Transporte EAI'!$I$7,'ANP REGIÃO'!A:A,0),1,10000,10000),MATCH('Transporte EAI'!AH30,'ANP REGIÃO'!$B$8:$G$8,0),FALSE) -> 2.248773515 | L30: 2248.773515 | M30: 621.39 | N30: 2870.163515 | O30: 3239 | P30: 547 | Q30: 846.41 | R30: 108.41 | S30: 954.82 | T30: 209.59 | U30: 1309.97 | V30: 2474.38 | W30: 1096.8 | X30: =EVEN(' CONSUMO DE MAT. B TOTAL'!$P$9*2/28)*W30/' CONSUMO DE MAT. B TOTAL'!$P$9 -> 78.34285714 | Y30: 2552.722857 | Z30: 2870.163515 | AA30: 5422.886372 | AC30: 5422.886372 | AD30: =Y30 -> 2552.722857 | AE30: 2870.163515 | AH30: SUDESTE
B31: 5432.066372 | C31: 18 | E31: PROBITEC - PRODUTOS BETUMINOSOS E TECNOLOGIA DE APLICAÇÃO LTDA. | F31: AVENIDA CANAL DA PAVUNA, 620 - PAVUNA - CEP:21535-630 | G31: Rio de Janeiro | H31: RIO DE JANEIRO - RJ | I31: Porto Grande -AP | J31: =VLOOKUP(G31,OFFSET('ANP ESTADO'!$A$1,MATCH($I$7,'ANP ESTADO'!B:B,0)+MATCH($H$10,OFFSET('ANP ESTADO'!$A$1,MATCH($I$7,'ANP ESTADO'!B:B,0),0,100000,1),0),2,100000,2),2,FALSE) -> - | K31: =VLOOKUP($H$10,OFFSET('ANP REGIÃO'!$A$9,MATCH('Transporte EAI'!$I$7,'ANP REGIÃO'!A:A,0),1,10000,10000),MATCH('Transporte EAI'!AH31,'ANP REGIÃO'!$B$8:$G$8,0),FALSE) -> 2.248773515 | L31: 2248.773515 | M31: 621.39 | N31: 2870.163515 | O31: 3253 | P31: 547 | Q31: 849.95 | R31: 108.41 | S31: 958.36 | T31: 210.37 | U31: 1314.83 | V31: 2483.56 | W31: 1096.8 | X31: =EVEN(' CONSUMO DE MAT. B TOTAL'!$P$9*2/28)*W31/' CONSUMO DE MAT. B TOTAL'!$P$9 -> 78.34285714 | Y31: 2561.902857 | Z31: 2870.163515 | AA31: 5432.066372 | AC31: 5432.066372 | AD31: 2561.902857 | AE31: 2870.163515 | AH31: SUDESTE
B32: 5830.371159 | C32: 19 | E32: CASA DO ASFALTO DISTRIBUIDORA, INDÚSTRIA E COMÉRCIO DE ASFALTO LTDA. | F32: BR 376, PARQUE INDUSTRIAL, S/N LOTE 6/7/7-A-3-1 - GL.PATR.MARIALVA - CEP:86990-000 | G32: Paraná | H32: MARIALVA - PR | I32: Porto Grande -AP | J32: =VLOOKUP(G32,OFFSET('ANP ESTADO'!$A$1,MATCH($I$7,'ANP ESTADO'!B:B,0)+MATCH($H$10,OFFSET('ANP ESTADO'!$A$1,MATCH($I$7,'ANP ESTADO'!B:B,0),0,100000,1),0),2,100000,2),2,FALSE) -> 2.677074017 | K32: =VLOOKUP($H$10,OFFSET('ANP REGIÃO'!$A$9,MATCH('Transporte EAI'!$I$7,'ANP REGIÃO'!A:A,0),1,10000,10000),MATCH('Transporte EAI'!AH32,'ANP REGIÃO'!$B$8:$G$8,0),FALSE) -> 2.671186452 | L32: 2677.074017 | M32: 739.74 | N32: 3416.814017 | O32: 3015 | P32: 547 | Q32: 789.73 | R32: 108.41 | S32: 898.14 | T32: 197.15 | U32: 1232.21 | V32: 2327.5 | W32: 1204.8 | X32: =EVEN(' CONSUMO DE MAT. B TOTAL'!$P$9*2/28)*W32/' CONSUMO DE MAT. B TOTAL'!$P$9 -> 86.05714286 | Y32: 2413.557143 | Z32: 3416.814017 | AA32: 5830.371159 | AC32: 5830.371159 | AD32: 2413.557143 | AE32: 3416.814017 | AH32: SUL
B33: 5934.846874 | C33: 20 | E33: PETROBRAS DISTRIBUIDORA S.A. | F33: RUA MAQUINISTA ELEODORO JACINTO, 100 - OFICINAS - CEP:84045-170 | G33: Paraná | H33: PONTA GROSSA - PR | I33: Porto Grande -AP | J33: =VLOOKUP(G33,OFFSET('ANP ESTADO'!$A$1,MATCH($I$7,'ANP ESTADO'!B:B,0)+MATCH($H$10,OFFSET('ANP ESTADO'!$A$1,MATCH($I$7,'ANP ESTADO'!B:B,0),0,100000,1),0),2,100000,2),2,FALSE) -> 2.677074017 | K33: =VLOOKUP($H$10,OFFSET('ANP REGIÃO'!$A$9,MATCH('Transporte EAI'!$I$7,'ANP REGIÃO'!A:A,0),1,10000,10000),MATCH('Transporte EAI'!AH33,'ANP REGIÃO'!$B$8:$G$8,0),FALSE) -> 2.671186452 | L33: 2677.074017 | M33: 739.74 | N33: 3416.814017 | O33: 3159 | P33: 547 | Q33: 826.17 | R33: 108.41 | S33: 934.58 | T33: 205.15 | U33: 1282.21 | V33: 2421.94 | W33: 1345.3 | X33: =EVEN(' CONSUMO DE MAT. B TOTAL'!$P$9*2/28)*W33/' CONSUMO DE MAT. B TOTAL'!$P$9 -> 96.09285714 | Y33: 2518.032857 | Z33: 3416.814017 | AA33: 5934.846874 | AC33: 5934.846874 | AD33: 2518.032857 | AE33: 3416.814017 | AH33: SUL
D43: Acre
D44: Alagoas
D45: Amapá
D46: Amazonas
D47: Bahia
D48: Ceará
D49: Distrito Federal
D50: Espírito Santo
D51: Goiás
D52: Maranhão
D53: Mato Grosso
D54: Mato Grosso do Sul
D55: Minas Gerais
D56: Pará
D57: Paraíba
D58: Paraná
D59: Pernambuco
D60: Piauí
D61: Rio de Janeiro
D62: Rio Grande do Norte
D63: Rio Grande do Sul
D64: Rondônia
D65: Roraima
D66: Santa Catarina
D67: São Paulo
D68: Sergipe
D69: Tocantins
D73: ASFALTOS DILUÍDOS CM-30
D74: ASFALTOS DILUÍDOS CM-70
D75: ASFALTOS DILUÍDOS CR-250
D76: ASFALTOS DILUÍDOS CR-70
D77: CAP MODIFICADO POR BORRACHA DE PNEU AB22
D78: CAP MODIFICADO POR BORRACHA DE PNEU AB8
D79: CAP MODIFICADO POR POLÍMERO 55-75-E
D80: CAP MODIFICADO POR POLÍMERO 60-85-E
D81: CAP MODIFICADO POR POLÍMERO 65-90-E
D82: CIMENTOS ASFÁLTICOS CAP-150-200
D83: CIMENTOS ASFÁLTICOS CAP-30-45
D84: CIMENTOS ASFÁLTICOS CAP-50-70
D85: CIMENTOS ASFÁLTICOS CAP-85-100
D86: EMULSÃO ASFÁLTICA CATIÔNICA DE RUPTURA CONTROLADA PARA SERVIÇO DE LAMA ASFÁLTICA
D87: EMULSÃO ASFÁLTICA DE RUPTURA LENTA CATIÔNICA PARA SERVIÇO DE LAMA ASFÁLTICA
D88: EMULSÃO ASFÁLTICA DE RUPTURA LENTA DE CARGA NEUTRA PARA SERVIÇO DE LAMA ASFÁLTICA
D89: EMULSÃO ASFÁLTICA PARA SERVIÇO DE IMPRIMAÇÃO
D90: EMULSÕES ASF. MOD. POR POLÍMEROS RC1C-E
D91: EMULSÕES ASF. MOD. POR POLÍMEROS RL1C-E
D92: EMULSÕES ASF. MOD. POR POLÍMEROS RM1C-E
D93: EMULSÕES ASF. MOD. POR POLÍMEROS RR1C-E
D94: EMULSÕES ASF. MOD. POR POLÍMEROS RR2C-E
D95: EMULSÕES ASFÁLTICAS RL-1C
D96: EMULSÕES ASFÁLTICAS RM-1C
D97: EMULSÕES ASFÁLTICAS RM-2C
D98: EMULSÕES ASFÁLTICAS RR-1C
D99: EMULSÕES ASFÁLTICAS RR-2C

Sheet Transporte RR-2C
C2: MEMÓRIA DE CÁLCULO
C7: REAJUSTE | F7: TIPOLOGIA DO MATERIAL | I7: EMULSÕES ASFÁLTICAS RR-2C | M7: IMPOSTOS | N7: COFINS | O7: 0.0065 | P7: 0.0065
G8: ÍNDICE DE PAVIMENTAÇÃO DNIT | H8: 2014-07-01 | I8: ÍNDICE INICIAL | J8: 270.237 | N8: PIS | O8: 0.03 | P8: 0.03 | T8: LEGENDA | AC8: As empresas tributadas pelo Lucro Presumido pagam 0,65% de PIS e 3% de COFINS
H9: 2024-07-01 | I9: ÍNDICE FINAL | J9: 574.257 | N9: ICMS | O9: 0.18 | P9: 0.18 | Q9: =1-(O9/1) -> 0.82 | R9: =1-(P9/1) -> 0.82 | S9: =1-(Q9/1) -> 0.18 | T9: ENTRADA DE DADOS | AC9: As empresas tributadas pelo Lucro Real pagam 1,65% de PIS e 7,60% de COFINS
G10: Data ANP | H10: 2024-07-01
C11: DATA-BASE | D11: PRODUTOS | E11: LOCALIDADES | J11: CUSTO ANP (R$/Kg) | L11: CUSTO ANP | M11: IMPOSTOS DO PRODUTO | N11: CUSTO DO PRODUTO COM IMPOSTOS | O11: DMT's | P11: DMT'S FLUVIAL | Q11: CUSTO DO TRANSPORTE RODOVIA PAVIMENTADA | R11: CUSTO DO TRANSPORTE FLUVIAL | S11: CUSTO DO TRANSPORTE TOTAL | T11: ICMS | U11: ATUALIZAÇÃO DO CUSTO DE TRANSPORTE | V11: CUSTO DO TRANSPORTE RODOVIA PAVIMENTADA COM IMPOSTOS E ATUALIZAÇÃO MONETÁRIA | W11: PEDÁGIO | Y11: TOTAL TRANSPORTE | Z11: AQUISIÇÃO DO PRODUTO | AA11: TOTAL GERAL ( TRANSP + AQUISIÇÃO) | AC11: 1 | AD11: 2 | AE11: 3
C12: =H9 -> 2024-07-01 | E12: REFINARIAS | F12: ENDEREÇO | G12: ESTADO | H12: CIDADE | I12: DESTINO | J12: ESTADO | K12: REGIÃO | L12: R$/t | M12: R$/t | N12: R$/t | O12: KM | P12: KM | Q12: R$/t | R12: R$/t | S12: R$/t | T12: R$/t | U12: R$/t | V12: R$/t | W12: CUSTO | X12: R$/t | Y12: R$/t | Z12: R$/t | AA12: R$/t | AC12: TOTAL GERAL ( TRANSP + AQUISIÇÃO) | AD12: TOTAL TRANSPORTE | AE12: AQUISIÇÃO DO PRODUTO
B13: =AA13 -> 5876.714625 | C13: 1 | D13: =I7 -> EMULSÕES ASFÁLTICAS RR-2C | E13: 'CENTRO OESTE ASFALTOS LTDA. | F13: SETOR DE INFLAMÁVEIS, S/N TRECHO 02 - LOTE 1.100 - GUARÁ - CEP:71225-000 | G13: Distrito Federal | H13: BRASÍLIA - DF | I13: ='Transporte EAI'!I13 -> Porto Grande -AP | J13: =VLOOKUP(G13,OFFSET('ANP ESTADO'!$A$1,MATCH($I$7,'ANP ESTADO'!B:B,0)+MATCH($H$10,OFFSET('ANP ESTADO'!$A$1,MATCH($I$7,'ANP ESTADO'!B:B,0),0,100000,1),0),2,100000,2),2,FALSE) -> - | K13: =VLOOKUP($H$10,OFFSET('ANP REGIÃO'!$A$9,MATCH('Transporte RR-2C'!$I$7,'ANP REGIÃO'!A:A,0),1,10000,10000),MATCH('Transporte RR-2C'!AH13,'ANP REGIÃO'!$B$8:$G$8,0),FALSE) -> 3.252504625 | L13: =IF(AND(J13="-",K13="-"),"",IF(AND(J13<>0,K13="-"),J13*1000,IF(AND(J13="-",K13<>0),K13*1000,IF(AND(J13<>0,K13<>0),J13*1000,"")))) -> 3252.504625 | M13: =ROUND(((L13/(1-$O$7-$O$8-$O$9))-L13),2) -> 898.75 | N13: =L13+M13 -> 4151.254625 | O13: ='Transporte EAI'!O13 -> 2051 | P13: ='Transporte EAI'!P13 -> 547 | Q13: =ROUND((26.939+0.253*O13),2) -> 545.84 | R13: =ROUND((20.7256+0.1603*P13),2) -> 108.41 | S13: =Q13+R13 -> 654.25 | T13: =TRUNC(S13*($O$9/(1-$O$9)),2) -> 143.61 | U13: =TRUNC(IF($J$8="","",(($J$9-$J$8)/$J$8)*(S13+T13)),2) -> 897.6 | V13: =S13+T13+U13 -> 1695.46 | W13: ='Transporte EAI'!W13 -> 420 | X13: =EVEN((' CONSUMO DE MAT. B TOTAL'!$P$13+' CONSUMO DE MAT. B TOTAL'!P15+' CONSUMO DE MAT. B TOTAL'!P11)*2/28)*W13/(' CONSUMO DE MAT. B TOTAL'!$P$13+' CONSUMO DE MAT. B TOTAL'!P15+' CONSUMO DE MAT. B TOTAL'!P11) -> 30 | Y13: =IF(AND(Q13="",T13=""),"",V13+X13) -> 1725.46 | Z13: =IF(OR(L13="",M13=""),"",L13+M13) -> 4151.254625 | AA13: =IF(OR(Y13="",Z13=""),"",Y13+Z13) -> 5876.714625 | AC13: =AA13 -> 5876.714625 | AD13: =Y13 -> 1725.46 | AE13: =Z13 -> 4151.254625 | AH13: =IF(OR(G13=$D$59,G13=$D$60,G13=$D$62,G13=$D$68,G13=$D$52,G13=$D$48,G13=$D$44,G13=$D$57,G13=$D$47),"NORDESTE",IF(OR(G13=$D$43,G13=$D$45,G13=$D$46,G13=$D$56,G13=$D$64,G13=$D$65,G13=$D$69),"NORTE",IF(OR(G13=$D$49,G13=$D$51,G13=$D$53,G13=$D$54),"CENTRO-OESTE",IF(OR(G13=$D$67,G13=$D$61,G13=$D$55,G13=$D$50),"SUDESTE",IF(OR(G13=$D$66,G13=$D$58,G13=$D$63),"SUL",""))))) -> CENTRO-OESTE
B14: =AA14 -> 6624.410389 | C14: 2 | E14: ISAC SAABA | F14: Rua Rio Quixito, 1, Vila Buriti - Distrito Industrial - Manaus - AM CEP: 69072-070 | G14: Amazonas | H14: MANAUS - AM | I14: ='Transporte EAI'!I14 -> Porto Grande -AP | J14: =VLOOKUP(G14,OFFSET('ANP ESTADO'!$A$1,MATCH($I$7,'ANP ESTADO'!B:B,0)+MATCH($H$10,OFFSET('ANP ESTADO'!$A$1,MATCH($I$7,'ANP ESTADO'!B:B,0),0,100000,1),0),2,100000,2),2,FALSE) -> 3.609710389 | K14: =VLOOKUP($H$10,OFFSET('ANP REGIÃO'!$A$9,MATCH('Transporte RR-2C'!$I$7,'ANP REGIÃO'!A:A,0),1,10000,10000),MATCH('Transporte RR-2C'!AH14,'ANP REGIÃO'!$B$8:$G$8,0),FALSE) -> 3.173814628 | L14: =IF(AND(J14="-",K14="-"),"",IF(AND(J14<>0,K14="-"),J14*1000,IF(AND(J14="-",K14<>0),K14*1000,IF(AND(J14<>0,K14<>0),J14*1000,"")))) -> 3609.710389 | M14: =ROUND(((L14/(1-$O$7-$O$8-$O$9))-L14),2) -> 997.45 | N14: =L14+M14 -> 4607.160389 | O14: ='Transporte EAI'!O14 -> 2882 | P14: ='Transporte EAI'!P14 -> 10 | Q14: =ROUND((26.939+0.253*O14),2) -> 756.09 | R14: =ROUND((20.7256+0.1603*P14),2) -> 22.33 | S14: =Q14+R14 -> 778.42 | T14: =TRUNC(S14*($O$9/(1-$O$9)),2) -> 170.87 | U14: =TRUNC(IF($J$8="","",(($J$9-$J$8)/$J$8)*(S14+T14)),2) -> 1067.96 | V14: =S14+T14+U14 -> 2017.25 | W14: ='Transporte EAI'!W14 -> 0 | X14: =EVEN((' CONSUMO DE MAT. B TOTAL'!$P$13+' CONSUMO DE MAT. B TOTAL'!P16+' CONSUMO DE MAT. B TOTAL'!P12)*2/28)*W14/(' CONSUMO DE MAT. B TOTAL'!$P$13+' CONSUMO DE MAT. B TOTAL'!P16+' CONSUMO DE MAT. B TOTAL'!P12) -> 0 | Y14: 2017.25 | Z14: 4607.160389 | AA14: =IF(OR(Y14="",Z14=""),"",Y14+Z14) -> 6624.410389 | AC14: =AA14 -> 6624.410389 | AD14: =Y14 -> 2017.25 | AE14: 4607.160389 | AH14: =IF(OR(G14=$D$59,G14=$D$60,G14=$D$62,G14=$D$68,G14=$D$52,G14=$D$48,G14=$D$44,G14=$D$57,G14=$D$47),"NORDESTE",IF(OR(G14=$D$43,G14=$D$45,G14=$D$46,G14=$D$56,G14=$D$64,G14=$D$65,G14=$D$69),"NORTE",IF(OR(G14=$D$49,G14=$D$51,G14=$D$53,G14=$D$54),"CENTRO-OESTE",IF(OR(G14=$D$67,G14=$D$61,G14=$D$55,G14=$D$50),"SUDESTE",IF(OR(G14=$D$66,G14=$D$58,G14=$D$63),"SUL",""))))) -> NORTE
B15: 5392.245321 | C15: 2 | E15: STRATURA ASFALTOS S/A | F15: AVENIDA PRESIDENTE WILSON, 08 - JUNDIAÍ - CEP:75115-100 | G15: Goiás | H15: ANÁPOLIS - GO | I15: ='Transporte EAI'!I15 -> Porto Grande -AP | J15: =VLOOKUP(G15,OFFSET('ANP ESTADO'!$A$1,MATCH($I$7,'ANP ESTADO'!B:B,0)+MATCH($H$10,OFFSET('ANP ESTADO'!$A$1,MATCH($I$7,'ANP ESTADO'!B:B,0),0,100000,1),0),2,100000,2),2,FALSE) -> 2.887972464 | K15: =VLOOKUP($H$10,OFFSET('ANP REGIÃO'!$A$9,MATCH('Transporte RR-2C'!$I$7,'ANP REGIÃO'!A:A,0),1,10000,10000),MATCH('Transporte RR-2C'!AH15,'ANP REGIÃO'!$B$8:$G$8,0),FALSE) -> 3.252504625 | L15: 2887.972464 | M15: 798.02 | N15: 3685.992464 | O15: ='Transporte EAI'!O15 -> 2012 | P15: ='Transporte EAI'!P15 -> 547 | Q15: 535.98 | R15: 108.41 | S15: 644.39 | T15: 141.45 | U15: 884.07 | V15: 1669.91 | W15: ='Transporte EAI'!W15 -> 508.8 | X15: =EVEN((' CONSUMO DE MAT. B TOTAL'!$P$13+' CONSUMO DE MAT. B TOTAL'!P17+' CONSUMO DE MAT. B TOTAL'!P13)*2/28)*W15/(' CONSUMO DE MAT. B TOTAL'!$P$13+' CONSUMO DE MAT. B TOTAL'!P17+' CONSUMO DE MAT. B TOTAL'!P13) -> 36.34285714 | Y15: 1706.252857 | Z15: 3685.992464 | AA15: 5392.245321 | AC15: 5392.245321 | AD15: 1706.252857 | AE15: 3685.992464 | AH15: CENTRO-OESTE
B16: 5425.675321 | C16: 3 | E16: DISTRIBUIDORA BRASILEIRA DE ASFALTO SA - DISBRAL | F16: VIA PRIMARIA 8, S/N QD-18, MODS. 24/47 - DAIAG - CEP:74980-970 | G16: Goiás | H16: APARECIDA DE GOIANIA - GO | I16: ='Transporte EAI'!I16 -> Porto Grande -AP | J16: =VLOOKUP(G16,OFFSET('ANP ESTADO'!$A$1,MATCH($I$7,'ANP ESTADO'!B:B,0)+MATCH($H$10,OFFSET('ANP ESTADO'!$A$1,MATCH($I$7,'ANP ESTADO'!B:B,0),0,100000,1),0),2,100000,2),2,FALSE) -> 2.887972464 | K16: =VLOOKUP($H$10,OFFSET('ANP REGIÃO'!$A$9,MATCH('Transporte RR-2C'!$I$7,'ANP REGIÃO'!A:A,0),1,10000,10000),MATCH('Transporte RR-2C'!AH16,'ANP REGIÃO'!$B$8:$G$8,0),FALSE) -> 3.252504625 | L16: 2887.972464 | M16: 798.02 | N16: 3685.992464 | O16: ='Transporte EAI'!O16 -> 2063 | P16: ='Transporte EAI'!P16 -> 547 | Q16: 548.88 | R16: 108.41 | S16: 657.29 | T16: 144.28 | U16: 901.77 | V16: 1703.34 | W16: ='Transporte EAI'!W16 -> 508.8 | X16: =EVEN((' CONSUMO DE MAT. B TOTAL'!$P$13+' CONSUMO DE MAT. B TOTAL'!P18+' CONSUMO DE MAT. B TOTAL'!P14)*2/28)*W16/(' CONSUMO DE MAT. B TOTAL'!$P$13+' CONSUMO DE MAT. B TOTAL'!P18+' CONSUMO DE MAT. B TOTAL'!P14) -> 36.34285714 | Y16: 1739.682857 | Z16: 3685.992464 | AA16: 5425.675321 | AC16: 5425.675321 | AD16: 1739.682857 | AE16: 3685.992464 | AH16: CENTRO-OESTE
A17: 2403 | B17: 5406.655321 | C17: 4 | E17: INDÚSTRIA NACIONAL DE ASFALTOS LTDA. | F17: VIA PRIMEIRA E SEGUNDA 3, S/N.º LOTES 01 A 10 - DISTRITO AGROINDUSTRIAL - CEP:75370-000 | G17: Goiás | H17: GOIANIRA - GO | I17: ='Transporte EAI'!I17 -> Porto Grande -AP | J17: =VLOOKUP(G17,OFFSET('ANP ESTADO'!$A$1,MATCH($I$7,'ANP ESTADO'!B:B,0)+MATCH($H$10,OFFSET('ANP ESTADO'!$A$1,MATCH($I$7,'ANP ESTADO'!B:B,0),0,100000,1),0),2,100000,2),2,FALSE) -> 2.887972464 | K17: =VLOOKUP($H$10,OFFSET('ANP REGIÃO'!$A$9,MATCH('Transporte RR-2C'!$I$7,'ANP REGIÃO'!A:A,0),1,10000,10000),MATCH('Transporte RR-2C'!AH17,'ANP REGIÃO'!$B$8:$G$8,0),FALSE) -> 3.252504625 | L17: 2887.972464 | M17: 798.02 | N17: 3685.992464 | O17: ='Transporte EAI'!O17 -> 2034 | P17: ='Transporte EAI'!P17 -> 547 | Q17: 541.54 | R17: 108.41 | S17: 649.95 | T17: 142.67 | U17: 891.7 | V17: 1684.32 | W17: ='Transporte EAI'!W17 -> 508.8 | X17: =EVEN((' CONSUMO DE MAT. B TOTAL'!$P$13+' CONSUMO DE MAT. B TOTAL'!P19+' CONSUMO DE MAT. B TOTAL'!P15)*2/28)*W17/(' CONSUMO DE MAT. B TOTAL'!$P$13+' CONSUMO DE MAT. B TOTAL'!P19+' CONSUMO DE MAT. B TOTAL'!P15) -> 36.34285714 | Y17: 1720.662857 | Z17: 3685.992464 | AA17: 5406.655321 | AC17: 5406.655321 | AD17: 1720.662857 | AE17: 3685.992464 | AH17: CENTRO-OESTE
B18: 5471.30672 | C18: 5 | E18: STRATURA ASFALTOS S/A | F18: RUA VICTOR RODRIGUES RESENDE, 333 - DISTRITO IND. DE UBERLÂNDIA - CEP:38405-440 | G18: Minas Gerais | H18: UBERLANDIA - MG | I18: ='Transporte EAI'!I18 -> Porto Grande -AP | J18: =VLOOKUP(G18,OFFSET('ANP ESTADO'!$A$1,MATCH($I$7,'ANP ESTADO'!B:B,0)+MATCH($H$10,OFFSET('ANP ESTADO'!$A$1,MATCH($I$7,'ANP ESTADO'!B:B,0),0,100000,1),0),2,100000,2),2,FALSE) -> 2.749811006 | K18: =VLOOKUP($H$10,OFFSET('ANP REGIÃO'!$A$9,MATCH('Transporte RR-2C'!$I$7,'ANP REGIÃO'!A:A,0),1,10000,10000),MATCH('Transporte RR-2C'!AH18,'ANP REGIÃO'!$B$8:$G$8,0),FALSE) -> 2.711208149 | L18: 2749.811006 | M18: 759.84 | N18: 3509.651006 | O18: ='Transporte EAI'!O18 -> 2380 | P18: ='Transporte EAI'!P18 -> 547 | Q18: 629.08 | R18: 108.41 | S18: 737.49 | T18: 161.88 | U18: 1011.8 | V18: 1911.17 | W18: ='Transporte EAI'!W18 -> 706.8 | X18: =EVEN((' CONSUMO DE MAT. B TOTAL'!$P$13+' CONSUMO DE MAT. B TOTAL'!P20+' CONSUMO DE MAT. B TOTAL'!P16)*2/28)*W18/(' CONSUMO DE MAT. B TOTAL'!$P$13+' CONSUMO DE MAT. B TOTAL'!P20+' CONSUMO DE MAT. B TOTAL'!P16) -> 50.48571429 | Y18: 1961.655714 | Z18: 3509.651006 | AA18: 5471.30672 | AC18: 5471.30672 | AD18: 1961.655714 | AE18: 3509.651006 | AH18: SUDESTE
B19: 5470.66672 | C19: 6 | E19: BETUNEL INDÚSTRIA E COMÉRCIO LTDA. | F19: RUA VICTOR RODRIGUES DE REZENDE, 185 - DISTRITO INDUSTRIAL - CEP:38402-334 | G19: Minas Gerais | H19: UBERLANDIA - MG | I19: ='Transporte EAI'!I19 -> Porto Grande -AP | J19: =VLOOKUP(G19,OFFSET('ANP ESTADO'!$A$1,MATCH($I$7,'ANP ESTADO'!B:B,0)+MATCH($H$10,OFFSET('ANP ESTADO'!$A$1,MATCH($I$7,'ANP ESTADO'!B:B,0),0,100000,1),0),2,100000,2),2,FALSE) -> 2.749811006 | K19: =VLOOKUP($H$10,OFFSET('ANP REGIÃO'!$A$9,MATCH('Transporte RR-2C'!$I$7,'ANP REGIÃO'!A:A,0),1,10000,10000),MATCH('Transporte RR-2C'!AH19,'ANP REGIÃO'!$B$8:$G$8,0),FALSE) -> 2.711208149 | L19: 2749.811006 | M19: 759.84 | N19: 3509.651006 | O19: ='Transporte EAI'!O19 -> 2379 | P19: ='Transporte EAI'!P19 -> 547 | Q19: 628.83 | R19: 108.41 | S19: 737.24 | T19: 161.83 | U19: 1011.46 | V19: 1910.53 | W19: ='Transporte EAI'!W19 -> 706.8 | X19: =EVEN((' CONSUMO DE MAT. B TOTAL'!$P$13+' CONSUMO DE MAT. B TOTAL'!P21+' CONSUMO DE MAT. B TOTAL'!P17)*2/28)*W19/(' CONSUMO DE MAT. B TOTAL'!$P$13+' CONSUMO DE MAT. B TOTAL'!P21+' CONSUMO DE MAT. B TOTAL'!P17) -> 50.48571429 | Y19: 1961.015714 | Z19: 3509.651006 | AA19: 5470.66672 | AC19: 5470.66672 | AD19: 1961.015714 | AE19: 3509.651006 | AH19: SUDESTE
B20: 6155.800598 | C20: 7 | E20: ARAPETRO DISTRIBUIDORA DE PETRÓLEO LTDA. | F20: RUA 04, S/N° LOTES 17 A 20. - DISTRITO INDUSTRIAL 1/8 - CEP:78600-000 | G20: Mato grosso | H20: BARRA DO GARCAS - MT | I20: ='Transporte EAI'!I20 -> Porto Grande -AP | J20: =VLOOKUP(G20,OFFSET('ANP ESTADO'!$A$1,MATCH($I$7,'ANP ESTADO'!B:B,0)+MATCH($H$10,OFFSET('ANP ESTADO'!$A$1,MATCH($I$7,'ANP ESTADO'!B:B,0),0,100000,1),0),2,100000,2),2,FALSE) -> 3.397580598 | K20: =VLOOKUP($H$10,OFFSET('ANP REGIÃO'!$A$9,MATCH('Transporte RR-2C'!$I$7,'ANP REGIÃO'!A:A,0),1,10000,10000),MATCH('Transporte RR-2C'!AH20,'ANP REGIÃO'!$B$8:$G$8,0),FALSE) -> 3.252504625 | L20: =IF(AND(J20="-",K20="-"),"",IF(AND(J20<>0,K20="-"),J20*1000,IF(AND(J20="-",K20<>0),K20*1000,IF(AND(J20<>0,K20<>0),J20*1000,"")))) -> 3397.580598 | M20: =ROUND(((L20/(1-$O$7-$O$8-$O$9))-L20),2) -> 938.83 | N20: 4336.410598 | O20: ='Transporte EAI'!O20 -> 2240 | P20: ='Transporte EAI'!P20 -> 547 | Q20: 593.66 | R20: 108.41 | S20: 702.07 | T20: 154.11 | U20: 963.21 | V20: 1819.39 | W20: ='Transporte EAI'!W20 -> 0 | X20: =EVEN((' CONSUMO DE MAT. B TOTAL'!$P$13+' CONSUMO DE MAT. B TOTAL'!P22+' CONSUMO DE MAT. B TOTAL'!P18)*2/28)*W20/(' CONSUMO DE MAT. B TOTAL'!$P$13+' CONSUMO DE MAT. B TOTAL'!P22+' CONSUMO DE MAT. B TOTAL'!P18) -> 0 | Y20: 1819.39 | Z20: 4336.410598 | AA20: 6155.800598 | AH20: CENTRO-OESTE
B21: 5772.701006 | C21: 8 | E21: DISTRIBUIDORA BRASILEIRA DE ASFALTO SA - DISBRAL | F21: SÃO JUDAS TADEU, 288 - DISTRITO INDUSTRIAL - CEP:32450-000 | G21: Minas Gerais | H21: SARZEDO - MG | I21: ='Transporte EAI'!I21 -> Porto Grande -AP | J21: =VLOOKUP(G21,OFFSET('ANP ESTADO'!$A$1,MATCH($I$7,'ANP ESTADO'!B:B,0)+MATCH($H$10,OFFSET('ANP ESTADO'!$A$1,MATCH($I$7,'ANP ESTADO'!B:B,0),0,100000,1),0),2,100000,2),2,FALSE) -> 2.749811006 | K21: =VLOOKUP($H$10,OFFSET('ANP REGIÃO'!$A$9,MATCH('Transporte RR-2C'!$I$7,'ANP REGIÃO'!A:A,0),1,10000,10000),MATCH('Transporte RR-2C'!AH21,'ANP REGIÃO'!$B$8:$G$8,0),FALSE) -> 2.711208149 | L21: 2749.811006 | M21: 759.84 | N21: 3509.651006 | O21: ='Transporte EAI'!O21 -> 2838 | P21: ='Transporte EAI'!P21 -> 547 | Q21: 744.95 | R21: 108.41 | S21: 853.36 | T21: 187.32 | U21: 1170.77 | V21: 2211.45 | W21: ='Transporte EAI'!W21 -> 722.4 | X21: =EVEN((' CONSUMO DE MAT. B TOTAL'!$P$13+' CONSUMO DE MAT. B TOTAL'!P23+' CONSUMO DE MAT. B TOTAL'!P19)*2/28)*W21/(' CONSUMO DE MAT. B TOTAL'!$P$13+' CONSUMO DE MAT. B TOTAL'!P23+' CONSUMO DE MAT. B TOTAL'!P19) -> 51.6 | Y21: 2263.05 | Z21: 3509.651006 | AA21: 5772.701006 | AH21: SUDESTE
B22: 5244.724628 | C22: 9 | E22: 'INDÚSTRIA NACIONAL DE ASFALTOS LTDA. | F22: INDÚSTRIA NACIONAL DE ASFALTOS LTDA - CEP:77053-080 | G22: Tocantins | H22: PALMAS - TO | I22: ='Transporte EAI'!I22 -> Porto Grande -AP | J22: =VLOOKUP(G22,OFFSET('ANP ESTADO'!$A$1,MATCH($I$7,'ANP ESTADO'!B:B,0)+MATCH($H$10,OFFSET('ANP ESTADO'!$A$1,MATCH($I$7,'ANP ESTADO'!B:B,0),0,100000,1),0),2,100000,2),2,FALSE) -> - | K22: =VLOOKUP($H$10,OFFSET('ANP REGIÃO'!$A$9,MATCH('Transporte RR-2C'!$I$7,'ANP REGIÃO'!A:A,0),1,10000,10000),MATCH('Transporte RR-2C'!AH22,'ANP REGIÃO'!$B$8:$G$8,0),FALSE) -> 3.173814628 | L22: 3173.814628 | M22: 877 | N22: 4050.814628 | O22: ='Transporte EAI'!O22 -> 1286 | P22: ='Transporte EAI'!P22 -> 547 | Q22: 352.3 | R22: 108.41 | S22: 460.71 | T22: 101.13 | U22: 632.07 | V22: 1193.91 | W22: ='Transporte EAI'!W22 -> 0 | X22: =EVEN((' CONSUMO DE MAT. B TOTAL'!$P$13+' CONSUMO DE MAT. B TOTAL'!P24+' CONSUMO DE MAT. B TOTAL'!P20)*2/28)*W22/(' CONSUMO DE MAT. B TOTAL'!$P$13+' CONSUMO DE MAT. B TOTAL'!P24+' CONSUMO DE MAT. B TOTAL'!P20) -> 0 | Y22: 1193.91 | Z22: 4050.814628 | AA22: 5244.724628 | AH22: NORTE
B23: 5710.155097 | C23: 10 | E23: 'NTA - NOVAS TÉCNICAS DE ASFALTOS S/A | F23: RUA SOFIA ATAURI FADIN, 150 SALA A - B. SANTA TEREZINHA - CEP:13140-000 | G23: São Paulo | H23: PAULINIA - SP | I23: ='Transporte EAI'!I23 -> Porto Grande -AP | J23: =VLOOKUP(G23,OFFSET('ANP ESTADO'!$A$1,MATCH($I$7,'ANP ESTADO'!B:B,0)+MATCH($H$10,OFFSET('ANP ESTADO'!$A$1,MATCH($I$7,'ANP ESTADO'!B:B,0),0,100000,1),0),2,100000,2),2,FALSE) -> 2.671296526 | K23: =VLOOKUP($H$10,OFFSET('ANP REGIÃO'!$A$9,MATCH('Transporte RR-2C'!$I$7,'ANP REGIÃO'!A:A,0),1,10000,10000),MATCH('Transporte RR-2C'!AH23,'ANP REGIÃO'!$B$8:$G$8,0),FALSE) -> 2.711208149 | L23: 2671.296526 | M23: =ROUND(((L23/(1-$O$7-$O$8-$O$9))-L23),2) -> 738.14 | N23: 3409.436526 | O23: ='Transporte EAI'!O23 -> 2834 | P23: ='Transporte EAI'!P23 -> 547 | Q23: 743.94 | R23: 108.41 | S23: 852.35 | T23: 187.1 | U23: 1169.39 | V23: 2208.84 | W23: ='Transporte EAI'!W23 -> 1286.3 | X23: =EVEN((' CONSUMO DE MAT. B TOTAL'!$P$13+' CONSUMO DE MAT. B TOTAL'!P25+' CONSUMO DE MAT. B TOTAL'!P21)*2/28)*W23/(' CONSUMO DE MAT. B TOTAL'!$P$13+' CONSUMO DE MAT. B TOTAL'!P25+' CONSUMO DE MAT. B TOTAL'!P21) -> 91.87857143 | Y23: 2300.718571 | Z23: 3409.436526 | AA23: 5710.155097 | AC23: 5710.155097 | AD23: 2300.718571 | AE23: 3409.436526 | AH23: SUDESTE
B24: 5786.757954 | C24: 11 | E24: COMPANHIA BRASILEIRA DE ASFALTOS DA AMAZÔNIA - IMPORTAÇÃO E EXPORTAÇÃO | F24: Avenida Doutor Olindo Dártora 2451, Galpão 02, Morro Grande - CEP:07726-555 | G24: São Paulo | H24: CAIEIRAS - SP | I24: ='Transporte EAI'!I24 -> Porto Grande -AP | J24: =VLOOKUP(G24,OFFSET('ANP ESTADO'!$A$1,MATCH($I$7,'ANP ESTADO'!B:B,0)+MATCH($H$10,OFFSET('ANP ESTADO'!$A$1,MATCH($I$7,'ANP ESTADO'!B:B,0),0,100000,1),0),2,100000,2),2,FALSE) -> 2.671296526 | K24: =VLOOKUP($H$10,OFFSET('ANP REGIÃO'!$A$9,MATCH('Transporte RR-2C'!$I$7,'ANP REGIÃO'!A:A,0),1,10000,10000),MATCH('Transporte RR-2C'!AH24,'ANP REGIÃO'!$B$8:$G$8,0),FALSE) -> 2.711208149 | L24: 2671.296526 | M24: =ROUND(((L24/(1-$O$7-$O$8-$O$9))-L24),2) -> 738.14 | N24: 3409.436526 | O24: ='Transporte EAI'!O24 -> 2932 | P24: ='Transporte EAI'!P24 -> 547 | Q24: 768.74 | R24: 108.41 | S24: 877.15 | T24: 192.54 | U24: 1203.41 | V24: 2273.1 | W24: ='Transporte EAI'!W24 -> 1459.1 | X24: =EVEN((' CONSUMO DE MAT. B TOTAL'!$P$13+' CONSUMO DE MAT. B TOTAL'!P26+' CONSUMO DE MAT. B TOTAL'!P22)*2/28)*W24/(' CONSUMO DE MAT. B TOTAL'!$P$13+' CONSUMO DE MAT. B TOTAL'!P26+' CONSUMO DE MAT. B TOTAL'!P22) -> 104.2214286 | Y24: 2377.321429 | Z24: 3409.436526 | AA24: 5786.757954 | AH24: SUDESTE
B25: 6053.930363 | C25: 12 | E25: BETUNEL INDÚSTRIA E COMÉRCIO LTDA. | F25: R 16 , 82, Vila Nova Campo Grande - CEP:79.103-834 | G25: Mato Grosso do Sul | H25: CAMPO GRANDE - MS | I25: ='Transporte EAI'!I25 -> Porto Grande -AP | J25: =VLOOKUP(G25,OFFSET('ANP ESTADO'!$A$1,MATCH($I$7,'ANP ESTADO'!B:B,0)+MATCH($H$10,OFFSET('ANP ESTADO'!$A$1,MATCH($I$7,'ANP ESTADO'!B:B,0),0,100000,1),0),2,100000,2),2,FALSE) -> 2.902138934 | K25: =VLOOKUP($H$10,OFFSET('ANP REGIÃO'!$A$9,MATCH('Transporte RR-2C'!$I$7,'ANP REGIÃO'!A:A,0),1,10000,10000),MATCH('Transporte RR-2C'!AH25,'ANP REGIÃO'!$B$8:$G$8,0),FALSE) -> 3.252504625 | L25: 2902.138934 | M25: =ROUND(((L25/(1-$O$7-$O$8-$O$9))-L25),2) -> 801.93 | N25: 3704.068934 | O25: ='Transporte EAI'!O25 -> 2939 | P25: ='Transporte EAI'!P25 -> 547 | Q25: 770.51 | R25: 108.41 | S25: 878.92 | T25: 192.93 | U25: 1205.84 | V25: 2277.69 | W25: ='Transporte EAI'!W25 -> 1010.4 | X25: =EVEN((' CONSUMO DE MAT. B TOTAL'!$P$13+' CONSUMO DE MAT. B TOTAL'!P27+' CONSUMO DE MAT. B TOTAL'!P23)*2/28)*W25/(' CONSUMO DE MAT. B TOTAL'!$P$13+' CONSUMO DE MAT. B TOTAL'!P27+' CONSUMO DE MAT. B TOTAL'!P23) -> 72.17142857 | Y25: 2349.861429 | Z25: 3704.068934 | AA25: 6053.930363 | AH25: CENTRO-OESTE
B26: 6361.846312 | C26: 13 | E26: CENTRO OESTE ASFALTOS LTDA. | F26: RUA N, S/N.º LOTES 39/43 E LOTES 129/133 - DISTRITO INDUSTRIAL - CEP:78098-400 | G26: Mato Grosso | H26: CUIABA - MT | I26: ='Transporte EAI'!I26 -> Porto Grande -AP | J26: =VLOOKUP(G26,OFFSET('ANP ESTADO'!$A$1,MATCH($I$7,'ANP ESTADO'!B:B,0)+MATCH($H$10,OFFSET('ANP ESTADO'!$A$1,MATCH($I$7,'ANP ESTADO'!B:B,0),0,100000,1),0),2,100000,2),2,FALSE) -> 3.397580598 | K26: =VLOOKUP($H$10,OFFSET('ANP REGIÃO'!$A$9,MATCH('Transporte RR-2C'!$I$7,'ANP REGIÃO'!A:A,0),1,10000,10000),MATCH('Transporte RR-2C'!AH26,'ANP REGIÃO'!$B$8:$G$8,0),FALSE) -> 3.252504625 | L26: 3397.580598 | M26: 938.83 | N26: 4336.410598 | O26: ='Transporte EAI'!O26 -> 2480 | P26: ='Transporte EAI'!P26 -> 547 | Q26: 654.38 | R26: 108.41 | S26: 762.79 | T26: 167.44 | U26: 1046.52 | V26: 1976.75 | W26: ='Transporte EAI'!W26 -> 681.6 | X26: =EVEN((' CONSUMO DE MAT. B TOTAL'!$P$13+' CONSUMO DE MAT. B TOTAL'!P28+' CONSUMO DE MAT. B TOTAL'!P24)*2/28)*W26/(' CONSUMO DE MAT. B TOTAL'!$P$13+' CONSUMO DE MAT. B TOTAL'!P28+' CONSUMO DE MAT. B TOTAL'!P24) -> 48.68571429 | Y26: 2025.435714 | Z26: 4336.410598 | AA26: 6361.846312 | AH26: CENTRO-OESTE
B27: 6357.886312 | C27: 14 | E27: BETUNEL INDÚSTRIA E COMÉRCIO LTDA. | F27: RUA N ESQUINA COM RUA X, S/N QD. IND. 7 L 01/08 - DIST. IND. - CEP:78015-285 | G27: Mato Grosso | H27: CUIABA - MT | I27: ='Transporte EAI'!I27 -> Porto Grande -AP | J27: =VLOOKUP(G27,OFFSET('ANP ESTADO'!$A$1,MATCH($I$7,'ANP ESTADO'!B:B,0)+MATCH($H$10,OFFSET('ANP ESTADO'!$A$1,MATCH($I$7,'ANP ESTADO'!B:B,0),0,100000,1),0),2,100000,2),2,FALSE) -> 3.397580598 | K27: =VLOOKUP($H$10,OFFSET('ANP REGIÃO'!$A$9,MATCH('Transporte RR-2C'!$I$7,'ANP REGIÃO'!A:A,0),1,10000,10000),MATCH('Transporte RR-2C'!AH27,'ANP REGIÃO'!$B$8:$G$8,0),FALSE) -> 3.252504625 | L27: 3397.580598 | M27: 938.83 | N27: 4336.410598 | O27: ='Transporte EAI'!O27 -> 2474 | P27: ='Transporte EAI'!P27 -> 547 | Q27: 652.86 | R27: 108.41 | S27: 761.27 | T27: 167.1 | U27: 1044.42 | V27: 1972.79 | W27: ='Transporte EAI'!W27 -> 681.6 | X27: =EVEN((' CONSUMO DE MAT. B TOTAL'!$P$13+' CONSUMO DE MAT. B TOTAL'!P29+' CONSUMO DE MAT. B TOTAL'!P25)*2/28)*W27/(' CONSUMO DE MAT. B TOTAL'!$P$13+' CONSUMO DE MAT. B TOTAL'!P29+' CONSUMO DE MAT. B TOTAL'!P25) -> 48.68571429 | Y27: 2021.475714 | Z27: 4336.410598 | AA27: 6357.886312 | AH27: CENTRO-OESTE
B28: 6362.476312 | C28: 15 | E28: EMAM - EMULSÕES E TRANSPORTES LTDA. | F28: RODOVIA DOS IMIGRANTES, S/Nº KM 8,6 - - CEP:60035-351 | G28: Mato Grosso | H28: VARZEA GRANDE - MT | I28: ='Transporte EAI'!I28 -> Porto Grande -AP | J28: =VLOOKUP(G28,OFFSET('ANP ESTADO'!$A$1,MATCH($I$7,'ANP ESTADO'!B:B,0)+MATCH($H$10,OFFSET('ANP ESTADO'!$A$1,MATCH($I$7,'ANP ESTADO'!B:B,0),0,100000,1),0),2,100000,2),2,FALSE) -> 3.397580598 | K28: =VLOOKUP($H$10,OFFSET('ANP REGIÃO'!$A$9,MATCH('Transporte RR-2C'!$I$7,'ANP REGIÃO'!A:A,0),1,10000,10000),MATCH('Transporte RR-2C'!AH28,'ANP REGIÃO'!$B$8:$G$8,0),FALSE) -> 3.252504625 | L28: 3397.580598 | M28: 938.83 | N28: 4336.410598 | O28: ='Transporte EAI'!O28 -> 2481 | P28: ='Transporte EAI'!P28 -> 547 | Q28: 654.63 | R28: 108.41 | S28: 763.04 | T28: 167.49 | U28: 1046.85 | V28: 1977.38 | W28: ='Transporte EAI'!W28 -> 681.6 | X28: =EVEN((' CONSUMO DE MAT. B TOTAL'!$P$13+' CONSUMO DE MAT. B TOTAL'!P30+' CONSUMO DE MAT. B TOTAL'!P26)*2/28)*W28/(' CONSUMO DE MAT. B TOTAL'!$P$13+' CONSUMO DE MAT. B TOTAL'!P30+' CONSUMO DE MAT. B TOTAL'!P26) -> 48.68571429 | Y28: 2026.065714 | Z28: 4336.410598 | AA28: 6362.476312 | AC28: 6362.476312 | AD28: 2026.065714 | AE28: 4336.410598 | AH28: CENTRO-OESTE
B29: 5852.107954 | C29: 16 | E29: VIAPOL LTDA. | F29: VITO ARDITO, 6401 KM 118,5 - JARDIM CAMPO GRANDE - CEP:12282-535 | G29: São Paulo | H29: CACAPAVA - SP | I29: ='Transporte EAI'!I29 -> Porto Grande -AP | J29: =VLOOKUP(G29,OFFSET('ANP ESTADO'!$A$1,MATCH($I$7,'ANP ESTADO'!B:B,0)+MATCH($H$10,OFFSET('ANP ESTADO'!$A$1,MATCH($I$7,'ANP ESTADO'!B:B,0),0,100000,1),0),2,100000,2),2,FALSE) -> 2.671296526 | K29: =VLOOKUP($H$10,OFFSET('ANP REGIÃO'!$A$9,MATCH('Transporte RR-2C'!$I$7,'ANP REGIÃO'!A:A,0),1,10000,10000),MATCH('Transporte RR-2C'!AH29,'ANP REGIÃO'!$B$8:$G$8,0),FALSE) -> 2.711208149 | L29: 2671.296526 | M29: 738.14 | N29: 3409.436526 | O29: ='Transporte EAI'!O29 -> 3023 | P29: ='Transporte EAI'!P29 -> 547 | Q29: 791.76 | R29: 108.41 | S29: 900.17 | T29: 197.59 | U29: 1234.99 | V29: 2332.75 | W29: ='Transporte EAI'!W29 -> 1538.9 | X29: =EVEN((' CONSUMO DE MAT. B TOTAL'!$P$13+' CONSUMO DE MAT. B TOTAL'!P31+' CONSUMO DE MAT. B TOTAL'!P27)*2/28)*W29/(' CONSUMO DE MAT. B TOTAL'!$P$13+' CONSUMO DE MAT. B TOTAL'!P31+' CONSUMO DE MAT. B TOTAL'!P27) -> 109.9214286 | Y29: 2442.671429 | Z29: 3409.436526 | AA29: 5852.107954 | AC29: 5852.107954 | AD29: 2442.671429 | AE29: 3409.436526 | AH29: SUDESTE
B30: 6013.101006 | C30: 17 | E30: STRATURA ASFALTOS S/A | F30: RUA LUIS DE CAMÕES, 26 - CAMPOS ELÍSEOS - CEP:25225-030 | G30: Rio de Janeiro | H30: DUQUE DE CAXIAS - RJ | I30: ='Transporte EAI'!I30 -> Porto Grande -AP | J30: =VLOOKUP(G30,OFFSET('ANP ESTADO'!$A$1,MATCH($I$7,'ANP ESTADO'!B:B,0)+MATCH($H$10,OFFSET('ANP ESTADO'!$A$1,MATCH($I$7,'ANP ESTADO'!B:B,0),0,100000,1),0),2,100000,2),2,FALSE) -> - | K30: =VLOOKUP($H$10,OFFSET('ANP REGIÃO'!$A$9,MATCH('Transporte RR-2C'!$I$7,'ANP REGIÃO'!A:A,0),1,10000,10000),MATCH('Transporte RR-2C'!AH30,'ANP REGIÃO'!$B$8:$G$8,0),FALSE) -> 2.711208149 | L30: 2711.208149 | M30: 749.17 | N30: 3460.378149 | O30: ='Transporte EAI'!O30 -> 3239 | P30: ='Transporte EAI'!P30 -> 547 | Q30: 846.41 | R30: 108.41 | S30: 954.82 | T30: 209.59 | U30: 1309.97 | V30: 2474.38 | W30: ='Transporte EAI'!W30 -> 1096.8 | X30: =EVEN((' CONSUMO DE MAT. B TOTAL'!$P$13+' CONSUMO DE MAT. B TOTAL'!P32+' CONSUMO DE MAT. B TOTAL'!P28)*2/28)*W30/(' CONSUMO DE MAT. B TOTAL'!$P$13+' CONSUMO DE MAT. B TOTAL'!P32+' CONSUMO DE MAT. B TOTAL'!P28) -> 78.34285714 | Y30: 2552.722857 | Z30: 3460.378149 | AA30: 6013.101006 | AC30: 6013.101006 | AD30: =Y30 -> 2552.722857 | AE30: 3460.378149 | AH30: SUDESTE
B31: 6022.281006 | C31: 18 | E31: PROBITEC - PRODUTOS BETUMINOSOS E TECNOLOGIA DE APLICAÇÃO LTDA. | F31: AVENIDA CANAL DA PAVUNA, 620 - PAVUNA - CEP:21535-630 | G31: Rio de Janeiro | H31: RIO DE JANEIRO - RJ | I31: ='Transporte EAI'!I31 -> Porto Grande -AP | J31: =VLOOKUP(G31,OFFSET('ANP ESTADO'!$A$1,MATCH($I$7,'ANP ESTADO'!B:B,0)+MATCH($H$10,OFFSET('ANP ESTADO'!$A$1,MATCH($I$7,'ANP ESTADO'!B:B,0),0,100000,1),0),2,100000,2),2,FALSE) -> - | K31: =VLOOKUP($H$10,OFFSET('ANP REGIÃO'!$A$9,MATCH('Transporte RR-2C'!$I$7,'ANP REGIÃO'!A:A,0),1,10000,10000),MATCH('Transporte RR-2C'!AH31,'ANP REGIÃO'!$B$8:$G$8,0),FALSE) -> 2.711208149 | L31: 2711.208149 | M31: 749.17 | N31: 3460.378149 | O31: ='Transporte EAI'!O31 -> 3253 | P31: ='Transporte EAI'!P31 -> 547 | Q31: 849.95 | R31: 108.41 | S31: 958.36 | T31: 210.37 | U31: 1314.83 | V31: 2483.56 | W31: ='Transporte EAI'!W31 -> 1096.8 | X31: =EVEN((' CONSUMO DE MAT. B TOTAL'!$P$13+' CONSUMO DE MAT. B TOTAL'!P33+' CONSUMO DE MAT. B TOTAL'!P29)*2/28)*W31/(' CONSUMO DE MAT. B TOTAL'!$P$13+' CONSUMO DE MAT. B TOTAL'!P33+' CONSUMO DE MAT. B TOTAL'!P29) -> 78.34285714 | Y31: 2561.902857 | Z31: 3460.378149 | AA31: 6022.281006 | AC31: 6022.281006 | AD31: 2561.902857 | AE31: 3460.378149 | AH31: SUDESTE
B32: 5881.468055 | C32: 19 | E32: CASA DO ASFALTO DISTRIBUIDORA, INDÚSTRIA E COMÉRCIO DE ASFALTO LTDA. | F32: BR 376, PARQUE INDUSTRIAL, S/N LOTE 6/7/7-A-3-1 - GL.PATR.MARIALVA - CEP:86990-000 | G32: Paraná | H32: MARIALVA - PR | I32: ='Transporte EAI'!I32 -> Porto Grande -AP | J32: =VLOOKUP(G32,OFFSET('ANP ESTADO'!$A$1,MATCH($I$7,'ANP ESTADO'!B:B,0)+MATCH($H$10,OFFSET('ANP ESTADO'!$A$1,MATCH($I$7,'ANP ESTADO'!B:B,0),0,100000,1),0),2,100000,2),2,FALSE) -> 2.717110912 | K32: =VLOOKUP($H$10,OFFSET('ANP REGIÃO'!$A$9,MATCH('Transporte RR-2C'!$I$7,'ANP REGIÃO'!A:A,0),1,10000,10000),MATCH('Transporte RR-2C'!AH32,'ANP REGIÃO'!$B$8:$G$8,0),FALSE) -> 2.722506481 | L32: 2717.110912 | M32: 750.8 | N32: 3467.910912 | O32: ='Transporte EAI'!O32 -> 3015 | P32: ='Transporte EAI'!P32 -> 547 | Q32: 789.73 | R32: 108.41 | S32: 898.14 | T32: 197.15 | U32: 1232.21 | V32: 2327.5 | W32: ='Transporte EAI'!W32 -> 1204.8 | X32: =EVEN((' CONSUMO DE MAT. B TOTAL'!$P$13+' CONSUMO DE MAT. B TOTAL'!P34+' CONSUMO DE MAT. B TOTAL'!P30)*2/28)*W32/(' CONSUMO DE MAT. B TOTAL'!$P$13+' CONSUMO DE MAT. B TOTAL'!P34+' CONSUMO DE MAT. B TOTAL'!P30) -> 86.05714286 | Y32: 2413.557143 | Z32: 3467.910912 | AA32: 5881.468055 | AC32: 5881.468055 | AD32: 2413.557143 | AE32: 3467.910912 | AH32: SUL
B33: 5985.943769 | C33: 20 | E33: PETROBRAS DISTRIBUIDORA S.A. | F33: RUA MAQUINISTA ELEODORO JACINTO, 100 - OFICINAS - CEP:84045-170 | G33: Paraná | H33: PONTA GROSSA - PR | I33: ='Transporte EAI'!I33 -> Porto Grande -AP | J33: =VLOOKUP(G33,OFFSET('ANP ESTADO'!$A$1,MATCH($I$7,'ANP ESTADO'!B:B,0)+MATCH($H$10,OFFSET('ANP ESTADO'!$A$1,MATCH($I$7,'ANP ESTADO'!B:B,0),0,100000,1),0),2,100000,2),2,FALSE) -> 2.717110912 | K33: =VLOOKUP($H$10,OFFSET('ANP REGIÃO'!$A$9,MATCH('Transporte RR-2C'!$I$7,'ANP REGIÃO'!A:A,0),1,10000,10000),MATCH('Transporte RR-2C'!AH33,'ANP REGIÃO'!$B$8:$G$8,0),FALSE) -> 2.722506481 | L33: 2717.110912 | M33: 750.8 | N33: 3467.910912 | O33: ='Transporte EAI'!O33 -> 3159 | P33: ='Transporte EAI'!P33 -> 547 | Q33: 826.17 | R33: 108.41 | S33: 934.58 | T33: 205.15 | U33: 1282.21 | V33: 2421.94 | W33: ='Transporte EAI'!W33 -> 1345.3 | X33: =EVEN((' CONSUMO DE MAT. B TOTAL'!$P$13+' CONSUMO DE MAT. B TOTAL'!P35+' CONSUMO DE MAT. B TOTAL'!P31)*2/28)*W33/(' CONSUMO DE MAT. B TOTAL'!$P$13+' CONSUMO DE MAT. B TOTAL'!P35+' CONSUMO DE MAT. B TOTAL'!P31) -> 96.09285714 | Y33: 2518.032857 | Z33: 3467.910912 | AA33: 5985.943769 | AC33: 5985.943769 | AD33: 2518.032857 | AE33: 3467.910912 | AH33: SUL
D43: Acre
D44: Alagoas
D45: Amapá
D46: Amazonas
D47: Bahia
D48: Ceará
D49: Distrito Federal
D50: Espírito Santo
D51: Goiás
D52: Maranhão
D53: Mato Grosso
D54: Mato Grosso do Sul
D55: Minas Gerais
D56: Pará
D57: Paraíba
D58: Paraná
D59: Pernambuco
D60: Piauí
D61: Rio de Janeiro
D62: Rio Grande do Norte
D63: Rio Grande do Sul
D64: Rondônia
D65: Roraima
D66: Santa Catarina
D67: São Paulo
D68: Sergipe
D69: Tocantins
D73: ASFALTOS DILUÍDOS CM-30
D74: ASFALTOS DILUÍDOS CM-70
D75: ASFALTOS DILUÍDOS CR-250
D76: ASFALTOS DILUÍDOS CR-70
D77: CAP MODIFICADO POR BORRACHA DE PNEU AB22
D78: CAP MODIFICADO POR BORRACHA DE PNEU AB8
D79: CAP MODIFICADO POR POLÍMERO 55-75-E
D80: CAP MODIFICADO POR POLÍMERO 60-85-E
D81: CAP MODIFICADO POR POLÍMERO 65-90-E
D82: CIMENTOS ASFÁLTICOS CAP-150-200
D83: CIMENTOS ASFÁLTICOS CAP-30-45
D84: CIMENTOS ASFÁLTICOS CAP-50-70
D85: CIMENTOS ASFÁLTICOS CAP-85-100
D86: EMULSÃO ASFÁLTICA CATIÔNICA DE RUPTURA CONTROLADA PARA SERVIÇO DE LAMA ASFÁLTICA
D87: EMULSÃO ASFÁLTICA DE RUPTURA LENTA CATIÔNICA PARA SERVIÇO DE LAMA ASFÁLTICA
D88: EMULSÃO ASFÁLTICA DE RUPTURA LENTA DE CARGA NEUTRA PARA SERVIÇO DE LAMA ASFÁLTICA
D89: EMULSÃO ASFÁLTICA PARA SERVIÇO DE IMPRIMAÇÃO
D90: EMULSÕES ASF. MOD. POR POLÍMEROS RC1C-E
D91: EMULSÕES ASF. MOD. POR POLÍMEROS RL1C-E
D92: EMULSÕES ASF. MOD. POR POLÍMEROS RM1C-E
D93: EMULSÕES ASF. MOD. POR POLÍMEROS RR1C-E
D94: EMULSÕES ASF. MOD. POR POLÍMEROS RR2C-E
D95: EMULSÕES ASFÁLTICAS RL-1C
D96: EMULSÕES ASFÁLTICAS RM-1C
D97: EMULSÕES ASFÁLTICAS RM-2C
D98: EMULSÕES ASFÁLTICAS RR-1C
D99: EMULSÕES ASFÁLTICAS RR-2C

Sheet RESUMO_Transp
B11: ÍNDICE DE PAVIMENTAÇÃO DNIT | E11: TIPOLOGIA DO MATERIAL | G11: LIGANTE BETUMINOSO | K11: IMPOSTOS | L11: COFINS | M11: ='Transporte EAI'!O7 -> 0.0065 | N11: =#REF! -> 
C12: DATA INICIAL | F12: 2014-07-01 | G12: ÍNDICE INICIAL | H12: ='Transporte EAI'!J8 -> 270.237 | L12: PIS | M12: ='Transporte EAI'!O8 -> 0.03 | N12: =#REF! ->  | P12: LEGENDA
C13: DATA FINAL | F13: ='Transporte EAI'!H10 -> 2024-07-01 | G13: ÍNDICE FINAL | H13: ='Transporte EAI'!J9 -> 574.257 | L13: ICMS | M13: ='Transporte EAI'!O9 -> 0.18 | N13: =#REF! ->  | P13: ENTRADA DE DADOS
B15: DATA-BASE | C15: PRODUTOS | D15: LOCALIDADES | H15: CUSTO ANP (R$/Kg) | J15: CUSTO ANP | K15: IMPOSTOS DO PRODUTO | L15: CUSTO DO PRODUTO COM IMPOSTOS | M15: DMT's | N15: DMT's | O15: CUSTO DO TRANSPORTE TOTAL | P15: ICMS | Q15: ATUALIZAÇÃO DO CUSTO DE TRANSPORTE | R15: CUSTO DO TRANSPORTE RODOVIA PAVIMENTADA COM IMPOSTOS E ATUALIZAÇÃO MONETÁRIA | S15: PEDÁGIO | U15: TOTAL TRANSPORTE | V15: TOTAL PRODUTO | W15: TOTAL GERAL
B16: =F13 -> 2024-07-01 | D16: REFINARIAS | E16: ENDEREÇO | F16: ORIGEM REFINARIAS / DISTRIBUIDORAS | G16: DESTINO | H16: ESTADO | I16: REGIÃO | J16: R$/t | K16: R$/t | L16: R$/t | M16: KM | N16: KM | O16: R$/t | P16: R$/t | Q16: R$/t | R16: R$/t | S16: CUSTO POR EIXO | T16: R$/t | U16: R$/t | V16: R$/t | W16: R$/t
B17: 1 | C17: EAI | D17: Refinaria Abreu e Lima | E17: Rodovia PE 60, Km 10 - Ipojuca - PE CEP:55590-000 | F17: =VLOOKUP($W17,'Transporte EAI'!B:AA,7,FALSE) -> UBERLANDIA - MG | G17: =VLOOKUP($W17,'Transporte EAI'!B:AA,8,FALSE) -> Porto Grande -AP | H17: =VLOOKUP($W17,'Transporte EAI'!B:AA,9,FALSE) -> 2.153413519 | I17: =VLOOKUP($W17,'Transporte EAI'!B:AA,10,FALSE) -> 2.248773515 | J17: =VLOOKUP($W17,'Transporte EAI'!B:AA,11,FALSE) -> 2153.413519 | K17: =VLOOKUP($W17,'Transporte EAI'!B:AA,12,FALSE) -> 595.04 | L17: =VLOOKUP($W17,'Transporte EAI'!B:AA,13,FALSE) -> 2748.453519 | M17: =VLOOKUP($W17,'Transporte EAI'!B:AA,14,FALSE) -> 2379 | N17: =VLOOKUP($W17,'Transporte EAI'!B:AA,15,FALSE) -> 547 | O17: =VLOOKUP($W17,'Transporte EAI'!B:AA,18,FALSE) -> 737.24 | P17: =VLOOKUP($W17,'Transporte EAI'!B:AA,19,FALSE) -> 161.83 | Q17: =VLOOKUP($W17,'Transporte EAI'!B:AA,20,FALSE) -> 1011.46 | R17: =VLOOKUP($W17,'Transporte EAI'!B:AA,21,FALSE) -> 1910.53 | S17: =VLOOKUP($W17,'Transporte EAI'!B:AA,22,FALSE) -> 706.8 | T17: =VLOOKUP($W17,'Transporte EAI'!B:AA,23,FALSE) -> 50.48571429 | U17: =VLOOKUP($W17,'Transporte EAI'!B:AA,24,FALSE) -> 1961.015714 | V17: =VLOOKUP($W17,'Transporte EAI'!B:AA,25,FALSE) -> 2748.453519 | W17: =SMALL('Transporte EAI'!$AA$13:$AA$33,1) -> 4709.469234
B18: 2 | D18: Refinaria Potiguar Clara Camarão | E18: Rodovia RN 221, KM 25 - Guamaré - RN CEP:59598-000 | F18: =VLOOKUP($W18,'Transporte EAI'!B:AA,7,FALSE) -> UBERLANDIA - MG | G18: =VLOOKUP($W18,'Transporte EAI'!B:AA,8,FALSE) -> Porto Grande -AP | H18: =VLOOKUP($W18,'Transporte EAI'!B:AA,9,FALSE) -> 2.153413519 | I18: =VLOOKUP($W18,'Transporte EAI'!B:AA,10,FALSE) -> 2.248773515 | J18: =VLOOKUP($W18,'Transporte EAI'!B:AA,11,FALSE) -> 2153.413519 | K18: =VLOOKUP($W18,'Transporte EAI'!B:AA,12,FALSE) -> 595.04 | L18: =VLOOKUP($W18,'Transporte EAI'!B:AA,13,FALSE) -> 2748.453519 | M18: =VLOOKUP($W18,'Transporte EAI'!B:AA,14,FALSE) -> 2380 | N18: =VLOOKUP($W18,'Transporte EAI'!B:AA,15,FALSE) -> 547 | O18: =VLOOKUP($W18,'Transporte EAI'!B:AA,18,FALSE) -> 737.49 | P18: =VLOOKUP($W18,'Transporte EAI'!B:AA,19,FALSE) -> 161.88 | Q18: =VLOOKUP($W18,'Transporte EAI'!B:AA,20,FALSE) -> 1011.8 | R18: =VLOOKUP($W18,'Transporte EAI'!B:AA,21,FALSE) -> 1911.17 | S18: =VLOOKUP($W18,'Transporte EAI'!B:AA,22,FALSE) -> 706.8 | T18: =VLOOKUP($W18,'Transporte EAI'!B:AA,23,FALSE) -> 50.48571429 | U18: =VLOOKUP($W18,'Transporte EAI'!B:AA,24,FALSE) -> 1961.655714 | V18: =VLOOKUP($W18,'Transporte EAI'!B:AA,25,FALSE) -> 2748.453519 | W18: =SMALL('Transporte EAI'!$AA$13:$AA$33,2) -> 4710.109234
B19: 3 | D19: Complexo Petroquímico do Rio de Janeiro (Comperj) | E19: Rodovia Estadual RJ-116 - Km 5,2 - Acesso A-1, s/n, Complemento Sambaetiba - Zona Urbana do 4º Distrito de Itaboraí - RJ CEP:24841-203 | F19: =VLOOKUP($W19,'Transporte EAI'!B:AA,7,FALSE) -> ANÁPOLIS - GO | G19: =VLOOKUP($W19,'Transporte EAI'!B:AA,8,FALSE) -> Porto Grande -AP | H19: =VLOOKUP($W19,'Transporte EAI'!B:AA,9,FALSE) -> 2.412151773 | I19: =VLOOKUP($W19,'Transporte EAI'!B:AA,10,FALSE) -> 2.730876265 | J19: =VLOOKUP($W19,'Transporte EAI'!B:AA,11,FALSE) -> 2412.151773 | K19: =VLOOKUP($W19,'Transporte EAI'!B:AA,12,FALSE) -> 666.54 | L19: =VLOOKUP($W19,'Transporte EAI'!B:AA,13,FALSE) -> 3078.691773 | M19: =VLOOKUP($W19,'Transporte EAI'!B:AA,14,FALSE) -> 2012 | N19: =VLOOKUP($W19,'Transporte EAI'!B:AA,15,FALSE) -> 547 | O19: =VLOOKUP($W19,'Transporte EAI'!B:AA,18,FALSE) -> 644.39 | P19: =VLOOKUP($W19,'Transporte EAI'!B:AA,19,FALSE) -> 141.45 | Q19: =VLOOKUP($W19,'Transporte EAI'!B:AA,20,FALSE) -> 884.07 | R19: =VLOOKUP($W19,'Transporte EAI'!B:AA,21,FALSE) -> 1669.91 | S19: =VLOOKUP($W19,'Transporte EAI'!B:AA,22,FALSE) -> 508.8 | T19: =VLOOKUP($W19,'Transporte EAI'!B:AA,23,FALSE) -> 36.34285714 | U19: =VLOOKUP($W19,'Transporte EAI'!B:AA,24,FALSE) -> 1706.252857 | V19: =VLOOKUP($W19,'Transporte EAI'!B:AA,25,FALSE) -> 3078.691773 | W19: =SMALL('Transporte EAI'!$AA$13:$AA$33,3) -> 4784.94463
B20: 4 | F20: =VLOOKUP($W20,'Transporte EAI'!B:AA,7,FALSE) -> GOIANIRA - GO | G20: =VLOOKUP($W20,'Transporte EAI'!B:AA,8,FALSE) -> Porto Grande -AP | H20: =VLOOKUP($W20,'Transporte EAI'!B:AA,9,FALSE) -> 2.412151773 | I20: =VLOOKUP($W20,'Transporte EAI'!B:AA,10,FALSE) -> 2.730876265 | J20: =VLOOKUP($W20,'Transporte EAI'!B:AA,11,FALSE) -> 2412.151773 | K20: =VLOOKUP($W20,'Transporte EAI'!B:AA,12,FALSE) -> 666.54 | L20: =VLOOKUP($W20,'Transporte EAI'!B:AA,13,FALSE) -> 3078.691773 | M20: =VLOOKUP($W20,'Transporte EAI'!B:AA,14,FALSE) -> 2034 | N20: =VLOOKUP($W20,'Transporte EAI'!B:AA,15,FALSE) -> 547 | O20: =VLOOKUP($W20,'Transporte EAI'!B:AA,18,FALSE) -> 649.95 | P20: =VLOOKUP($W20,'Transporte EAI'!B:AA,19,FALSE) -> 142.67 | Q20: =VLOOKUP($W20,'Transporte EAI'!B:AA,20,FALSE) -> 891.7 | R20: =VLOOKUP($W20,'Transporte EAI'!B:AA,21,FALSE) -> 1684.32 | S20: =VLOOKUP($W20,'Transporte EAI'!B:AA,22,FALSE) -> 508.8 | T20: =VLOOKUP($W20,'Transporte EAI'!B:AA,23,FALSE) -> 36.34285714 | U20: =VLOOKUP($W20,'Transporte EAI'!B:AA,24,FALSE) -> 1720.662857 | V20: =VLOOKUP($W20,'Transporte EAI'!B:AA,25,FALSE) -> 3078.691773 | W20: =SMALL('Transporte EAI'!$AA$13:$AA$33,4) -> 4799.35463
B21: 5 | F21: =VLOOKUP($W21,'Transporte EAI'!B:AA,7,FALSE) -> APARECIDA DE GOIANIA - GO | G21: =VLOOKUP($W21,'Transporte EAI'!B:AA,8,FALSE) -> Porto Grande -AP | H21: =VLOOKUP($W21,'Transporte EAI'!B:AA,9,FALSE) -> 2.412151773 | I21: =VLOOKUP($W21,'Transporte EAI'!B:AA,10,FALSE) -> 2.730876265 | J21: =VLOOKUP($W21,'Transporte EAI'!B:AA,11,FALSE) -> 2412.151773 | K21: =VLOOKUP($W21,'Transporte EAI'!B:AA,12,FALSE) -> 666.54 | L21: =VLOOKUP($W21,'Transporte EAI'!B:AA,13,FALSE) -> 3078.691773 | M21: =VLOOKUP($W21,'Transporte EAI'!B:AA,14,FALSE) -> 2063 | N21: =VLOOKUP($W21,'Transporte EAI'!B:AA,15,FALSE) -> 547 | O21: =VLOOKUP($W21,'Transporte EAI'!B:AA,18,FALSE) -> 657.29 | P21: =VLOOKUP($W21,'Transporte EAI'!B:AA,19,FALSE) -> 144.28 | Q21: =VLOOKUP($W21,'Transporte EAI'!B:AA,20,FALSE) -> 901.77 | R21: =VLOOKUP($W21,'Transporte EAI'!B:AA,21,FALSE) -> 1703.34 | S21: =VLOOKUP($W21,'Transporte EAI'!B:AA,22,FALSE) -> 508.8 | T21: =VLOOKUP($W21,'Transporte EAI'!B:AA,23,FALSE) -> 36.34285714 | U21: =VLOOKUP($W21,'Transporte EAI'!B:AA,24,FALSE) -> 1739.682857 | V21: =VLOOKUP($W21,'Transporte EAI'!B:AA,25,FALSE) -> 3078.691773 | W21: =SMALL('Transporte EAI'!$AA$13:$AA$33,5) -> 4818.37463
B22: 6 | F22: =VLOOKUP($W22,'Transporte EAI'!B:AA,7,FALSE) -> PALMAS - TO | G22: =VLOOKUP($W22,'Transporte EAI'!B:AA,8,FALSE) -> Porto Grande -AP | H22: =VLOOKUP($W22,'Transporte EAI'!B:AA,9,FALSE) -> - | I22: =VLOOKUP($W22,'Transporte EAI'!B:AA,10,FALSE) -> 2.846784463 | J22: =VLOOKUP($W22,'Transporte EAI'!B:AA,11,FALSE) -> 2846.784463 | K22: =VLOOKUP($W22,'Transporte EAI'!B:AA,12,FALSE) -> 786.64 | L22: =VLOOKUP($W22,'Transporte EAI'!B:AA,13,FALSE) -> 3633.424463 | M22: =VLOOKUP($W22,'Transporte EAI'!B:AA,14,FALSE) -> 1286 | N22: =VLOOKUP($W22,'Transporte EAI'!B:AA,15,FALSE) -> 547 | O22: =VLOOKUP($W22,'Transporte EAI'!B:AA,18,FALSE) -> 460.71 | P22: =VLOOKUP($W22,'Transporte EAI'!B:AA,19,FALSE) -> 101.13 | Q22: =VLOOKUP($W22,'Transporte EAI'!B:AA,20,FALSE) -> 632.07 | R22: =VLOOKUP($W22,'Transporte EAI'!B:AA,21,FALSE) -> 1193.91 | S22: =VLOOKUP($W22,'Transporte EAI'!B:AA,22,FALSE) -> 0 | T22: =VLOOKUP($W22,'Transporte EAI'!B:AA,23,FALSE) -> 0 | U22: =VLOOKUP($W22,'Transporte EAI'!B:AA,24,FALSE) -> 1193.91 | V22: =VLOOKUP($W22,'Transporte EAI'!B:AA,25,FALSE) -> 3633.424463 | W22: =SMALL('Transporte EAI'!$AA$13:$AA$33,6) -> 4827.334463
B24: 1 | C24: RR2-C | D24: Refinaria Abreu e Lima | E24: Rodovia PE 60, Km 10 - Ipojuca - PE CEP:55590-000 | F24: =VLOOKUP($W24,'Transporte RR-2C'!B:AA,7,FALSE) -> PALMAS - TO | G24: =VLOOKUP($W24,'Transporte RR-2C'!B:AA,8,FALSE) -> Porto Grande -AP | H24: =VLOOKUP($W24,'Transporte RR-2C'!B:AA,9,FALSE) -> - | I24: =VLOOKUP($W24,'Transporte RR-2C'!B:AA,10,FALSE) -> 3.173814628 | J24: =VLOOKUP($W24,'Transporte RR-2C'!B:AA,11,FALSE) -> 3173.814628 | K24: =VLOOKUP($W24,'Transporte RR-2C'!B:AA,12,FALSE) -> 877 | L24: =VLOOKUP($W24,'Transporte RR-2C'!B:AA,13,FALSE) -> 4050.814628 | M24: =VLOOKUP($W24,'Transporte RR-2C'!B:AA,14,FALSE) -> 1286 | N24: =VLOOKUP($W24,'Transporte RR-2C'!B:AA,15,FALSE) -> 547 | O24: =VLOOKUP($W24,'Transporte RR-2C'!B:AA,18,FALSE) -> 460.71 | P24: =VLOOKUP($W24,'Transporte RR-2C'!B:AA,19,FALSE) -> 101.13 | Q24: =VLOOKUP($W24,'Transporte RR-2C'!B:AA,20,FALSE) -> 632.07 | R24: =VLOOKUP($W24,'Transporte RR-2C'!B:AA,21,FALSE) -> 1193.91 | S24: =VLOOKUP($W24,'Transporte RR-2C'!B:AA,22,FALSE) -> 0 | T24: =VLOOKUP($W24,'Transporte RR-2C'!B:AA,23,FALSE) -> 0 | U24: =VLOOKUP($W24,'Transporte RR-2C'!B:AA,24,FALSE) -> 1193.91 | V24: =VLOOKUP($W24,'Transporte RR-2C'!B:AA,25,FALSE) -> 4050.814628 | W24: =SMALL('Transporte RR-2C'!AA13:AA33,1) -> 5244.724628
B25: 2 | D25: Refinaria Potiguar Clara Camarão | E25: Rodovia RN 221, KM 25 - Guamaré - RN CEP:59598-000 | F25: =VLOOKUP($W25,'Transporte RR-2C'!B:AA,7,FALSE) -> ANÁPOLIS - GO | G25: =VLOOKUP($W25,'Transporte RR-2C'!B:AA,8,FALSE) -> Porto Grande -AP | H25: =VLOOKUP($W25,'Transporte RR-2C'!B:AA,9,FALSE) -> 2.887972464 | I25: =VLOOKUP($W25,'Transporte RR-2C'!B:AA,10,FALSE) -> 3.252504625 | J25: =VLOOKUP($W25,'Transporte RR-2C'!B:AA,11,FALSE) -> 2887.972464 | K25: =VLOOKUP($W25,'Transporte RR-2C'!B:AA,12,FALSE) -> 798.02 | L25: =VLOOKUP($W25,'Transporte RR-2C'!B:AA,13,FALSE) -> 3685.992464 | M25: =VLOOKUP($W25,'Transporte RR-2C'!B:AA,14,FALSE) -> 2012 | N25: =VLOOKUP($W25,'Transporte RR-2C'!B:AA,15,FALSE) -> 547 | O25: =VLOOKUP($W25,'Transporte RR-2C'!B:AA,18,FALSE) -> 644.39 | P25: =VLOOKUP($W25,'Transporte RR-2C'!B:AA,19,FALSE) -> 141.45 | Q25: =VLOOKUP($W25,'Transporte RR-2C'!B:AA,20,FALSE) -> 884.07 | R25: =VLOOKUP($W25,'Transporte RR-2C'!B:AA,21,FALSE) -> 1669.91 | S25: =VLOOKUP($W25,'Transporte RR-2C'!B:AA,22,FALSE) -> 508.8 | T25: =VLOOKUP($W25,'Transporte RR-2C'!B:AA,23,FALSE) -> 36.34285714 | U25: =VLOOKUP($W25,'Transporte RR-2C'!B:AA,24,FALSE) -> 1706.252857 | V25: =VLOOKUP($W25,'Transporte RR-2C'!B:AA,25,FALSE) -> 3685.992464 | W25: =SMALL('Transporte RR-2C'!AA14:AA34,2) -> 5392.245321
B26: 3 | D26: Complexo Petroquímico do Rio de Janeiro (Comperj) | E26: Rodovia Estadual RJ-116 - Km 5,2 - Acesso A-1, s/n, Complemento Sambaetiba - Zona Urbana do 4º Distrito de Itaboraí - RJ CEP:24841-203 | F26: =VLOOKUP($W26,'Transporte RR-2C'!B:AA,7,FALSE) -> GOIANIRA - GO | G26: =VLOOKUP($W26,'Transporte RR-2C'!B:AA,8,FALSE) -> Porto Grande -AP | H26: =VLOOKUP($W26,'Transporte RR-2C'!B:AA,9,FALSE) -> 2.887972464 | I26: =VLOOKUP($W26,'Transporte RR-2C'!B:AA,10,FALSE) -> 3.252504625 | J26: =VLOOKUP($W26,'Transporte RR-2C'!B:AA,11,FALSE) -> 2887.972464 | K26: =VLOOKUP($W26,'Transporte RR-2C'!B:AA,12,FALSE) -> 798.02 | L26: =VLOOKUP($W26,'Transporte RR-2C'!B:AA,13,FALSE) -> 3685.992464 | M26: =VLOOKUP($W26,'Transporte RR-2C'!B:AA,14,FALSE) -> 2034 | N26: =VLOOKUP($W26,'Transporte RR-2C'!B:AA,15,FALSE) -> 547 | O26: =VLOOKUP($W26,'Transporte RR-2C'!B:AA,18,FALSE) -> 649.95 | P26: =VLOOKUP($W26,'Transporte RR-2C'!B:AA,19,FALSE) -> 142.67 | Q26: =VLOOKUP($W26,'Transporte RR-2C'!B:AA,20,FALSE) -> 891.7 | R26: =VLOOKUP($W26,'Transporte RR-2C'!B:AA,21,FALSE) -> 1684.32 | S26: =VLOOKUP($W26,'Transporte RR-2C'!B:AA,22,FALSE) -> 508.8 | T26: =VLOOKUP($W26,'Transporte RR-2C'!B:AA,23,FALSE) -> 36.34285714 | U26: =VLOOKUP($W26,'Transporte RR-2C'!B:AA,24,FALSE) -> 1720.662857 | V26: =VLOOKUP($W26,'Transporte RR-2C'!B:AA,25,FALSE) -> 3685.992464 | W26: =SMALL('Transporte RR-2C'!AA15:AA35,3) -> 5406.655321
B27: 4 | D27: Refinaria Abreu e Lima | E27: Rodovia PE 60, Km 10 - Ipojuca - PE CEP:55590-000 | F27: =VLOOKUP($W27,'Transporte RR-2C'!B:AA,7,FALSE) -> UBERLANDIA - MG | G27: =VLOOKUP($W27,'Transporte RR-2C'!B:AA,8,FALSE) -> Porto Grande -AP | H27: =VLOOKUP($W27,'Transporte RR-2C'!B:AA,9,FALSE) -> 2.749811006 | I27: =VLOOKUP($W27,'Transporte RR-2C'!B:AA,10,FALSE) -> 2.711208149 | J27: =VLOOKUP($W27,'Transporte RR-2C'!B:AA,11,FALSE) -> 2749.811006 | K27: =VLOOKUP($W27,'Transporte RR-2C'!B:AA,12,FALSE) -> 759.84 | L27: =VLOOKUP($W27,'Transporte RR-2C'!B:AA,13,FALSE) -> 3509.651006 | M27: =VLOOKUP($W27,'Transporte RR-2C'!B:AA,14,FALSE) -> 2379 | N27: =VLOOKUP($W27,'Transporte RR-2C'!B:AA,15,FALSE) -> 547 | O27: =VLOOKUP($W27,'Transporte RR-2C'!B:AA,18,FALSE) -> 737.24 | P27: =VLOOKUP($W27,'Transporte RR-2C'!B:AA,19,FALSE) -> 161.83 | Q27: =VLOOKUP($W27,'Transporte RR-2C'!B:AA,20,FALSE) -> 1011.46 | R27: =VLOOKUP($W27,'Transporte RR-2C'!B:AA,21,FALSE) -> 1910.53 | S27: =VLOOKUP($W27,'Transporte RR-2C'!B:AA,22,FALSE) -> 706.8 | T27: =VLOOKUP($W27,'Transporte RR-2C'!B:AA,23,FALSE) -> 50.48571429 | U27: =VLOOKUP($W27,'Transporte RR-2C'!B:AA,24,FALSE) -> 1961.015714 | V27: =VLOOKUP($W27,'Transporte RR-2C'!B:AA,25,FALSE) -> 3509.651006 | W27: =SMALL('Transporte RR-2C'!AA16:AA36,4) -> 5470.66672
B28: 5 | D28: Refinaria Potiguar Clara Camarão | E28: Rodovia RN 221, KM 25 - Guamaré - RN CEP:59598-000 | F28: =VLOOKUP($W28,'Transporte RR-2C'!B:AA,7,FALSE) -> PAULINIA - SP | G28: =VLOOKUP($W28,'Transporte RR-2C'!B:AA,8,FALSE) -> Porto Grande -AP | H28: =VLOOKUP($W28,'Transporte RR-2C'!B:AA,9,FALSE) -> 2.671296526 | I28: =VLOOKUP($W28,'Transporte RR-2C'!B:AA,10,FALSE) -> 2.711208149 | J28: =VLOOKUP($W28,'Transporte RR-2C'!B:AA,11,FALSE) -> 2671.296526 | K28: =VLOOKUP($W28,'Transporte RR-2C'!B:AA,12,FALSE) -> 738.14 | L28: =VLOOKUP($W28,'Transporte RR-2C'!B:AA,13,FALSE) -> 3409.436526 | M28: =VLOOKUP($W28,'Transporte RR-2C'!B:AA,14,FALSE) -> 2834 | N28: =VLOOKUP($W28,'Transporte RR-2C'!B:AA,15,FALSE) -> 547 | O28: =VLOOKUP($W28,'Transporte RR-2C'!B:AA,18,FALSE) -> 852.35 | P28: =VLOOKUP($W28,'Transporte RR-2C'!B:AA,19,FALSE) -> 187.1 | Q28: =VLOOKUP($W28,'Transporte RR-2C'!B:AA,20,FALSE) -> 1169.39 | R28: =VLOOKUP($W28,'Transporte RR-2C'!B:AA,21,FALSE) -> 2208.84 | S28: =VLOOKUP($W28,'Transporte RR-2C'!B:AA,22,FALSE) -> 1286.3 | T28: =VLOOKUP($W28,'Transporte RR-2C'!B:AA,23,FALSE) -> 91.87857143 | U28: =VLOOKUP($W28,'Transporte RR-2C'!B:AA,24,FALSE) -> 2300.718571 | V28: =VLOOKUP($W28,'Transporte RR-2C'!B:AA,25,FALSE) -> 3409.436526 | W28: =SMALL('Transporte RR-2C'!AA17:AA37,5) -> 5710.155097
B29: 6 | D29: Complexo Petroquímico do Rio de Janeiro (Comperj) | E29: Rodovia Estadual RJ-116 - Km 5,2 - Acesso A-1, s/n, Complemento Sambaetiba - Zona Urbana do 4º Distrito de Itaboraí - RJ CEP:24841-203 | F29: =VLOOKUP($W29,'Transporte RR-2C'!B:AA,7,FALSE) -> CAIEIRAS - SP | G29: =VLOOKUP($W29,'Transporte RR-2C'!B:AA,8,FALSE) -> Porto Grande -AP | H29: =VLOOKUP($W29,'Transporte RR-2C'!B:AA,9,FALSE) -> 2.671296526 | I29: =VLOOKUP($W29,'Transporte RR-2C'!B:AA,10,FALSE) -> 2.711208149 | J29: =VLOOKUP($W29,'Transporte RR-2C'!B:AA,11,FALSE) -> 2671.296526 | K29: =VLOOKUP($W29,'Transporte RR-2C'!B:AA,12,FALSE) -> 738.14 | L29: =VLOOKUP($W29,'Transporte RR-2C'!B:AA,13,FALSE) -> 3409.436526 | M29: =VLOOKUP($W29,'Transporte RR-2C'!B:AA,14,FALSE) -> 2932 | N29: =VLOOKUP($W29,'Transporte RR-2C'!B:AA,15,FALSE) -> 547 | O29: =VLOOKUP($W29,'Transporte RR-2C'!B:AA,18,FALSE) -> 877.15 | P29: =VLOOKUP($W29,'Transporte RR-2C'!B:AA,19,FALSE) -> 192.54 | Q29: =VLOOKUP($W29,'Transporte RR-2C'!B:AA,20,FALSE) -> 1203.41 | R29: =VLOOKUP($W29,'Transporte RR-2C'!B:AA,21,FALSE) -> 2273.1 | S29: =VLOOKUP($W29,'Transporte RR-2C'!B:AA,22,FALSE) -> 1459.1 | T29: =VLOOKUP($W29,'Transporte RR-2C'!B:AA,23,FALSE) -> 104.2214286 | U29: =VLOOKUP($W29,'Transporte RR-2C'!B:AA,24,FALSE) -> 2377.321429 | V29: =VLOOKUP($W29,'Transporte RR-2C'!B:AA,25,FALSE) -> 3409.436526 | W29: =SMALL('Transporte RR-2C'!AA18:AA38,6) -> 5786.757954

Sheet MOMENTO DE TRANSPORTE - PRINC
B5: ='RESUMO MODULO TOTAL'!B1 -> EXECUÇÃO DE SERVIÇOS DE PAVIMENTAÇÃO COM TRATAMENTO SUPERFICIAL DUPLO EM VIAS DE MUNICÍPIOS DIVERSOS INSERIDOS NA ÁREA DE ATUAÇÃO DA CODEVASF, NO ESTADO DO AMAPÁ (REGIÃO PORTO GRANDE)
B6: DATA BASE: | C6: ='RESUMO MODULO TOTAL'!$N$2 -> Amapá - Abril/2024
C8: RESUMO DO TRANSPORTE PRINCIPAL
B9: CODIGO | C9: DESCRIÇÃO | D9: TKM
B10: 5914359 | C10: =VLOOKUP(B10,'SINTÉTICO SICRO'!$A:$D,2,0) -> Transporte com caminhão basculante de 10 m³ - rodovia em leito natural | D10: =ROUND(SUMIF('MOMENTO DE TRANSPORTE - PRINC'!A:A,B10,'MOMENTO DE TRANSPORTE - PRINC'!K:K),2) -> 227514.56
B11: 5914314 | C11: =VLOOKUP(B11,'SINTÉTICO SICRO'!$A:$D,2,0) -> Transporte com caminhão basculante de 6 m³ - rodovia em leito natural | D11: =ROUND(SUMIF('MOMENTO DE TRANSPORTE - PRINC'!A:A,B11,'MOMENTO DE TRANSPORTE - PRINC'!K:K),2) -> 549.32
B12: 5914329 | C12: =VLOOKUP(B12,'SINTÉTICO SICRO'!$A:$D,2,0) -> Transporte com caminhão basculante de 6 m³ - rodovia em revestimento primário | D12: =ROUND(SUMIF('MOMENTO DE TRANSPORTE - PRINC'!A:A,B12,'MOMENTO DE TRANSPORTE - PRINC'!K:K),2) -> 0
B13: 5914344 | C13: =VLOOKUP(B13,'SINTÉTICO SICRO'!$A:$D,2,0) -> Transporte com caminhão basculante de 6 m³ - rodovia pavimentada | D13: =ROUND(SUMIF('MOMENTO DE TRANSPORTE - PRINC'!A:A,B13,'MOMENTO DE TRANSPORTE - PRINC'!K:K),2) -> 9865.8
B14: 5914374 | C14: =VLOOKUP(B14,'SINTÉTICO SICRO'!$A:$D,2,0) -> Transporte com caminhão basculante de 10 m³ - rodovia em revestimento primário | D14: =ROUND(SUMIF('MOMENTO DE TRANSPORTE - PRINC'!A:A,B14,'MOMENTO DE TRANSPORTE - PRINC'!K:K),2) -> 0
B15: 5914389 | C15: =VLOOKUP(B15,'SINTÉTICO SICRO'!$A:$D,2,0) -> Transporte com caminhão basculante de 10 m³ - rodovia pavimentada | D15: =ROUND(SUMIF('MOMENTO DE TRANSPORTE - PRINC'!A:A,B15,'MOMENTO DE TRANSPORTE - PRINC'!K:K),2) -> 2047631.04
B16: 5914539 | C16: =VLOOKUP(B16,'SINTÉTICO SICRO'!$A:$D,2,0) -> Transporte com caminhão betoneira - rodovia em leito natural | D16: =ROUND(SUMIF('MOMENTO DE TRANSPORTE - PRINC'!A:A,B16,'MOMENTO DE TRANSPORTE - PRINC'!K:K),2) -> 12096
B17: 5914554 | C17: =VLOOKUP(B17,'SINTÉTICO SICRO'!$A:$D,2,0) -> Transporte com caminhão betoneira - rodovia em revestimento primário | D17: =ROUND(SUMIF('MOMENTO DE TRANSPORTE - PRINC'!A:A,B17,'MOMENTO DE TRANSPORTE - PRINC'!K:K),2) -> 0
B18: 5914569 | C18: =VLOOKUP(B18,'SINTÉTICO SICRO'!$A:$D,2,0) -> Transporte com caminhão betoneira - rodovia pavimentada | D18: =ROUND(SUMIF('MOMENTO DE TRANSPORTE - PRINC'!A:A,B18,'MOMENTO DE TRANSPORTE - PRINC'!K:K),2) -> 108864
B20: TIPO (P, RP ou LN) | C20: DMT ESTIMADA (DISTRIBUIÇÃO DO ITEM NA PISTA
B21: P | C21: -
B23: COMPOSIÇÕES PRINCIPAIS
B24: SISTEMA DE CUSTOS REFERENCIAIS DE OBRAS - SICRO
B25: Custo Unitário de Referência | E25: =$C$6 -> Amapá - Abril/2024 | I25: Quantitativo | K25: m²
B26: ='RESUMO MODULO TOTAL'!$D$23 -> 4915637 | C26: =VLOOKUP(B26,'SINTÉTICO SICRO'!$A$4:$D$1048576,2,0) -> Capa selante - areia comercial | I26: =(SUMIF('RESUMO MODULO TOTAL'!D:D,B26,'RESUMO MODULO TOTAL'!J:J))*0.9 -> 252000
B27: F - MOMENTO DE TRANSPORTE | D27: Quantidade | E27: Unidade | F27: CÓDIGO TRANSPORTE
F28: LN | G28: RP | H28: P | I28: TIPO (P, RP ou LN) | J28: DMT ESTIMADA (km) | K28: QUANTITATIVO TOTAL DE TRANSPORTE (tkm)
A29: =IF(I29="P",H29,IF(I29="RP",G29,IF(I29="LN",F29,""))) -> 5914344 | B29: M0028 | C29: Areia média - Caminhão Basculante com capacidade de 6m³ | D29: 0.00435 | E29: tkm | F29: 5914314 | G29: 5914329 | H29: 5914344 | I29: =$B$21 -> P | J29: 9 | K29: =IF(ISBLANK(J29),"",J29*D29)*I26 -> 9865.8
A30: =IF(I30="P",H30,IF(I30="RP",G30,IF(I30="LN",F30,""))) -> 
B31: Obs.
B32: SISTEMA DE CUSTOS REFERENCIAIS DE OBRAS - SICRO
B33: Custo Unitário de Referência | E33: =$C$6 -> Amapá - Abril/2024 | I33: Quantitativo | K33: m²
B34: ='RESUMO MODULO TOTAL'!$D$24 -> 4011370 | C34: =VLOOKUP(B34,'SINTÉTICO SICRO'!$A$4:$D$1048576,2,0) -> Tratamento superficial duplo com emulsão - brita comercial | I34: =(SUMIF('RESUMO MODULO TOTAL'!D:D,B34,'RESUMO MODULO TOTAL'!J:J))*0.9 -> 252000
B35: F - MOMENTO DE TRANSPORTE | D35: Quantidade | E35: Unidade | F35: CÓDIGO TRANSPORTE
F36: LN | G36: RP | H36: P | I36: TIPO (P, RP ou LN) | J36: DMT ESTIMADA (km) | K36: QUANTITATIVO TOTAL DE TRANSPORTE (tkm)
A37: =IF(I37="P",H37,IF(I37="RP",G37,IF(I37="LN",F37,""))) -> 5914389 | B37: M005 | C37: Brita 0 - Caminhão basculante com capacidade de 10 m³ - 188 Kw | D37: 0.011 | E37: tkm | F37: 5914359 | G37: 5914374 | H37: 5914389 | I37: =$B$21 -> P | J37: 7 | K37: =IF(ISBLANK(J37),"",J37*D37)*I34 -> 19404
A38: =IF(I38="P",H38,IF(I38="RP",G38,IF(I38="LN",F38,""))) -> 5914389 | B38: M0191 | C38: Brita 1 - Caminhão basculante com capacidade de 10 m³ - 188 kW | D38: 0.0225 | E38: tkm | F38: 5914359 | G38: 5914374 | H38: 5914389 | I38: =$B$21 -> P | J38: =J37 -> 7 | K38: =IF(ISBLANK(J38),"",J38*D38)*I34 -> 39690
A39: =IF(I39="P",H39,IF(I39="RP",G39,IF(I39="LN",F39,""))) -> 
B42: Custo Unitário de Referência | E42: =$C$6 -> Amapá - Abril/2024 | I42: Quantitativo | K42: un
B43: ='RESUMO MODULO TOTAL'!$D$26 -> CPU-20 | C43: Base estabilizada granulometricamente com mistura solo areia (70% - 30%) na pista com material de jazida e areia comercial | I43: =(SUMIF('RESUMO MODULO TOTAL'!D:D,B43,'RESUMO MODULO TOTAL'!J:J))*0.9 -> 37800
B44: D - ATIVIDADES AUXILIARES | D44: Quantidade | E44: Unidade
B45: 4016096 | C45: =VLOOKUP(B45,'SINTÉTICO SICRO'!$A$4:$D$1048576,2,0) -> Escavação e carga de material de jazida com escavadeira hidráulica de 1,56 m³ | D45: 0,77019 | E45: m³
B47: F - MOMENTO DE TRANSPORTE | D47: Quantidade | E47: Unidade | F47: CÓDIGO TRANSPORTE
F48: LN | G48: RP | H48: P | I48: TIPO (P, RP ou LN) | J48: DMT ESTIMADA (km) | K48: QUANTITATIVO TOTAL DE TRANSPORTE (tkm)
A49: 5914389 | B49: 4016096 | C49: =VLOOKUP(B49,'SINTÉTICO SICRO'!$A$4:$D$1048576,2,0) -> Escavação e carga de material de jazida com escavadeira hidráulica de 1,56 m³ | D49: 1,44411 | E49: tkm | F49: 5914359 | G49: 5914374 | H49: 5914389 | I49: =$B$21 -> P | J49: 15 | K49: =IF(ISBLANK(J49),"",J49*D49)*I43 -> 818810.37
B51: Obs.
B52: SISTEMA DE CUSTOS REFERENCIAIS DE OBRAS - SICRO
B53: Custo Unitário de Referência | I53: Quantitativo | K53: m³
B54: 4011227 | C54: =VLOOKUP(B54,'SINTÉTICO SICRO'!A:D,2,0) -> Sub-base de solo estabilizado granulometricamente sem mistura com material de jazida | I54: =SUMIF('RESUMO MODULO TOTAL'!D:D,B54,'RESUMO MODULO TOTAL'!J:J)*0.9 -> 37800
B55: D - ATIVIDADES AUXILIARES | D55: Quantidade | E55: Unidade
B56: 4016096 | C56: =VLOOKUP(B56,'SINTÉTICO SICRO'!A:D,2,0) -> Escavação e carga de material de jazida com escavadeira hidráulica de 1,56 m³ | D56: 1.10027 | E56: m³
B58: F - MOMENTO DE TRANSPORTE | D58: Quantidade | E58: Unidade | F58: CÓDIGO TRANSPORTE
F59: LN | G59: RP | H59: P | I59: TIPO (P, RP ou LN) | J59: DMT ESTIMADA (km) | K59: QUANTITATIVO TOTAL DE TRANSPORTE (tkm)
A60: =IF(I60="P",H60,IF(I60="RP",G60,IF(I60="LN",F60,""))) -> 5914389 | B60: 4016096 | C60: =VLOOKUP(B60,'SINTÉTICO SICRO'!A:D,2,0) -> Escavação e carga de material de jazida com escavadeira hidráulica de 1,56 m³ | D60: 2.06301 | E60: tkm | F60: 5914359 | G60: 5914374 | H60: 5914389 | I60: =$B$21 -> P | J60: 15 | K60: =IF(ISBLANK(J60),"",J60*D60)*I54 -> 1169726.67
B62: Obs.
B64: SISTEMA DE CUSTOS REFERENCIAIS DE OBRAS - SICRO
B65: Custo Unitário de Referência | I65: Quantitativo | K65: m
B66: 2003943 | C66: =VLOOKUP(B66,'SINTÉTICO SICRO'!A:D,2,0) -> Meio-fio de concreto - MFC 03 moldado no local com extrusora e concreto usinado - areia e brita comerciais | I66: =SUMIF('RESUMO MODULO TOTAL'!D:D,B66,'RESUMO MODULO TOTAL'!J:J)*0.9 -> 72000
B67: D - ATIVIDADES AUXILIARES | D67: Quantidade | E67: Unidade
B68: 1107928 | C68: =VLOOKUP(B68,'SINTÉTICO SICRO'!A:D,2,0) -> Concreto fck = 20 MPa - confecção em central dosadora de 30 m³/h - areia e brita comerciais | D68: 0.042 | E68: m³
B69: 2003842 | C69: =VLOOKUP(B69,'SINTÉTICO SICRO'!A:D,2,0) -> Enchimento de junta de concreto com argamassa asfáltica de densidade 1.700 kg/m³ - espessura de 1 cm | D69: 0.0595 | E69: kg
B70: 4805750 | C70: =VLOOKUP(B70,'SINTÉTICO SICRO'!A:D,2,0) -> Escavação manual em material de 1ª categoria na profundidade de até 1 m | D70: 0.03 | E70: m³
B72: F - MOMENTO DE TRANSPORTE | D72: Quantidade | E72: Unidade | F72: CÓDIGO TRANSPORTE
F73: LN | G73: RP | H73: P | I73: TIPO (P, RP ou LN) | J73: DMT ESTIMADA (km) | K73: QUANTITATIVO TOTAL DE TRANSPORTE (tkm)
A74: =IF(I74="P",H74,IF(I74="RP",G74,IF(I74="LN",F74,""))) -> 5914569 | B74: 1107928 | C74: =VLOOKUP(B74,'SINTÉTICO SICRO'!A:D,2,0) -> Concreto fck = 20 MPa - confecção em central dosadora de 30 m³/h - areia e brita comerciais | D74: 0.1008 | E74: tkm | F74: 5914539 | G74: 5914554 | H74: 5914569 | I74: =$B$21 -> P | J74: 15 | K74: =IF(ISBLANK(J74),"",J74*D74)*I66 -> 108864
B75: Obs.
B76: TIPO (P, RP ou LN) | C76: DMT ESTIMADA (DISTRIBUIÇÃO DO ITEM NA PISTA
B77: RP | C77: 0
B79: COMPOSIÇÕES PRINCIPAIS
B80: SISTEMA DE CUSTOS REFERENCIAIS DE OBRAS - SICRO
B81: Custo Unitário de Referência | E81: =$C$6 -> Amapá - Abril/2024 | I81: Quantitativo | K81: m²
B82: ='RESUMO MODULO TOTAL'!$D$23 -> 4915637 | C82: =VLOOKUP(B82,'SINTÉTICO SICRO'!$A$4:$D$1048576,2,0) -> Capa selante - areia comercial | I82: =(SUMIF('RESUMO MODULO TOTAL'!D:D,B82,'RESUMO MODULO TOTAL'!J:J))*0 -> 0
B83: F - MOMENTO DE TRANSPORTE | D83: Quantidade | E83: Unidade | F83: CÓDIGO TRANSPORTE
F84: LN | G84: RP | H84: P | I84: TIPO (P, RP ou LN) | J84: DMT ESTIMADA (km) | K84: QUANTITATIVO TOTAL DE TRANSPORTE (tkm)
A85: =IF(I85="P",H85,IF(I85="RP",G85,IF(I85="LN",F85,""))) -> 5914329 | B85: M0028 | C85: Areia média - Caminhão Basculante com capacidade de 6m³ | D85: 0.00435 | E85: tkm | F85: 5914314 | G85: 5914329 | H85: 5914344 | I85: =$B$77 -> RP | J85: =$C$77 -> 0 | K85: =IF(ISBLANK(J85),"",J85*D85)*I82 -> 0
A86: =IF(I86="P",H86,IF(I86="RP",G86,IF(I86="LN",F86,""))) -> 
B87: Obs.
B88: SISTEMA DE CUSTOS REFERENCIAIS DE OBRAS - SICRO
B89: Custo Unitário de Referência | E89: =$C$6 -> Amapá - Abril/2024 | I89: Quantitativo | K89: m²
B90: ='RESUMO MODULO TOTAL'!$D$24 -> 4011370 | C90: =VLOOKUP(B90,'SINTÉTICO SICRO'!$A$4:$D$1048576,2,0) -> Tratamento superficial duplo com emulsão - brita comercial | I90: =(SUMIF('RESUMO MODULO TOTAL'!D:D,B90,'RESUMO MODULO TOTAL'!J:J))*0 -> 0
B91: F - MOMENTO DE TRANSPORTE | D91: Quantidade | E91: Unidade | F91: CÓDIGO TRANSPORTE
F92: LN | G92: RP | H92: P | I92: TIPO (P, RP ou LN) | J92: DMT ESTIMADA (km) | K92: QUANTITATIVO TOTAL DE TRANSPORTE (tkm)
A93: =IF(I93="P",H93,IF(I93="RP",G93,IF(I93="LN",F93,""))) -> 5914374 | B93: M005 | C93: Brita 0 - Caminhão basculante com capacidade de 10 m³ - 188 Kw | D93: 0.011 | E93: tkm | F93: 5914359 | G93: 5914374 | H93: 5914389 | I93: =$B$77 -> RP | J93: =$C$77 -> 0 | K93: =IF(ISBLANK(J93),"",J93*D93)*I90 -> 0
A94: =IF(I94="P",H94,IF(I94="RP",G94,IF(I94="LN",F94,""))) -> 5914374 | B94: M0191 | C94: Brita 1 - Caminhão basculante com capacidade de 10 m³ - 188 kW | D94: 0.0225 | E94: tkm | F94: 5914359 | G94: 5914374 | H94: 5914389 | I94: RP | J94: 0 | K94: =IF(ISBLANK(J94),"",J94*D94)*I90 -> 0
A95: =IF(I95="P",H95,IF(I95="RP",G95,IF(I95="LN",F95,""))) -> 
B98: Custo Unitário de Referência | E98: =$C$6 -> Amapá - Abril/2024 | I98: Quantitativo | K98: un
B99: ='RESUMO MODULO TOTAL'!$D$26 -> CPU-20 | C99: Base estabilizada granulometricamente com mistura solo areia (70% - 30%) na pista com material de jazida e areia comercial | I99: =(SUMIF('RESUMO MODULO TOTAL'!D:D,B99,'RESUMO MODULO TOTAL'!J:J))*0 -> 0
B100: D - ATIVIDADES AUXILIARES | D100: Quantidade | E100: Unidade
B101: 4016096 | C101: =VLOOKUP(B101,'SINTÉTICO SICRO'!$A$4:$D$1048576,2,0) -> Escavação e carga de material de jazida com escavadeira hidráulica de 1,56 m³ | D101: 0,77019 | E101: m³
B103: F - MOMENTO DE TRANSPORTE | D103: Quantidade | E103: Unidade | F103: CÓDIGO TRANSPORTE
F104: LN | G104: RP | H104: P | I104: TIPO (P, RP ou LN) | J104: DMT ESTIMADA (km) | K104: QUANTITATIVO TOTAL DE TRANSPORTE (tkm)
A105: 5914374 | B105: 4016096 | C105: =VLOOKUP(B105,'SINTÉTICO SICRO'!$A$4:$D$1048576,2,0) -> Escavação e carga de material de jazida com escavadeira hidráulica de 1,56 m³ | D105: 1,44411 | E105: tkm | F105: 5914359 | G105: 5914374 | H105: 5914389 | I105: =$B$77 -> RP | J105: =$C$77 -> 0 | K105: =IF(ISBLANK(J105),"",J105*D105)*I99 -> 0
B107: Obs.
B108: SISTEMA DE CUSTOS REFERENCIAIS DE OBRAS - SICRO
B109: Custo Unitário de Referência | I109: Quantitativo | K109: m³
B110: 4011227 | C110: =VLOOKUP(B110,'SINTÉTICO SICRO'!A:D,2,0) -> Sub-base de solo estabilizado granulometricamente sem mistura com material de jazida | I110: =SUMIF('RESUMO MODULO TOTAL'!D:D,B110,'RESUMO MODULO TOTAL'!J:J)*0 -> 0
B111: D - ATIVIDADES AUXILIARES | D111: Quantidade | E111: Unidade
B112: 4016096 | C112: =VLOOKUP(B112,'SINTÉTICO SICRO'!A:D,2,0) -> Escavação e carga de material de jazida com escavadeira hidráulica de 1,56 m³ | D112: 1.10027 | E112: m³
B114: F - MOMENTO DE TRANSPORTE | D114: Quantidade | E114: Unidade | F114: CÓDIGO TRANSPORTE
F115: LN | G115: RP | H115: P | I115: TIPO (P, RP ou LN) | J115: DMT ESTIMADA (km) | K115: QUANTITATIVO TOTAL DE TRANSPORTE (tkm)
A116: =IF(I116="P",H116,IF(I116="RP",G116,IF(I116="LN",F116,""))) -> 5914374 | B116: 4016096 | C116: =VLOOKUP(B116,'SINTÉTICO SICRO'!A:D,2,0) -> Escavação e carga de material de jazida com escavadeira hidráulica de 1,56 m³ | D116: 2.06301 | E116: tkm | F116: 5914359 | G116: 5914374 | H116: 5914389 | I116: =$B$77 -> RP | J116: =$C$77 -> 0 | K116: =IF(ISBLANK(J116),"",J116*D116)*I110 -> 0
B118: Obs.
B120: SISTEMA DE CUSTOS REFERENCIAIS DE OBRAS - SICRO
B121: Custo Unitário de Referência | I121: Quantitativo | K121: m
B122: 2003943 | C122: =VLOOKUP(B122,'SINTÉTICO SICRO'!A:D,2,0) -> Meio-fio de concreto - MFC 03 moldado no local com extrusora e concreto usinado - areia e brita comerciais | I122: =SUMIF('RESUMO MODULO TOTAL'!D:D,B122,'RESUMO MODULO TOTAL'!J:J)*0 -> 0
B123: D - ATIVIDADES AUXILIARES | D123: Quantidade | E123: Unidade
B124: 1107928 | C124: =VLOOKUP(B124,'SINTÉTICO SICRO'!A:D,2,0) -> Concreto fck = 20 MPa - confecção em central dosadora de 30 m³/h - areia e brita comerciais | D124: 0.042 | E124: m³
B125: 2003842 | C125: =VLOOKUP(B125,'SINTÉTICO SICRO'!A:D,2,0) -> Enchimento de junta de concreto com argamassa asfáltica de densidade 1.700 kg/m³ - espessura de 1 cm | D125: 0.0595 | E125: kg
B126: 4805750 | C126: =VLOOKUP(B126,'SINTÉTICO SICRO'!A:D,2,0) -> Escavação manual em material de 1ª categoria na profundidade de até 1 m | D126: 0.03 | E126: m³
B128: F - MOMENTO DE TRANSPORTE | D128: Quantidade | E128: Unidade | F128: CÓDIGO TRANSPORTE
F129: LN | G129: RP | H129: P | I129: TIPO (P, RP ou LN) | J129: DMT ESTIMADA (km) | K129: QUANTITATIVO TOTAL DE TRANSPORTE (tkm)
A130: =IF(I130="P",H130,IF(I130="RP",G130,IF(I130="LN",F130,""))) -> 5914554 | B130: 1107928 | C130: =VLOOKUP(B130,'SINTÉTICO SICRO'!A:D,2,0) -> Concreto fck = 20 MPa - confecção em central dosadora de 30 m³/h - areia e brita comerciais | D130: 0.1008 | E130: tkm | F130: 5914539 | G130: 5914554 | H130: 5914569 | I130: =$B$77 -> RP | J130: =$C$77 -> 0 | K130: =IF(ISBLANK(J130),"",J130*D130)*I122 -> 0
B131: Obs.
B132: TIPO (P, RP ou LN) | C132: DMT ESTIMADA (DISTRIBUIÇÃO DO ITEM NA PISTA
B133: LN | C133: -
B135: COMPOSIÇÕES PRINCIPAIS
B136: SISTEMA DE CUSTOS REFERENCIAIS DE OBRAS - SICRO
B137: Custo Unitário de Referência | E137: =$C$6 -> Amapá - Abril/2024 | I137: Quantitativo | K137: m²
B138: ='RESUMO MODULO TOTAL'!$D$23 -> 4915637 | C138: =VLOOKUP(B138,'SINTÉTICO SICRO'!$A$4:$D$1048576,2,0) -> Capa selante - areia comercial | I138: =(SUMIF('RESUMO MODULO TOTAL'!D:D,B138,'RESUMO MODULO TOTAL'!J:J))*0.1 -> 28000
B139: F - MOMENTO DE TRANSPORTE | D139: Quantidade | E139: Unidade | F139: CÓDIGO TRANSPORTE
F140: LN | G140: RP | H140: P | I140: TIPO (P, RP ou LN) | J140: DMT ESTIMADA (km) | K140: QUANTITATIVO TOTAL DE TRANSPORTE (tkm)
A141: =IF(I141="P",H141,IF(I141="RP",G141,IF(I141="LN",F141,""))) -> 5914314 | B141: M0028 | C141: Areia média - Caminhão Basculante com capacidade de 6m³ | D141: 0.00435 | E141: tkm | F141: 5914314 | G141: 5914329 | H141: 5914344 | I141: =$B$133 -> LN | J141: =4.51 -> 4.51 | K141: =IF(ISBLANK(J141),"",J141*D141)*I138 -> 549.318
A142: =IF(I142="P",H142,IF(I142="RP",G142,IF(I142="LN",F142,""))) -> 
B143: Obs.
B144: SISTEMA DE CUSTOS REFERENCIAIS DE OBRAS - SICRO
B145: Custo Unitário de Referência | E145: =$C$6 -> Amapá - Abril/2024 | I145: Quantitativo | K145: m²
B146: ='RESUMO MODULO TOTAL'!$D$24 -> 4011370 | C146: =VLOOKUP(B146,'SINTÉTICO SICRO'!$A$4:$D$1048576,2,0) -> Tratamento superficial duplo com emulsão - brita comercial | I146: =(SUMIF('RESUMO MODULO TOTAL'!D:D,B146,'RESUMO MODULO TOTAL'!J:J))*0.1 -> 28000
B147: F - MOMENTO DE TRANSPORTE | D147: Quantidade | E147: Unidade | F147: CÓDIGO TRANSPORTE
F148: LN | G148: RP | H148: P | I148: TIPO (P, RP ou LN) | J148: DMT ESTIMADA (km) | K148: QUANTITATIVO TOTAL DE TRANSPORTE (tkm)
A149: =IF(I149="P",H149,IF(I149="RP",G149,IF(I149="LN",F149,""))) -> 5914359 | B149: M005 | C149: Brita 0 - Caminhão basculante com capacidade de 10 m³ - 188 Kw | D149: 0.011 | E149: tkm | F149: 5914359 | G149: 5914374 | H149: 5914389 | I149: =$B$133 -> LN | J149: 7 | K149: =IF(ISBLANK(J149),"",J149*D149)*I146 -> 2156
A150: =IF(I150="P",H150,IF(I150="RP",G150,IF(I150="LN",F150,""))) -> 5914359 | B150: M0191 | C150: Brita 1 - Caminhão basculante com capacidade de 10 m³ - 188 kW | D150: 0.0225 | E150: tkm | F150: 5914359 | G150: 5914374 | H150: 5914389 | I150: LN | J150: =J149 -> 7 | K150: =IF(ISBLANK(J150),"",J150*D150)*I146 -> 4410
A151: =IF(I151="P",H151,IF(I151="RP",G151,IF(I151="LN",F151,""))) -> 
B153: SISTEMA DE CUSTOS REFERENCIAIS DE OBRAS - SICRO
B154: Custo Unitário de Referência | E154: =$C$6 -> Amapá - Abril/2024 | I154: Quantitativo | K154: un
B155: ='RESUMO MODULO TOTAL'!$D$26 -> CPU-20 | C155: Base estabilizada granulometricamente com mistura solo areia (70% - 30%) na pista com material de jazida e areia comercial | I155: =(SUMIF('RESUMO MODULO TOTAL'!D:D,B155,'RESUMO MODULO TOTAL'!J:J))*0.1 -> 4200
B156: D - ATIVIDADES AUXILIARES | D156: Quantidade | E156: Unidade
B157: 4016096 | C157: =VLOOKUP(B157,'SINTÉTICO SICRO'!$A$4:$D$1048576,2,0) -> Escavação e carga de material de jazida com escavadeira hidráulica de 1,56 m³ | D157: 0,77019 | E157: m³
B159: F - MOMENTO DE TRANSPORTE | D159: Quantidade | E159: Unidade | F159: CÓDIGO TRANSPORTE
F160: LN | G160: RP | H160: P | I160: TIPO (P, RP ou LN) | J160: DMT ESTIMADA (km) | K160: QUANTITATIVO TOTAL DE TRANSPORTE (tkm)
A161: 5914359 | B161: 4016096 | C161: =VLOOKUP(B161,'SINTÉTICO SICRO'!$A$4:$D$1048576,2,0) -> Escavação e carga de material de jazida com escavadeira hidráulica de 1,56 m³ | D161: 1,44411 | E161: tkm | F161: 5914359 | G161: 5914374 | H161: 5914389 | I161: =$B$133 -> LN | J161: 15 | K161: =IF(ISBLANK(J161),"",J161*D161)*I155 -> 90978.93
B163: Obs.
B164: SISTEMA DE CUSTOS REFERENCIAIS DE OBRAS - SICRO
B165: Custo Unitário de Referência | I165: Quantitativo | K165: m³
B166: 4011227 | C166: =VLOOKUP(B166,'SINTÉTICO SICRO'!A:D,2,0) -> Sub-base de solo estabilizado granulometricamente sem mistura com material de jazida | I166: =SUMIF('RESUMO MODULO TOTAL'!D:D,B166,'RESUMO MODULO TOTAL'!J:J)*0.1 -> 4200
B167: D - ATIVIDADES AUXILIARES | D167: Quantidade | E167: Unidade
B168: 4016096 | C168: =VLOOKUP(B168,'SINTÉTICO SICRO'!A:D,2,0) -> Escavação e carga de material de jazida com escavadeira hidráulica de 1,56 m³ | D168: 1.10027 | E168: m³
B170: F - MOMENTO DE TRANSPORTE | D170: Quantidade | E170: Unidade | F170: CÓDIGO TRANSPORTE
F171: LN | G171: RP | H171: P | I171: TIPO (P, RP ou LN) | J171: DMT ESTIMADA (km) | K171: QUANTITATIVO TOTAL DE TRANSPORTE (tkm)
A172: =IF(I172="P",H172,IF(I172="RP",G172,IF(I172="LN",F172,""))) -> 5914359 | B172: 4016096 | C172: =VLOOKUP(B172,'SINTÉTICO SICRO'!A:D,2,0) -> Escavação e carga de material de jazida com escavadeira hidráulica de 1,56 m³ | D172: 2.06301 | E172: tkm | F172: 5914359 | G172: 5914374 | H172: 5914389 | I172: =$B$133 -> LN | J172: 15 | K172: =IF(ISBLANK(J172),"",J172*D172)*I166 -> 129969.63
B174: Obs.
B176: SISTEMA DE CUSTOS REFERENCIAIS DE OBRAS - SICRO
B177: Custo Unitário de Referência | I177: Quantitativo | K177: m
B178: 2003943 | C178: =VLOOKUP(B178,'SINTÉTICO SICRO'!A:D,2,0) -> Meio-fio de concreto - MFC 03 moldado no local com extrusora e concreto usinado - areia e brita comerciais | I178: =SUMIF('RESUMO MODULO TOTAL'!D:D,B178,'RESUMO MODULO TOTAL'!J:J)*0.1 -> 8000
B179: D - ATIVIDADES AUXILIARES | D179: Quantidade | E179: Unidade
B180: 1107928 | C180: =VLOOKUP(B180,'SINTÉTICO SICRO'!A:D,2,0) -> Concreto fck = 20 MPa - confecção em central dosadora de 30 m³/h - areia e brita comerciais | D180: 0.042 | E180: m³
B181: 2003842 | C181: =VLOOKUP(B181,'SINTÉTICO SICRO'!A:D,2,0) -> Enchimento de junta de concreto com argamassa asfáltica de densidade 1.700 kg/m³ - espessura de 1 cm | D181: 0.0595 | E181: kg
B182: 4805750 | C182: =VLOOKUP(B182,'SINTÉTICO SICRO'!A:D,2,0) -> Escavação manual em material de 1ª categoria na profundidade de até 1 m | D182: 0.03 | E182: m³
B184: F - MOMENTO DE TRANSPORTE | D184: Quantidade | E184: Unidade | F184: CÓDIGO TRANSPORTE
F185: LN | G185: RP | H185: P | I185: TIPO (P, RP ou LN) | J185: DMT ESTIMADA (km) | K185: QUANTITATIVO TOTAL DE TRANSPORTE (tkm)
A186: =IF(I186="P",H186,IF(I186="RP",G186,IF(I186="LN",F186,""))) -> 5914539 | B186: 1107928 | C186: =VLOOKUP(B186,'SINTÉTICO SICRO'!A:D,2,0) -> Concreto fck = 20 MPa - confecção em central dosadora de 30 m³/h - areia e brita comerciais | D186: 0.1008 | E186: tkm | F186: 5914539 | G186: 5914554 | H186: 5914569 | I186: =$B$133 -> LN | J186: 15 | K186: =IF(ISBLANK(J186),"",J186*D186)*I178 -> 12096
B187: Obs.

Sheet MOMENTO DE TRANSPORTE - AUX
B5: ='RESUMO MODULO TOTAL'!B1 -> EXECUÇÃO DE SERVIÇOS DE PAVIMENTAÇÃO COM TRATAMENTO SUPERFICIAL DUPLO EM VIAS DE MUNICÍPIOS DIVERSOS INSERIDOS NA ÁREA DE ATUAÇÃO DA CODEVASF, NO ESTADO DO AMAPÁ (REGIÃO PORTO GRANDE)
B6: DATA BASE: | C6: ='RESUMO MODULO TOTAL'!$N$2 -> Amapá - Abril/2024
C8: RESUMO DO TRANSPORTE AUXILIAR
B9: CODIGO | C9: DESCRIÇÃO | D9: TKM
B10: 5914359 | C10: =VLOOKUP(B10,'SINTÉTICO SICRO'!$A:$D,2,0) -> Transporte com caminhão basculante de 10 m³ - rodovia em leito natural | D10: =ROUND(SUMIF($A:$A,B10,$K:$K),2) -> 0
B11: 5914374 | C11: =VLOOKUP(B11,'SINTÉTICO SICRO'!$A:$D,2,0) -> Transporte com caminhão basculante de 10 m³ - rodovia em revestimento primário | D11: 0
B12: 5914389 | C12: =VLOOKUP(B12,'SINTÉTICO SICRO'!$A:$D,2,0) -> Transporte com caminhão basculante de 10 m³ - rodovia pavimentada | D12: 0
B13: 5914449 | C13: =VLOOKUP(B13,'SINTÉTICO SICRO'!$A:$D,2,0) -> Transporte com caminhão carroceria de 15 t - rodovia em leito natural | D13: 0
B14: 5914464 | C14: =VLOOKUP(B14,'SINTÉTICO SICRO'!$A:$D,2,0) -> Transporte com caminhão carroceria de 15 t - rodovia em revestimento primário | D14: 0
B15: 5914479 | C15: =VLOOKUP(B15,'SINTÉTICO SICRO'!$A:$D,2,0) -> Transporte com caminhão carroceria de 15 t - rodovia pavimentada | D15: 1297.7
B16: 5914364 | C16: =VLOOKUP(B16,'SINTÉTICO SICRO'!$A:$D,2,0) -> Transporte de cimento ou cal hidratada a granel com caminhão silo de 30 m³ - rodovia em leito natural | D16: 0
B17: 5914365 | C17: =VLOOKUP(B17,'SINTÉTICO SICRO'!$A:$D,2,0) -> Transporte de cimento ou cal hidratada a granel com caminhão silo de 30 m³ - rodovia em revestimento primário | D17: 0
B18: 5914366 | C18: =VLOOKUP(B18,'SINTÉTICO SICRO'!$A:$D,2,0) -> Transporte de cimento ou cal hidratada a granel com caminhão silo de 30 m³ - rodovia pavimentada | D18: 0
B20: TIPO (P, RP ou LN) | C20: DMT ATÉ 50 KM NÃO DEVE SER PAGA | D20: SOMENTE DEVE SER ADICIONADO A DISTÂNCIA EXCEDENTE A 50 KM
B21: P
B23: SISTEMA DE CUSTOS REFERENCIAIS DE OBRAS - SICRO | I23: Quantitivo
B24: Custo Unitário de Referência | E24: =$C$6 -> Amapá - Abril/2024 | I24: (Coeficiente na composição principal) x (quantidade da principal no orçamento) | K24: m³
B25: 1107892 | C25: Concreto fck = 20 MPa - confecção em betoneira e lançamento manual - areia e brita comerciais | I25: =('MOMENTO DE TRANSPORTE - PRINC'!D68*VLOOKUP(C34,'RESUMO MODULO TOTAL'!D:W,7,FALSE)) -> 3360
B26: F - MOMENTO DE TRANSPORTE | D26: Quantidade | E26: Unidade | F26: DMT
F27: LN | G27: RP | H27: P | I27: TIPO (P, RP ou LN) | J27: DMT ESTIMADA (km) | K27: QUANTITATIVO TOTAL DE TRANSPORTE DE MATERIAL (tkm)
A28: =IF(I28="P",H28,IF(I28="RP",G28,IF(I28="LN",F28,""))) -> 5914479 | B28: M0030 | C28: Aditivo plastificante e retardador de pega para concreto e argamassa - Caminhão carroceria 15 t | D28: 0.00082 | E28: tkm | F28: 5914449 | G28: 5914464 | H28: 5914479 | I28: =$B$21 -> P | J28: =521-50 -> 471 | K28: =IF(ISBLANK(J28),"",J28*(D28*$I$25)) -> 1297.6992
A29: 5914389 | B29: M0082 | C29: Areia média lavada - Caminhão basculante 10 m³ | D29: 0.95639 | E29: tkm | F29: 5914359 | G29: 5914374 | H29: 5914389 | I29: =$B$21 -> P | J29: 0 | K29: =IF(ISBLANK(J29),"",J29*(D29*$I$25)) -> 0
A30: 5914389 | B30: M0191 | C30: Brita 1 - Caminhão basculante 10 m³ | D30: 0.55131 | E30: tkm | F30: 5914359 | G30: 5914374 | H30: 5914389 | I30: P | J30: 0 | K30: =IF(ISBLANK(J30),"",J30*(D30*$I$25)) -> 0
A31: 5914389 | B31: M0192 | C31: Brita 2 - Caminhão basculante 10 m³ | D31: 0.55131 | E31: tkm | F31: 5914359 | G31: 5914374 | H31: 5914389 | I31: P | J31: 0 | K31: =IF(ISBLANK(J31),"",J31*(D31*$I$25)) -> 0
A32: 5914479 | B32: M0424 | C32: Cimento Portland CP II - 32 - saco - Caminhão carroceria 15 t | D32: 0.27464 | E32: tkm | F32: 5914449 | G32: 5914464 | H32: 5914479 | I32: P | J32: =$D$21 -> 0 | K32: =IF(ISBLANK(J32),"",J32*(D32*$I$25)) -> 0
B34: PRINCIPAL: | C34: 2003943
B35: SISTEMA DE CUSTOS REFERENCIAIS DE OBRAS - SICRO | I35: Quantitivo
B36: Custo Unitário de Referência | E36: =$C$6 -> Amapá - Abril/2024 | I36: (Coeficiente na composição principal) x (quantidade da principal no orçamento) | K36: kg
B37: 2003842 | C37: Enchimento de junta de concreto com argamassa asfáltica de densidade 1.700 kg/m³ - espessura de 1 cm | I37: =('MOMENTO DE TRANSPORTE - PRINC'!D69*VLOOKUP(C42,'RESUMO MODULO TOTAL'!D:W,7,FALSE)) -> 4760
B38: F - MOMENTO DE TRANSPORTE | D38: Quantidade | E38: Unidade | F38: DMT
F39: LN | G39: RP | H39: P | I39: TIPO (P, RP ou LN) | J39: DMT ESTIMADA (km) | K39: QUANTITATIVO TOTAL DE TRANSPORTE DE MATERIAL (tkm)
A40: 5914479 | B40: M2158 | C40: Argamassa asfáltica - Caminhão carroceria com capacidade de 15 t - 188 Kw | D40: 0.001 | E40: tkm | F40: 5914449 | G40: 5914464 | H40: 5914479 | I40: =$B$21 -> P | J40: 0 | K40: =IF(ISBLANK(J40),"",J40*(D40*$I$37)) -> 0
B42: PRINCIPAL: | C42: 2003943
B44: TIPO (P, RP ou LN) | C44: DMT ATÉ 50 KM NÃO DEVE SER PAGA | D44: SOMENTE DEVE SER ADICIONADO A DISTÂNCIA EXCEDENTE A 50 KM
B45: RP | D45: 0
B47: SISTEMA DE CUSTOS REFERENCIAIS DE OBRAS - SICRO | I47: Quantitivo
B48: Custo Unitário de Referência | E48: =$C$6 -> Amapá - Abril/2024 | I48: (Coeficiente na composição principal) x (quantidade da principal no orçamento) | K48: m³
B49: 1107892 | C49: Concreto fck = 20 MPa - confecção em betoneira e lançamento manual - areia e brita comerciais | I49: =('MOMENTO DE TRANSPORTE - PRINC'!D124*VLOOKUP(C58,'RESUMO MODULO TOTAL'!D:W,7,FALSE))*0 -> 0
B50: F - MOMENTO DE TRANSPORTE | D50: Quantidade | E50: Unidade | F50: DMT
F51: LN | G51: RP | H51: P | I51: TIPO (P, RP ou LN) | J51: DMT ESTIMADA (km) | K51: QUANTITATIVO TOTAL DE TRANSPORTE DE MATERIAL (tkm)
A52: =IF(I52="P",H52,IF(I52="RP",G52,IF(I52="LN",F52,""))) -> 5914464 | B52: M0030 | C52: Aditivo plastificante e retardador de pega para concreto e argamassa - Caminhão carroceria 15 t | D52: 0.00082 | E52: tkm | F52: 5914449 | G52: 5914464 | H52: 5914479 | I52: =$B$45 -> RP | J52: =$D$45 -> 0 | K52: =IF(ISBLANK(J52),"",J52*(D52*$I$49)) -> 0
A53: 5914374 | B53: M0082 | C53: Areia média lavada - Caminhão basculante 10 m³ | D53: 0.95639 | E53: tkm | F53: 5914359 | G53: 5914374 | H53: 5914389 | I53: RP | J53: 0 | K53: =IF(ISBLANK(J53),"",J53*(D53*$I$49)) -> 0
A54: 5914374 | B54: M0191 | C54: Brita 1 - Caminhão basculante 10 m³ | D54: 0.55131 | E54: tkm | F54: 5914359 | G54: 5914374 | H54: 5914389 | I54: RP | J54: 0 | K54: 0
A55: 5914374 | B55: M0192 | C55: Brita 2 - Caminhão basculante 10 m³ | D55: 0.55131 | E55: tkm | F55: 5914359 | G55: 5914374 | H55: 5914389 | I55: RP | J55: 0 | K55: 0
A56: 5914464 | B56: M0424 | C56: Cimento Portland CP II - 32 - saco - Caminhão carroceria 15 t | D56: 0.27464 | E56: tkm | F56: 5914449 | G56: 5914464 | H56: 5914479 | I56: RP | J56: 0 | K56: 0
B58: PRINCIPAL: | C58: 2003943
B59: SISTEMA DE CUSTOS REFERENCIAIS DE OBRAS - SICRO | I59: Quantitivo
B60: Custo Unitário de Referência | E60: =$C$6 -> Amapá - Abril/2024 | I60: (Coeficiente na composição principal) x (quantidade da principal no orçamento) | K60: kg
B61: 2003842 | C61: Enchimento de junta de concreto com argamassa asfáltica de densidade 1.700 kg/m³ - espessura de 1 cm | I61: =('MOMENTO DE TRANSPORTE - PRINC'!D125*VLOOKUP(C66,'RESUMO MODULO TOTAL'!D:W,7,FALSE))*0 -> 0
B62: F - MOMENTO DE TRANSPORTE | D62: Quantidade | E62: Unidade | F62: DMT
F63: LN | G63: RP | H63: P | I63: TIPO (P, RP ou LN) | J63: DMT ESTIMADA (km) | K63: QUANTITATIVO TOTAL DE TRANSPORTE DE MATERIAL (tkm)
A64: 5914464 | B64: M2158 | C64: Argamassa asfáltica - Caminhão carroceria com capacidade de 15 t - 188 Kw | D64: 0.001 | E64: tkm | F64: 5914449 | G64: 5914464 | H64: 5914479 | I64: =$B$45 -> RP | J64: =$D$45 -> 0 | K64: =IF(ISBLANK(J64),"",J64*(D64*$I$61)) -> 0
B66: PRINCIPAL: | C66: 2003943
B68: TIPO (P, RP ou LN) | C68: DMT ATÉ 50 KM NÃO DEVE SER PAGA | D68: SOMENTE DEVE SER ADICIONADO A DISTÂNCIA EXCEDENTE A 50 KM
B69: LN | D69: 0
B71: SISTEMA DE CUSTOS REFERENCIAIS DE OBRAS - SICRO | I71: Quantitivo
B72: Custo Unitário de Referência | E72: =$C$6 -> Amapá - Abril/2024 | I72: (Coeficiente na composição principal) x (quantidade da principal no orçamento) | K72: m³
B73: 1107892 | C73: Concreto fck = 20 MPa - confecção em betoneira e lançamento manual - areia e brita comerciais | I73: =('MOMENTO DE TRANSPORTE - PRINC'!D180*VLOOKUP(C82,'RESUMO MODULO TOTAL'!D:W,7,FALSE))*0 -> 0
B74: F - MOMENTO DE TRANSPORTE | D74: Quantidade | E74: Unidade | F74: DMT
F75: LN | G75: RP | H75: P | I75: TIPO (P, RP ou LN) | J75: DMT ESTIMADA (km) | K75: QUANTITATIVO TOTAL DE TRANSPORTE DE MATERIAL (tkm)
A76: =IF(I76="P",H76,IF(I76="RP",G76,IF(I76="LN",F76,""))) -> 5914449 | B76: M0030 | C76: Aditivo plastificante e retardador de pega para concreto e argamassa - Caminhão carroceria 15 t | D76: 0.00082 | E76: tkm | F76: 5914449 | G76: 5914464 | H76: 5914479 | I76: =$B$69 -> LN | J76: =$D$69 -> 0 | K76: =IF(ISBLANK(J76),"",J76*(D76*$I$73)) -> 0
A77: 5914359 | B77: M0082 | C77: Areia média lavada - Caminhão basculante 10 m³ | D77: 0.95639 | E77: tkm | F77: 5914359 | G77: 5914374 | H77: 5914389 | I77: LN | J77: 0 | K77: =IF(ISBLANK(J77),"",J77*(D77*$I$73)) -> 0
A78: 5914359 | B78: M0191 | C78: Brita 1 - Caminhão basculante 10 m³ | D78: 0.55131 | E78: tkm | F78: 5914359 | G78: 5914374 | H78: 5914389 | I78: LN | J78: 0 | K78: 0
A79: 5914359 | B79: M0192 | C79: Brita 2 - Caminhão basculante 10 m³ | D79: 0.55131 | E79: tkm | F79: 5914359 | G79: 5914374 | H79: 5914389 | I79: LN | J79: 0 | K79: 0
A80: 5914449 | B80: M0424 | C80: Cimento Portland CP II - 32 - saco - Caminhão carroceria 15 t | D80: 0.27464 | E80: tkm | F80: 5914449 | G80: 5914464 | H80: 5914479 | I80: LN | J80: 0 | K80: 0
B82: PRINCIPAL: | C82: 2003943
B83: SISTEMA DE CUSTOS REFERENCIAIS DE OBRAS - SICRO | I83: Quantitivo
B84: Custo Unitário de Referência | E84: =$C$6 -> Amapá - Abril/2024 | I84: (Coeficiente na composição principal) x (quantidade da principal no orçamento) | K84: kg
B85: 2003842 | C85: Enchimento de junta de concreto com argamassa asfáltica de densidade 1.700 kg/m³ - espessura de 1 cm | I85: =('MOMENTO DE TRANSPORTE - PRINC'!D181*VLOOKUP(C90,'RESUMO MODULO TOTAL'!D:W,7,FALSE))*0 -> 0
B86: F - MOMENTO DE TRANSPORTE | D86: Quantidade | E86: Unidade | F86: DMT
F87: LN | G87: RP | H87: P | I87: TIPO (P, RP ou LN) | J87: DMT ESTIMADA (km) | K87: QUANTITATIVO TOTAL DE TRANSPORTE DE MATERIAL (tkm)
A88: 5914449 | B88: M2158 | C88: Argamassa asfáltica - Caminhão carroceria com capacidade de 15 t - 188 Kw | D88: 0.001 | E88: tkm | F88: 5914449 | G88: 5914464 | H88: 5914479 | I88: =$B$69 -> LN | J88: =$D$69 -> 0 | K88: =IF(ISBLANK(J88),"",J88*(D88*$I$85)) -> 0
B90: PRINCIPAL: | C90: 2003943

Sheet Memória de Cálculo
A1: Extensão | B1: = | C1: 2000 | D1: m | F1: QUANTIDADE DE MODULOS | G1: 20
A2: Largura | B2: = | C2: 7 | D2: m
A4: Extensão | B4: = | C4: 2 | D4: km
B6: MOBUILIZAÇÃO
A7: 1 | B7: Implantação da obra
B9: Módulos(un) | D9: Módulos(un)
B10: =G1 -> 20 | C10: = | D10: =B10 -> 20
A12: 2 | B12: Administração da obra
B14: Módulos(un) | D14: Módulos(un)
B15: =G1 -> 20 | C15: = | D15: =B15 -> 20
A17: 3 | B17: Canteiro de Obras e Almoxarifado
B19: Módulos(un) | D19: Módulos(un)
B20: =G1 -> 20 | C20: = | D20: =B20 -> 20
A22: 4 | B22: Placa de Obra em Chapa de Aço Galvanizado
B24: Módulos(un) | C24: Comprimento(m) | D24: Largura (m) | H24: Total de Area de placa (m²)
B25: =G1 -> 20 | C25: 2 | D25: 4 | H25: =C25*D25*B25*2 -> 320
B27: TERRAPLENAGEM
A29: 5 | B29: serviços topográficos para pavimentação, inclusive notas de serviços, acompanhamento e greide
B31: Extensão (m) | D31: Largura (m) | H31: area (m2)
B32: =C1*$G$1 -> 40000 | C32: x | D32: =$C$2 -> 7 | G32: = | H32: =B32*D32 -> 280000
A34: 6 | B34: Escavação, carga e transporte de material de 1ª categoria - DMT de 1.000 a 1.200 m - caminho de serviço em leito natural - com escavadeira e caminhão basculante de 14 m³
B36: Extensão (m) | D36: Largura (m) | F36: Espessura (m) | H36: Volume (m3)
B37: =C1*$G$1 -> 40000 | C37: x | D37: =$C$2 -> 7 | E37: x | F37: 0.325 | G37: = | H37: =B37*D37*F37 -> 91000
A41: 7 | B41: Espalhamento de material em bota-fora
B43: Extensão (m) | D43: Largura (m) | F43: Espessura (m) | H43: Volume (m3)
B44: =C1*$G$1 -> 40000 | C44: x | D44: =$C$2 -> 7 | E44: x | F44: 0.325 | G44: = | H44: =B44*D44*F44 -> 91000
B46: PAVIMENTAÇÃO
A48: 8 | B48: Capa Selante
B50: Extensão (m) | C50: Largura (m) | H50: area (m2)
B51: =$C$1*G1 -> 40000 | C51: =$C$2 -> 7 | G51: = | H51: =B51*C51 -> 280000
A54: 9 | B54: Tratamento Superficial Duplo com Emulsão - Brita Comercial
B56: Extensão (m) | D56: Largura (m) | H56: area (m2)
B57: =$C$1*G1 -> 40000 | C57: x | D57: =$C$2 -> 7 | G57: = | H57: =B57*D57 -> 280000
A60: 10 | B60: Imprimação com asfalto diluído
B62: Extensão (m) | D62: Largura (m) | H62: area (m2)
B63: =$C$1*G1 -> 40000 | C63: x | D63: =$C$2 -> 7 | G63: = | H63: =B63*D63 -> 280000
A65: 11 | B65: Base estabilizada granulometricamente com mistura solo brita (70% - 30%) em usina com material de jazida e brita comercial
B67: Extensão (m) | D67: Largura (m) | F67: Espessura (m) | H67: Volume (m3)
B68: =C1*$G$1 -> 40000 | C68: x | D68: =$C$2 -> 7 | E68: x | F68: 0.15 | G68: = | H68: =B68*D68*F68 -> 42000
A71: 12 | B71: Sub-base estabilizada granulometricamente com mistura solo brita (70% - 30%) em usina com material de jazida e brita comercial
B73: Extensão (m) | D73: Largura (m) | F73: Espessura (m) | H73: Volume (m3)
B74: =C1*$G$1 -> 40000 | C74: x | D74: =$C$2 -> 7 | E74: x | F74: 0.15 | G74: = | H74: =B74*D74*F74 -> 42000
A77: 13 | B77: Regularização do subleito
B79: Extensão (m) | D79: Largura (m) | H79: area (m2)
B80: =C1*$G$1 -> 40000 | C80: x | D80: =$C$2 -> 7 | G80: = | H80: =B80*D80 -> 280000
B82: SINALIZAÇÃO
A84: 20 | B84: Fornecimento e implantação de placa de regulamentação em aço D = 0,60 m - película retrorrefletiva tipo I + SI
B86: Extensão (km) | D86: Quant. (un) | H86: Quant. (un)
B87: =$C$4*$G$1 -> 40 | C87: x | D87: 3 | G87: = | H87: =B87*D87 -> 120
A89: 20 | B89: Fornecimento e implantação de placa de advertencia
B91: Extensão (km) | D91: Quant. (un) | H91: Quant. (un)
B92: =$C$4*$G$1 -> 40 | C92: x | D92: 3 | G92: = | H92: =B92*D92 -> 120
A95: 21 | B95: Fornecimento e implantação de suporte metálico galvanizado para placa de regulamentação - D = 0,60 m
B97: Extensão (km) | D97: Quant. (un) | H97: Quant. (un)
B98: =$C$4*$G$1 -> 40 | C98: x | D98: 0.5 | G98: = | H98: =H87+H92 -> 240
A100: 22 | B100: Pintura de faixa com tinta acrílica - espessura de 0,4 mm (bordos)
B102: Extensão (m) | D102: Espessura (m) | H102: Quant. (m²)
B103: =C1*G1 -> 40000 | C103: x | D103: 0.1 | G103: = | H103: =B103*D103*2 -> 8000
B105: Pintura de faixa com tinta acrílica - espessura de 0,4 mm (faixa central)
H107: Quant. (m²)
H108: =B103*D103*0.4 -> 1600
B110: SINALIZAÇÃO DE OBRAS
A112: 20 | B112: Placa para sinalização de obras montada em cavalete metálico - 1,00 x 1,00 m - utilização de 600 ciclos - fornecimento, 01 implantação e 01 retirada diária
B114: Extensão (m) | C114: Extensão (Km) | D114: Placa | E114: Dias | H114: Quant. (Un.DIA)
B115: =C1*G1 -> 40000 | C115: =B115/1000 -> 40 | D115: 1 | E115: 360 | G115: = | H115: =D115*C115*E115 -> 14400
A118: 21 | B118: Placa de advertência para sinalização de obras montada em suporte metálico móvel, lado 1,00 m - utilização de 600 ciclos - fornecimento, 01 implantação e 01 retirada diária
B120: Extensão (m) | C120: Extensão (Km) | D120: Placa | E120: Dias | H120: Quant. (Un.DIA)
B121: =C1*G1 -> 40000 | C121: =B121/1000 -> 40 | D121: 1 | E121: 360 | G121: = | H121: =D121*C121*E121 -> 14400
A123: 22 | B123: Cone plástico para canalização de trânsito - utilização de 150 ciclos - fornecimento, 01 implantação e 01 retirada diária
B124: 4 cones a cada 2km x 360 dias
B125: Extensão (m) | C125: Extensão (Km) | D125: Cone | E125: Dias | H125: Quant. (Un.DIA)
B126: =C1*D10 -> 40000 | C126: =B126/1000 -> 40 | D126: 4 | E126: 360 | G126: = | H126: =((C126*D126)/2)*E126 -> 28800
B128: DRENAGEM
A129: 23 | B129: Meio-fio de concreto - MFC 03 - areia e brita comerciais - fôrma de madeira
B131: Extensão (m) | D131: Quant. (un) | H131: Extensão(m)
B132: =$C$1*$G$1 -> 40000 | C132: x | D132: 2 | G132: = | H132: =B132*D132 -> 80000
A134: 19 | B134: Caiação mecanizada com fixador de cal
B136: Extensão (m) | D136: Perimetro (m) | H136: Area (m²)
B137: =$C$1*$G$1 -> 40000 | C137: x | D137: =0.24 -> 0.24 | G137: = | H137: =B137*D137 -> 9600
B140: SERVIÇOS COMPLEMENTARES
A141: 24
B143: Extensão (m) | D143: Largura (m) | G143: 0.1 | H143: extensão (m)
B144: =$C$1*G1 -> 40000 | C144: x | D144: 1 | E144: x | G144: = | H144: =G143*B144 -> 4000
B147: PROJETO EXECUTIVO
A148: 25 | B148: Projeto Executivo
B150: Extensão (m) | D150: Largura (m) | F150: Quant. (un) | H150: Área (m²)
B151: =$C$1*G1 -> 40000 | C151: x | D151: =C2 -> 7 | E151: x | F151: 1 | G151: = | H151: =B151*D151 -> 280000
B153: CONTROLE TECNOLOGICO - OBRA
A154: 26 | B154: Projeto Executivo
B156: Extensão (m) | D156: Largura (m) | F156: Quant. (un) | H156: meses
G157: = | H157: =0.5*G1 -> 10
F160: Perímetro caiação = 0,09 + 0,15

Sheet ANP ESTADO
A1: Agência Nacional do Petróleo, Gás Natural e Biocombustíveis
A2: Superintendência de Defesa da Concorrência
A5: PREÇO MÉDIO MENSAL PONDERADO PRATICADO PELOS DISTRIBUIDORES DE PRODUTOS ASFÁLTICOS (R$/KG)
A7: Importante: | B7: Quando não houver declaração de venda do produto selecionado, ou quando a declaração de venda do produto ocorrer por menos de 03 (três) distribuidoras, a tabela indicará campo vazio.
A8: Mês | B8: Produto | C8: Estado | D8: Preço
A9: 2013-01-01 | B9: ASFALTOS DILUÍDOS CM-30 | C9: Acre | D9: -
A10: 2013-01-01 | B10: ASFALTOS DILUÍDOS CM-30 | C10: Alagoas | D10: -
A11: 2013-01-01 | B11: ASFALTOS DILUÍDOS CM-30 | C11: Amapá | D11: -
A12: 2013-01-01 | B12: ASFALTOS DILUÍDOS CM-30 | C12: Amazonas | D12: 1.453527021
A13: 2013-01-01 | B13: ASFALTOS DILUÍDOS CM-30 | C13: Bahia | D13: 1.464044142
A14: 2013-01-01 | B14: ASFALTOS DILUÍDOS CM-30 | C14: Ceará | D14: 1.447997934
A15: 2013-01-01 | B15: ASFALTOS DILUÍDOS CM-30 | C15: Distrito Federal | D15: -
A16: 2013-01-01 | B16: ASFALTOS DILUÍDOS CM-30 | C16: Espírito Santo | D16: -
A17: 2013-01-01 | B17: ASFALTOS DILUÍDOS CM-30 | C17: Goiás | D17: 1.686383065
A18: 2013-01-01 | B18: ASFALTOS DILUÍDOS CM-30 | C18: Maranhão | D18: -
A19: 2013-01-01 | B19: ASFALTOS DILUÍDOS CM-30 | C19: Mato Grosso | D19: -
A20: 2013-01-01 | B20: ASFALTOS DILUÍDOS CM-30 | C20: Mato Grosso do Sul | D20: -
A21: 2013-01-01 | B21: ASFALTOS DILUÍDOS CM-30 | C21: Minas Gerais | D21: 1.451106114
A22: 2013-01-01 | B22: ASFALTOS DILUÍDOS CM-30 | C22: Pará | D22: -
A23: 2013-01-01 | B23: ASFALTOS DILUÍDOS CM-30 | C23: Paraíba | D23: -
A24: 2013-01-01 | B24: ASFALTOS DILUÍDOS CM-30 | C24: Paraná | D24: 1.520125031
A25: 2013-01-01 | B25: ASFALTOS DILUÍDOS CM-30 | C25: Pernambuco | D25: -
A26: 2013-01-01 | B26: ASFALTOS DILUÍDOS CM-30 | C26: Piauí | D26: -
A27: 2013-01-01 | B27: ASFALTOS DILUÍDOS CM-30 | C27: Rio de Janeiro | D27: 1.330475106
A28: 2013-01-01 | B28: ASFALTOS DILUÍDOS CM-30 | C28: Rio Grande do Norte | D28: -
A29: 2013-01-01 | B29: ASFALTOS DILUÍDOS CM-30 | C29: Rio Grande do Sul | D29: 1.598611074
A30: 2013-01-01 | B30: ASFALTOS DILUÍDOS CM-30 | C30: Rondônia | D30: -
A31: 2013-01-01 | B31: ASFALTOS DILUÍDOS CM-30 | C31: Roraima | D31: -
A32: 2013-01-01 | B32: ASFALTOS DILUÍDOS CM-30 | C32: Santa Catarina | D32: -
A33: 2013-01-01 | B33: ASFALTOS DILUÍDOS CM-30 | C33: São Paulo | D33: 1.471008423
A34: 2013-01-01 | B34: ASFALTOS DILUÍDOS CM-30 | C34: Sergipe | D34: -
A35: 2013-01-01 | B35: ASFALTOS DILUÍDOS CM-30 | C35: Tocantins | D35: -
A36: 2013-02-01 | B36: ASFALTOS DILUÍDOS CM-30 | C36: Acre | D36: -
A37: 2013-02-01 | B37: ASFALTOS DILUÍDOS CM-30 | C37: Alagoas | D37: -
A38: 2013-02-01 | B38: ASFALTOS DILUÍDOS CM-30 | C38: Amapá | D38: -
A39: 2013-02-01 | B39: ASFALTOS DILUÍDOS CM-30 | C39: Amazonas | D39: 1.485578179
A40: 2013-02-01 | B40: ASFALTOS DILUÍDOS CM-30 | C40: Bahia | D40: 1.457014101
A41: 2013-02-01 | B41: ASFALTOS DILUÍDOS CM-30 | C41: Ceará | D41: 1.413192336
A42: 2013-02-01 | B42: ASFALTOS DILUÍDOS CM-30 | C42: Distrito Federal | D42: -
A43: 2013-02-01 | B43: ASFALTOS DILUÍDOS CM-30 | C43: Espírito Santo | D43: -
A44: 2013-02-01 | B44: ASFALTOS DILUÍDOS CM-30 | C44: Goiás | D44: 1.667459711
A45: 2013-02-01 | B45: ASFALTOS DILUÍDOS CM-30 | C45: Maranhão | D45: -
A46: 2013-02-01 | B46: ASFALTOS DILUÍDOS CM-30 | C46: Mato Grosso | D46: -
A47: 2013-02-01 | B47: ASFALTOS DILUÍDOS CM-30 | C47: Mato Grosso do Sul | D47: -
A48: 2013-02-01 | B48: ASFALTOS DILUÍDOS CM-30 | C48: Minas Gerais | D48: 1.452121117
A49: 2013-02-01 | B49: ASFALTOS DILUÍDOS CM-30 | C49: Pará | D49: -
A50: 2013-02-01 | B50: ASFALTOS DILUÍDOS CM-30 | C50: Paraíba | D50: -
A51: 2013-02-01 | B51: ASFALTOS DILUÍDOS CM-30 | C51: Paraná | D51: 1.493783173
A52: 2013-02-01 | B52: ASFALTOS DILUÍDOS CM-30 | C52: Pernambuco | D52: -
A53: 2013-02-01 | B53: ASFALTOS DILUÍDOS CM-30 | C53: Piauí | D53: -
A54: 2013-02-01 | B54: ASFALTOS DILUÍDOS CM-30 | C54: Rio de Janeiro | D54: 1.418234901
A55: 2013-02-01 | B55: ASFALTOS DILUÍDOS CM-30 | C55: Rio Grande do Norte | D55: -
A56: 2013-02-01 | B56: ASFALTOS DILUÍDOS CM-30 | C56: Rio Grande do Sul | D56: 1.435861782
A57: 2013-02-01 | B57: ASFALTOS DILUÍDOS CM-30 | C57: Rondônia | D57: -
A58: 2013-02-01 | B58: ASFALTOS DILUÍDOS CM-30 | C58: Roraima | D58: -
A59: 2013-02-01 | B59: ASFALTOS DILUÍDOS CM-30 | C59: Santa Catarina | D59: -
A60: 2013-02-01 | B60: ASFALTOS DILUÍDOS CM-30 | C60: São Paulo | D60: 1.434190204
A61: 2013-02-01 | B61: ASFALTOS DILUÍDOS CM-30 | C61: Sergipe | D61: -
A62: 2013-02-01 | B62: ASFALTOS DILUÍDOS CM-30 | C62: Tocantins | D62: -
A63: 2013-03-01 | B63: ASFALTOS DILUÍDOS CM-30 | C63: Acre | D63: -
A64: 2013-03-01 | B64: ASFALTOS DILUÍDOS CM-30 | C64: Alagoas | D64: -
A65: 2013-03-01 | B65: ASFALTOS DILUÍDOS CM-30 | C65: Amapá | D65: -
A66: 2013-03-01 | B66: ASFALTOS DILUÍDOS CM-30 | C66: Amazonas | D66: 1.507923921
A67: 2013-03-01 | B67: ASFALTOS DILUÍDOS CM-30 | C67: Bahia | D67: 1.449440325
A68: 2013-03-01 | B68: ASFALTOS DILUÍDOS CM-30 | C68: Ceará | D68: 1.401607485
A69: 2013-03-01 | B69: ASFALTOS DILUÍDOS CM-30 | C69: Distrito Federal | D69: -
A70: 2013-03-01 | B70: ASFALTOS DILUÍDOS CM-30 | C70: Espírito Santo | D70: -
A71: 2013-03-01 | B71: ASFALTOS DILUÍDOS CM-30 | C71: Goiás | D71: 1.661758701
A72: 2013-03-01 | B72: ASFALTOS DILUÍDOS CM-30 | C72: Maranhão | D72: -
A73: 2013-03-01 | B73: ASFALTOS DILUÍDOS CM-30 | C73: Mato Grosso | D73: -
A74: 2013-03-01 | B74: ASFALTOS DILUÍDOS CM-30 | C74: Mato Grosso do Sul | D74: -
A75: 2013-03-01 | B75: ASFALTOS DILUÍDOS CM-30 | C75: Minas Gerais | D75: 1.44324333
A76: 2013-03-01 | B76: ASFALTOS DILUÍDOS CM-30 | C76: Pará | D76: -
A77: 2013-03-01 | B77: ASFALTOS DILUÍDOS CM-30 | C77: Paraíba | D77: -
A78: 2013-03-01 | B78: ASFALTOS DILUÍDOS CM-30 | C78: Paraná | D78: 1.468995996
A79: 2013-03-01 | B79: ASFALTOS DILUÍDOS CM-30 | C79: Pernambuco | D79: -
A80: 2013-03-01 | B80: ASFALTOS DILUÍDOS CM-30 | C80: Piauí | D80: -
A81: 2013-03-01 | B81: ASFALTOS DILUÍDOS CM-30 | C81: Rio de Janeiro | D81: 1.438055574
A82: 2013-03-01 | B82: ASFALTOS DILUÍDOS CM-30 | C82: Rio Grande do Norte | D82: -
A83: 2013-03-01 | B83: ASFALTOS DILUÍDOS CM-30 | C83: Rio Grande do Sul | D83: 1.581425878
A84: 2013-03-01 | B84: ASFALTOS DILUÍDOS CM-30 | C84: Rondônia | D84: -
A85: 2013-03-01 | B85: ASFALTOS DILUÍDOS CM-30 | C85: Roraima | D85: -
A86: 2013-03-01 | B86: ASFALTOS DILUÍDOS CM-30 | C86: Santa Catarina | D86: -
A87: 2013-03-01 | B87: ASFALTOS DILUÍDOS CM-30 | C87: São Paulo | D87: 1.466061702
A88: 2013-03-01 | B88: ASFALTOS DILUÍDOS CM-30 | C88: Sergipe | D88: -
A89: 2013-03-01 | B89: ASFALTOS DILUÍDOS CM-30 | C89: Tocantins | D89: -
A90: 2013-04-01 | B90: ASFALTOS DILUÍDOS CM-30 | C90: Acre | D90: -
A91: 2013-04-01 | B91: ASFALTOS DILUÍDOS CM-30 | C91: Alagoas | D91: -
A92: 2013-04-01 | B92: ASFALTOS DILUÍDOS CM-30 | C92: Amapá | D92: -
A93: 2013-04-01 | B93: ASFALTOS DILUÍDOS CM-30 | C93: Amazonas | D93: 1.484796656
A94: 2013-04-01 | B94: ASFALTOS DILUÍDOS CM-30 | C94: Bahia | D94: 1.454836546
A95: 2013-04-01 | B95: ASFALTOS DILUÍDOS CM-30 | C95: Ceará | D95: 1.387073962
A96: 2013-04-01 | B96: ASFALTOS DILUÍDOS CM-30 | C96: Distrito Federal | D96: -
A97: 2013-04-01 | B97: ASFALTOS DILUÍDOS CM-30 | C97: Espírito Santo | D97: -
A98: 2013-04-01 | B98: ASFALTOS DILUÍDOS CM-30 | C98: Goiás | D98: 1.673481836
A99: 2013-04-01 | B99: ASFALTOS DILUÍDOS CM-30 | C99: Maranhão | D99: -
A100: 2013-04-01 | B100: ASFALTOS DILUÍDOS CM-30 | C100: Mato Grosso | D100: 1.921938422
A101: 2013-04-01 | B101: ASFALTOS DILUÍDOS CM-30 | C101: Mato Grosso do Sul | D101: -
A102: 2013-04-01 | B102: ASFALTOS DILUÍDOS CM-30 | C102: Minas Gerais | D102: 1.456556683
A103: 2013-04-01 | B103: ASFALTOS DILUÍDOS CM-30 | C103: Pará | D103: -
A104: 2013-04-01 | B104: ASFALTOS DILUÍDOS CM-30 | C104: Paraíba | D104: -
A105: 2013-04-01 | B105: ASFALTOS DILUÍDOS CM-30 | C105: Paraná | D105: 1.534419498
A106: 2013-04-01 | B106: ASFALTOS DILUÍDOS CM-30 | C106: Pernambuco | D106: -
A107: 2013-04-01 | B107: ASFALTOS DILUÍDOS CM-30 | C107: Piauí | D107: -
A108: 2013-04-01 | B108: ASFALTOS DILUÍDOS CM-30 | C108: Rio de Janeiro | D108: 1.418419516
A109: 2013-04-01 | B109: ASFALTOS DILUÍDOS CM-30 | C109: Rio Grande do Norte | D109: -
A110: 2013-04-01 | B110: ASFALTOS DILUÍDOS CM-30 | C110: Rio Grande do Sul | D110: 1.572582456
A111: 2013-04-01 | B111: ASFALTOS DILUÍDOS CM-30 | C111: Rondônia | D111: -
A112: 2013-04-01 | B112: ASFALTOS DILUÍDOS CM-30 | C112: Roraima | D112: -
A113: 2013-04-01 | B113: ASFALTOS DILUÍDOS CM-30 | C113: Santa Catarina | D113: -
A114: 2013-04-01 | B114: ASFALTOS DILUÍDOS CM-30 | C114: São Paulo | D114: 1.475764348
A115: 2013-04-01 | B115: ASFALTOS DILUÍDOS CM-30 | C115: Sergipe | D115: -
A116: 2013-04-01 | B116: ASFALTOS DILUÍDOS CM-30 | C116: Tocantins | D116: -
A117: 2013-05-01 | B117: ASFALTOS DILUÍDOS CM-30 | C117: Acre | D117: -
A118: 2013-05-01 | B118: ASFALTOS DILUÍDOS CM-30 | C118: Alagoas | D118: -
A119: 2013-05-01 | B119: ASFALTOS DILUÍDOS CM-30 | C119: Amapá | D119: -
A120: 2013-05-01 | B120: ASFALTOS DILUÍDOS CM-30 | C120: Amazonas | D120: -
A121: 2013-05-01 | B121: ASFALTOS DILUÍDOS CM-30 | C121: Bahia | D121: 1.492587424
A122: 2013-05-01 | B122: ASFALTOS DILUÍDOS CM-30 | C122: Ceará | D122: 1.376263021
A123: 2013-05-01 | B123: ASFALTOS DILUÍDOS CM-30 | C123: Distrito Federal | D123: -
A124: 2013-05-01 | B124: ASFALTOS DILUÍDOS CM-30 | C124: Espírito Santo | D124: -
A125: 2013-05-01 | B125: ASFALTOS DILUÍDOS CM-30 | C125: Goiás | D125: 1.668214819
A126: 2013-05-01 | B126: ASFALTOS DILUÍDOS CM-30 | C126: Maranhão | D126: -
A127: 2013-05-01 | B127: ASFALTOS DILUÍDOS CM-30 | C127: Mato Grosso | D127: 1.903098159
A128: 2013-05-01 | B128: ASFALTOS DILUÍDOS CM-30 | C128: Mato Grosso do Sul | D128: -
A129: 2013-05-01 | B129: ASFALTOS DILUÍDOS CM-30 | C129: Minas Gerais | D129: 1.464709716
A130: 2013-05-01 | B130: ASFALTOS DILUÍDOS CM-30 | C130: Pará | D130: -
A131: 2013-05-01 | B131: ASFALTOS DILUÍDOS CM-30 | C131: Paraíba | D131: -
A132: 2013-05-01 | B132: ASFALTOS DILUÍDOS CM-30 | C132: Paraná | D132: 1.489027849
A133: 2013-05-01 | B133: ASFALTOS DILUÍDOS CM-30 | C133: Pernambuco | D133: -
A134: 2013-05-01 | B134: ASFALTOS DILUÍDOS CM-30 | C134: Piauí | D134: -
A135: 2013-05-01 | B135: ASFALTOS DILUÍDOS CM-30 | C135: Rio de Janeiro | D135: 1.399256048
A136: 2013-05-01 | B136: ASFALTOS DILUÍDOS CM-30 | C136: Rio Grande do Norte | D136: -
A137: 2013-05-01 | B137: ASFALTOS DILUÍDOS CM-30 | C137: Rio Grande do Sul | D137: 1.539636961
A138: 2013-05-01 | B138: ASFALTOS DILUÍDOS CM-30 | C138: Rondônia | D138: -
A139: 2013-05-01 | B139: ASFALTOS DILUÍDOS CM-30 | C139: Roraima | D139: -
A140: 2013-05-01 | B140: ASFALTOS DILUÍDOS CM-30 | C140: Santa Catarina | D140: -
A141: 2013-05-01 | B141: ASFALTOS DILUÍDOS CM-30 | C141: São Paulo | D141: 1.451215936
A142: 2013-05-01 | B142: ASFALTOS DILUÍDOS CM-30 | C142: Sergipe | D142: -
A143: 2013-05-01 | B143: ASFALTOS DILUÍDOS CM-30 | C143: Tocantins | D143: -
A144: 2013-06-01 | B144: ASFALTOS DILUÍDOS CM-30 | C144: Acre | D144: -
A145: 2013-06-01 | B145: ASFALTOS DILUÍDOS CM-30 | C145: Alagoas | D145: -
A146: 2013-06-01 | B146: ASFALTOS DILUÍDOS CM-30 | C146: Amapá | D146: -
A147: 2013-06-01 | B147: ASFALTOS DILUÍDOS CM-30 | C147: Amazonas | D147: 1.586325818
A148: 2013-06-01 | B148: ASFALTOS DILUÍDOS CM-30 | C148: Bahia | D148: 1.44812907
A149: 2013-06-01 | B149: ASFALTOS DILUÍDOS CM-30 | C149: Ceará | D149: 1.382700989
A150: 2013-06-01 | B150: ASFALTOS DILUÍDOS CM-30 | C150: Distrito Federal | D150: -
A151: 2013-06-01 | B151: ASFALTOS DILUÍDOS CM-30 | C151: Espírito Santo | D151: -
A152: 2013-06-01 | B152: ASFALTOS DILUÍDOS CM-30 | C152: Goiás | D152: 1.699613867
A153: 2013-06-01 | B153: ASFALTOS DILUÍDOS CM-30 | C153: Maranhão | D153: -
A154: 2013-06-01 | B154: ASFALTOS DILUÍDOS CM-30 | C154: Mato Grosso | D154: 1.915975658
A155: 2013-06-01 | B155: ASFALTOS DILUÍDOS CM-30 | C155: Mato Grosso do Sul | D155: -
A156: 2013-06-01 | B156: ASFALTOS DILUÍDOS CM-30 | C156: Minas Gerais | D156: 1.475366896
A157: 2013-06-01 | B157: ASFALTOS DILUÍDOS CM-30 | C157: Pará | D157: -
A158: 2013-06-01 | B158: ASFALTOS DILUÍDOS CM-30 | C158: Paraíba | D158: -
A159: 2013-06-01 | B159: ASFALTOS DILUÍDOS CM-30 | C159: Paraná | D159: 1.432166974
A160: 2013-06-01 | B160: ASFALTOS DILUÍDOS CM-30 | C160: Pernambuco | D160: -
A161: 2013-06-01 | B161: ASFALTOS DILUÍDOS CM-30 | C161: Piauí | D161: -
A162: 2013-06-01 | B162: ASFALTOS DILUÍDOS CM-30 | C162: Rio de Janeiro | D162: 1.527420226
A163: 2013-06-01 | B163: ASFALTOS DILUÍDOS CM-30 | C163: Rio Grande do Norte | D163: -
A164: 2013-06-01 | B164: ASFALTOS DILUÍDOS CM-30 | C164: Rio Grande do Sul | D164: 1.59868349
A165: 2013-06-01 | B165: ASFALTOS DILUÍDOS CM-30 | C165: Rondônia | D165: -
A166: 2013-06-01 | B166: ASFALTOS DILUÍDOS CM-30 | C166: Roraima | D166: -
A167: 2013-06-01 | B167: ASFALTOS DILUÍDOS CM-30 | C167: Santa Catarina | D167: -
A168: 2013-06-01 | B168: ASFALTOS DILUÍDOS CM-30 | C168: São Paulo | D168: 1.432748187
A169: 2013-06-01 | B169: ASFALTOS DILUÍDOS CM-30 | C169: Sergipe | D169: -
A170: 2013-06-01 | B170: ASFALTOS DILUÍDOS CM-30 | C170: Tocantins | D170: -
A171: 2013-07-01 | B171: ASFALTOS DILUÍDOS CM-30 | C171: Acre | D171: -
A172: 2013-07-01 | B172: ASFALTOS DILUÍDOS CM-30 | C172: Alagoas | D172: -
A173: 2013-07-01 | B173: ASFALTOS DILUÍDOS CM-30 | C173: Amapá | D173: -
A174: 2013-07-01 | B174: ASFALTOS DILUÍDOS CM-30 | C174: Amazonas | D174: 1.509890931
A175: 2013-07-01 | B175: ASFALTOS DILUÍDOS CM-30 | C175: Bahia | D175: 1.436150016
A176: 2013-07-01 | B176: ASFALTOS DILUÍDOS CM-30 | C176: Ceará | D176: 1.424835845
A177: 2013-07-01 | B177: ASFALTOS DILUÍDOS CM-30 | C177: Distrito Federal | D177: -
A178: 2013-07-01 | B178: ASFALTOS DILUÍDOS CM-30 | C178: Espírito Santo | D178: -
A179: 2013-07-01 | B179: ASFALTOS DILUÍDOS CM-30 | C179: Goiás | D179: 1.663778454
A180: 2013-07-01 | B180: ASFALTOS DILUÍDOS CM-30 | C180: Maranhão | D180: -
A181: 2013-07-01 | B181: ASFALTOS DILUÍDOS CM-30 | C181: Mato Grosso | D181: 1.930589551
A182: 2013-07-01 | B182: ASFALTOS DILUÍDOS CM-30 | C182: Mato Grosso do Sul | D182: -
A183: 2013-07-01 | B183: ASFALTOS DILUÍDOS CM-30 | C183: Minas Gerais | D183: 1.476572352
A184: 2013-07-01 | B184: ASFALTOS DILUÍDOS CM-30 | C184: Pará | D184: -
A185: 2013-07-01 | B185: ASFALTOS DILUÍDOS CM-30 | C185: Paraíba | D185: -
A186: 2013-07-01 | B186: ASFALTOS DILUÍDOS CM-30 | C186: Paraná | D186: 1.477167274
A187: 2013-07-01 | B187: ASFALTOS DILUÍDOS CM-30 | C187: Pernambuco | D187: -
A188: 2013-07-01 | B188: ASFALTOS DILUÍDOS CM-30 | C188: Piauí | D188: -
A189: 2013-07-01 | B189: ASFALTOS DILUÍDOS CM-30 | C189: Rio de Janeiro | D189: 1.584464713
A190: 2013-07-01 | B190: ASFALTOS DILUÍDOS CM-30 | C190: Rio Grande do Norte | D190: -
A191: 2013-07-01 | B191: ASFALTOS DILUÍDOS CM-30 | C191: Rio Grande do Sul | D191: 1.612487925
A192: 2013-07-01 | B192: ASFALTOS DILUÍDOS CM-30 | C192: Rondônia | D192: -
A193: 2013-07-01 | B193: ASFALTOS DILUÍDOS CM-30 | C193: Roraima | D193: -
A194: 2013-07-01 | B194: ASFALTOS DILUÍDOS CM-30 | C194: Santa Catarina | D194: -
A195: 2013-07-01 | B195: ASFALTOS DILUÍDOS CM-30 | C195: São Paulo | D195: 1.507844909
A196: 2013-07-01 | B196: ASFALTOS DILUÍDOS CM-30 | C196: Sergipe | D196: -
A197: 2013-07-01 | B197: ASFALTOS DILUÍDOS CM-30 | C197: Tocantins | D197: -
A198: 2013-08-01 | B198: ASFALTOS DILUÍDOS CM-30 | C198: Acre | D198: -
A199: 2013-08-01 | B199: ASFALTOS DILUÍDOS CM-30 | C199: Alagoas | D199: -
A200: 2013-08-01 | B200: ASFALTOS DILUÍDOS CM-30 | C200: Amapá | D200: -
A201: 2013-08-01 | B201: ASFALTOS DILUÍDOS CM-30 | C201: Amazonas | D201: 1.509275641
A202: 2013-08-01 | B202: ASFALTOS DILUÍDOS CM-30 | C202: Bahia | D202: 1.416699323
A203: 2013-08-01 | B203: ASFALTOS DILUÍDOS CM-30 | C203: Ceará | D203: 1.447403364
... 4297 more rows

Sheet ANP REGIÃO
A1: Agência Nacional do Petróleo, Gás Natural e Biocombustíveis
A2: Superintendência de Defesa da Concorrência
A6: PREÇO MÉDIO MENSAL PONDERADO PRATICADO PELOS DISTRIBUIDORES DE PRODUTOS ASFÁLTICOS (R$/KG)
A8: Produto | B8: Mês | C8: Norte | D8: Nordeste | E8: Centro-Oeste | F8: Sudeste | G8: Sul | H8: Brasil
A9: ASFALTOS DILUÍDOS CM-30 | B9: 2008-11-01 | C9: 1.775468292 | D9: 1.55087853 | E9: 2.022143291 | F9: 1.55449367 | G9: 1.584532899 | H9: 1.64286837
A10: ASFALTOS DILUÍDOS CM-30 | B10: 2008-12-01 | C10: 1.806837667 | D10: 1.509118192 | E10: 2.013020124 | F10: 1.610902223 | G10: 1.607187591 | H10: 1.637581471
A11: ASFALTOS DILUÍDOS CM-30 | B11: 2009-01-01 | C11: 1.497052858 | D11: 1.504296346 | E11: 1.963097671 | F11: 1.524672247 | G11: 1.585137209 | H11: 1.564945876
A12: ASFALTOS DILUÍDOS CM-30 | B12: 2009-02-01 | C12: 1.42787112 | D12: 1.497693283 | E12: 1.981065098 | F12: 1.583490231 | G12: 1.595924062 | H12: 1.565451036
A13: ASFALTOS DILUÍDOS CM-30 | B13: 2009-03-01 | C13: 1.404941405 | D13: 1.497647987 | E13: 1.893430263 | F13: 1.52754782 | G13: 1.588720029 | H13: 1.532713147
A14: ASFALTOS DILUÍDOS CM-30 | B14: 2009-04-01 | C14: 1.410510748 | D14: 1.484826261 | E14: 1.909226429 | F14: 1.464149371 | G14: 1.553831928 | H14: 1.516717648
A15: ASFALTOS DILUÍDOS CM-30 | B15: 2009-05-01 | C15: 1.480355678 | D15: 1.466898928 | E15: 1.891590435 | F15: 1.435443718 | G15: 1.54161118 | H15: 1.537574371
A16: ASFALTOS DILUÍDOS CM-30 | B16: 2009-06-01 | C16: 1.580751039 | D16: 1.444888837 | E16: 1.842074119 | F16: 1.424264315 | G16: 1.501526696 | H16: 1.541315575
A17: ASFALTOS DILUÍDOS CM-30 | B17: 2009-07-01 | C17: 1.905432476 | D17: 1.482618211 | E17: 1.949046345 | F17: 1.584435299 | G17: 1.610310436 | H17: 1.651032523
A18: ASFALTOS DILUÍDOS CM-30 | B18: 2009-08-01 | C18: 1.716995184 | D18: 1.423854915 | E18: 1.712385478 | F18: 1.418000805 | G18: 1.520643497 | H18: 1.504911469
A19: ASFALTOS DILUÍDOS CM-30 | B19: 2009-09-01 | C19: 1.64329494 | D19: 1.445317761 | E19: 1.731518803 | F19: 1.419374251 | G19: 1.500735895 | H19: 1.50552312
A20: ASFALTOS DILUÍDOS CM-30 | B20: 2009-10-01 | C20: 1.588031924 | D20: 1.458932649 | E20: 1.762015056 | F20: 1.429024419 | G20: 1.513753831 | H20: 1.511681904
A21: ASFALTOS DILUÍDOS CM-30 | B21: 2009-11-01 | C21: 1.639348604 | D21: 1.449059777 | E21: 1.772650817 | F21: 1.434122677 | G21: 1.526043188 | H21: 1.499657392
A22: ASFALTOS DILUÍDOS CM-30 | B22: 2009-12-01 | C22: 1.664266853 | D22: 1.441966636 | E22: 1.890574802 | F22: 1.429077727 | G22: 1.520539334 | H22: 1.508864598
A23: ASFALTOS DILUÍDOS CM-30 | B23: 2010-01-01 | C23: 1.842506144 | D23: 1.454977129 | E23: 1.865022447 | F23: 1.414817608 | G23: 1.474450765 | H23: 1.497735227
A24: ASFALTOS DILUÍDOS CM-30 | B24: 2010-02-01 | C24: 1.709886915 | D24: 1.442956487 | E24: 1.919844741 | F24: 1.433146251 | G24: 1.500882448 | H24: 1.496542251
A25: ASFALTOS DILUÍDOS CM-30 | B25: 2010-03-01 | C25: 1.535743416 | D25: 1.448880499 | E25: 1.935062728 | F25: 1.435026116 | G25: 1.480618635 | H25: 1.486789802
A26: ASFALTOS DILUÍDOS CM-30 | B26: 2010-04-01 | C26: 1.710046479 | D26: 1.440300254 | E26: 1.911935961 | F26: 1.421102153 | G26: 1.481270937 | H26: 1.511086431
A27: ASFALTOS DILUÍDOS CM-30 | B27: 2010-05-01 | C27: 1.755610465 | D27: 1.435277221 | E27: 1.873293889 | F27: 1.406944432 | G27: 1.48177605 | H27: 1.537170565
A28: ASFALTOS DILUÍDOS CM-30 | B28: 2010-06-01 | C28: 1.602224314 | D28: 1.396004336 | E28: 1.731734721 | F28: 1.399996227 | G28: 1.49193962 | H28: 1.498073418
A29: ASFALTOS DILUÍDOS CM-30 | B29: 2010-07-01 | C29: 1.559901627 | D29: 1.381016708 | E29: 1.732688214 | F29: 1.402904856 | G29: 1.473854427 | H29: 1.490075269
A30: ASFALTOS DILUÍDOS CM-30 | B30: 2010-08-01 | C30: 1.526639389 | D30: 1.38817836 | E30: 1.738946087 | F30: 1.398751236 | G30: 1.455749849 | H30: 1.495828516
A31: ASFALTOS DILUÍDOS CM-30 | B31: 2010-09-01 | C31: 1.565378829 | D31: 1.408204664 | E31: 1.757027378 | F31: 1.411642875 | G31: 1.487257745 | H31: 1.512257128
A32: ASFALTOS DILUÍDOS CM-30 | B32: 2010-10-01 | C32: 1.481711294 | D32: 1.404357715 | E32: 1.751159947 | F32: 1.403489437 | G32: 1.469340847 | H32: 1.49988826
A33: ASFALTOS DILUÍDOS CM-30 | B33: 2010-11-01 | C33: 1.519267672 | D33: 1.410130904 | E33: 1.779405625 | F33: 1.421283822 | G33: 1.458559112 | H33: 1.481658635
A34: ASFALTOS DILUÍDOS CM-30 | B34: 2010-12-01 | C34: 1.559287556 | D34: 1.40982051 | E34: 1.825185618 | F34: 1.417673572 | G34: 1.473243884 | H34: 1.469113031
A35: ASFALTOS DILUÍDOS CM-30 | B35: 2011-01-01 | C35: 1.525923305 | D35: 1.445794092 | E35: 1.774600924 | F35: 1.403274235 | G35: 1.466002814 | H35: 1.457256066
A36: ASFALTOS DILUÍDOS CM-30 | B36: 2011-02-01 | C36: 1.552825112 | D36: 1.392094259 | E36: 1.763836123 | F36: 1.385194937 | G36: 1.44955884 | H36: 1.426250478
A37: ASFALTOS DILUÍDOS CM-30 | B37: 2011-03-01 | C37: 1.469219693 | D37: 1.369442916 | E37: 1.696017922 | F37: 1.353812804 | G37: 1.435170694 | H37: 1.400130249
A38: ASFALTOS DILUÍDOS CM-30 | B38: 2011-04-01 | C38: 1.470570262 | D38: 1.373220492 | E38: 1.650829394 | F38: 1.345928103 | G38: 1.42199894 | H38: 1.400493522
A39: ASFALTOS DILUÍDOS CM-30 | B39: 2011-05-01 | C39: 1.428528955 | D39: 1.322646267 | E39: 1.700380913 | F39: 1.345068163 | G39: 1.439361431 | H39: 1.428058019
A40: ASFALTOS DILUÍDOS CM-30 | B40: 2011-06-01 | C40: 1.407622163 | D40: 1.305708657 | E40: 1.741843669 | F40: 1.354620495 | G40: 1.399501693 | H40: 1.44029982
A41: ASFALTOS DILUÍDOS CM-30 | B41: 2011-07-01 | C41: 1.259234065 | D41: 1.312033305 | E41: 1.737489696 | F41: 1.33656388 | G41: 1.422474887 | H41: 1.420839252
A42: ASFALTOS DILUÍDOS CM-30 | B42: 2011-08-01 | C42: 1.470680061 | D42: 1.299778765 | E42: 1.727443485 | F42: 1.341477821 | G42: 1.353018352 | H42: 1.425675534
A43: ASFALTOS DILUÍDOS CM-30 | B43: 2011-09-01 | C43: 1.56132872 | D43: 1.321196084 | E43: 1.729821548 | F43: 1.357451483 | G43: 1.395684798 | H43: 1.455202413
A44: ASFALTOS DILUÍDOS CM-30 | B44: 2011-10-01 | C44: 1.520569722 | D44: 1.326218736 | E44: 1.71738046 | F44: 1.332691392 | G44: 1.3577774 | H44: 1.442295871
A45: ASFALTOS DILUÍDOS CM-30 | B45: 2011-11-01 | C45: 1.465886334 | D45: 1.337041154 | E45: 1.741004886 | F45: 1.345486103 | G45: 1.447580565 | H45: 1.445354137
A46: ASFALTOS DILUÍDOS CM-30 | B46: 2011-12-01 | C46: 1.470883899 | D46: 1.335587636 | E46: 1.778724141 | F46: 1.408293068 | G46: 1.428112306 | H46: 1.422418604
A47: ASFALTOS DILUÍDOS CM-30 | B47: 2012-01-01 | C47: 1.384955015 | D47: 1.350130156 | E47: 1.780783883 | F47: 1.421354107 | G47: 1.430352474 | H47: 1.394658167
A48: ASFALTOS DILUÍDOS CM-30 | B48: 2012-02-01 | C48: 1.332181678 | D48: 1.368143891 | E48: 1.741020394 | F48: 1.400200985 | G48: 1.425400986 | H48: 1.410605707
A49: ASFALTOS DILUÍDOS CM-30 | B49: 2012-03-01 | C49: 1.411621867 | D49: 1.349122214 | E49: 1.620096006 | F49: 1.393295764 | G49: 1.406130569 | H49: 1.409768786
A50: ASFALTOS DILUÍDOS CM-30 | B50: 2012-04-01 | C50: 1.549007912 | D50: 1.383976456 | E50: 1.640712752 | F50: 1.404716397 | G50: 1.440617793 | H50: 1.45608482
A51: ASFALTOS DILUÍDOS CM-30 | B51: 2012-05-01 | C51: 1.596178941 | D51: 1.386362272 | E51: 1.712061183 | F51: 1.39923955 | G51: 1.448350887 | H51: 1.498461969
A52: ASFALTOS DILUÍDOS CM-30 | B52: 2012-06-01 | C52: 1.701432576 | D52: 1.388053518 | E52: 1.740352007 | F52: 1.422118749 | G52: 1.449196072 | H52: 1.527722717
A53: ASFALTOS DILUÍDOS CM-30 | B53: 2012-07-01 | C53: 1.652026742 | D53: 1.39436857 | E53: 1.718644846 | F53: 1.439670261 | G53: 1.46187567 | H53: 1.523069159
A54: ASFALTOS DILUÍDOS CM-30 | B54: 2012-08-01 | C54: 1.689998835 | D54: 1.40333785 | E54: 1.741895041 | F54: 1.421723369 | G54: 1.445685799 | H54: 1.536533078
A55: ASFALTOS DILUÍDOS CM-30 | B55: 2012-09-01 | C55: 1.690177972 | D55: 1.421500003 | E55: 1.780920724 | F55: 1.445180432 | G55: 1.483645866 | H55: 1.549410653
A56: ASFALTOS DILUÍDOS CM-30 | B56: 2012-10-01 | C56: 1.574840342 | D56: 1.417066109 | E56: 1.794832036 | F56: 1.451304526 | G56: 1.482037109 | H56: 1.550631802
A57: ASFALTOS DILUÍDOS CM-30 | B57: 2012-11-01 | C57: 1.655163526 | D57: 1.455878748 | E57: 1.840129766 | F57: 1.461204615 | G57: 1.483499722 | H57: 1.552500776
A58: ASFALTOS DILUÍDOS CM-30 | B58: 2012-12-01 | C58: 1.714876125 | D58: 1.435854741 | E58: 1.804066573 | F58: 1.45222765 | G58: 1.509417648 | H58: 1.523411999
A59: ASFALTOS DILUÍDOS CM-30 | B59: 2013-01-01 | C59: 1.495776335 | D59: 1.449494588 | E59: 1.854050525 | F59: 1.44638752 | G59: 1.563753675 | H59: 1.502137259
A60: ASFALTOS DILUÍDOS CM-30 | B60: 2013-02-01 | C60: 1.635067666 | D60: 1.420609638 | E60: 1.731071498 | F60: 1.442746356 | G60: 1.461828405 | H60: 1.4739561
A61: ASFALTOS DILUÍDOS CM-30 | B61: 2013-03-01 | C61: 1.646229098 | D61: 1.413299983 | E61: 1.83828087 | F61: 1.450015152 | G61: 1.525760413 | H61: 1.506542904
A62: ASFALTOS DILUÍDOS CM-30 | B62: 2013-04-01 | C62: 1.581864474 | D62: 1.399189564 | E62: 1.793825113 | F62: 1.458704755 | G62: 1.551913702 | H62: 1.523623636
A63: ASFALTOS DILUÍDOS CM-30 | B63: 2013-05-01 | C63: 1.815646773 | D63: 1.390143517 | E63: 1.812783313 | F63: 1.44951052 | G63: 1.504233457 | H63: 1.549918592
A64: ASFALTOS DILUÍDOS CM-30 | B64: 2013-06-01 | C64: 1.631101583 | D64: 1.383186536 | E64: 1.816642105 | F64: 1.474232641 | G64: 1.503043689 | H64: 1.581049429
A65: ASFALTOS DILUÍDOS CM-30 | B65: 2013-07-01 | C65: 1.86596563 | D65: 1.422051117 | E65: 1.793072753 | F65: 1.498018808 | G65: 1.533391901 | H65: 1.59880513
A66: ASFALTOS DILUÍDOS CM-30 | B66: 2013-08-01 | C66: 1.700325546 | D66: 1.435094415 | E66: 1.821452614 | F66: 1.511722868 | G66: 1.530793596 | H66: 1.606176585
A67: ASFALTOS DILUÍDOS CM-30 | B67: 2013-09-01 | C67: 1.562873733 | D67: 1.472197748 | E67: 1.879842712 | F67: 1.542652867 | G67: 1.490667543 | H67: 1.627945893
A68: ASFALTOS DILUÍDOS CM-30 | B68: 2013-10-01 | C68: 1.648504013 | D68: 1.472152345 | E68: 1.825494997 | F68: 1.501177682 | G68: 1.48378912 | H68: 1.597538775
A69: ASFALTOS DILUÍDOS CM-30 | B69: 2013-11-01 | C69: 1.619179062 | D69: 1.486413317 | E69: 1.844012679 | F69: 1.496326809 | G69: 1.506096878 | H69: 1.581665844
A70: ASFALTOS DILUÍDOS CM-30 | B70: 2013-12-01 | C70: 1.633358293 | D70: 1.494818097 | E70: 1.897197176 | F70: 1.502864538 | G70: 1.517074296 | H70: 1.572475244
A71: ASFALTOS DILUÍDOS CM-30 | B71: 2014-01-01 | C71: 1.688311265 | D71: 1.494181305 | E71: 1.798355903 | F71: 1.484202293 | G71: 1.533353813 | H71: 1.542909737
A72: ASFALTOS DILUÍDOS CM-30 | B72: 2014-02-01 | C72: 1.598304434 | D72: 1.479706587 | E72: 1.814390215 | F72: 1.514829392 | G72: 1.522800588 | H72: 1.528970287
A73: ASFALTOS DILUÍDOS CM-30 | B73: 2014-03-01 | C73: 1.648287687 | D73: 1.472852501 | E73: 1.76657319 | F73: 1.513020673 | G73: 1.506185248 | H73: 1.530181178
A74: ASFALTOS DILUÍDOS CM-30 | B74: 2014-04-01 | C74: 1.534459987 | D74: 1.493898767 | E74: 1.757271278 | F74: 1.533021309 | G74: 1.524275274 | H74: 1.550566305
A75: ASFALTOS DILUÍDOS CM-30 | B75: 2014-05-01 | C75: 1.58658327 | D75: 1.490834685 | E75: 1.804339251 | F75: 1.501138131 | G75: 1.567043824 | H75: 1.586452272
A76: ASFALTOS DILUÍDOS CM-30 | B76: 2014-06-01 | C76: 1.658277164 | D76: 1.505801121 | E76: 1.839593445 | F76: 1.5068632 | G76: 1.523776953 | H76: 1.636070702
A77: ASFALTOS DILUÍDOS CM-30 | B77: 2014-07-01 | C77: 1.890299542 | D77: 1.500730514 | E77: 1.708277865 | F77: 1.487293964 | G77: 1.505956069 | H77: 1.587065158
A78: ASFALTOS DILUÍDOS CM-30 | B78: 2014-08-01 | C78: 1.632741832 | D78: 1.501945324 | E78: 1.671203189 | F78: 1.482359341 | G78: 1.506327366 | H78: 1.557910377
A79: ASFALTOS DILUÍDOS CM-30 | B79: 2014-09-01 | C79: 1.66956717 | D79: 1.546830427 | E79: 1.864797016 | F79: 1.496764585 | G79: 1.570533242 | H79: 1.639281057
A80: ASFALTOS DILUÍDOS CM-30 | B80: 2014-10-01 | C80: 1.742876916 | D80: 1.508978569 | E80: 1.746650466 | F80: 1.470773645 | G80: 1.454273462 | H80: 1.57912022
A81: ASFALTOS DILUÍDOS CM-30 | B81: 2014-11-01 | C81: 1.864723419 | D81: 1.57943059 | E81: 1.749156218 | F81: 1.465084479 | G81: 1.529147988 | H81: 1.601359821
A82: ASFALTOS DILUÍDOS CM-30 | B82: 2014-12-01 | C82: 1.812671914 | D82: 1.704844348 | E82: 1.963310066 | F82: 1.623676702 | G82: 1.649644659 | H82: 1.718826981
A83: ASFALTOS DILUÍDOS CM-30 | B83: 2015-01-01 | C83: 2.154807062 | D83: 2.023760447 | E83: 2.318863736 | F83: 1.866588967 | G83: 1.898380434 | H83: 2.007792032
A84: ASFALTOS DILUÍDOS CM-30 | B84: 2015-02-01 | C84: 2.260238625 | D84: 2.005673765 | E84: 2.393875762 | F84: 1.854519766 | G84: 1.927395107 | H84: 2.007653781
A85: ASFALTOS DILUÍDOS CM-30 | B85: 2015-03-01 | C85: 2.124176462 | D85: 1.968822849 | E85: 2.279643254 | F85: 1.887760911 | G85: 1.930217145 | H85: 1.984816916
A86: ASFALTOS DILUÍDOS CM-30 | B86: 2015-04-01 | C86: 2.030049505 | D86: 2.001506448 | E86: 2.379118903 | F86: 1.85245167 | G86: 1.949025254 | H86: 1.98064321
A87: ASFALTOS DILUÍDOS CM-30 | B87: 2015-05-01 | C87: 2.507271651 | D87: 1.946869908 | E87: 2.254758192 | F87: 1.807470001 | G87: 2.016929536 | H87: 2.005474234
A88: ASFALTOS DILUÍDOS CM-30 | B88: 2015-06-01 | C88: 2.248320042 | D88: 1.944259736 | E88: 2.314331796 | F88: 1.846998595 | G88: 1.968565125 | H88: 2.042581344
A89: ASFALTOS DILUÍDOS CM-30 | B89: 2015-07-01 | C89: 1.992222758 | D89: 1.992791635 | E89: 2.046769953 | F89: 1.782648603 | G89: 1.931671385 | H89: 1.942627362
A90: ASFALTOS DILUÍDOS CM-30 | B90: 2015-08-01 | C90: 2.307605931 | D90: 2.038089127 | E90: 2.252748105 | F90: 1.828097705 | G90: 1.939824481 | H90: 2.08193616
A91: ASFALTOS DILUÍDOS CM-30 | B91: 2015-09-01 | C91: 2.314289704 | D91: 2.095307531 | E91: 2.344561987 | F91: 1.942551091 | G91: 2.005352614 | H91: 2.168175541
A92: ASFALTOS DILUÍDOS CM-30 | B92: 2015-10-01 | C92: 2.329456663 | D92: 2.170570012 | E92: 2.43273012 | F92: 2.035624751 | G92: 2.110261148 | H92: 2.237533782
A93: ASFALTOS DILUÍDOS CM-30 | B93: 2015-11-01 | C93: 2.606056566 | D93: 2.437098304 | E93: 2.711612141 | F93: 2.280113896 | G93: 2.326446297 | H93: 2.474998781
A94: ASFALTOS DILUÍDOS CM-30 | B94: 2015-12-01 | C94: 2.635374006 | D94: 2.395920309 | E94: 2.693528386 | F94: 2.272528129 | G94: 2.330740659 | H94: 2.452848156
A95: ASFALTOS DILUÍDOS CM-30 | B95: 2016-01-01 | C95: 2.715863993 | D95: 2.373861647 | E95: 2.844670602 | F95: 2.263650658 | G95: 2.232631691 | H95: 2.400563394
A96: ASFALTOS DILUÍDOS CM-30 | B96: 2016-02-01 | C96: 2.80468316 | D96: 2.466846816 | E96: 2.791787007 | F96: 2.295637115 | G96: 2.346556173 | H96: 2.464348548
A97: ASFALTOS DILUÍDOS CM-30 | B97: 2016-03-01 | C97: 2.5805021 | D97: 2.470678753 | E97: 2.707688025 | F97: 2.235301999 | G97: 2.383115972 | H97: 2.423563924
A98: ASFALTOS DILUÍDOS CM-30 | B98: 2016-04-01 | C98: 2.942006312 | D98: 2.740742032 | E98: 2.759071855 | F98: 2.544439178 | G98: 2.710751632 | H98: 2.680274833
A99: ASFALTOS DILUÍDOS CM-30 | B99: 2016-05-01 | C99: 3.010579472 | D99: 2.650277047 | E99: 2.857121361 | F99: 2.575583152 | G99: 2.770413362 | H99: 2.70973327
A100: ASFALTOS DILUÍDOS CM-30 | B100: 2016-06-01 | C100: 2.909179844 | D100: 2.621385041 | E100: 2.943487281 | F100: 2.659109515 | G100: 2.684759555 | H100: 2.743619517
A101: ASFALTOS DILUÍDOS CM-30 | B101: 2016-07-01 | C101: 2.985740381 | D101: 2.591644045 | E101: 2.98927803 | F101: 2.604396599 | G101: 2.660884423 | H101: 2.745135539
A102: ASFALTOS DILUÍDOS CM-30 | B102: 2016-08-01 | C102: 2.935243919 | D102: 2.623917329 | E102: 2.970490854 | F102: 2.679486504 | G102: 2.727025649 | H102: 2.781385962
A103: ASFALTOS DILUÍDOS CM-30 | B103: 2016-09-01 | C103: 2.649136821 | D103: 2.521054851 | E103: 2.781583925 | F103: 2.51393313 | G103: 2.371271501 | H103: 2.595617128
A104: ASFALTOS DILUÍDOS CM-30 | B104: 2016-10-01 | C104: 2.626109257 | D104: 2.444469093 | E104: 2.781617873 | F104: 2.507383127 | G104: 2.38325399 | H104: 2.566999037
A105: ASFALTOS DILUÍDOS CM-30 | B105: 2016-11-01 | C105: 2.535087408 | D105: 2.374145527 | E105: 2.952768674 | F105: 2.481263765 | G105: 2.382206771 | H105: 2.542842366
A106: ASFALTOS DILUÍDOS CM-30 | B106: 2016-12-01 | C106: 2.50039107 | D106: 2.253413483 | E106: 3.038519458 | F106: 2.589438892 | G106: 2.395593424 | H106: 2.476439295
A107: ASFALTOS DILUÍDOS CM-30 | B107: 2017-01-01 | C107: 2.392875504 | D107: 2.232695674 | E107: 3.089080971 | F107: 2.535744039 | G107: 2.378694833 | H107: 2.374216192
A108: ASFALTOS DILUÍDOS CM-30 | B108: 2017-02-01 | C108: 2.68039414 | D108: 2.271897225 | E108: 2.764408032 | F108: 2.573933685 | G108: 2.384644398 | H108: 2.470721466
A109: ASFALTOS DILUÍDOS CM-30 | B109: 2017-03-01 | C109: 2.23884121 | D109: 2.386958079 | E109: 2.667220252 | F109: 2.372165947 | G109: 2.30121887 | H109: 2.378796986
A110: ASFALTOS DILUÍDOS CM-30 | B110: 2017-04-01 | C110: 2.420191398 | D110: 2.307969596 | E110: 2.794093014 | F110: 2.258409912 | G110: 2.256434297 | H110: 2.380268484
A111: ASFALTOS DILUÍDOS CM-30 | B111: 2017-05-01 | C111: 2.432106692 | D111: 2.167919128 | E111: 2.699836936 | F111: 2.255387192 | G111: 2.204026958 | H111: 2.361515909
A112: ASFALTOS DILUÍDOS CM-30 | B112: 2017-06-01 | C112: 2.428301776 | D112: 2.181938689 | E112: 2.756672055 | F112: 2.234549022 | G112: 2.305778546 | H112: 2.44553453
A113: ASFALTOS DILUÍDOS CM-30 | B113: 2017-07-01 | C113: 2.453752061 | D113: 2.218075334 | E113: 2.694625022 | F113: 2.414329247 | G113: 2.269601102 | H113: 2.473436106
A114: ASFALTOS DILUÍDOS CM-30 | B114: 2017-08-01 | C114: 2.447930976 | D114: 2.153112031 | E114: 2.595349952 | F114: 2.302919065 | G114: 2.170148667 | H114: 2.380876423
A115: ASFALTOS DILUÍDOS CM-30 | B115: 2017-09-01 | C115: 2.494551504 | D115: 2.14243989 | E115: 2.623166503 | F115: 2.371308095 | G115: 2.303698507 | H115: 2.393542204
A116: ASFALTOS DILUÍDOS CM-30 | B116: 2017-10-01 | C116: 2.349953944 | D116: 2.18056004 | E116: 2.614160957 | F116: 2.415254962 | G116: 2.20079573 | H116: 2.367947121
A117: ASFALTOS DILUÍDOS CM-30 | B117: 2017-11-01 | C117: 2.670126991 | D117: 2.433169195 | E117: 2.908627464 | F117: 2.58469482 | G117: 2.415192709 | H117: 2.602101348
A118: ASFALTOS DILUÍDOS CM-30 | B118: 2017-12-01 | C118: 2.587352645 | D118: 2.425358882 | E118: 2.906633765 | F118: 2.602890298 | G118: 2.42288976 | H118: 2.531764464
A119: ASFALTOS DILUÍDOS CM-30 | B119: 2018-01-01 | C119: 2.950360755 | D119: 2.662862923 | E119: 2.875953993 | F119: 2.620738484 | G119: 2.646955252 | H119: 2.735956369
A120: ASFALTOS DILUÍDOS CM-30 | B120: 2018-02-01 | C120: 2.677899567 | D120: 2.672498164 | E120: 2.942595474 | F120: 2.62043113 | G120: 2.567885662 | H120: 2.668369933
A121: ASFALTOS DILUÍDOS CM-30 | B121: 2018-03-01 | C121: 2.733363025 | D121: 2.589050022 | E121: 2.809172556 | F121: 2.561928393 | G121: 2.575946067 | H121: 2.634876584
A122: ASFALTOS DILUÍDOS CM-30 | B122: 2018-04-01 | C122: 2.75780112 | D122: 2.669553602 | E122: 2.773908242 | F122: 2.59547006 | G122: 2.556042394 | H122: 2.6643302
A123: ASFALTOS DILUÍDOS CM-30 | B123: 2018-05-01 | C123: 2.841213362 | D123: 2.672025877 | E123: 2.884501482 | F123: 2.686718021 | G123: 2.736485103 | H123: 2.77737896
A124: ASFALTOS DILUÍDOS CM-30 | B124: 2018-06-01 | C124: 3.008444789 | D124: 2.919605178 | E124: 3.158454886 | F124: 2.84673108 | G124: 2.953523993 | H124: 2.982291635
A125: ASFALTOS DILUÍDOS CM-30 | B125: 2018-07-01 | C125: 3.268237549 | D125: 3.036524094 | E125: 3.399360399 | F125: 3.026467598 | G125: 3.19779631 | H125: 3.164126546
A126: ASFALTOS DILUÍDOS CM-30 | B126: 2018-08-01 | C126: 3.56441315 | D126: 3.415193769 | E126: 3.707706206 | F126: 3.425079349 | G126: 3.356722461 | H126: 3.515558112
A127: ASFALTOS DILUÍDOS CM-30 | B127: 2018-09-01 | C127: 3.173913778 | D127: 3.445064118 | E127: 3.73526324 | F127: 3.385816186 | G127: 3.607309454 | H127: 3.483238429
A128: ASFALTOS DILUÍDOS CM-30 | B128: 2018-10-01 | C128: 3.487778119 | D128: 3.460508804 | E128: 3.721444057 | F128: 3.432525565 | G128: 3.60602088 | H128: 3.545390344
A129: ASFALTOS DILUÍDOS CM-30 | B129: 2018-11-01 | C129: 4.047272484 | D129: 3.814893312 | E129: 4.280131586 | F129: 4.178126777 | G129: 3.967681367 | H129: 3.990147183
A130: ASFALTOS DILUÍDOS CM-30 | B130: 2018-12-01 | C130: 3.951491146 | D130: 3.967113195 | E130: 4.341144202 | F130: 3.916766066 | G130: 3.911993357 | H130: 3.999742654
A131: ASFALTOS DILUÍDOS CM-30 | B131: 2019-01-01 | C131: 3.796855325 | D131: 3.870018889 | E131: 4.201901762 | F131: 3.954196997 | G131: 3.976786028 | H131: 3.933951911
A132: ASFALTOS DILUÍDOS CM-30 | B132: 2019-02-01 | C132: 3.516584073 | D132: 4.090361178 | E132: 4.498422953 | F132: 4.469942475 | G132: 4.254590254 | H132: 4.188544679
A133: ASFALTOS DILUÍDOS CM-30 | B133: 2019-03-01 | C133: 4.216758117 | D133: 4.361910728 | E133: 4.907194889 | F133: 4.398717729 | G133: 4.290823922 | H133: 4.360295279
A134: ASFALTOS DILUÍDOS CM-30 | B134: 2019-04-01 | C134: 4.281648205 | D134: 4.234661428 | E134: 4.531627215 | F134: 4.43722653 | G134: 4.466881471 | H134: 4.38082044
A135: ASFALTOS DILUÍDOS CM-30 | B135: 2019-05-01 | C135: 4.287644659 | D135: 4.190699738 | E135: 4.857910872 | F135: 4.267461963 | G135: 4.633806379 | H135: 4.366402151
A136: ASFALTOS DILUÍDOS CM-30 | B136: 2019-06-01 | C136: 4.475609892 | D136: 3.965052934 | E136: 4.66272934 | F136: 4.350600604 | G136: 4.211229921 | H136: 4.319323669
A137: ASFALTOS DILUÍDOS CM-30 | B137: 2019-07-01 | C137: 4.394498989 | D137: 4.058039305 | E137: 4.834221945 | F137: 4.094659414 | G137: 4.233003281 | H137: 4.346977757
A138: ASFALTOS DILUÍDOS CM-30 | B138: 2019-08-01 | C138: 4.48173504 | D138: 3.910662496 | E138: 4.576329081 | F138: 4.11161654 | G138: 4.255419985 | H138: 4.258345083
A139: ASFALTOS DILUÍDOS CM-30 | B139: 2019-09-01 | C139: 4.439578796 | D139: 3.859904896 | E139: 4.495256968 | F139: 4.111321475 | G139: 4.117359152 | H139: 4.251607085
A140: ASFALTOS DILUÍDOS CM-30 | B140: 2019-10-01 | C140: 4.335888631 | D140: 3.772324962 | E140: 4.459242357 | F140: 4.056084115 | G140: 3.942458011 | H140: 4.07740702
A141: ASFALTOS DILUÍDOS CM-30 | B141: 2019-11-01 | C141: 4.316238692 | D141: 3.910245509 | E141: 4.581841077 | F141: 4.07902404 | G141: 4.106621274 | H141: 4.094561212
A142: ASFALTOS DILUÍDOS CM-30 | B142: 2019-12-01 | C142: 4.199435972 | D142: 3.980119663 | E142: 4.673774805 | F142: 4.434268142 | G142: 3.986410312 | H142: 4.164691616
A143: ASFALTOS DILUÍDOS CM-30 | B143: 2020-01-01 | C143: 3.59298003 | D143: 3.895320617 | E143: 4.685420623 | F143: 4.387074674 | G143: 4.124467668 | H143: 4.053338937
A144: ASFALTOS DILUÍDOS CM-30 | B144: 2020-02-01 | C144: 3.642667016 | D144: 3.877395187 | E144: 4.438194543 | F144: 3.699944607 | G144: 3.778164011 | H144: 3.839010438
A145: ASFALTOS DILUÍDOS CM-30 | B145: 2020-03-01 | C145: 4.676668339 | D145: 3.791138977 | E145: 4.289222343 | F145: 3.718402734 | G145: 3.60908619 | H145: 3.93117068
A146: ASFALTOS DILUÍDOS CM-30 | B146: 2020-04-01 | C146: 4.313362837 | D146: 3.6957655 | E146: 4.255395321 | F146: 3.865895531 | G146: 3.732253382 | H146: 3.964125211
A147: ASFALTOS DILUÍDOS CM-30 | B147: 2020-05-01 | C147: 3.249134658 | D147: 3.637769912 | E147: 4.113544882 | F147: 3.760550026 | G147: 3.710618099 | H147: 3.65617504
A148: ASFALTOS DILUÍDOS CM-30 | B148: 2020-06-01 | C148: 4.017903076 | D148: 3.567031492 | E148: 4.277369171 | F148: 3.937886485 | G148: 3.625830069 | H148: 3.924524506
A149: ASFALTOS DILUÍDOS CM-30 | B149: 2020-07-01 | C149: 3.840497509 | D149: 3.51327048 | E149: 4.21549069 | F149: 3.954223886 | G149: 3.688841275 | H149: 3.843774448
A150: ASFALTOS DILUÍDOS CM-30 | B150: 2020-08-01 | C150: 4.174467203 | D150: 3.465394219 | E150: 4.277710211 | F150: 4.06746494 | G150: 3.62858863 | H150: 3.947166917
A151: ASFALTOS DILUÍDOS CM-30 | B151: 2020-09-01 | C151: 4.167371331 | D151: 3.746360816 | E151: 4.167424356 | F151: 3.795621791 | G151: 3.627729935 | H151: 3.973129945
A152: ASFALTOS DILUÍDOS CM-30 | B152: 2020-10-01 | C152: 4.408099527 | D152: 3.718989878 | E152: 4.278979192 | F152: 4.008746906 | G152: 3.591048183 | H152: 4.03964377
A153: ASFALTOS DILUÍDOS CM-30 | B153: 2020-11-01 | C153: 4.056306006 | D153: 3.969209281 | E153: 4.547900893 | F153: 4.27945542 | G153: 3.973347244 | H153: 4.175826149
A154: ASFALTOS DILUÍDOS CM-30 | B154: 2020-12-01 | C154: 4.132064138 | D154: 3.851632751 | E154: 4.426704386 | F154: 3.906236422 | G154: 3.8709398 | H154: 4.035347374
A155: ASFALTOS DILUÍDOS CM-30 | B155: 2021-01-01 | C155: 3.489836333 | D155: 3.951525937 | E155: 4.628269702 | F155: 4.011577011 | G155: 3.935136638 | H155: 3.917092391
A156: ASFALTOS DILUÍDOS CM-30 | B156: 2021-02-01 | C156: 4.099318116 | D156: 4.267109523 | E156: 4.832061615 | F156: 4.414202706 | G156: 4.149048932 | H156: 4.26819704
A157: ASFALTOS DILUÍDOS CM-30 | B157: 2021-03-01 | C157: 4.528355792 | D157: 4.239831731 | E157: 4.926314562 | F157: 4.269697839 | G157: 4.130655409 | H157: 4.377833785
A158: ASFALTOS DILUÍDOS CM-30 | B158: 2021-04-01 | C158: 4.349271867 | D158: 4.086995154 | E158: 4.477597522 | F158: 4.156113398 | G158: 4.044189822 | H158: 4.253361798
A159: ASFALTOS DILUÍDOS CM-30 | B159: 2021-05-01 | C159: 4.488889413 | D159: 4.707945815 | E159: 5.101489686 | F159: 4.784034896 | G159: 4.523986615 | H159: 4.790548085
A160: ASFALTOS DILUÍDOS CM-30 | B160: 2021-06-01 | C160: 4.010467711 | D160: 4.479592126 | E160: 5.113041212 | F160: 4.779739905 | G160: 4.721214307 | H160: 4.764890884
A161: ASFALTOS DILUÍDOS CM-30 | B161: 2021-07-01 | C161: 4.752234128 | D161: 4.559350506 | E161: 5.004758283 | F161: 4.80272972 | G161: 4.748550678 | H161: 4.817586047
A162: ASFALTOS DILUÍDOS CM-30 | B162: 2021-08-01 | C162: 5.085284532 | D162: 4.772501255 | E162: 5.198537142 | F162: 5.244735259 | G162: 4.76131175 | H162: 5.0981692
A163: ASFALTOS DILUÍDOS CM-30 | B163: 2021-09-01 | C163: 5.110300267 | D163: 4.538072365 | E163: 5.241721185 | F163: 5.017144197 | G163: 4.862861245 | H163: 5.016958886
A164: ASFALTOS DILUÍDOS CM-30 | B164: 2021-10-01 | C164: 5.080697261 | D164: 4.66826742 | E164: 5.119544199 | F164: 5.384779065 | G164: 4.658516432 | H164: 5.021294312
A165: ASFALTOS DILUÍDOS CM-30 | B165: 2021-11-01 | C165: 5.436518753 | D165: 5.08776781 | E165: 5.150063985 | F165: 5.634257884 | G165: 5.174530131 | H165: 5.228141289
A166: ASFALTOS DILUÍDOS CM-30 | B166: 2021-12-01 | C166: 5.184291386 | D166: 4.975486975 | E166: 5.572122251 | F166: 6.135655205 | G166: 5.01180992 | H166: 5.339565801
A167: ASFALTOS DILUÍDOS CM-30 | B167: 2022-01-01 | C167: 4.928191974 | D167: 5.023555623 | E167: 6.018407512 | F167: 5.214773026 | G167: 5.481979244 | H167: 5.250789679
A168: ASFALTOS DILUÍDOS CM-30 | B168: 2022-02-01 | C168: 5.545684189 | D168: 5.708628413 | E168: 6.011065894 | F168: 4.8651 | G168: 5.763367147 | H168: 5.736057428
A169: ASFALTOS DILUÍDOS CM-30 | B169: 2022-03-01 | C169: 6.326844735 | D169: 5.644687904 | E169: 5.930807225 | F169: 6.181141143 | G169: 5.498041682 | H169: 5.922781038
A170: ASFALTOS DILUÍDOS CM-30 | B170: 2022-04-01 | C170: 5.974220681 | D170: 5.832747324 | E170: 6.206692615 | F170: 5.720329997 | G170: 6.17800291 | H170: 6.012354229
A171: ASFALTOS DILUÍDOS CM-30 | B171: 2022-05-01 | C171: 5.354015586 | D171: 5.464335309 | E171: 6.007611639 | F171: 5.995095583 | G171: 5.49095009 | H171: 5.670722744
A172: ASFALTOS DILUÍDOS CM-30 | B172: 2022-06-01 | C172: 5.802443798 | D172: 5.316964203 | E172: 5.25267889 | F172: 5.813931518 | G172: 5.644996328 | H172: 5.469498687
A173: ASFALTOS DILUÍDOS CM-30 | B173: 2022-07-01 | C173: 5.965614765 | D173: 5.829314879 | E173: 5.919099711 | F173: 5.742484775 | G173: 5.674430543 | H173: 5.862020702
A174: ASFALTOS DILUÍDOS CM-30 | B174: 2022-08-01 | C174: 6.424230463 | D174: 5.758256878 | E174: 5.752352843 | F174: 5.791905352 | G174: 5.31271724 | H174: 5.823186051
A175: ASFALTOS DILUÍDOS CM-30 | B175: 2022-09-01 | C175: 5.540097074 | D175: 5.609921619 | E175: 5.963592489 | F175: 5.302181194 | G175: 4.977929161 | H175: 5.699429921
A176: ASFALTOS DILUÍDOS CM-30 | B176: 2022-10-01 | C176: 4.785670999 | D176: 4.727521094 | E176: 5.339105147 | F176: 4.851160007 | G176: 4.532580513 | H176: 5.041661715
A177: ASFALTOS DILUÍDOS CM-30 | B177: 2022-11-01 | C177: 7.765855923 | D177: 4.775654982 | E177: 5.237626127 | F177: 4.636383138 | G177: 4.460593179 | H177: 5.074993862
A178: ASFALTOS DILUÍDOS CM-30 | B178: 2022-12-01 | C178: 4.65725 | D178: 4.966905362 | E178: 5.655161554 | F178: 4.840935672 | G178: 4.661007861 | H178: 5.11324949
A179: ASFALTOS DILUÍDOS CM-30 | B179: 2023-01-01 | C179: 4.948950319 | D179: 5.056264922 | E179: 5.359597966 | F179: 4.426497959 | G179: 4.103267888 | H179: 4.715605129
A180: ASFALTOS DILUÍDOS CM-30 | B180: 2023-02-01 | C180: 5.407494667 | D180: 4.335771195 | E180: 4.746646601 | F180: 4.674884727 | G180: 4.014547173 | H180: 4.417800736
A181: ASFALTOS DILUÍDOS CM-30 | B181: 2023-03-01 | C181: 4.99131 | D181: 4.01354912 | E181: 4.74625028 | F181: 4.08071937 | G181: 4.082484954 | H181: 4.270345723
A182: ASFALTOS DILUÍDOS CM-30 | B182: 2023-04-01 | C182: 4.438479015 | D182: 4.094201354 | E182: 5.135816186 | F182: 4.368265095 | G182: 3.859308149 | H182: 4.153818797
A183: ASFALTOS DILUÍDOS CM-30 | B183: 2023-05-01 | C183: 5.018589297 | D183: 4.506282643 | E183: 5.616638293 | F183: 4.034756925 | G183: 4.063701717 | H183: 4.686492725
A184: ASFALTOS DILUÍDOS CM-30 | B184: 2023-06-01 | C184: 4.439644526 | D184: 4.495805354 | E184: 5.228174524 | F184: 3.772028745 | G184: 4.009042073 | H184: 4.588045148
A185: ASFALTOS DILUÍDOS CM-30 | B185: 2023-07-01 | C185: 4.360399352 | D185: 4.250187634 | E185: 6.188049155 | F185: 3.699216781 | G185: 4.315773768 | H185: 4.790717553
A186: ASFALTOS DILUÍDOS CM-30 | B186: 2023-08-01 | C186: 4.043215999 | D186: 4.100901709 | E186: 5.414198228 | F186: 3.964297949 | G186: 4.055989778 | H186: 4.607810697
A187: ASFALTOS DILUÍDOS CM-30 | B187: 2023-09-01 | C187: 5.69501625 | D187: 4.358586276 | E187: 5.187252517 | F187: 4.112508656 | G187: 4.211646236 | H187: 4.748640211
A188: ASFALTOS DILUÍDOS CM-30 | B188: 2023-10-01 | C188: 5.685185 | D188: 4.294075647 | E188: 4.912919476 | F188: 4.365095101 | G188: 4.257370162 | H188: 4.609445905
A189: ASFALTOS DILUÍDOS CM-30 | B189: 2023-11-01 | C189: 4.815085397 | D189: 4.345599447 | E189: 5.404502747 | F189: 4.045271104 | G189: 4.164697405 | H189: 4.781498943
A190: ASFALTOS DILUÍDOS CM-30 | B190: 2023-12-01 | C190: 5.411492308 | D190: 4.700043896 | E190: 5.306415734 | F190: 4.313216862 | G190: 4.188732062 | H190: 4.664845353
A191: ASFALTOS DILUÍDOS CM-30 | B191: 2024-01-01 | C191: 3.716178391 | D191: 4.395163811 | E191: 4.888126947 | F191: 3.977196797 | G191: 4.057095331 | H191: 4.290228903
A192: ASFALTOS DILUÍDOS CM-30 | B192: 2024-02-01 | C192: 5.349588571 | D192: 4.281881871 | E192: 5.36118056 | F192: 4.287786155 | G192: 4.151112946 | H192: 4.366194996
A193: ASFALTOS DILUÍDOS CM-30 | B193: 2024-03-01 | C193: 6.437624165 | D193: 4.512948358 | E193: 4.994035932 | F193: 4.680610304 | G193: 4.197388123 | H193: 4.725137967
A194: ASFALTOS DILUÍDOS CM-30 | B194: 2024-04-01 | C194: 6.524010018 | D194: 5.333668875 | E194: 5.011370357 | F194: 3.991999626 | G194: 4.15116124 | H194: 4.439406986
A195: ASFALTOS DILUÍDOS CM-30 | B195: 2024-05-01 | C195: 6.61993633 | D195: *** | E195: 5.21538288 | F195: 4.24855796 | G195: 4.478170767 | H195: 4.960078568
A196: ASFALTOS DILUÍDOS CM-30 | B196: 2024-06-01 | C196: 6.461820806 | D196: 4.288169263 | E196: 4.921606124 | F196: 4.517339741 | G196: 4.897585787 | H196: 4.922850803
A197: ASFALTOS DILUÍDOS CM-30 | B197: 2024-07-01 | C197: 6.120612239 | D197: 4.599255433 | E197: 5.497451069 | F197: 4.667838533 | G197: 4.514452653 | H197: 4.962740397
A198: ASFALTOS DILUÍDOS CM-70 | B198: 2008-11-01 | C198: *** | D198: *** | E198: *** | F198: *** | G198: *** | H198: ***
A199: ASFALTOS DILUÍDOS CM-70 | B199: 2008-12-01 | C199: *** | D199: *** | E199: *** | F199: *** | G199: *** | H199: ***
A200: ASFALTOS DILUÍDOS CM-70 | B200: 2009-01-01 | C200: *** | D200: *** | E200: *** | F200: *** | G200: *** | H200: ***
A201: ASFALTOS DILUÍDOS CM-70 | B201: 2009-02-01 | C201: *** | D201: *** | E201: *** | F201: *** | G201: *** | H201: ***
A202: ASFALTOS DILUÍDOS CM-70 | B202: 2009-03-01 | C202: *** | D202: *** | E202: *** | F202: *** | G202: *** | H202: ***
A203: ASFALTOS DILUÍDOS CM-70 | B203: 2009-04-01 | C203: *** | D203: *** | E203: *** | F203: *** | G203: *** | H203: ***
A204: ASFALTOS DILUÍDOS CM-70 | B204: 2009-05-01 | C204: *** | D204: *** | E204: *** | F204: *** | G204: *** | H204: ***
... 4600 more rows

Sheet Material Sicro
A1: CGCIT | B1: SISTEMA DE CUSTOS REFERENCIAIS DE OBRAS - SICRO | D1: DNIT
B2: Amapá - Abril/2024
A3: Código | B3: Descrição | C3: Unidade | D3: Preço Unitário (R$)
A4: M0003 | B4: Aço CA 25 | C4: kg | D4: 7.4579
A5: M0004 | B5: Aço CA 50 | C5: kg | D5: 7.1914
A6: M0005 | B6: Brita 0 | C6: m³ | D6: 216.8953
A7: M0006 | B7: Fibra de poliamida para concreto | C7: kg | D7: 27.9577
A8: M0007 | B8: Fibra de aço para concreto | C8: kg | D8: 13.695
A9: M0008 | B9: Detergente líquido neutro | C9: l | D9: 4.4113
A10: M0009 | B10: Aço CP 175 RB | C10: kg | D10: 9.0918
A11: M0010 | B11: Aditivo superplastificante para concreto e argamassa | C11: kg | D11: 18.1736
A12: M0011 | B12: Aditivo modificador de viscosidade para concreto e argamassa | C12: kg | D12: 11.9572
A13: M0012 | B13: Silicato de alumínio | C13: kg | D13: 2.2035
A14: M0013 | B14: Grampo de ancoragem em aço CA 50 - D = 12,5 mm | C14: kg | D14: 7.1914
A15: M0014 | B15: Aço CA 60 | C15: kg | D15: 9.0441
A16: M0015 | B16: Espoleta elétrica Nº 8 - D = 6,0 mm | C16: un | D16: 23.505
A17: M0016 | B17: Grampo sargento em ferro fundido tipo C com abertura útil de 105 mm (4") | C17: un | D17: 50.2201
A18: M0017 | B18: Saco de aniagem ou de ráfia de 50 kg - C = 95 cm e L = 65 cm | C18: un | D18: 2.9309
A19: M0018 | B19: Grampo pesado em aço-carbono para cabo de aço - D = 13 mm (1/2") | C19: un | D19: 22.7274
A20: M0019 | B20: Esticador em aço tipo olhal x olhal para cabo de aço - D = 13 mm | C20: un | D20: 157.779
A21: M0020 | B21: Grampo de ancoragem em aço CA 50 - D = 6,3 mm | C21: kg | D21: 8.0778
A22: M0021 | B22: Herbicida glifosato para áreas contínuas | C22: l | D22: 31.3598
A23: M0025 | B23: Adesivo plástico para tubos de PVC | C23: kg | D23: 51.0767
A24: M0026 | B24: Aditivo aglutinante para argamassa | C24: l | D24: 9.9371
A25: M0028 | B25: Areia média | C25: m³ | D25: 149.3157
A26: M0029 | B26: Sílica ativa para concreto e argamassa (microssílica) | C26: kg | D26: 1.9884
A27: M0030 | B27: Aditivo plastificante e retardador de pega para concreto e argamassa | C27: kg | D27: 8.6077
A28: M0032 | B28: Adesivo de contato para laminado elastoplástico | C28: kg | D28: 46.9671
A29: M0035 | B29: Diluente tipo aguarrás para tintas e vernizes | C29: l | D29: 15.194
A30: M0039 | B30: Gasolina comum | C30: l | D30: 5.1357
A31: M0041 | B31: Contêiner com 2 banheiros - L = 2,44 m e C = 6,09 m (1 TEU) | C31: un | D31: 90670.1977
A32: M0042 | B32: Contêiner com janela - L = 2,44 m e C = 6,09 m (1 TEU) | C32: un | D32: 68102.5255
A33: M0043 | B33: Óleo diesel | C33: l | D33: 5.4825
A34: M0044 | B34: Abrasivo de vidro com granulometria de 210 a 420 micra | C34: kg | D34: 9.46
A35: M0045 | B35: Barreira plástica monobloco para canalização de trânsito - C = 100 cm, L = 50 cm e H = 55 cm | C35: un | D35: 505.0821
A36: M0046 | B36: Barreira plástica para canalização de trânsito - C = 60 cm, L = 45 cm e H = 60 cm | C36: un | D36: 322.7198
A37: M0047 | B37: Cone de sinalização em polietileno - H = 75 cm e base quadrada de 40 x 40 cm | C37: un | D37: 102.95
A38: M0048 | B38: Balizador cônico refletivo em polietileno semiflexível - H = 114 cm e base octogonal de D = 40 cm | C38: un | D38: 148.8579
A39: M0049 | B39: Delimitador de tráfego flexível com chumbador e duas faixas refletivas - H = 77 cm e D = 21 cm | C39: un | D39: 181.8914
A40: M0050 | B40: Aditivo natural tipo goma xantana para hidrossemeadura | C40: kg | D40: 103.5502
A41: M0051 | B41: Cilindro canalizador de tráfego em polietileno - H = 117 cm e base quadrada de 60 x 60 cm | C41: un | D41: 214.1103
A42: M0052 | B42: Fita adesiva de PVC - L = 50 mm e C = 50 m | C42: m | D42: 0.1123
A43: M0053 | B43: Tela plástica em polipropileno na cor laranja para tapume - L = 1,2 m | C43: m | D43: 1.9406
A44: M0054 | B44: Fita zebrada de cor laranja e branca - L = 7 a 8 cm | C44: m | D44: 0.0742
A45: M0055 | B45: Barreira plástica articulável modular - C = 240 cm e H = 100 cm | C45: un | D45: 1279.349
A46: M0056 | B46: Ferramenta de corte para removedora de faixa de sinalização (Smith Cutter) | C46: un | D46: 7262.1788
A47: M0057 | B47: Contêiner com janela - L = 4,88 m e C = 6,09 m (1 TEU duplo) | C47: un | D47: 122742.211
A48: M0058 | B48: Contêiner com janela e 2 banheiros - L = 4,88 m e C = 6,09 m (1 TEU duplo) | C48: un | D48: 127131.8632
A49: M0059 | B49: Contêiner com revestimento térmico, janela e banheiro - L = 2,44 m e C = 6,09 m (1 TEU) | C49: un | D49: 88817.2632
A50: M0060 | B50: Contêiner com janela - L = 2,44 m e C = 4,58 m (3/4 TEU) | C50: un | D50: 61782.3012
A51: M0065 | B51: Contêiner com janela e banheiro - L = 2,44 m e 4,58 m (3/4 TEU) | C51: un | D51: 74609.1041
A52: M0066 | B52: Contêiner com revestimento térmico, janela e banheiro - L = 2,44 m e C = 12,90 m (2 TEU) | C52: un | D52: 121469.3355
A53: M0067 | B53: Tubo PEAD PE 100 PN 10 com flanges - D = 160 mm | C53: m | D53: 183.3275
A54: M0068 | B54: Caibro de pinho - L = 7,5 cm e E = 10,0 cm | C54: m | D54: 15.369
A55: M0069 | B55: Arame farpado em aço galvanizado - D = 1,60 mm | C55: m | D55: 0.8465
A56: M0071 | B56: Contêiner com 3 janelas para guarita - L = 2,44 m e C = 3,05 m (1/2 TEU) | C56: un | D56: 42695.3609
A57: M0072 | B57: Arame liso em aço galvanizado - D = 2,10 mm (14 BWG) | C57: kg | D57: 18.9222
A58: M0073 | B58: Muda de árvore com altura de 0,30 a 0,80 m | C58: un | D58: 14.6944
A59: M0074 | B59: Muda de arbusto com altura até 0,50 m | C59: un | D59: 27.8034
A60: M0075 | B60: Arame liso recozido em aço-carbono - D = 1,24 mm (18 BWG) | C60: kg | D60: 12.1451
A61: M0076 | B61: Disco de corte abrasivo para policorte - D = 300 mm | C61: un | D61: 15.4416
A62: M0080 | B62: Areia fina | C62: m³ | D62: 155.6751
A63: M0081 | B63: Areia grossa | C63: m³ | D63: 145.0884
A64: M0082 | B64: Areia média lavada | C64: m³ | D64: 159.6782
A65: M0083 | B65: Argamassa pré-dosada para grauteamento | C65: kg | D65: 2.6286
A66: M0084 | B66: Argamassa pré-dosada autoadensável para grauteamento | C66: kg | D66: 2.6459
A67: M0085 | B67: Ancoragem ativa para 4 cordoalhas - D = 12,7 mm | C67: un | D67: 382.3551
A68: M0086 | B68: Ancoragem ativa para 6 cordoalhas - D = 12,7 mm | C68: un | D68: 495.963
A69: M0087 | B69: Ancoragem ativa para 7 cordoalhas - D = 12,7 mm | C69: un | D69: 572.7025
A70: M0088 | B70: Ancoragem ativa para 8 cordoalhas - D = 12,7 mm | C70: un | D70: 668.9504
A71: M0089 | B71: Ancoragem ativa para 9 cordoalhas - D = 12,7 mm | C71: un | D71: 755.409
A72: M0091 | B72: Ancoragem ativa para 10 cordoalhas - D = 12,7 mm | C72: un | D72: 841.1023
A73: M0092 | B73: Ancoragem ativa para 12 cordoalhas - D = 12,7 mm | C73: un | D73: 1062.2237
A74: M0093 | B74: Ancoragem ativa para 15 cordoalhas - D = 12,7 mm | C74: un | D74: 1474.4514
A75: M0094 | B75: Ancoragem ativa para 19 cordoalhas - D = 12,7 mm | C75: un | D75: 1873.5503
A76: M0098 | B76: Bambu com diâmetro médio de 10 cm | C76: m | D76: 21.3573
A77: M0099 | B77: Equipamentos para a fábrica de dormentes de concreto protendido | C77: ISF | D77: 567.856
A78: M0100 | B78: Ancoragem ativa para 22 cordoalhas - D = 12,7 mm | C78: un | D78: 2427.3902
A79: M0101 | B79: Ancoragem ativa para 27 cordoalhas - D = 12,7 mm | C79: un | D79: 2973.9883
A80: M0102 | B80: Ancoragem ativa para 31 cordoalhas - D = 12,7 mm | C80: un | D80: 3206.728
A81: M0103 | B81: Aditivo acelerador de pega para concreto e argamassa projetados | C81: kg | D81: 7.5537
A82: M0104 | B82: Asfalto diluído de petróleo - CM-30 | C82: t | D82: -
A83: M0105 | B83: Ancoragem ativa para 4 cordoalhas - D = 15,2 mm | C83: un | D83: 475.3891
A84: M0106 | B84: Ancoragem ativa para 6 cordoalhas - D = 15,2 mm | C84: un | D84: 633.9624
A85: M0107 | B85: Geocomposto para drenagem | C85: m² | D85: 43.5713
A86: M0108 | B86: Ancoragem ativa para 7 cordoalhas - D = 15,2 mm | C86: un | D86: 745.496
A87: M0109 | B87: Geodreno vertical - L = 10 cm e E = 5 mm | C87: m | D87: 5.18
A88: M0110 | B88: Ancoragem ativa para 10 cordoalhas - D = 15,2 mm | C88: un | D88: 1152.0872
A89: M0111 | B89: Ancoragem ativa para 9 cordoalhas - D = 15,2 mm | C89: un | D89: 1027.5347
A90: M0112 | B90: Disco diamantado segmentado para corte de pavimento - D = 1.000 mm | C90: un | D90: 5881.1315
A91: M0113 | B91: Ancoragem ativa para 12 cordoalhas - D = 15,2 mm | C91: un | D91: 1406.3577
A92: M0114 | B92: Disco diamantado segmentado para corte de pavimento - D = 1.500 mm | C92: un | D92: 26165.8855
A93: M0115 | B93: Biomanta vegetal de fibras de coco entrelaçadas com fios de polipropileno biodegradáveis - densidade 0,4 kg/m² | C93: m² | D93: 6.51
A94: M0116 | B94: Mangote flangeado de borracha reforçada com lonas sintéticas - C = 1,80 m e D = 0,30 m | C94: un | D94: 16706.0104
A95: M0117 | B95: Mangote flangeado de borracha reforçada com lonas sintéticas - C = 1,80 m e D = 0,40 m | C95: un | D95: 22945.2316
A96: M0118 | B96: Mangote flangeado de borracha reforçada com lonas sintéticas - C = 1,80 m e D = 0,45 m | C96: un | D96: 25489.5332
A97: M0119 | B97: Mangote flangeado de borracha reforçada com lonas sintéticas - C = 1,80 m e D = 0,50 m | C97: un | D97: 28819.5034
A98: M0120 | B98: Tubo PEAD PE 100 PN 8 com flanges - D = 250 mm | C98: m | D98: 316.6971
A99: M0121 | B99: Tubo PEAD PE 100 PN 8 com flanges - D = 400 mm | C99: m | D99: 2029.3742
A100: M0122 | B100: Tubo PEAD PE 100 PN 8 com flanges - D = 450 mm | C100: m | D100: 2549.3992
A101: M0123 | B101: Tubo PEAD PE 100 PN 8 com flanges - D = 500 mm | C101: m | D101: 2855.0383
A102: M0124 | B102: Flutuador bipartido em polietileno com núcleo de espuma em poliuretano para tubos - D = 0,30 m | C102: un | D102: 4366.1567
A103: M0125 | B103: Flutuador bipartido em polietileno com núcleo de espuma em poliuretano para tubos - D = 0,40 m | C103: un | D103: 6031.5095
A104: M0126 | B104: Flutuador bipartido em polietileno com núcleo de espuma em poliuretano para tubos - D = 0,45 m | C104: un | D104: 6908.9594
A105: M0127 | B105: Flutuador bipartido em polietileno com núcleo de espuma em poliuretano para tubos - D = 0,50 m | C105: un | D105: 7482.1297
A106: M0128 | B106: Biomanta vegetal de fibras de palha entrelaçadas com fios de polipropileno biodegradáveis - densidade 0,6 kg/m² | C106: m² | D106: 5.71
A107: M0129 | B107: Retentor de sedimento em fibras vegetais - D = 20 cm | C107: m | D107: 62.1959
A108: M0130 | B108: Ancoragem ativa para 15 cordoalhas - D = 15,2 mm | C108: un | D108: 1853.9651
A109: M0131 | B109: Tubo PEAD corrugado com paredes estruturadas para drenagem - D = 400 mm | C109: m | D109: 240.2606
A110: M0132 | B110: Tubo PEAD corrugado com paredes estruturadas para drenagem - D = 450 mm | C110: m | D110: 293.9828
A111: M0133 | B111: Tubo PEAD corrugado com paredes estruturadas para drenagem - D = 500 mm | C111: m | D111: 395.7637
A112: M0134 | B112: Tubo PEAD corrugado com paredes estruturadas para drenagem - D = 600 mm | C112: m | D112: 576.6656
A113: M0135 | B113: Tubo PEAD corrugado com paredes estruturadas para drenagem - D = 750 mm | C113: m | D113: 783.4709
A114: M0136 | B114: Tubo PEAD corrugado com paredes estruturadas para drenagem - D = 800 mm | C114: m | D114: 862.7873
A115: M0137 | B115: Tubo PEAD corrugado com paredes estruturadas para drenagem - D = 900 mm | C115: m | D115: 1149.5487
A116: M0138 | B116: Ancoragem ativa para 19 cordoalhas - D = 15,2 mm | C116: un | D116: 2410.2088
A117: M0139 | B117: Tubo PEAD corrugado com paredes estruturadas para drenagem - D = 1.000 mm | C117: m | D117: 1512.1329
A118: M0140 | B118: Bentonita | C118: kg | D118: 4.2319
A119: M0141 | B119: Tubo PEAD corrugado com paredes estruturadas para drenagem - D = 1.050 mm | C119: m | D119: 1500.4716
A120: M0142 | B120: Tubo PEAD corrugado com paredes estruturadas para drenagem - D = 1.200 mm | C120: m | D120: 2137.4433
A121: M0143 | B121: Tubo PEAD corrugado com paredes estruturadas para drenagem - D = 1.500 mm | C121: m | D121: 2470.8146
A122: M0145 | B122: Ancoragem ativa para 22 cordoalhas - D = 15,2 mm | C122: un | D122: 3128.9619
A123: M0146 | B123: Ancoragem ativa para 27 cordoalhas - D = 15,2 mm | C123: un | D123: 4094.0606
A124: M0148 | B124: Ancoragem ativa para lajes para 1 cordoalha - D = 12,7 mm | C124: un | D124: 90.0762
A125: M0151 | B125: Ancoragem ativa para lajes para 2 cordoalhas - D = 12,7 mm | C125: un | D125: 167.4211
A126: M0152 | B126: Ancoragem ativa para lajes para 3 cordoalhas - D = 12,7 mm | C126: un | D126: 233.111
A127: M0153 | B127: Ancoragem ativa para lajes para 4 cordoalhas - D = 12,7 mm | C127: un | D127: 311.4924
A128: M0156 | B128: Bloco de concreto - L = 19 cm, A = 19 cm e C = 39 cm | C128: un | D128: 4.6446
A129: M0158 | B129: Tela metálica galvanizada dobrada em L - C = 2,0 m, L = 0,4 m e H = 0,4 m | C129: un | D129: 477.7123
A130: M0160 | B130: Extintor de incêndio tipo espuma mecânica - V = 10 l | C130: un | D130: 642.3617
A131: M0161 | B131: Barra de fibra de vidro (vergalhão) - D = 25,0 mm | C131: m | D131: 61.623
A132: M0162 | B132: Corrente de elo soldado em aço galvanizado com acabamento polido - D = 3,18 mm (1/8") | C132: m | D132: 7.1839
A133: M0163 | B133: Gonzo com aba em aço galvanizado - D = 12,7 mm (1/2") | C133: un | D133: 3.7017
A134: M0164 | B134: Tubo em aço galvanizado - E = 1,50 mm e seção de 20 x 20 mm | C134: m | D134: 12.5547
A135: M0166 | B135: Tubo em aço galvanizado - E = 2,25 mm e D = 20 mm (3/4") | C135: m | D135: 30.5644
A136: M0167 | B136: Tela de poliamida industrial - E = 0,40 mm e malha de 1,6 mm | C136: m² | D136: 16.4874
A137: M0168 | B137: Abraçadeira de poliamida - E = 3,6 mm e C = 200 mm | C137: un | D137: 0.2324
A138: M0169 | B138: Roda em aço e pneu com câmara de ar 83/203 mm (3,25"/8") para carrinho de mão | C138: un | D138: 65.0009
A139: M0173 | B139: Ancoragem ativa para lajes para 1 cordoalha - D = 15,2 mm | C139: un | D139: 101.3239
A140: M0178 | B140: Ancoragem ativa para lajes para 2 cordoalhas - D = 15,2 mm | C140: un | D140: 218.9561
A141: M0181 | B141: Ancoragem ativa para lajes para 3 cordoalhas - D = 15,2 mm | C141: un | D141: 285.4083
A142: M0184 | B142: Ancoragem ativa para lajes para 4 cordoalhas - D = 15,2 mm | C142: un | D142: 376.7544
A143: M0191 | B143: Brita 1 | C143: m³ | D143: 201.2817
A144: M0192 | B144: Brita 2 | C144: m³ | D144: 199.2347
A145: M0193 | B145: Brita 3 | C145: m³ | D145: 197.7402
A146: M0194 | B146: Escória de aciaria | C146: m³ | D146: 15.1882
A147: M0198 | B147: Parafuso de cabeça chata em aço - D = 4,5 mm e bucha plástica - D = 8 mm (S8) | C147: un | D147: 0.3322
A148: M0199 | B148: Coroa de botões cruzados linha R32 - D = 43 mm (1 11/16’’) | C148: un | D148: 321.2863
A149: M0201 | B149: Coroa de botões esféricos linha T38 - D = 89 mm (3 1/2") | C149: un | D149: 873.0327
A150: M0202 | B150: Coroa de botões esféricos linha T45 - D = 76 mm (3") | C150: un | D150: 675.0469
A151: M0204 | B151: Instalações físicas para a central de pré-moldagem de dormentes de concreto protendido | C151: CMCC | D151: 1823.81
A152: M0217 | B152: Enxofre | C152: kg | D152: 5.1055
A153: M0220 | B153: Adubo à base de nitrogênio, fósforo e potássio (NPK) | C153: kg | D153: 3.9967
A154: M0222 | B154: Filer calcário | C154: kg | D154: 0.2996
A155: M0223 | B155: Sementes para hidrossemeadura | C155: kg | D155: 30.7475
A156: M0224 | B156: Guia-chapéu pré-moldada - C = 120 cm | C156: un | D156: 53.9767
A157: M0225 | B157: Adubo orgânico composto | C157: kg | D157: 0.3006
A158: M0229 | B158: Gabião tipo colchão em liga de zinco e alumínio revestido com polímero de malha hexagonal - E = 0,17 m | C158: m² | D158: 216.1999
A159: M0230 | B159: Gabião tipo caixa em liga de zinco e alumínio de malha hexagonal - C = 2,00 m, L = 1,00 m e H = 0,50 m | C159: un | D159: 648.9717
A160: M0231 | B160: Gabião tipo caixa em liga de zinco e alumínio de malha hexagonal - C = 2,00 m, L = 1,00 m e H = 1,00 m | C160: un | D160: 961.4531
A161: M0232 | B161: Gabião tipo caixa em liga de zinco e alumínio revestido com polímero de malha hexagonal - C = 2,00 m, L = 1,00 m e H = 0,50 m | C161: un | D161: 802.5105
A162: M0233 | B162: Gabião tipo caixa em liga de zinco e alumínio revestido com polímero de malha hexagonal - C = 2,00 m, L = 1,00 m e H = 1,00 m | C162: un | D162: 1124.2733
A163: M0234 | B163: Gabião tipo saco em liga de zinco e alumínio revestido com polímero de malha hexagonal - D = 0,65 m | C163: m³ | D163: 597.9252
A164: M0235 | B164: Gabião tipo colchão em liga de zinco e alumínio revestido com polímero de malha hexagonal - E = 0,23 m | C164: m² | D164: 225.6151
A165: M0236 | B165: Gabião tipo colchão em liga de zinco e alumínio revestido com polímero de malha hexagonal - E = 0,30 m | C165: m² | D165: 248.0795
A166: M0237 | B166: Energia elétrica | C166: kWh | D166: 0.88
A167: M0253 | B167: Cabo de cobre flexível antichama isolado em PVC - tensão de 450/750 V e seção de 16 mm² | C167: m | D167: 12.8255
A168: M0254 | B168: Mistura gasosa de argônio e dióxido de carbono para solda MIG/MAG | C168: m³ | D168: 52.8278
A169: M0256 | B169: Tinta à base de etil silicato de zinco bicomponente para fundo preparador de pintura | C169: l | D169: 101.1483
A170: M0257 | B170: Diluente para tinta à base de etil silicato de zinco | C170: l | D170: 36.7724
A171: M0260 | B171: Cabo de cobre PP flexível isolado em PVC - tensão de 300/500 V e seção de 3 x 1,5 mm² | C171: m | D171: 4.4534
A172: M0264 | B172: Bomba de combustível industrial eletrônica simples | C172: un | D172: 26715.1608
A173: M0265 | B173: Tanque de combustível aéreo horizontal com escada para visita - capacidade de 5.000 l | C173: un | D173: 20848.052
A174: M0266 | B174: Cabo de cobre flexível antichama isolado em PVC - tensão de 0,6/1,0 kV e seção de 240 mm² | C174: m | D174: 158.1503
A175: M0267 | B175: Módulo de torre de elevador de cremalheira | C175: un | D175: 3897.8915
A176: M0268 | B176: Módulo de ancoragem de torre de elevador de cremalheira | C176: un | D176: 2951.5918
A177: M0269 | B177: Cabo de cobre flexível antichama isolado em PVC - tensão de 0,6/1,0 kV e seção de 50 mm² | C177: m | D177: 34.0192
A178: M0284 | B178: Caibro de pinho - L = 7,5 cm e E = 7,5 cm | C178: m | D178: 11.5268
A179: M0285 | B179: Pontalete para escoramento - D = 15 cm | C179: m | D179: 8.35
A180: M0286 | B180: Tábua - E = 2,5 cm e L = 30 cm | C180: m | D180: 14.1631
A181: M0289 | B181: Tábua - E = 2,5 cm e L = 15 cm | C181: m | D181: 7.0416
A182: M0290 | B182: Tábua - E = 2,5 cm e L = 10 cm | C182: m | D182: 4.6891
A183: M0291 | B183: Estrutura modular com 2 banheiros - L = 2,44 m e C = 6,06 m (1 TEU) | C183: un | D183: 72966.5297
A184: M0292 | B184: Estrutura modular com janela - L = 2,44 m e C = 6,06 m (1 TEU) | C184: un | D184: 58642.3377
A185: M0293 | B185: Estrutura modular com janela - L = 4,88 m e C = 6,06 m (1 TEU duplo) | C185: un | D185: 103309.7098
A186: M0294 | B186: Estrutura modular com janela e 2 banheiros - L = 4,88 m e C = 6,06 m (1 TEU duplo) | C186: un | D186: 114835.52
A187: M0295 | B187: Estrutura modular com revestimento térmico, janela e banheiro - L = 2,44 m e C = 6,06 m (1 TEU) | C187: un | D187: 65997.4
A188: M0296 | B188: Estrutura modular com revestimento térmico, janela e banheiro - L = 2,44 m e C = 12,19 m (2 TEU) | C188: un | D188: 122521.1627
A189: M0297 | B189: Estrutura modular com 3 janelas para guarita - L = 2,44 m e C = 3,05 m (1/2 TEU) | C189: un | D189: 41239.2001
A190: M0301 | B190: Pontalete para escoramento - D = 10 cm | C190: m | D190: 3.713
A191: M0310 | B191: Peça de madeira - L = 7,5 cm e E = 2,5 cm | C191: m | D191: 3.8423
A192: M0311 | B192: Filtro de aspiração de ar externo com capacidade 3,58 l/s para compressor de ar respirável | C192: un | D192: 200.1396
A193: M0312 | B193: Filtro de purificação de ar comprimido com capacidade de 35 MPa para compressor de ar respirável | C193: un | D193: 222.2056
A194: M0344 | B194: Cal hidratada - a granel | C194: kg | D194: 0.8011
A195: M0345 | B195: Cal hidratada - saco | C195: kg | D195: 1.3154
A196: M0346 | B196: Disco de aço para bomba de projeção via seca | C196: un | D196: 330
A197: M0347 | B197: Disco de aço para bomba de projeção via úmida | C197: un | D197: 1262.5862
A198: M0348 | B198: Disco de borracha para bomba de projeção via seca | C198: un | D198: 265
A199: M0349 | B199: Disco de borracha para bomba de projeção via úmida | C199: un | D199: 600.6
A200: M0350 | B200: Bico para bomba de projeção | C200: un | D200: 300.8014
... 1476 more rows

Sheet Pessoal Sicro
A1: CGCIT | B1: SISTEMA DE CUSTOS REFERENCIAIS DE OBRAS - SICRO | G1: DNIT
A3: Amapá - Abril/2024
A4: Sem desoneração
A5: Código | B5: Descrição | C5: Unidade | D5: Salário (R$) | E5: Encargos Totais | F5: Custo (R$) | G5: Periculosidade/ Insalubridade
A6: P9801 | B6: Ajudante | C6: h | D6: 7.2674 | E6: 2.141476 | F6: 22.8303 | G6: 0
A7: P9802 | B7: Ajudante especializado | C7: h | D7: 8.6985 | E7: 2.058994 | F7: 26.6086 | G7: 0
A8: P9803 | B8: Almoxarife | C8: mês | D8: 2043.3868 | E8: 1.428033 | F8: 4961.4105 | G8: 0
A9: P9804 | B9: Apontador | C9: mês | D9: 2037.2 | E9: 1.456037 | F9: 5003.4385 | G9: 0
A10: P9805 | B10: Armador | C10: h | D10: 9.3283 | E10: 1.919575 | F10: 27.2346 | G10: 0
A11: P9806 | B11: Auxiliar administrativo | C11: mês | D11: 2037.2 | E11: 1.437177 | F11: 4965.0169 | G11: 0
A12: P9807 | B12: Bombeiro hidráulico | C12: h | D12: 12.7181 | E12: 1.763968 | F12: 35.1524 | G12: 0
A13: P9808 | B13: Carpinteiro | C13: h | D13: 9.2716 | E13: 1.918098 | F13: 27.0554 | G13: 0
A14: P9809 | B14: Encarregado administrativo | C14: mês | D14: 3821.677 | E14: 1.095589 | F14: 8008.6642 | G14: 0
A15: P9810 | B15: Eletricista | C15: h | D15: 10.5878 | E15: 1.863202 | F15: 30.315 | G15: 0
A16: P9811 | B16: Encarregado especializado | C16: mês | D16: 3318.1091 | E16: 1.169916 | F16: 7200.018 | G16: 0
A17: P9812 | B17: Engenheiro | C17: mês | D17: 12813.8699 | E17: 0.838973 | F17: 23564.3607 | G17: 0
A18: P9814 | B18: Operacional | C18: mês | D18: 1570.3441 | E18: 1.489277 | F18: 3909.0214 | G18: 0
A19: P9815 | B19: Jardineiro | C19: h | D19: 9.63 | E19: 1.885027 | F19: 27.7828 | G19: 0
A20: P9819 | B20: Engenheiro supervisor | C20: mês | D20: 12813.8699 | E20: 0.838973 | F20: 23564.3607 | G20: 0
A21: P9821 | B21: Pedreiro | C21: h | D21: 9.26 | E21: 1.916655 | F21: 27.0082 | G21: 0
A22: P9822 | B22: Pintor | C22: h | D22: 9.5418 | E22: 1.911059 | F22: 27.7767 | G22: 0
A23: P9823 | B23: Serralheiro | C23: h | D23: 10.4649 | E23: 1.827733 | F23: 29.5919 | G23: 0
A24: P9824 | B24: Servente | C24: h | D24: 6.4691 | E24: 2.268409 | F24: 21.1436 | G24: 0
A25: P9825 | B25: Soldador | C25: h | D25: 12.5628 | E25: 1.713715 | F25: 34.0918 | G25: 0
A26: P9826 | B26: Chefe setor de finanças | C26: mês | D26: 12414.8644 | E26: 0.838945 | F26: 22830.2528 | G26: 0
A27: P9827 | B27: Vigia | C27: mês | D27: 1500.4 | E27: 1.905358 | F27: 4809.3191 | G27: 0.3
A28: P9830 | B28: Montador | C28: h | D28: 9.75 | E28: 1.965015 | F28: 28.9088 | G28: 0
A29: P9833 | B29: Auxiliar de laboratório | C29: mês | D29: 1795.0952 | E29: 1.531684 | F29: 4544.6137 | G29: 0
A30: P9837 | B30: Oceanógrafo | C30: mês | D30: 5313.4666 | E30: 0.967307 | F30: 10453.22 | G30: 0
A31: P9840 | B31: Encarregado geral | C31: mês | D31: 5146.1074 | E31: 1.024057 | F31: 10416.0147 | G31: 0
A32: P9842 | B32: Faxineiro | C32: mês | D32: 1556 | E32: 1.642475 | F32: 4111.6911 | G32: 0
A33: P9843 | B33: Operador de equipamento leve | C33: h | D33: 9.7212 | E33: 1.869096 | F33: 27.891 | G33: 0
A34: P9845 | B34: Operador de equipamento pesado | C34: h | D34: 12.58 | E34: 1.69336 | F34: 33.8824 | G34: 0
A35: P9846 | B35: Operador de equipamento especial | C35: h | D35: 17.5028 | E35: 1.516285 | F35: 44.042 | G35: 0
A36: P9847 | B36: Perfurador de tubulão | C36: h | D36: 7.2549 | E36: 2.137908 | F36: 22.7652 | G36: 0
A37: P9848 | B37: Desenhista | C37: mês | D37: 4280.5242 | E37: 1.075363 | F37: 8883.6415 | G37: 0
A38: P9849 | B38: Condutor maquinista fluvial | C38: mês | D38: 2497.4354 | E38: 1.203174 | F38: 5502.2847 | G38: 0
A39: P9850 | B39: Copeiro | C39: mês | D39: 1634.277 | E39: 1.568729 | F39: 4198.0147 | G39: 0
A40: P9851 | B40: Médico do trabalho | C40: mês | D40: 9683.7414 | E40: 0.861976 | F40: 18030.894 | G40: 0
A41: P9852 | B41: Blaster | C41: h | D41: 11.0884 | E41: 2.127902 | F41: 38.0099 | G41: 0.3
A42: P9853 | B42: Pré-marcador | C42: h | D42: 7.2546 | E42: 2.115729 | F42: 22.6033 | G42: 0
A43: P9854 | B43: Recepcionista | C43: mês | D43: 1783.9545 | E43: 1.478954 | F43: 4422.3411 | G43: 0
A44: P9855 | B44: Marinheiro de máquinas | C44: mês | D44: 2228.695 | E44: 1.253325 | F44: 5021.9741 | G44: 0
A45: P9856 | B45: Marinheiro de convés | C45: h | D45: 9.888 | E45: 1.708729 | F45: 26.7839 | G45: 0
A46: P9857 | B46: Marinheiro de convés - mensalista | C46: mês | D46: 2175.3666 | E46: 1.264919 | F46: 4927.0291 | G46: 0
A47: P9858 | B47: Laboratorista | C47: mês | D47: 2995.5104 | E47: 1.231819 | F47: 6685.437 | G47: 0
A48: P9859 | B48: Trabalhador de via | C48: h | D48: 6.4182 | E48: 2.28869 | F48: 21.1074 | G48: 0
A49: P9861 | B49: Selecionador de material pétreo | C49: h | D49: 7.2546 | E49: 2.125758 | F49: 22.6761 | G49: 0
A50: P9864 | B50: Engenheiro de segurança do trabalho | C50: mês | D50: 12257.0455 | E50: 0.844802 | F50: 22611.822 | G50: 0
A51: P9866 | B51: Motorista de caminhão | C51: h | D51: 10.4397 | E51: 1.79425 | F51: 29.1711 | G51: 0
A52: P9867 | B52: Técnico especializado - mensalista | C52: mês | D52: 4072.0154 | E52: 1.10483 | F52: 8570.9001 | G52: 0
A53: P9869 | B53: Encarregado de obras de artes especiais | C53: mês | D53: 3318.1091 | E53: 1.169916 | F53: 7200.018 | G53: 0
A54: P9870 | B54: Motorista de veículo leve | C54: h | D54: 9.26 | E54: 1.886305 | F54: 26.7271 | G54: 0
A55: P9871 | B55: Motorista de veículo especial | C55: h | D55: 12.0257 | E55: 1.701872 | F55: 32.4919 | G55: 0
A56: P9875 | B56: Encarregado de turma | C56: mês | D56: 2264.6317 | E56: 1.36093 | F56: 5346.6369 | G56: 0
A57: P9876 | B57: Técnico de segurança do trabalho | C57: mês | D57: 3671.75 | E57: 1.140256 | F57: 7858.4849 | G57: 0
A58: P9878 | B58: Secretária | C58: mês | D58: 2855.4866 | E58: 1.207004 | F58: 6302.0703 | G58: 0
A59: P9880 | B59: Piloto fluvial | C59: mês | D59: 3456.53 | E59: 1.073971 | F59: 7168.7429 | G59: 0
A60: P9882 | B60: Técnico especializado | C60: h | D60: 18.5092 | E60: 1.500435 | F60: 46.281 | G60: 0
A61: P9883 | B61: Chefe do setor administrativo | C61: mês | D61: 3821.6966 | E61: 1.095587 | F61: 8008.6977 | G61: 0
A62: P9884 | B62: Encarregado de terraplenagem | C62: mês | D62: 3318.1091 | E62: 1.169916 | F62: 7200.018 | G62: 0
A63: P9885 | B63: Frentista de túnel | C63: h | D63: 7.2546 | E63: 2.193643 | F63: 23.1686 | G63: 0
A64: P9889 | B64: Técnico da qualidade | C64: mês | D64: 4365.7314 | E64: 1.093201 | F64: 9138.3533 | G64: 0
A65: P9892 | B65: Auxiliar de blaster | C65: h | D65: 9.7647 | E65: 2.222968 | F65: 34.4007 | G65: 0.3
A66: P9893 | B66: Encarregado de pavimentação | C66: mês | D66: 3318.1091 | E66: 1.169916 | F66: 7200.018 | G66: 0
A67: P9896 | B67: Porteiro | C67: mês | D67: 1764.56 | E67: 1.535181 | F67: 4473.4789 | G67: 0
A68: P9897 | B68: Técnico de meio ambiente | C68: mês | D68: 3588.2385 | E68: 1.153283 | F68: 7726.4929 | G68: 0
A69: P9900 | B69: Comprador | C69: mês | D69: 3461.4513 | E69: 1.150782 | F69: 7444.8271 | G69: 0
A70: P9901 | B70: Encarregado de superestrutura ferroviária | C70: mês | D70: 3318.1091 | E70: 1.169916 | F70: 7200.018 | G70: 0
A71: P9903 | B71: Auxiliar técnico | C71: mês | D71: 1956.586 | E71: 1.45388 | F71: 4801.2272 | G71: 0
A72: P9907 | B72: Comandante de longo curso | C72: mês | D72: 11259.3057 | E72: 0.85216 | F72: 20854.0356 | G72: 0
A73: P9908 | B73: Imediato | C73: mês | D73: 8904.606 | E73: 0.878143 | F73: 16724.1234 | G73: 0
A74: P9909 | B74: Oficial de náutica | C74: mês | D74: 2834.3491 | E74: 1.14877 | F74: 6090.3643 | G74: 0
A75: P9910 | B75: Oficial de máquinas | C75: mês | D75: 2921.1265 | E75: 1.133052 | F75: 6230.9147 | G75: 0
A76: P9913 | B76: Draguista | C76: mês | D76: 3595.3388 | E76: 1.061613 | F76: 7412.1972 | G76: 0
A77: P9915 | B77: Maquinista | C77: h | D77: 12.7679 | E77: 1.672053 | F77: 34.1165 | G77: 0
A78: P9916 | B78: Encarregado de conservação rodoviária | C78: mês | D78: 3318.1091 | E78: 1.169916 | F78: 7200.018 | G78: 0
A79: P9920 | B79: Mestre fluvial | C79: mês | D79: 4677.0464 | E79: 0.990445 | F79: 9309.4036 | G79: 0
A80: P9921 | B80: Mergulhador raso autônomo de emergência | C80: h | D80: 9.9237 | E80: 2.46323 | F80: 36.9353 | G80: 0.2587
A81: P9922 | B81: Mergulhador raso dependente de emergência | C81: h | D81: 9.9208 | E81: 2.539431 | F81: 38.0902 | G81: 0.3
A82: P9924 | B82: Mergulhador raso dependente | C82: h | D82: 9.9208 | E82: 3.855917 | F82: 51.1508 | G82: 0.3
A83: P9925 | B83: Mergulhador raso autônomo | C83: h | D83: 9.9237 | E83: 3.48923 | F83: 47.117 | G83: 0.2587
A84: P9926 | B84: Mergulhador raso auxiliar de superfície | C84: h | D84: 9.9237 | E84: 2.237032 | F84: 34.6905 | G84: 0.2587
A85: P9927 | B85: Frentista de túnel com periculosidade | C85: h | D85: 7.2546 | E85: 2.521696 | F85: 27.7248 | G85: 0.3
A86: P9930 | B86: Eletricista com periculosidade | C86: h | D86: 10.5878 | E86: 2.190408 | F86: 36.9557 | G86: 0.3
A87: P9931 | B87: Operador de equipamento de mergulho | C87: h | D87: 18.0118 | E87: 1.800995 | F87: 53.0176 | G87: 0.1425
A88: P9932 | B88: Operador de equipamento pesado com periculosidade | C88: h | D88: 12.58 | E88: 2.02276 | F88: 41.8003 | G88: 0.3
A89: P9933 | B89: Supervisor de mergulho raso | C89: mês | D89: 3962.5981 | E89: 1.326142 | F89: 9782.236 | G89: 0.1425
A90: P9934 | B90: Motorista de veículo especial com periculosidade | C90: h | D90: 12.0257 | E90: 2.030011 | F90: 40.0457 | G90: 0.3
A91: P9938 | B91: Operador de equipamento leve com periculosidade | C91: h | D91: 9.7212 | E91: 2.198489 | F91: 34.0095 | G91: 0.3
A92: P9939 | B92: Operador de equipamento leve com insalubridade | C92: h | D92: 9.7212 | E92: 2.294202 | F92: 34.5909 | G92: 0.2641
A93: P9942 | B93: Marinheiro de convés com periculosidade | C93: h | D93: 9.888 | E93: 2.037139 | F93: 32.9976 | G93: 0.3
A94: P9944 | B94: Operador de equipamento especial com periculosidade | C94: h | D94: 17.5028 | E94: 1.845689 | F94: 55.0583 | G94: 0.3
A95: P9946 | B95: Engenheiro auxiliar | C95: mês | D95: 12002 | E95: 0.844017 | F95: 22131.892 | G95: 0
A96: P9947 | B96: Técnico florestal | C96: mês | D96: 3588.2385 | E96: 1.153283 | F96: 7726.4929 | G96: 0
A97: P9948 | B97: Motorista de veículo leve - mensalista | C97: mês | D97: 2037.2 | E97: 1.428005 | F97: 4946.3317 | G97: 0
A98: P9949 | B98: Topógrafo | C98: mês | D98: 3671.75 | E98: 1.158771 | F98: 7926.4674 | G98: 0
A99: P9950 | B99: Auxiliar de topografia | C99: mês | D99: 1764.56 | E99: 1.56135 | F99: 4519.6557 | G99: 0
A100: P9951 | B100: Médico de câmara hiperbárica | C100: mês | D100: 9683.7414 | E100: 1.004912 | F100: 19979.6114 | G100: 0.0583
A101: P9952 | B101: Pedreiro - mensalista | C101: mês | D101: 2037.2 | E101: 1.45216 | F101: 4995.5403 | G101: 0
A102: P9953 | B102: Eletricista - mensalista | C102: mês | D102: 2329.3082 | E102: 1.403467 | F102: 5598.4153 | G102: 0
A103: P9954 | B103: Servente - mensalista | C103: mês | D103: 1423.2014 | E103: 1.750083 | F103: 3913.9219 | G103: 0
A104: P9955 | B104: Engenheiro chefe | C104: mês | D104: 15748.7567 | E104: 0.825076 | F104: 28742.6778 | G104: 0
A105: P9956 | B105: Motorista de caminhão com periculosidade | C105: h | D105: 10.4397 | E105: 2.122389 | F105: 35.7287 | G105: 0.3
A106: P9972 | B106: Técnico de batimetria | C106: mês | D106: 3322.76 | E106: 1.108568 | F106: 7006.2654 | G106: 0

Sheet Equipamentos
A1: CGCIT | B1: SISTEMA DE CUSTOS REFERENCIAIS DE OBRAS - SICRO | K1: DNIT
B2: Amapá - Abril/2024
A3: Código | B3: Descrição | C3: Valor de Aquisição (R$) | D3: Depreciação (R$/h) | E3: Oportunidade de Capital (R$/h) | F3: Seguros e Impostos (R$/h) | G3: Manutenção (R$/h) | H3: Operação (R$/h) | I3: Mão de Obra de Operação (R$/h) | J3: Custo Produtivo (R$/h) | K3: Custo Improdutivo (R$/h)
A4: E9001 | B4: Conjunto vibratório para tubos de concreto com encaixe PB e 3 jogos de fôrmas - D = 0,60 m - 2,20 kW | C4: 68280.6232 | D4: 9.1041 | E4: 2.1065 | F4: 0 | G4: 6.8281 | H4: 0 | I4: 0 | J4: 18.0387 | K4: 11.2106
A5: E9002 | B5: Conjunto vibratório para tubos de concreto com encaixe PB e 3 jogos de fôrmas - D = 0,80 m - 2,20 kW | C5: 85238.7359 | D5: 11.3652 | E5: 2.6296 | F5: 0 | G5: 8.5239 | H5: 0 | I5: 0 | J5: 22.5187 | K5: 13.9948
A6: E9003 | B6: Conjunto vibratório para tubos de concreto com encaixe PB e 3 jogos de fôrmas - D = 1,00 m - 2,20 kW | C6: 104947.7555 | D6: 13.993 | E6: 3.2376 | F6: 0 | G6: 10.4948 | H6: 0 | I6: 0 | J6: 27.7254 | K6: 17.2306
A7: E9004 | B7: Conjunto vibratório para tubos de concreto com encaixe PB e 3 jogos de fôrmas - D = 1,20 m - 2,20 kW | C7: 111242.5107 | D7: 14.8323 | E7: 3.4318 | F7: 0 | G7: 11.1243 | H7: 0 | I7: 0 | J7: 29.3884 | K7: 18.2641
A8: E9005 | B8: Conjunto vibratório para tubos de concreto com encaixe PB e 3 jogos de fôrmas - D = 1,50 m - 2,20 kW | C8: 116033.7134 | D8: 15.4712 | E8: 3.5796 | F8: 0 | G8: 11.6034 | H8: 0 | I8: 0 | J8: 30.6542 | K8: 19.0508
A9: E9006 | B9: Equipamento para sondagem manual | C9: 3008.5028 | D9: 0.5114 | E9: 0.1114 | F9: 0 | G9: 0.3009 | H9: 0 | I9: 0 | J9: 0.9237 | K9: 0.6228
A10: E9007 | B10: Bomba de pistão triplex com capacidade de 7,80 m³/h (130 l/min) - 8,20 kW | C10: 158773.4963 | D10: 12.7019 | E10: 2.9389 | F10: 0 | G10: 11.1141 | H10: 8.5417 | I10: 0 | J10: 35.2966 | K10: 15.6408
A11: E9008 | B11: Transportador manual de tubos de concreto com capacidade de 1 t | C11: 2207.4394 | D11: 1.9867 | E11: 0.1362 | F11: 0 | G11: 1.1037 | H11: 0 | I11: 0 | J11: 3.2266 | K11: 2.1229
A12: E9009 | B12: Embarcação rebocadora - 268 kW | C12: 641788.2304 | D12: 8.3566 | E12: 3.7238 | F12: 0 | G12: 18.5703 | H12: 279.1689 | I12: 135.4673 | J12: 445.2869 | K12: 147.5477
A13: E9010 | B13: Balança plataforma digital à bateria, com mesa de 75 x 75 cm e capacidade de 500 kg | C13: 5248.1292 | D13: 0.7872 | E13: 0.1079 | F13: 0 | G13: 0.4373 | H13: 0 | I13: 0 | J13: 1.3324 | K13: 0.8951
A14: E9011 | B14: Carro manual modelo plataforma de 200 x 80 cm com capacidade de 800 kg | C14: 1939.1252 | D14: 0.349 | E14: 0.0718 | F14: 0 | G14: 0.1939 | H14: 0 | I14: 0 | J14: 0.6147 | K14: 0.4208
A15: E9014 | B15: Deflectômetro de impacto (FWD) instalado em picape com reboque e faixa de carga de 7 a 120 kN - 147 kW | C15: 2141825.942 | D15: 171.3461 | E15: 39.6452 | F15: 0 | G15: 107.0913 | H15: 0 | I15: 32.4919 | J15: 350.5745 | K15: 243.4832
A16: E9015 | B16: Elevador de obra com capacidade de 1.000 kg - 9 kW | C16: 65864.4441 | D16: 5.2692 | E16: 1.2192 | F16: 0 | G16: 4.6105 | H16: 0 | I16: 27.891 | J16: 38.9899 | K16: 34.3794
A17: E9016 | B17: Usina misturadora móvel de reciclagem a frio com sistema de espuma de asfalto - 129,40 kW | C17: 10023658.67 | D17: 584.7134 | E17: 180.3841 | F17: 0 | G17: 751.7744 | H17: 99.321 | I17: 44.042 | J17: 1660.2349 | K17: 809.1395
A18: E9017 | B18: Escavadeira hidráulica sobre esteira com capacidade de 0,4 m³ - 64 kW | C18: 720373.9643 | D18: 50.4262 | E18: 13.3341 | F18: 0 | G18: 50.4262 | H18: 45.6144 | I18: 33.8824 | J18: 193.6833 | K18: 97.6427
A19: E9020 | B19: Recicladora a frio - 455 kW | C19: 5017314.184 | D19: 292.6767 | E19: 90.2907 | F19: 0 | G19: 418.1095 | H19: 498.9075 | I19: 44.042 | J19: 1344.0264 | K19: 427.0094
A20: E9021 | B20: Grupo gerador - 456 kVA | C20: 359094.9766 | D20: 17.9547 | E20: 6.3303 | F20: 0 | G20: 12.8248 | H20: 380.2114 | I20: 0 | J20: 417.3212 | K20: 24.285
A21: E9022 | B21: Pórtico metálico rolante com capacidade de 25 t - 30 kW | C21: 963462.8178 | D21: 43.3558 | E21: 16.3476 | F21: 0 | G21: 33.7212 | H21: 0 | I21: 27.891 | J21: 121.3156 | K21: 87.5944
A22: E9023 | B22: Guindaste móvel sobre esteiras com dragline com capacidade de 1,9 a 2,3 m³ - 270 kW | C22: 3566698.227 | D22: 124.8344 | E22: 60.518 | F22: 0 | G22: 178.3349 | H22: 74.0138 | I22: 44.042 | J22: 481.7431 | K22: 229.3944
A23: E9024 | B23: Misturador de nata cimento - 1,50 kW | C23: 8418.0794 | D23: 0.6734 | E23: 0.1558 | F23: 0 | G23: 0.5893 | H23: 0 | I23: 27.891 | J23: 29.3095 | K23: 28.7202
A24: E9025 | B24: Conjunto bomba e macaco hidráulico para protensão com capacidade de 7.000 kN - 15 kW | C24: 100955.9712 | D24: 5.7689 | E24: 1.7797 | F24: 0 | G24: 5.7689 | H24: 0 | I24: 44.042 | J24: 57.3595 | K24: 51.5906
A25: E9026 | B25: Bomba para injeção de nata de cimento com capacidade de 2 MPa - 2,20 kW | C25: 31918.9832 | D25: 2.5535 | E25: 0.5908 | F25: 0 | G25: 2.2343 | H25: 0 | I25: 0 | J25: 5.3786 | K25: 3.1443
A26: E9028 | B26: Bomba de alta pressão para hidrojateamento com capacidade de 18 MPa - 5,20 kW | C26: 4829.7403 | D26: 0.3864 | E26: 0.0894 | F26: 0 | G26: 0.4347 | H26: 9.347 | I26: 27.891 | J26: 38.1485 | K26: 28.3668
A27: E9029 | B27: Conjunto bomba e macaco hidráulico para protensão com capacidade de 8.000 kN - 20 kW | C27: 128333.9028 | D27: 7.3334 | E27: 2.2623 | F27: 0 | G27: 7.3334 | H27: 0 | I27: 44.042 | J27: 60.9711 | K27: 53.6377
A28: E9030 | B28: Bomba de protensão com leitura digital para tensionamento de estais - 3 kW | C28: 13862.7365 | D28: 0.7922 | E28: 0.2444 | F28: 0 | G28: 0.7922 | H28: 0 | I28: 0 | J28: 1.8288 | K28: 1.0366
A29: E9031 | B29: Elevador de cremalheira com cabine simples, com capacidade de 1.500 kg e altura de até 100 m - 15 kW | C29: 340423.4441 | D29: 27.2339 | E29: 6.3012 | F29: 0 | G29: 23.8296 | H29: 0 | I29: 27.891 | J29: 85.2557 | K29: 61.4261
A30: E9032 | B30: Equipamento para regulagem final de estais com até 37 cordoalhas - D = 15,7 mm - 20 kW | C30: 75292.0893 | D30: 4.3024 | E30: 1.3273 | F30: 0 | G30: 4.3024 | H30: 0 | I30: 44.042 | J30: 53.9741 | K30: 49.6717
A31: E9033 | B31: Equipamento para regulagem final de estais de 38 a 55 cordoalhas - D = 15,7 mm - 30 kW | C31: 107560.1275 | D31: 6.1463 | E31: 1.8961 | F31: 0 | G31: 6.1463 | H31: 0 | I31: 44.042 | J31: 58.2307 | K31: 52.0844
A32: E9034 | B32: Equipamento para regulagem final de estais de 56 a 73 cordoalhas - D = 15,7 mm - 40 kW | C32: 161340.1913 | D32: 9.2194 | E32: 2.8442 | F32: 0 | G32: 9.2194 | H32: 0 | I32: 44.042 | J32: 65.325 | K32: 56.1056
A33: E9035 | B33: Equipamento para regulagem final de estais de 74 a 91 cordoalhas - D = 15,7 mm - 50 kW | C33: 215120.2551 | D33: 12.2926 | E33: 3.7923 | F33: 0 | G33: 12.2926 | H33: 0 | I33: 44.042 | J33: 72.4195 | K33: 60.1269
A34: E9036 | B34: Grua fixa para alturas de 60 a 102 m, com alcance de 60 m com capacidade de 1.500 kg na ponta da lança - 37 kW | C34: 3214869.372 | D34: 160.7435 | E34: 56.6736 | F34: 0 | G34: 183.7068 | H34: 0 | I34: 44.042 | J34: 445.1659 | K34: 261.4591
A35: E9038 | B35: Macaco hidráulico monocordoalha para tensionamento de estais - 3 kW | C35: 17408.8961 | D35: 0.9948 | E35: 0.3069 | F35: 0 | G35: 0.9948 | H35: 0 | I35: 44.042 | J35: 46.3385 | K35: 45.3437
A36: E9039 | B36: Máquina de solda por termofusão para tubos PEAD com gerador de 4 kW | C36: 117778.6159 | D36: 6.7302 | E36: 2.0763 | F36: 0 | G36: 6.7302 | H36: 4.1667 | I36: 44.042 | J36: 63.7454 | K36: 52.8485
A37: E9040 | B37: Serra mármore - 1,45 kW | C37: 465.9875 | D37: 0.0419 | E37: 0.0086 | F37: 0 | G37: 0.0233 | H37: 0 | I37: 0 | J37: 0.0738 | K37: 0.0505
A38: E9042 | B38: Trator sobre esteiras com lâmina - 97 kW | C38: 1339961.093 | D38: 52.1096 | E38: 22.9654 | F38: 0 | G38: 74.4423 | H38: 74.4524 | I38: 33.8824 | J38: 257.8521 | K38: 108.9574
A39: E9043 | B39: Embarcação de alumínio com comprimento de 6 m e motor de popa - 18,60 kW | C39: 25164.7803 | D39: 0.3932 | E39: 0.1483 | F39: 0 | G39: 0.4369 | H39: 38.2096 | I39: 39.2829 | J39: 78.4709 | K39: 39.8244
A40: E9044 | B40: Central de concreto com capacidade de 150 m³/h - dosadora e misturadora | C40: 2344740.296 | D40: 133.9852 | E40: 41.3344 | F40: 0 | G40: 117.237 | H40: 0 | I40: 44.042 | J40: 336.5986 | K40: 219.3616
A41: E9045 | B41: Conjunto bomba e macaco hidráulico para elevação com capacidade de 496 kN | C41: 60126.374 | D41: 4.8101 | E41: 1.1129 | F41: 0 | G41: 4.8101 | H41: 5.9163 | I41: 44.042 | J41: 60.6914 | K41: 49.965
A42: E9046 | B42: Conjunto bomba e macaco hidráulico para elevação com capacidade de 929 kN | C42: 73013.0977 | D42: 5.841 | E42: 1.3515 | F42: 0 | G42: 5.841 | H42: 5.9163 | I42: 44.042 | J42: 62.9918 | K42: 51.2345
A43: E9047 | B43: Conjunto bomba e macaco hidráulico para elevação com capacidade de 1.390 kN | C43: 103691.2604 | D43: 8.2953 | E43: 1.9193 | F43: 0 | G43: 8.2953 | H43: 5.9163 | I43: 44.042 | J43: 68.4682 | K43: 54.2566
A44: E9048 | B44: Conjunto bomba e macaco hidráulico para elevação com capacidade de 1.859 kN | C44: 120374.6326 | D44: 9.63 | E44: 2.2281 | F44: 0 | G44: 9.63 | H44: 5.9163 | I44: 44.042 | J44: 71.4464 | K44: 55.9001
A45: E9049 | B45: Bomba de alta pressão para hidrojateamento com capacidade de 250 MPa - 72 kW | C45: 704674.1807 | D45: 56.3739 | E45: 13.0435 | F45: 0 | G45: 63.4207 | H45: 59.211 | I45: 27.891 | J45: 219.9401 | K45: 97.3084
A46: E9050 | B46: Guindaste móvel sobre pneus com 2 eixos com capacidade de 18 t - 97 kW | C46: 2843724.069 | D46: 142.1862 | E46: 50.1308 | F46: 0 | G46: 182.8108 | H46: 26.5901 | I46: 32.4919 | J46: 434.2098 | K46: 224.8089
A47: E9051 | B47: Máquina levantadora e posicionadora de via - 7,40 kW | C47: 793511.661 | D47: 63.4809 | E47: 14.6879 | F47: 0 | G47: 55.5458 | H47: 10.6412 | I47: 27.891 | J47: 172.2468 | K47: 106.0598
A48: E9052 | B48: Empilhadeira a diesel com capacidade de 10 t - 82 kW | C48: 762127.122 | D48: 60.9702 | E48: 14.107 | F48: 0 | G48: 53.3489 | H48: 67.4348 | I48: 27.891 | J48: 223.7519 | K48: 102.9682
A49: E9053 | B49: Perfuratriz hidráulica montada em flutuante - 32 kW | C49: 352717.8547 | D49: 11.0224 | E49: 2.2669 | F49: 0 | G49: 9.7977 | H49: 17.544 | I49: 34.0095 | J49: 74.6405 | K49: 47.2988
A50: E9054 | B50: Equipamento sobre forma-trilho para execução e acabamento de pavimento de concreto - 13,40 kW | C50: 1385247.934 | D50: 110.8198 | E50: 25.6409 | F50: 0 | G50: 69.2624 | H50: 19.2691 | I50: 27.891 | J50: 252.8832 | K50: 164.3517
A51: E9055 | B51: Guincho pneumático com capacidade de 2,5 t | C51: 526758.3044 | D51: 47.4082 | E51: 9.7503 | F51: 0 | G51: 26.3379 | H51: 0 | I51: 0 | J51: 83.4964 | K51: 57.1585
A52: E9056 | B52: Plataforma autoelevatória de 12 x 24 m com capacidade de 150 t | C52: 865509.0991 | D52: 6.7618 | E52: 4.8674 | F52: 0 | G52: 15.0262 | H52: 0 | I52: 104.0051 | J52: 130.6605 | K52: 115.6343
A53: E9057 | B53: Batelão sem propulsão com capacidade de 66 m³ | C53: 231450.2409 | D53: 1.8082 | E53: 1.3016 | F53: 0 | G53: 3.0137 | H53: 0 | I53: 26.7839 | J53: 32.9074 | K53: 29.8937
A54: E9058 | B54: Plataforma flutuante de 12 x 24 x 1,8 m com capacidade de 150 t | C54: 692228.294 | D54: 5.408 | E54: 3.8929 | F54: 0 | G54: 9.0134 | H54: 0 | I54: 26.7839 | J54: 45.0982 | K54: 36.0848
A55: E9059 | B55: Plataforma autoelevatória de 12 x 24 m montada na obra com capacidade de 150 t | C55: 865509.0991 | D55: 6.7618 | E55: 4.8674 | F55: 0 | G55: 15.0262 | H55: 0 | I55: 104.0051 | J55: 130.6605 | K55: 115.6343
A56: E9060 | B56: Perfuratriz pneumática rotopercussiva montada em flutuante com pressão de 0,70 MPa e capacidade de 2.500 gpm | C56: 32255.9661 | D56: 1.008 | E56: 0.2073 | F56: 0 | G56: 0.896 | H56: 0 | I56: 68.019 | J56: 70.1303 | K56: 69.2343
A57: E9061 | B57: Lixadeira elétrica manual angular - 2 kW | C57: 1389.0742 | D57: 0.1111 | E57: 0.0257 | F57: 0 | G57: 0.0695 | H57: 0 | I57: 0 | J57: 0.2063 | K57: 0.1368
A58: E9062 | B58: Soprador de ar quente manual - 1,60 kW | C58: 4563.5123 | D58: 0.6085 | E58: 0.0939 | F58: 0 | G58: 0.3803 | H58: 0 | I58: 0 | J58: 1.0827 | K58: 0.7024
A59: E9063 | B59: Equipamento de estabilização dinâmica da via - 300 kW | C59: 24318637.95 | D59: 972.7455 | E59: 412.6265 | F59: 0 | G59: 972.7455 | H59: 197.37 | I59: 44.042 | J59: 2599.5295 | K59: 1429.414
A60: E9064 | B60: Transportador manual gerica com capacidade de 180 l | C60: 1016.2484 | D60: 1.0162 | E60: 0.0627 | F60: 0 | G60: 0.5081 | H60: 0 | I60: 0 | J60: 1.587 | K60: 1.0789
A61: E9065 | B61: Carro controle ferroviário - 186 kW | C61: 29596832.02 | D61: 1183.8733 | E61: 502.1842 | F61: 0 | G61: 1035.8891 | H61: 122.3694 | I61: 44.042 | J61: 2888.358 | K61: 1730.0995
A62: E9066 | B62: Grupo gerador - 14 kVA | C62: 68455.2933 | D62: 3.4228 | E62: 1.2068 | F62: 0 | G62: 2.4448 | H62: 11.4584 | I62: 0 | J62: 18.5328 | K62: 4.6296
A63: E9067 | B63: Veículo ferroviário para capina química com capacidade de 12.000 l - 115 kW | C63: 1704866.36 | D63: 68.1947 | E63: 28.9273 | F63: 0 | G63: 42.6217 | H63: 75.6585 | I63: 27.891 | J63: 243.2932 | K63: 125.013
A64: E9068 | B64: Perfuratriz hidráulica rotopercussiva para CCPH - 123 kW | C64: 3524663.951 | D64: 234.9776 | E64: 63.4293 | F64: 0 | G64: 234.9776 | H64: 101.1521 | I64: 33.8824 | J64: 668.419 | K64: 332.2893
A65: E9069 | B65: Vibrador de imersão para concreto - 4,10 kW | C65: 3892.7652 | D65: 0.6228 | E65: 0.1441 | F65: 0 | G65: 0.3893 | H65: 7.3697 | I65: 0 | J65: 8.5259 | K65: 0.7669
A66: E9070 | B66: Ponte rolante com capacidade de 5 t e vão de até 15 m - 10 kW | C66: 337430.1766 | D66: 13.4972 | E66: 5.7253 | F66: 0 | G66: 8.4358 | H66: 0 | I66: 27.891 | J66: 55.5493 | K66: 47.1135
A67: E9071 | B67: Transportador manual carrinho de mão com capacidade de 80 l | C67: 479.6485 | D67: 0.4796 | E67: 0.0296 | F67: 0 | G67: 0.2398 | H67: 0 | I67: 0 | J67: 0.749 | K67: 0.5092
A68: E9072 | B68: Martelo hidráulico vibratório com unidade hidráulica - 486 kW | C68: 2864542.075 | D68: 190.9695 | E68: 51.5498 | F68: 0 | G68: 167.0983 | H68: 399.6743 | I68: 44.042 | J68: 853.3339 | K68: 286.5613
A69: E9073 | B69: Bomba de concreto rebocável com capacidade de 30 m³/h - 74 kW | C69: 489083.7766 | D69: 39.1267 | E69: 9.0529 | F69: 0 | G69: 39.1267 | H69: 77.084 | I69: 27.891 | J69: 192.2813 | K69: 76.0706
A70: E9074 | B70: Tanque de estocagem de asfalto com agitadores de 60.000 l | C70: 816000 | D70: 34 | E70: 11.8001 | F70: 0 | G70: 21.25 | H70: 0 | I70: 0 | J70: 67.0501 | K70: 45.8001
A71: E9075 | B71: Trado cavadeira de 12" | C71: 151.539 | D71: 0.0758 | E71: 0.007 | F71: 0 | G71: 0.0379 | H71: 0 | I71: 0 | J71: 0.1207 | K71: 0.0828
A72: E9076 | B72: Equipamento para pintura eletrostática com cabine dupla de 7,00 kW e estufa de 80.000 kCal | C72: 164126.6416 | D72: 10.551 | E72: 2.8933 | F72: 0 | G72: 5.8617 | H72: 0 | I72: 27.891 | J72: 47.197 | K72: 41.3353
A73: E9077 | B73: Perfuratriz de circulação reversa tipo Wirth ou similar com unidade hidráulica (Power Pack) - 273 kW | C73: 4250023.331 | D73: 283.3349 | E73: 76.4827 | F73: 0 | G73: 283.3349 | H73: 149.6723 | I73: 33.8824 | J73: 826.7072 | K73: 393.7
A74: E9078 | B74: Treliça lançadeira com capacidade de carga de 100 a 120 t e vão máximo de 45 m - 110 kW | C74: 3556221.897 | D74: 94.8326 | E74: 58.5117 | F74: 0 | G74: 59.2704 | H74: 0 | I74: 44.042 | J74: 256.6567 | K74: 197.3863
A75: E9079 | B75: Bomba submersível com capacidade de 360 m³/h - 23 kW | C75: 180147.2103 | D75: 14.4118 | E75: 3.3345 | F75: 0 | G75: 12.6103 | H75: 0 | I75: 0 | J75: 30.3566 | K75: 17.7463
A76: E9080 | B76: Carrelone com capacidade máxima de 70 t | C76: 1766402.012 | D76: 79.4881 | E76: 29.9714 | F76: 0 | G76: 44.1601 | H76: 0 | I76: 27.891 | J76: 181.5106 | K76: 137.3505
A77: E9081 | B77: Fischietti simples com capacidade de 70 t | C77: 110525.6324 | D77: 4.9737 | E77: 1.8753 | F77: 0 | G77: 2.7631 | H77: 0 | I77: 27.891 | J77: 37.5031 | K77: 34.74
A78: E9083 | B78: Vagão fechado FLT com capacidade de 99 t | C78: 800000 | D78: 12.6667 | E78: 12.7513 | F78: 0 | G78: 6.6667 | H78: 0 | I78: 0 | J78: 32.0847 | K78: 25.418
A79: E9084 | B79: Vagão tanque convencional TCT com capacidade de 97 t e 103.000 l | C79: 1195000 | D79: 18.9208 | E79: 19.0473 | F79: 0 | G79: 9.9583 | H79: 0 | I79: 0 | J79: 47.9264 | K79: 37.9681
A80: E9085 | B80: Vagão gôndola GDE com capacidade de 93,5 t / 29 m³ | C80: 620000 | D80: 9.8167 | E80: 9.8823 | F80: 0 | G80: 5.1667 | H80: 0 | I80: 0 | J80: 24.8657 | K80: 19.699
A81: E9086 | B81: Bomba de concreto rebocável com capacidade de 41 m³/h - 74 kW | C81: 539233.7766 | D81: 43.1387 | E81: 9.9812 | F81: 0 | G81: 43.1387 | H81: 77.084 | I81: 27.891 | J81: 201.2336 | K81: 81.0109
A82: E9089 | B82: Roçadeira costal - 1,40 kW | C82: 2869.6963 | D82: 0.4305 | E82: 0.059 | F82: 0 | G82: 0.3348 | H82: 7.909 | I82: 0 | J82: 8.7333 | K82: 0.4895
A83: E9093 | B83: Veículo leve - 53 kW (sem motorista) | C83: 71509.0254 | D83: 4.2905 | E83: 1.3236 | F83: 0.5363 | G83: 4.2905 | H83: 24.4973 | I83: 0 | J83: 34.9382 | K83: 6.1504
A84: E9094 | B84: Guindaste móvel sobre pneus com 6 eixos com capacidade máxima de 350 t - 450 kW | C84: 16378691.98 | D84: 818.9346 | E84: 288.7329 | F84: 116.9907 | G84: 1052.9159 | H84: 123.3563 | I84: 32.4919 | J84: 2433.4223 | K84: 1257.1501
A85: E9095 | B85: Guindaste móvel sobre pneus com 8 eixos com capacidade máxima de 500 t - 500 kW | C85: 28706930.87 | D85: 1435.3465 | E85: 506.0622 | F85: 205.0495 | G85: 1845.4456 | H85: 137.0625 | I85: 32.4919 | J85: 4161.4582 | K85: 2178.9501
A86: E9096 | B86: Minicarregadeira de pneus - 45,50 kW | C86: 408908.8091 | D86: 28.6236 | E86: 7.5689 | F86: 0 | G86: 28.6236 | H86: 62.3634 | I86: 33.8824 | J86: 161.0619 | K86: 70.0749
A87: E9101 | B87: Removedora de faixas de sinalização viária - 9,69 kW | C87: 51249.2851 | D87: 4.0999 | E87: 0.9486 | F87: 0 | G87: 3.5874 | H87: 17.4177 | I87: 0 | J87: 26.0536 | K87: 5.0485
